Workbook

Sheet Control_de_Cambios (hidden)
A1: Versión Actual | B1: Fecha de Publicación | C1: Cambio | D1: Responsable del cambio
A2: V1 19/06/2024 | B2: 2024-07-03 | C2: Lanzamiento del Simulador Comercial para el producto de Hipoteca Full | D2: Nelson Silva Gallegos
A3: V2 09/08/2024 | B3: 2024-08-12 | C3: Se realizan cambios para que la tabla de amortización se muestre en la misma hoja de captura de condiciones y con esto hacer más eficiente el simulador. | D3: Nelson Silva Gallegos
A4: V3 04/11/2024 | B4: 2024-11-06 | C4: Se realizan cambios en factores de pago y línea conforme a Matriz 107 | D4: Nelson Silva Gallegos
A5: Versión M110 V1 | B5: Versión M110 V1 | C5: - Se agrega la opción de Adhesión INFONAVIT para los destinos de Contrucción y Remodelación - Se realiza la actualización de Taxonomía de Comisiones. - Se realizan cambios de Pricing autorizados y publicados el 31/08/2025 | D5: Nelson Silva Gallegos
A6: Versión M110 V2 | B6: Versión M110 V2 | C6: - Se realizan correcciones reportadas en Tasa , Premier y No Premier y cambio de Tradicional por Mercado_Abierto | D6: Nelson Silva Gallegos
A7: Versión M110 V3 | B7: Versión M110 V3 | C7: - Se ingresa en los catálogos la opción de elegir Producto Exclusiva y poder seleccionar plazos de 25 años en Mercado Abierto. - Se activa la opción "¿Es cliente Nómina HSBC? Para incrementar LTV a 90 % para Mercado Abierto. - Se actualiza el LTV Máximo para HQ a 95 %. - Se corrige el que se muestre la reducción de plazo para PFAE Premier | D7: Nelson Silva Gallegos

Sheet Formulario
H3: Versión M110 V3
F6: Simulador Comercial Hipoteca Full HSBC

Sheet Loging (hidden)
D4: Loging Administrador
E6: Usuario
E8: Contraseña

Sheet Catalogos (hidden)
A1: Estado | C1: Canal_de_Acceso | E1: Perfil_Cliente | G1: Producto | H1: Adquisicion | I1: Pago_de_Hipoteca | J1: Liquidez | K1: Exclusiva | L1: Pago_Hipoteca+Liquidez | N1: Gastos Notariales | P1: Esquema | Q1: Pago_Fijo_Puntual | R1: Pago_Bajo_Puntual | T1: Perfil_Cliente | U1: No_Premier | W1: Si/No | Y1: PAGO FIJO PUNTUAL | AA1: PAGO BAJO PUNTUAL | AC1: Adquisicion | AD1: Pago_de_Hipoteca | AE1: Pago_Hipoteca+Liquidez | AF1: Liquidez | AG1: Exclusiva | AH1: Tipo de Cliente | AL1: Cofinnciamiento, Apoyo Infonavit, Exclusiva Wealth & Premier Executive & Adquisicion & Tradicional | AM1: Pago_de_Hipoteca o Pago_Hipoteca+Liquidez | AN1: Liquidez | AO1: Wealth & Premier Executive & Adquisicion & Tradicional | AP1: Resto de los Plazos | AQ1: Plazo | AR1: Plazo Final | AV1: NR | AW1: Adquisicion Wealth & Premier Executive | AX1: Tasa Piso | AY1: Tasa Techo | AZ1: Adquisicion Exclusiva Pago_de_Hipoteca Pago_Hipoteca+Liquidez | BA1: Construcción Terreno + Construcción Remodelación | BB1: Tasa Piso | BC1: Tasa Techo | BD1: Liquidez | BE1: Tasa Piso | BF1: Tasa Techo | BI1: PAGO FIJO PUNTUAL | BL1: PAGO BAJO PUNTUAL
A2: Aguascalientes | C2: Centro Hipotecario | E2: Premier | G2: Adquisicion | H2: Mercado_Abierto | K2: Mercado_Abierto | N2: 0.02 | P2: Pago_Fijo_Puntual | Q2: PF | R2: PF | T2: Premier | U2: Normal | W2: Si | Y2: Pago_Fijo_Puntual_Premier | AA2: Pago_Bajo_Puntual_Premier | AL2: 25 | AM2: 20 | AN2: 15 | AP2: 20 | AQ2: =IF(OR(Caratula!$F$20="Exclusiva",Caratula!$F$21="Apoyo Infonavit",Caratula!$F$21="Cofinavit"),AL2,IF(OR(Caratula!$F$20="Pago_Hipoteca+Liquidez",Caratula!$F$20="Pago_de_Hipoteca"),AM2,IF(Caratula!$F$20="Liquidez",AN2,IF(AND(Caratula!$F$18="Wealth & Premier Executive",Caratula!$F$20="Adquisicion",Caratula!$F$21="Tradicional"),AL2,AP2)))) -> 25 | AR2: =IF(AQ2=0,"",AQ2) -> 25 | AV2: 1 y 2 + | AW2: 0.0965 | AX2: 0.092 | AY2: 0.1025 | AZ2: 0.0965 | BA2: 0.0965 | BB2: 0.092 | BC2: 0.1025 | BD2: 0.12 | BE2: 0.117 | BF2: 0.129 | BI2: Pago_Fijo_Puntual_Premier | BJ2: Pago_Fijo_Puntual_Wealth_Premier_Executive | BK2: Pago_Fijo_Puntual_No_Premier | BL2: Pago_Bajo_Puntual_Premier | BM2: Pago_Bajo_Puntual_Wealth_Premier_Executive | BN2: Pago_Bajo_Puntual_No_Premier
A3: Baja California | C3: Broker | E3: No_Premier | G3: Pago_de_Hipoteca | H3: Apoyo Infonavit | K3: Apoyo Infonavit | N3: 0.03 | P3: Pago_Bajo_Puntual | Q3: PFAE | T3: Wealth & Premier Executive | U3: Poder Judicial | W3: No | Y3: Adquisicion | AA3: Adquisicion | AC3: GSC | AD3: GSC | AE3: Hipoteca Con HSBC | AF3: Normal | AG3: Nómina | AH3: =IF(AND(Caratula!F16="Pago_Bajo_Puntual",Caratula!F17="PF",Caratula!F18="No_Premier",Caratula!F20="Pago_de_Hipoteca"),"", IF(AND(OR(Caratula!F17="PFAE",Caratula!F17="PROF"),Caratula!F18="No_Premier",Caratula!F20="Exclusiva",Caratula!F21="Tradicional"),"", IF(AND(OR(Caratula!F17="PFAE",Caratula!F17="PROF"),Caratula!F18="No_Premier",Caratula!F20="Adquisicion",Caratula!F21="Tradicional"),"", IF(AND(OR(Caratula!F16="Pago_Fijo_Puntual",Caratula!F16="Pago_Bajo_Puntual"),OR(Caratula!F21="Apoyo Infonavit",Caratula!F21="Cofinavit"),Caratula!$F$20="Adquisicion",Caratula!F22="Poder Judicial"),"", IF(AND(Caratula!F16="Pago_Fijo_Puntual",Caratula!$F$20="Adquisicion"),"GSC", IF(AND(Caratula!F16="Pago_Bajo_Puntual",Caratula!$F$20="Adquisicion"),"", IF(Caratula!$F$20="Pago_de_Hipoteca","GSC", IF(Caratula!$F$20="Pago_Hipoteca+Liquidez","PagHip Mas Liquidez", IF(Caratula!$F$20="Liquidez","Normal",IF(Caratula!$F$20="Exclusiva","Nómina")))))))))) -> Nómina | AL3: 20 | AM3: 19 | AN3: 10 | AP3: 15 | AQ3: =IF(OR(Caratula!$F$20="Exclusiva",Caratula!$F$21="Apoyo Infonavit",Caratula!$F$21="Cofinavit"),AL3,IF(OR(Caratula!$F$20="Pago_Hipoteca+Liquidez",Caratula!$F$20="Pago_de_Hipoteca"),AM3,IF(Caratula!$F$20="Liquidez",AN3,IF(AND(Caratula!$F$18="Wealth & Premier Executive",Caratula!$F$20="Adquisicion",Caratula!$F$21="Tradicional"),AL3,AP3)))) -> 20 | AR3: =IF(AQ3=0,"",AQ3) -> 20 | AV3: 3 + | AW3: 0.103 | AX3: 0.1 | AY3: 0.112 | AZ3: 0.103 | BA3: 0.103 | BB3: 0.1 | BC3: 0.112 | BD3: 0.12 | BE3: 0.117 | BF3: 0.129 | BI3: Adquisicion | BJ3: Adquisicion | BK3: Adquisicion | BL3: Adquisicion | BM3: Adquisicion | BN3: Adquisicion
A4: Baja California Sur | C4: Broker Desarrollo | E4: Wealth & Premier Executive | G4: Pago_Hipoteca+Liquidez | H4: Cofinavit | K4: Cofinavit | N4: 0.04 | Q4: PROF | T4: No_Premier | U4: GSC | Y4: Pago_de_Hipoteca | AA4: Exclusiva | AC4: Nómina | AD4: Nómina | AE4: PagHip Mas Liquidez | AF4: Poder Judicial | AG4: Normal | AH4: =IF(AND(OR(Caratula!F17="PFAE",Caratula!F17="PROF"),Caratula!F18="No_Premier",Caratula!F20="Adquisicion",Caratula!F21="Tradicional"),"Normal", IF(Caratula!$F$20="Adquisicion","Nómina", IF(Caratula!$F$20="Pago_de_Hipoteca","Nómina", IF(Caratula!$F$20="Pago_Hipoteca+Liquidez","", IF(AND(Caratula!F16="Pago_Fijo_Puntual",Caratula!F17="PF",Caratula!F18="No_Premier",Caratula!F20="Liquidez"),"Poder Judicial", IF(Caratula!$F$20="Liquidez"," ", IF(Caratula!$F$20="Exclusiva","Normal", ))))))) -> Normal | AL4: 15 | AM4: 18 | AN4: 5 | AP4: 10 | AQ4: =IF(OR(Caratula!$F$20="Exclusiva",Caratula!$F$21="Apoyo Infonavit",Caratula!$F$21="Cofinavit"),AL4,IF(OR(Caratula!$F$20="Pago_Hipoteca+Liquidez",Caratula!$F$20="Pago_de_Hipoteca"),AM4,IF(Caratula!$F$20="Liquidez",AN4,IF(AND(Caratula!$F$18="Wealth & Premier Executive",Caratula!$F$20="Adquisicion",Caratula!$F$21="Tradicional"),AL4,AP4)))) -> 15 | AR4: 15 | AV4: 1 y 2 | AW4: 0.103 | AX4: 0.1 | AY4: 0.112 | AZ4: 0.103 | BA4: 0.103 | BB4: 0.1 | BC4: 0.112 | BD4: 0.12 | BE4: 0.117 | BF4: 0.129 | BI4: Pago_de_Hipoteca | BJ4: Liquidez | BK4: Pago_de_Hipoteca | BL4: Pago_de_Hipoteca | BM4: Pago_de_Hipoteca | BN4: Pago_de_Hipoteca
A5: Campeche | C5: Desarrollo | G5: Liquidez | N5: 0.045 | U5: Nómina | Y5: Pago_Hipoteca+Liquidez | AA5: Pago_de_Hipoteca | AC5: Nómina Especial | AD5: Normal | AG5: Poder Judicial | AH5: =IF(AND(Caratula!F17="PF",Caratula!F18="No_Premier",Caratula!F20="Exclusiva",Caratula!F21="Tradicional"),"Poder Judicial", IF(AND(OR(Caratula!F17="PFAE",Caratula!F17="PROF"),Caratula!F18="No_Premier",Caratula!F20="Adquisicion",Caratula!F21="Tradicional"),"", IF(Caratula!$F$20="Adquisicion","Nómina Especial", IF(Caratula!$F$20="Pago_de_Hipoteca","Normal", IF(Caratula!$F$20="Pago_Hipoteca+Liquidez"," ", IF(Caratula!$F$20="Liquidez"," ", IF(Caratula!$F$20="Exclusiva"," "))))))) ->  | AL5: 10 | AM5: 17 | AP5: 5 | AQ5: =IF(OR(Caratula!$F$20="Exclusiva",Caratula!$F$21="Apoyo Infonavit",Caratula!$F$21="Cofinavit"),AL5,IF(OR(Caratula!$F$20="Pago_Hipoteca+Liquidez",Caratula!$F$20="Pago_de_Hipoteca"),AM5,IF(Caratula!$F$20="Liquidez",AN5,IF(AND(Caratula!$F$18="Wealth & Premier Executive",Caratula!$F$20="Adquisicion",Caratula!$F$21="Tradicional"),AL5,AP5)))) -> 10 | AR5: 10 | AV5: 3 | AW5: 0.106 | AX5: 0.103 | AY5: 0.118 | AZ5: 0.106 | BA5: 0.106 | BB5: 0.103 | BC5: 0.118 | BD5: 0.12 | BE5: 0.117 | BF5: 0.129 | BI5: Pago_Hipoteca+Liquidez | BJ5: Pago_de_Hipoteca | BK5: Pago_Hipoteca+Liquidez | BN5: Exclusiva
A6: Coahuila | G6: Exclusiva | N6: 0.05 | U6: Clientes Especiales Axa Nómina | Y6: Liquidez | AC6: Normal | AD6: Poder Judicial | AH6: =IF(AND(OR(Caratula!F17="PFAE",Caratula!F17="PROF"),Caratula!F18="No_Premier",Caratula!F20="Adquisicion",Caratula!F21="Tradicional"),"", IF(Caratula!$F$20="Adquisicion","Normal", IF(Caratula!$F$20="Pago_de_Hipoteca","Poder Judicial", IF(Caratula!$F$20="Pago_Hipoteca+Liquidez"," ", IF(Caratula!$F$20="Liquidez"," ", IF(Caratula!$F$20="Exclusiva"," ")))))) ->  | AL6: 5 | AM6: 16 | AQ6: =IF(OR(Caratula!$F$20="Exclusiva",Caratula!$F$21="Apoyo Infonavit",Caratula!$F$21="Cofinavit"),AL6,IF(OR(Caratula!$F$20="Pago_Hipoteca+Liquidez",Caratula!$F$20="Pago_de_Hipoteca"),AM6,IF(Caratula!$F$20="Liquidez",AN6,IF(AND(Caratula!$F$18="Wealth & Premier Executive",Caratula!$F$20="Adquisicion",Caratula!$F$21="Tradicional"),AL6,AP6)))) -> 5 | AR6: 5 | BI6: Liquidez | BJ6: Pago_Hipoteca+Liquidez | BK6: Liquidez
A7: Colima | N7: 0.06 | U7: Clientes Especiales Axa No Nómina | Y7: Exclusiva | AC7: Poder Judicial | AH7: =IF(AND(OR(Caratula!F17="PFAE",Caratula!F17="PROF"),Caratula!F18="No_Premier",Caratula!F20="Adquisicion",Caratula!F21="Tradicional"),"", IF(AND(OR(Caratula!F16="Pago_Fijo_Puntual",Caratula!F16="Pago_Bajo_Puntual"),Caratula!F20="Adquisicion",OR(Caratula!F21="Cofinavit",Caratula!F21="Apoyo Infonavit")),"", IF(Caratula!$F$20="Adquisicion","Poder Judicial", IF(AND(OR(Caratula!F16="Pago_Fijo_Puntual",Caratula!F16="Pago_Bajo_Puntual"),Caratula!F18="No_Premier",Caratula!F20="Pago_de_Hipoteca"),"", IF(Caratula!$F$20="Pago_Hipoteca+Liquidez"," ", IF(Caratula!$F$20="Liquidez"," ", IF(Caratula!$F$20="Exclusiva",""))))))) ->  | AM7: 15 | AQ7: =IF(OR(Caratula!$F$20="Exclusiva",Caratula!$F$21="Apoyo Infonavit",Caratula!$F$21="Cofinavit"),AL7,IF(OR(Caratula!$F$20="Pago_Hipoteca+Liquidez",Caratula!$F$20="Pago_de_Hipoteca"),AM7,IF(Caratula!$F$20="Liquidez",AN7,IF(AND(Caratula!$F$18="Wealth & Premier Executive",Caratula!$F$20="Adquisicion",Caratula!$F$21="Tradicional"),AL7,AP7)))) -> 0 | BK7: Exclusiva
A8: Chiapas | N8: 0.07 | U8: Nómina Especial | AM8: 14 | AQ8: =IF(OR(Caratula!$F$20="Exclusiva",Caratula!$F$21="Apoyo Infonavit",Caratula!$F$21="Cofinavit"),AL8,IF(OR(Caratula!$F$20="Pago_Hipoteca+Liquidez",Caratula!$F$20="Pago_de_Hipoteca"),AM8,IF(Caratula!$F$20="Liquidez",AN8,IF(AND(Caratula!$F$18="Wealth & Premier Executive",Caratula!$F$20="Adquisicion",Caratula!$F$21="Tradicional"),AL8,AP8)))) -> 0
A9: Chihuahua | N9: 0.08 | U9: Hipoteca Con HSBC | Y9: Producto_Pago_Fijo_Puntual_Wealth & Premier Executive | AA9: Producto_Pago_Bajo_Puntual_Wealth & Premier Executive | AM9: 13 | AQ9: =IF(OR(Caratula!$F$20="Exclusiva",Caratula!$F$21="Apoyo Infonavit",Caratula!$F$21="Cofinavit"),AL9,IF(OR(Caratula!$F$20="Pago_Hipoteca+Liquidez",Caratula!$F$20="Pago_de_Hipoteca"),AM9,IF(Caratula!$F$20="Liquidez",AN9,IF(AND(Caratula!$F$18="Wealth & Premier Executive",Caratula!$F$20="Adquisicion",Caratula!$F$21="Tradicional"),AL9,AP9)))) -> 0
A10: Ciudad de México | N10: 0.09 | U10: PagHip Mas Liquidez | Y10: Adquisicion | AA10: Adquisicion | AM10: 12 | AQ10: =IF(OR(Caratula!$F$20="Exclusiva",Caratula!$F$21="Apoyo Infonavit",Caratula!$F$21="Cofinavit"),AL10,IF(OR(Caratula!$F$20="Pago_Hipoteca+Liquidez",Caratula!$F$20="Pago_de_Hipoteca"),AM10,IF(Caratula!$F$20="Liquidez",AN10,IF(AND(Caratula!$F$18="Wealth & Premier Executive",Caratula!$F$20="Adquisicion",Caratula!$F$21="Tradicional"),AL10,AP10)))) -> 0
A11: Durango | N11: 0.1 | Y11: Liquidez | AA11: Pago_de_Hipoteca | AM11: 11 | AQ11: =IF(OR(Caratula!$F$20="Exclusiva",Caratula!$F$21="Apoyo Infonavit",Caratula!$F$21="Cofinavit"),AL11,IF(OR(Caratula!$F$20="Pago_Hipoteca+Liquidez",Caratula!$F$20="Pago_de_Hipoteca"),AM11,IF(Caratula!$F$20="Liquidez",AN11,IF(AND(Caratula!$F$18="Wealth & Premier Executive",Caratula!$F$20="Adquisicion",Caratula!$F$21="Tradicional"),AL11,AP11)))) -> 0
A12: Estado de México | N12: 0.11 | Y12: Pago_de_Hipoteca | AM12: 10 | AQ12: =IF(OR(Caratula!$F$20="Exclusiva",Caratula!$F$21="Apoyo Infonavit",Caratula!$F$21="Cofinavit"),AL12,IF(OR(Caratula!$F$20="Pago_Hipoteca+Liquidez",Caratula!$F$20="Pago_de_Hipoteca"),AM12,IF(Caratula!$F$20="Liquidez",AN12,IF(AND(Caratula!$F$18="Wealth & Premier Executive",Caratula!$F$20="Adquisicion",Caratula!$F$21="Tradicional"),AL12,AP12)))) -> 0
A13: Guanajuato | N13: 0.12 | Y13: Pago_Hipoteca+Liquidez | AM13: 9 | AQ13: =IF(OR(Caratula!$F$20="Exclusiva",Caratula!$F$21="Apoyo Infonavit",Caratula!$F$21="Cofinavit"),AL13,IF(OR(Caratula!$F$20="Pago_Hipoteca+Liquidez",Caratula!$F$20="Pago_de_Hipoteca"),AM13,IF(Caratula!$F$20="Liquidez",AN13,IF(AND(Caratula!$F$18="Wealth & Premier Executive",Caratula!$F$20="Adquisicion",Caratula!$F$21="Tradicional"),AL13,AP13)))) -> 0
A14: Guerrero | AM14: 8 | AQ14: =IF(OR(Caratula!$F$20="Exclusiva",Caratula!$F$21="Apoyo Infonavit",Caratula!$F$21="Cofinavit"),AL14,IF(OR(Caratula!$F$20="Pago_Hipoteca+Liquidez",Caratula!$F$20="Pago_de_Hipoteca"),AM14,IF(Caratula!$F$20="Liquidez",AN14,IF(AND(Caratula!$F$18="Wealth & Premier Executive",Caratula!$F$20="Adquisicion",Caratula!$F$21="Tradicional"),AL14,AP14)))) -> 0
A15: Hidalgo | Y15: Pago_Fijo_Puntual_No_Premier | AA15: Pago_Bajo_Puntual_No_Premier | AM15: 7 | AQ15: =IF(OR(Caratula!$F$20="Exclusiva",Caratula!$F$21="Apoyo Infonavit",Caratula!$F$21="Cofinavit"),AL15,IF(OR(Caratula!$F$20="Pago_Hipoteca+Liquidez",Caratula!$F$20="Pago_de_Hipoteca"),AM15,IF(Caratula!$F$20="Liquidez",AN15,IF(AND(Caratula!$F$18="Wealth & Premier Executive",Caratula!$F$20="Adquisicion",Caratula!$F$21="Tradicional"),AL15,AP15)))) -> 0
A16: Jalisco | Y16: Adquisicion | AA16: Adquisicion | AM16: 6 | AQ16: =IF(OR(Caratula!$F$20="Exclusiva",Caratula!$F$21="Apoyo Infonavit",Caratula!$F$21="Cofinavit"),AL16,IF(OR(Caratula!$F$20="Pago_Hipoteca+Liquidez",Caratula!$F$20="Pago_de_Hipoteca"),AM16,IF(Caratula!$F$20="Liquidez",AN16,IF(AND(Caratula!$F$18="Wealth & Premier Executive",Caratula!$F$20="Adquisicion",Caratula!$F$21="Tradicional"),AL16,AP16)))) -> 0
A17: Michoacán | Y17: Liquidez | AA17: Exclusiva | AM17: 5 | AQ17: =IF(OR(Caratula!$F$20="Exclusiva",Caratula!$F$21="Apoyo Infonavit",Caratula!$F$21="Cofinavit"),AL17,IF(OR(Caratula!$F$20="Pago_Hipoteca+Liquidez",Caratula!$F$20="Pago_de_Hipoteca"),AM17,IF(Caratula!$F$20="Liquidez",AN17,IF(AND(Caratula!$F$18="Wealth & Premier Executive",Caratula!$F$20="Adquisicion",Caratula!$F$21="Tradicional"),AL17,AP17)))) -> 0
A18: Morelos | Y18: Pago_de_Hipoteca | AA18: Pago_de_Hipoteca
A19: Nayarit | Y19: Pago_Hipoteca+Liquidez
A20: Nuevo León | Y20: Exclusiva
A21: Oaxaca
A22: Puebla
A23: Querétaro
A24: Quintana Roo
A25: San Luis Potosí
A26: Sinaloa
A27: Sonora
A28: Tabasco
A29: Tamaulipas
A30: Tlaxcala
A31: Veracruz
A32: Yucatán
A33: Zacatecas

Sheet Caratula (hidden)
R9: =TODAY() -> 2025-09-10
Q10: =Formulario!H3 -> Versión M110 V3
BM12: No eliminar estos catalogos
C13: Nota: Requisitar los campos en color gris
N14: Resultados | AS14: =IF(AND(F24=10.3%,F25="Si"),TRIM(CONCATENATE(F20," ",F17," ",F18," ",F22," ",F21," ",F16," ",F25," ",F23," ",F24)),TRIM(CONCATENATE(F20," ",F17," ",F18," ",F22," ",F21," ",F16," ",F23," ",F24))) -> Exclusiva PF No_Premier Normal Mercado_Abierto Pago_Fijo_Puntual 25 0.103
C15: Datos del Crédito | N15: Desembolso inicial
C16: Esquema * | F16: Pago_Fijo_Puntual | N16: =IF(O16>=0,"Enganche","") -> Enganche | S16: =IFERROR(IF(OR(F20="Pago_de_Hipoteca",F20="Pago_Hipoteca+Liquidez",F20="Liquidez"),0,F28-IF(F21="Cofinavit",F32+F33+U24,U24)),0) -> 300000 | AL16: =IF(F27="Por Valor de la Vivienda",AL21,IF(AL17<100000,"-",AL17)) -> 700000 | AM16: =IFERROR(MIN(AL16,AL20),0) -> 700000 | AP16: Producto | AQ16: Monto Max por Monto | AR16: Monto Max por Ingreso | AS16: % Max Financiamiento | AT16: Min Financiamiento | BA16: NR | BB16: Tasa | BC16: FPT | BD16: Mercado Abierto Sin E-Visor | BE16: Mercado Abierto Con E-Visor | BF16: HQ Sin E-Visor | BG16: HQ Con E-Visor | BH16: Ingresos Mínimos Mercado Abierto | BI16: Ingresos Mínimos HQ | BJ16: Ingreso a Considerar | BM16: Catalogos de Productos
C17: Tipo de Persona * | F17: PF | N17: Gastos de Preoriginación - Avalúo Hipotecario | S17: =IF(N17="Campaña Sin Cobro de Avalúo",0,IF(F20="Pago_de_Hipoteca",0,VLOOKUP(F28,Costo_Avaluos!A3:B11,2))) -> 3422 | AK17: Monto de Máximo | AL17: =IFERROR( VLOOKUP(F20,AP17:AR22,IF(OR(F27="Por monto de crédito y valor de la vivienda",F27="Por Valor de la Vivienda"),2,3),0),0) -> 700000 | AP17: Adquisicion | AQ17: =MIN(VLOOKUP(F21,$AP$27:$AQ$29,2,0),IF(F27="Por monto de crédito y valor de la vivienda",F29,50000000),F28*AS17,50000000) -> 700000 | AR17: =MIN($S$28,IF($F$20=$AP$17,IF(OR($F$21=$AP$27,$F$21=$AP$28,$F$21=$AP$29),$F$28*$AS$17,IF($F$32+$F$33>0.1*F$28,F$28-$F$32, IF($F$32<0.05*$F$28,$S$28,$F$28*0.95-$F$32)))),$F$28*$AS$17) -> 0 | AS17: =IF(F25="No",0.7, IF(AND(F20="Pago_de_Hipoteca",F24=0.0965,F26="Si"),0.7, IF(AND(F24=0.106,F20="Adquisicion",F21="Mercado_Abierto",F17="PF",F19="Si"),0.9, IF(AND(F20="Pago_de_Hipoteca",F26="Si"),0.9, IF(AND(F24=10.3%,F25="Si"),VLOOKUP(TRIM(CONCATENATE(F20," ",F17," ",F18," ",F22," ",F21," ",F16," ",F25," ",F23," ",F24)),Catalogo_Condicione_Financieras!B:X,20,0),VLOOKUP(TRIM(CONCATENATE(F20," ",F17," ",F18," ",F22," ",F21," ",F16," ",F23," ",F24)),Catalogo_Condicione_Financieras!B:X,20,0)))))) -> 0.7 | AT17: 350000 | BA17: 1+ | BB17: =IF(AND(F18="Wealth & Premier Executive",F20="Adquisicion"),Catalogos!AW2,IF(F20="Liquidez",Catalogos!BD2,Catalogos!AZ2)) -> 0.0965 | BC17: 0.73 | BD17: 0.68 | BE17: 0.73 | BF17: 0.73 | BG17: 0.75 | BH17: =$V$64/100%/BD17 -> 10713.5 | BI17: =$V$64/100%/BF17 -> 9979.69863 | BJ17: =IF(OR(F21="Apoyo Infonavit",F21="Cofinavit"),VLOOKUP(F24,BB17:BI23,8,0),VLOOKUP(F24,BB17:BI23,7,)) -> 10713.5 | BM17: =CONCATENATE(F16,"_",F18) -> Pago_Fijo_Puntual_No_Premier
C18: Perfil Cliente * | F18: No_Premier | M18: * | N18: Sin Comisiones | S18: =IF(N18="Sin Comisiones",0,IF(N18="C. Penalización Pago Anticipado",VLOOKUP(TRIM(CONCATENATE(F20," ",F17," ",F18," ",F22," ",F21," ",F16," ",F23)),Catalogo_Condicione_Financieras!A:W,19,0),VLOOKUP(TRIM(CONCATENATE(F20," ",F17," ",F18," ",F22," ",F21," ",F16," ",F23)),Catalogo_Condicione_Financieras!A:W,20,0))) -> 0 | U18: =IF(OR(N18="C. Penalización Pago Anticipado",N18="Sin Comisiones"),0,IFERROR(IF($F$27="Por ingresos del cliente",$AM$16,IF($F$29=0,$AL$42,AL42))*S18,0)) -> 0 | AP18: Pago_de_Hipoteca | AQ18: =IF(F27="Por Valor de la Vivienda",MIN(F28*AS17,50000000),MIN(F28*AS17,F29,50000000)) -> 700000 | AR18: =MIN(F28*AS17,S28) -> 10713.5 | AT18: 350000 | BA18: 1 | BB18: =IF(AND(F18="Wealth & Premier Executive",F20="Adquisicion"),Catalogos!AW3,IF(F20="Liquidez",Catalogos!BD3,Catalogos!AZ3)) -> 0.103 | BC18: 0.73 | BD18: 0.68 | BE18: 0.73 | BF18: 0.73 | BG18: 0.75 | BH18: 10713.5 | BI18: 9979.69863
C19: ¿Es cliente Nómina HSBC? * | F19: Si | N19: Gastos de Investigación | S19: =VLOOKUP(TRIM(CONCATENATE(F20," ",F17," ",F18," ",F22," ",F21," ",F16," ",F23)),Catalogo_Condicione_Financieras!A:W,22,0) -> 0 | AP19: Liquidez | AQ19: =MIN($F$28*AS17,$F$29,70000000) -> 700000 | AR19: =MIN(F28*AS17,S28,50000000) -> 10713.5 | AT19: 350000 | BA19: 2 | BB19: =IF(AND(F18="Wealth & Premier Executive",F20="Adquisicion"),Catalogos!AW4,IF(F20="Liquidez",Catalogos!BD4,Catalogos!AZ4)) -> 0.103 | BC19: 0.73 | BD19: 0.65 | BE19: 0.7 | BF19: 0.73 | BG19: 0.75 | BH19: 11207.96923 | BI19: 9979.69863
C20: Escoja la opción de Producto * | F20: Exclusiva | N20: Gastos Notariales * | P20: FALSE | S20: 0.025 | U20: =IF(OR(F20="Pago_de_Hipoteca",F20="Liquidez",F20="Pago_Hipoteca+Liquidez"),U24*S20,F28*S20) -> 25000 | AK20: Final | AL20: =IFERROR(MIN(F28*(AL23-AL24),IF(F27="Por Valor de la Vivienda",MIN(AL21+AL27,AL16),IF(AL17<100000,"-",MIN(AL17+AL27,AL16)))),0) -> 700000 | AP20: Pago_Hipoteca+Liquidez | AQ20: =MIN($F$28*AS17,$F$29,70000000) -> 700000 | AR20: =MIN(F28*AS17,S28) -> 10713.5 | AT20: 350000 | BA20: 3 | BB20: =IF(AND(F18="Wealth & Premier Executive",F20="Adquisicion"),Catalogos!AW5,IF(F20="Liquidez",Catalogos!BD5,Catalogos!AZ5)) -> 0.106 | BC20: 0.71 | BD20: 0.6 | BE20: 0.65 | BF20: 0.73 | BG20: 0.75 | BH20: 12141.96667 | BI20: 9979.69863
C21: =IF(OR(F20="Adquisicion",F20="Exclusiva",F20="Nomina Especial"),"Tipo de Programa *","") -> Tipo de Programa * | F21: Mercado_Abierto | N21: Desembolso Total | S21: =IF(S16<=0,0,S16)+IF(ISNUMBER(S17),S17,0)+IF(ISNUMBER(S19),S19,0)+IF(ISNUMBER(U20),U20,0)+IF(ISNUMBER(U18),U18,0) -> 328422 | AK21: Valor de Vivienda | AL21: =IF(OR(F20=AP17,F20=AP21),MIN(IF(F21=AP29,AQ29,AS17*F28),AS17*F28,30000000),MIN(AS17*F28,30000000))-IF(AND(F27="Monto del Crédito",F20=AP17),F29,0) -> 700000 | AP21: Exclusiva | AQ21: =MIN(VLOOKUP(F21,$AP$27:$AQ$29,2,0),IF(F27="Por monto de crédito y valor de la vivienda",F29,50000000),F28*AS17,50000000) -> 700000 | AR21: =MIN($S$28,IF($F$20=$AP$21,IF(OR($F$21=$AP$27,$F$21=$AP$28,$F$21=$AP$29),$F$28*$AS$17,IF($F$32+$F$33>0.1*$F$28,$F$28-$F$32-$F$33,IF($F$32<0.05*$F$28,$S$28,$F$28*0.95-$F$33)))),$F$28*$AS$17) -> 10713.5 | AT21: 350000 | BA21: 4 | BB21: =IF(AND(F18="Wealth & Premier Executive",F20="Adquisicion"),Catalogos!AW6,IF(F20="Liquidez",Catalogos!BD6,Catalogos!AZ6)) -> 0 | BC21: 0.71 | BD21: 0.55 | BE21: 0.6 | BF21: 0.73 | BG21: 0.75 | BH21: 13245.78182 | BI21: 9979.69863
C22: =IF(AND(OR(F18="Premier",F18="No_Premier",F18="Wealth & Premier Executive"),F20="Pago_Hipoteca+Liquidez"),"Tipo de Cliente *",IF(F18="No_Premier","Tipo de Cliente *","")) -> Tipo de Cliente * | F22: Normal | AP22: Nomina Especial | AQ22: =MIN(VLOOKUP(F21,$AP$27:$AQ$29,2,0),IF(F27="Por monto de crédito y valor de la vivienda",F29,50000000),F28*AS17,50000000) -> 700000 | AR22: =MIN($S$28,IF($F$20=$AP$22,IF(OR($F$21=$AP$27,$F$21=$AP$28,$F$21=$AP$29),$F$28*$AS$17,IF($F$32+$F$33>0.1*$F$28,$F$28-$F$32-$F$33,IF($F$32<0.05*$F$28,$S$28,$F$28*0.95-$F$33)))),$F$28*$AS$17) -> 0 | AT22: 350000 | BA22: 5 | BB22: =IF(AND(F18="Wealth & Premier Executive",F20="Adquisicion"),Catalogos!AW6,IF(F20="Liquidez",Catalogos!BD6,Catalogos!AZ6)) -> 0 | BC22: 0.55 | BD22: 0.55 | BE22: 0.6 | BF22: 0.5 | BG22: 0.75 | BH22: 13245.78182 | BI22: 14570.36
C23: Plazo solicitado (años) * | F23: 25 | N23: Condiciones del crédito | AK23: % Monto Max | AL23: =IF(AND(OR(F21="Cofinavit",F21="Apoyo Infonavit"),F28>1),95%,90%) -> 0.9 | BA23: 6 | BB23: =IF(AND(F18="Wealth & Premier Executive",F20="Adquisicion"),Catalogos!AW6,IF(F20="Liquidez",Catalogos!BD6,Catalogos!AZ6)) -> 0 | BC23: 0.5 | BD23: 0.5 | BE23: 0.5 | BF23: 0.5 | BG23: 0.5 | BH23: 14570.36 | BI23: 14570.36
C24: Tasa a Cotizar * | F24: 0.103 | N24: Monto de crédito Total | S24: =IFERROR(U24/F28,0) -> 0.7 | U24: =IFERROR(IF(AND(F20="Liquidez",IF(E3<>"","-", IF(F20="Pago Hipoteca+Liquidez",MIN(AL16,F34+F28*0.2), IF(OR(F20="Adquisicion",F20="Exclusiva",F20="Nomina Especial"),AL20,AL16)))>70000000),70000000,IF(E3<>"","-", IF(F20="Pago Hipoteca+Liquidez",MIN(AL16,F34+F28*0.7), IF(OR(F20="Adquisicion",F20="Exclusiva",F20="Nomina Especial"),AL20,AL16))))-IF(F27="Por Valor de la Vivienda",F35,0),0) -> 700000 | AK24: % Cofi | AL24: =IF(AND(F21="Cofinavit",F32>1),1-(F28-F32)/F28,IF(F21="Apoyo Infonavit",1-(F28-F32)/F28,0)) -> 0
C25: =IF(F24=10.3%,"¿LTV Mayor a 70 %? *","") -> ¿LTV Mayor a 70 %? * | F25: No | N25: Tasa Inicial | S25: =F24 -> 0.103 | AK25: Gastos-Subcueta | AL25: =IF(U20="-",0,-F33) -> 0
B26: =IF(F20="Pago_de_Hipoteca","¿La hipoteca proviene de un Cofinavit? *","") ->  | N26: Pago Mensual Máximo | S26: =MAX(V64:W363) -> 7285.18 | AK26: Enganche base | AL26: =IF(F20=AP18,"",IF(F20=AP19,"",IF(F20=AP20,"",IF(OR(F21&F20="Cofinavit"&"Adquisicion",F21&F20="Cofinavit"&"Exclusiva",F21&F20="Cofinavit"&"Nomina Especial"),F28-F32-AL16,F28-AL16)))) -> 300000 | AP26: Tipo de Financiamiento | AQ26: Monto Maximo | AR26: Validación | AS26: Cumple
C27: Tipo de calculo * | F27: Por monto de crédito y valor de la vivienda | N27: =IF(K21=V6,"CAT HSBC**","CAT**") -> CAT HSBC** | S27: =IF(ISERROR(((1+IRR(AM63:AM363))^(12))-1),"-",(((1+IRR(AM63:AM363))^(12))-1)) -> 0.1167337815 | AK27: Ajuste por SSV | AL27: =IFERROR(AL25+IF(AL26="-",0,AL26)-IF(F27="Por Valor de la Vivienda",0,0),2) -> 300000 | AP27: Mercado_Abierto | AQ27: =F29 -> 1000000 | AR27: HSBC + Inf < 95% | AS27: =IF(AND(F20="Pago_de_Hipoteca",F26="Si"),F28*0.9, IF(AND(F20="Adquisicion",F21="Cofinavit"),(F28*1)-F32, F28*IF(AND(F24=10.3%,F25="Si"),VLOOKUP(TRIM(CONCATENATE(F20," ",F17," ",F18," ",F22," ",F21," ",F16," ",F25," ",F23," ",F24)),Catalogo_Condicione_Financieras!B:X,20,0),VLOOKUP(TRIM(CONCATENATE(F20," ",F17," ",F18," ",F22," ",F21," ",F16," ",F23," ",F24)),Catalogo_Condicione_Financieras!B:X,20,0)))) -> 700000
C28: Valor de la Vivienda a Adquirir * | F28: 1000000 | N28: =IF(OR(F27="Por ingresos del cliente",F27="Por Campaña"),"Monto Máximo Por Ingresos","Ingreso Neto Requerido") -> Ingreso Neto Requerido | S28: =IFERROR( IF(F28="","-", IF(OR(F27="Por ingresos del cliente",F27="Por Campaña"),ROUND(AL35/AL38*1000,-3), IF(F20="Liquidez",MIN(5000000,IF(OR(F27="Por monto de crédito y valor de la vivienda",F27="Por Valor de la Vivienda"),BJ17,ROUND(AL35/AL38*1000,-3))), IF(OR(F27="Por monto de crédito y valor de la vivienda",F27="Por Valor de la Vivienda"),BJ17)))),0) -> 10713.5 | AP28: Apoyo Infonavit | AQ28: =AT29 -> 700000 | AR28: 100% GyH | AS28: =IF(SUM(AS27,F32)<SUM(F28,S17,S20*F28),SUM(F28,S17,S20*F28)-SUM(F32,F33),AS27) -> 1028422
C29: =IF(OR(F27="Por ingresos del cliente",F27="Por Valor de la Vivienda",F27="Por Campaña"),"","Monto Solicitado de Crédito *") -> Monto Solicitado de Crédito * | F29: 1000000 | AP29: Cofinavit | AQ29: =AT29 -> 700000 | AT29: =MIN(AS27,AS28) -> 700000
C30: =IF(OR(F21="Apoyo Infonavit",F27="Por ingresos del cliente"),"Ingreso Mensual Neto *",IF(F27="Por Campaña","Pago mensual máximo *","")) ->  | N30: =IF(F20="Pago_Hipoteca+Liquidez","Pago Mensual","") -> 
B31: =IF(F27="Por ingresos del cliente","Pago Mensual en Buro(Obligaciones) *","") ->  | N31: =IF(F20="Pago_Hipoteca+Liquidez","Pago Hipoteca","") ->  | S31: =IF(OR(F34="",F36=""),"",(F34*$AQ$40/1000)+(IF((($F$28*0.8)*($AQ$38/1.16))>C64*($AQ$38/1.16),($F$28*0.8)*($AQ$38/1.16))/1000)+F34*$AQ$35/1000) ->  | AP31: Tasa | AQ31: =VLOOKUP(TRIM(CONCATENATE($F$20," ",$F$17," ",$F$18," ",$F$22," ",$F$21," ",$F$16," ",$F$23," ",F24)),Catalogo_Condicione_Financieras!B:W,13,0) -> 0.103
B32: =IF(AND(OR(F20="Adquisicion",F20="Exclusiva",F20="Nomina Especial"),F21="Cofinavit"),"Crédito Otorgado menos Ecotecnologías","") ->  | N32: =IF(F20="Pago_Hipoteca+Liquidez","Liquidez","") ->  | S32: =IF(OR(F34="",F36=""),"",((U24-F34)*$AQ$40/1000)+((U24-F34)*$AQ$35/1000)+(U24-F34)*(S25/12)*0.16) ->  | AP32: Tasa Piso | AQ32: =VLOOKUP(TRIM(CONCATENATE($F$20," ",$F$17," ",$F$18," ",$F$22," ",$F$21," ",$F$16," ",$F$23," ",F24)),Catalogo_Condicione_Financieras!B:W,14,0) -> 0.1
C33: =IF(AND(OR(F20="Adquisicion",F20="Exclusiva",F20="Nomina Especial"),F21="Cofinavit"),"Saldo Subcuenta de Vivienda",IF(AND(OR(F20="Adquisicion",F20="Exclusiva",F20="Nomina Especial"),F21="CI+CB"),"Saldo Subcuenta de Vivienda","")) ->  | AK33: Factor DTI | AL33: =IF(F27="Por Campaña",100%,65%) -> 0.65 | AP33: Tasa Techo | AQ33: =VLOOKUP(TRIM(CONCATENATE($F$20," ",$F$17," ",$F$18," ",$F$22," ",$F$21," ",$F$16," ",$F$23," ",F24)),Catalogo_Condicione_Financieras!B:W,15,0) -> 0.112
C34: =IF(F20="Pago_Hipoteca+Liquidez","Monto de Hipoteca Actual *","") ->  | M34: ¿Con Relacionamiento? | R34: NO | AK34: Factor No Asalariado | AL34: 1 | AP34: Factor Comisión Mensual | AQ34: =IF(F20="Liquidez",0.348,IF(F20&F18&F21="AdquisicionNo_PremierMercado_Abierto",0.29,0)) -> 0
C35: =IF(AND(OR(F20="Adquisicion",F20="Exclusiva"),F27="Por Valor de la Vivienda"),"Enganche Adicional *","") ->  | AL35: =MIN(((IF(F19="SI",F34,0)+F30)*AL33),(((IF(F19="SI",F23,0)+F30)*AL33)-F31))*AL34 -> 0 | AP35: Factor de Vida | AQ35: =VLOOKUP(TRIM(CONCATENATE(F20," ",F17," ",F18," ",F22," ",F21," ",F16," ",F23)),Catalogo_Condicione_Financieras!A:W,17,0) -> 0.44
C36: =IF(F20="Pago_Hipoteca+Liquidez","Crédito a Simular *","") ->  | M36: ¿Quieres Simular la Línea de Liquidez? | R36: NO | AP36: Factor Daños | AQ36: =VLOOKUP(TRIM(CONCATENATE(F20," ",F17," ",F18," ",F22," ",F21," ",F16," ",F23)),Catalogo_Condicione_Financieras!A:W,18,0)*IF(F27="Por Campaña",1,0.7) -> 0.22218
AP37: Ajuste corrección | AQ37: 0
AK38: Factor de Línea/Tasa | AL38: =IF(AND(F24=10.3%,F25="Si"),VLOOKUP(TRIM(CONCATENATE(F20," ",F17," ",F18," ",F22," ",F21," ",F16," ",F25," ",F23," ",F24)),Catalogo_Condicione_Financieras!B:X,12,0),VLOOKUP(TRIM(CONCATENATE(F20," ",F17," ",F18," ",F22," ",F21," ",F16," ",F23," ",F24)),Catalogo_Condicione_Financieras!B:X,12,0)) -> 10.31 | AP38: Factor de Daño 2 | AQ38: =VLOOKUP(TRIM(CONCATENATE(F20," ",F17," ",F18," ",F22," ",F21," ",F16," ",F23)),Catalogo_Condicione_Financieras!A:W,18,0) -> 0.3174
B39: =IF(V365>0,"Pago Total del Crédito","") -> Pago Total del Crédito | E39: =IF(V365>0,"Plazo Para Liquidar el Crédito","") -> Plazo Para Liquidar el Crédito | I39: =IF(V365>0,"Ahorro Total","") -> Ahorro Total | N39: =IF(OR(R36="NO",R36=""),"","Plazo") ->  | O39: =IF(OR(R36="NO",R36=""),"","Monto Solicitado") ->  | R39: =IF(OR(R36="NO",R36=""),"","Tasa") ->  | S39: =IF(OR(R36="NO",R36=""),"","Pago Mensual Máximo") ->  | V39: =IF(OR(R36="NO",R36=""),"","Pago Total del Crédito") ->  | Y39: =IF(OR(R36="NO",R36=""),"","CAT") ->  | AK39: Ingresos Minimos | AL39: =MAX(V64:W363) -> 7285.18
B40: =IF(V365>0,V365,"") -> 1760189.488 | E40: =IF(V365>0,CH50,"") -> 246 Meses | I40: =IF(V365>0,BZ50,"") -> 394984.3442 | R40: =IFERROR(IF(OR(R36="NO",R36=""),"",IF(OR(N40="",O40=""),"",Tabla_Amortización_Redisponible!J10)),"") ->  | S40: =IF(OR(R36="NO",R36=""),"",IF(MAX(Tabla_Amortización_Redisponible!K21:K200)=0,"",MAX(Tabla_Amortización_Redisponible!K21:K200))) ->  | V40: =IF(OR(R36="NO",R36=""),"",IF(Tabla_Amortización_Redisponible!K202=0,"",Tabla_Amortización_Redisponible!K202)) ->  | Y40: =IF(OR(R36="NO",R36=""),"",Tabla_Amortización_Redisponible!J17) ->  | AP40: Factor Pago | AQ40: =IF(AND(F24=10.3%,F25="Si"),VLOOKUP(TRIM(CONCATENATE(F20," ",F17," ",F18," ",F22," ",F21," ",F16," ",F25," ",F23," ",F24)),Catalogo_Condicione_Financieras!B:X,11,0),VLOOKUP(TRIM(CONCATENATE(F20," ",F17," ",F18," ",F22," ",F21," ",F16," ",F23," ",F24)),Catalogo_Condicione_Financieras!B:X,11,0)) -> 9.65
AL42: =MIN(AL16,AL43,AL44,AL45) -> 700000 | BM42: Año 1 | BN42: Año 2 | BO42: Año 3 | BP42: Año 4 | BQ42: Año 5 | BR42: Año 6 | BS42: Año 7 | BT42: Año 8 | BU42: Año 9 | BV42: Año 10 | BW42: Año 11 | BX42: Año 12 | BY42: Año 13 | BZ42: Año 14 | CA42: Año 15 | CB42: Año 16 | CC42: Año 17 | CD42: Año 18 | CE42: Año 19 | CF42: Año 20 | CG42: Año 21 | CH42: Año 22 | CI42: Año 23 | CJ42: Año 24 | CK42: Año 25 | CL42: Porcentaje
AK43: CréditoLTV | AL43: =IF(F27="Por monto de crédito y valor de la vivienda",F29,AL44) -> 1000000 | BL43: Pago Puntual | BM43: TRUE | BN43: TRUE | BO43: TRUE | BP43: TRUE | BQ43: TRUE | BR43: TRUE | BS43: TRUE | BT43: TRUE | BU43: TRUE | BV43: TRUE | BW43: TRUE | BX43: TRUE | BY43: TRUE | BZ43: TRUE | CA43: TRUE | CB43: TRUE | CC43: TRUE | CD43: TRUE | CE43: TRUE | CF43: TRUE | CG43: FALSE | CH43: FALSE | CI43: FALSE | CJ43: FALSE | CK43: FALSE | CL43: =IF(F23=25,AVERAGE(BM43:CK43*1),IF(F23=20,AVERAGE(BM43:CF43*1),IF(F23=19,AVERAGE(BM43:CE43*1),IF(F23=18,AVERAGE(BM43:CD43*1),IF(F23=17,AVERAGE(BM43:CC43*1),IF(F23=16,AVERAGE(BM43:CB43*1),IF(F23=15,AVERAGE(BM43:CA43*1),IF(F23=14,AVERAGE(BM43:BZ43*1),IF(F23=13,AVERAGE(BM43:BY43*1),IF(F23=12,AVERAGE(BM43:BX43*1),IF(F23=11,AVERAGE(BM43:BW43*1),IF(F23=10,AVERAGE(BM43:BV43*1),IF(F23=9,AVERAGE(BM43:BU43*1),IF(F23=8,AVERAGE(BM43:BT43*1),IF(F23=7,AVERAGE(BM43:BS43*1),IF(F23=6,AVERAGE(BM43:BR43*1),IF(F23=5,AVERAGE(BM43:BQ43*1),IF(F23=4,AVERAGE(BM43:BP43*1),IF(F23=3,AVERAGE(BM43:BO43*1)))))))))))))))))))) -> 0.8
AK44: Credito solicitado | AL44: =IF($F$27="Por Valor de la Vivienda",MIN(($F$28*$AS$17)-$F$35,AL21),"") ->  | BL44: Relacionamiento | BM44: TRUE | BN44: TRUE | BO44: TRUE | BP44: TRUE | BQ44: TRUE | BR44: TRUE | BS44: TRUE | BT44: TRUE | BU44: TRUE | BV44: TRUE | BW44: TRUE | BX44: TRUE | BY44: TRUE | BZ44: TRUE | CA44: TRUE | CB44: TRUE | CC44: TRUE | CD44: TRUE | CE44: TRUE | CF44: TRUE | CG44: FALSE | CH44: FALSE | CI44: FALSE | CJ44: FALSE | CK44: FALSE | CL44: =IF(F23=25,AVERAGE(BM44:CK44*1), IF(F23=20,AVERAGE(BM44:CF44*1), IF(F23=19,AVERAGE(BM44:CE44*1), IF(F23=18,AVERAGE(BM44:CD44*1), IF(F23=17,AVERAGE(BM44:CC44*1), IF(F23=16,AVERAGE(BM44:CB44*1), IF(F23=15,AVERAGE(BM44:CA44*1), IF(F23=14,AVERAGE(BM44:BZ44*1), IF(F23=13,AVERAGE(BM44:BY44*1), IF(F23=12,AVERAGE(BM44:BX44*1), IF(F23=11,AVERAGE(BM44:BW44*1), IF(F23=10,AVERAGE(BM44:BV44*1), IF(F23=9,AVERAGE(BM44:BU44*1), IF(F23=8,AVERAGE(BM44:BT44*1), IF(F23=7,AVERAGE(BM44:BS44*1), IF(F23=6,AVERAGE(BM44:BR44*1), IF(F23=5,AVERAGE(BM44:BQ44*1), IF(F23=4,AVERAGE(BM44:BP44*1), IF(F23=3,AVERAGE(BM44:BO44*1), ))))))))))))))))))) -> 0.8
AL45: =MIN($F$28-$F$32-$F$33-F35,$F$28*1-$F$32) -> 1000000
BL46: Tasa | BM46: ='Tabla_Puntual&Relacionamiento'!B2 -> 0.103 | BN46: ='Tabla_Puntual&Relacionamiento'!B3 -> 0.103 | BO46: ='Tabla_Puntual&Relacionamiento'!B4 -> 0.1015 | BP46: ='Tabla_Puntual&Relacionamiento'!B5 -> 0.1 | BQ46: ='Tabla_Puntual&Relacionamiento'!B6 -> 0.1 | BR46: ='Tabla_Puntual&Relacionamiento'!B7 -> 0.1 | BS46: ='Tabla_Puntual&Relacionamiento'!B8 -> 0.1 | BT46: ='Tabla_Puntual&Relacionamiento'!B9 -> 0.1 | BU46: ='Tabla_Puntual&Relacionamiento'!B10 -> 0.1 | BV46: ='Tabla_Puntual&Relacionamiento'!B11 -> 0.1 | BW46: ='Tabla_Puntual&Relacionamiento'!B12 -> 0.1 | BX46: ='Tabla_Puntual&Relacionamiento'!B13 -> 0.1 | BY46: ='Tabla_Puntual&Relacionamiento'!B14 -> 0.1 | BZ46: ='Tabla_Puntual&Relacionamiento'!B15 -> 0.1 | CA46: ='Tabla_Puntual&Relacionamiento'!B16 -> 0.1 | CB46: ='Tabla_Puntual&Relacionamiento'!B17 -> 0.1 | CC46: ='Tabla_Puntual&Relacionamiento'!B18 -> 0.1 | CD46: ='Tabla_Puntual&Relacionamiento'!B19 -> 0.1 | CE46: ='Tabla_Puntual&Relacionamiento'!B20 -> 0.1 | CF46: ='Tabla_Puntual&Relacionamiento'!B21 -> 0.1 | CG46: ='Tabla_Puntual&Relacionamiento'!B22 -> 0.1 | CH46: ='Tabla_Puntual&Relacionamiento'!B23 -> 0.1 | CI46: ='Tabla_Puntual&Relacionamiento'!B24 -> 0.1 | CJ46: ='Tabla_Puntual&Relacionamiento'!B25 -> 0.1 | CK46: ='Tabla_Puntual&Relacionamiento'!B26 -> 0.1
BL48: =IF(AND(OR(CL43=0,CL44=0),F21="Apoyo Infonavit"),"BENEFICIO DEL PRODUCTO",IF(OR(CL43<>0,CL44<>0),"BENEFICIO DEL PRODUCTO","")) -> BENEFICIO DEL PRODUCTO
BV49: Pago Total | BZ49: =IF(AND(OR(CL43=0,CL44=0),F21="Apoyo Infonavit"),"Ahorro Total",IF(OR(CL43<>0,CL44<>0),"Ahorro Total","")) -> Ahorro Total | CD49: =IF(AND(OR(CL43=0,CL44=0),F21="Apoyo Infonavit"),"Reducción de Plazo",IF(OR(CL43<>0,CL44<>0),"Reducción de Plazo","")) -> Reducción de Plazo | CH49: Plazo Remanente | CK49: CAT
BM50: =IF(AND(F20="Pago_Hipoteca+Liquidez",F36=""),"Selecciona el Crédito a Simular Pago de Hipoteca o Liquidez",IF(AND(CL43=0,CL44<>0),"Sin Pago Puntual Con Relacionamiento",IF(AND(CL43<>0,CL44<>0),"Con Pago Puntual y Relacionamiento",IF(AND(CL43<>0,CL44=0),"Con Pago Puntual Sin Relacionamiento",IF(AND(CL43=0,CL44=0),"Sin Pago Puntual y Sin Relacinamiento"))))) -> Con Pago Puntual y Relacionamiento | BV50: =IF(AND(F20="Pago_Hipoteca+Liquidez",F36=""),"",V365) -> 1760189.488 | BZ50: =IF(AND(F20="Pago_Hipoteca+Liquidez",F36=""),"",IF(AND(OR(CL43=0,CL44=0),F21="Apoyo Infonavit"),Tabla_Amortización_PeorEscenari!S322-V365,IF(OR(CL43<>0,CL44<>0),Tabla_Amortización_PeorEscenari!S322-V365,""))) -> 394984.3442 | CD50: =IF(AND(F20="Pago_Hipoteca+Liquidez",F36=""),"",IF(AND(OR(CL43=0,CL44=0),F21="Apoyo Infonavit"),CONCATENATE(Tabla_Amortización_PeorEscenari!U322-COUNT(V64:W363)," ","Meses"),IF(OR(CL43<>0,CL44<>0),CONCATENATE(Tabla_Amortización_PeorEscenari!U322-COUNT(V64:W363)," ","Meses"),""))) -> 54 Meses | CH50: =IF(AND(F20="Pago_Hipoteca+Liquidez",F36=""),"",CONCATENATE(Tabla_Amortización_PeorEscenari!U322-(Tabla_Amortización_PeorEscenari!U322-COUNT(V64:W363))," ","Meses")) -> 246 Meses | CK50: =IF(AND(F20="Pago_Hipoteca+Liquidez",F36=""),"",S27) -> 0.1167337815
B62: No. | C62: Saldo Inicial | D62: Capital | F62: Intereses | H62: =IF(F20="Liquidez","Iva Intereses",IF(AND(F20="Pago_Hipoteca+Liquidez",F36="Liquidez"),"Iva Intereses","")) ->  | J62: Seguro de Vida | L62: Seguro de Daños | N62: C. Administración Renta | P62: Pago Anticipado | R62: Aportación Infonavit | T62: Tasa | U62: Ajuste Pago | V62: Mensualidad Total | X62: Saldo Final | AL62: Pago Capital+ Interes | AM62: Flujo CAT | AN62: C. Penalización Pago Anticipado | AP62: IVA C. Penalización Pago Anticipado | AR62: Mes Max | AS62: Seguro Sin IVA
X63: =IF(AND(OR(F34="",F36=""),F20="Pago_Hipoteca+Liquidez"),0,IF(AND(F20="Pago_Hipoteca+Liquidez",F36="Pago de Hipoteca"),F34,IF(AND(F20="Pago_Hipoteca+Liquidez",F36="Liquidez"),U24-F34,U24))) -> 700000 | AM63: =IF(ISNUMBER(X63),-X63,0)+IF(N18="C. Contratación Crédito",IF(ISNUMBER(S18),S18*X63,0),0)+IF(ISNUMBER(S17),S17/1.16,0)+IF(ISNUMBER(Caratula!S19),Caratula!S19/1.16) -> -697050 | AR63: =MAX(B64:B363) -> 246
B64: 1 | C64: =X63 -> 700000 | D64: =IF(B64="","",AL64-F64) -> 746.6666667 | F64: =IF(B64="","",IF(X63*(T64/12)<0,"",X63*(T64/12))) -> 6008.333333 | H64: =IFERROR(IF($F$20="Liquidez",F64*0.16, IF(AND($F$20="Pago_Hipoteca+Liquidez",$F$36="Liquidez"),F64*0.16,0)),0) -> 0 | J64: =IF(B64="","",C64*$AQ$35/1000) -> 308 | L64: =IF(B64="","",IF(AND($F$20="Pago_Hipoteca+Liquidez",$F$36="Liquidez"),0, IF((($F$28*0.7)*$AQ$38)>C64*$AQ$38,($F$28*0.7)*($AQ$38)/1000,($AQ$38*C64)/1000))) -> 222.18 | N64: =IF(B64="","",VLOOKUP(TRIM(CONCATENATE($F$20," ",$F$17," ",$F$18," ",$F$22," ",$F$21," ",$F$16," ",$F$23," ",$F$24)),Catalogo_Condicione_Financieras!B:W,22,0)) -> 0 | T64: =IF(B64="","",'Tabla_Puntual&Relacionamiento'!$B$2) -> 0.103 | V64: =IF(B64="","",D64+F64+H64+J64+L64+N64) -> 7285.18 | X64: =IFERROR(IF(C64="","",IF((C64-D64-P64+AN64+AP64-R64)<1,0,C64-D64-P64+AN64+AP64-R64)),0) -> 699253.3333 | AL64: =IF(B64="","",IF(X63<AL63,X63+F64,$X$63*$AQ$40/1000)) -> 6755 | AM64: =IF(C64="",0,AL64+J64+AS64+N64+R64) -> 7254.534483 | AN64: =IF(B64="","",IF(OR($N$18="C. Contratación Crédito",P64=""),0,IF(AND(P64>0,$S$18>0),P64*$S$18,0))) -> 0 | AP64: =IF(B64="","",IF(AN64>0,AN64*0.16,0)) -> 0 | AS64: =IF(B64="","",IF(AND($F$20="Pago_Hipoteca+Liquidez",$F$36="Liquidez"),0, IF((($F$28*0.7)*$AQ$38/1.16)>C64*$AQ$38/1.16,($F$28*0.7)*($AQ$38/1.16)/1000,($AQ$38/1.16)*C64)/1000)) -> 191.5344828
B65: =IF(OR(B64="",X64<=0),"",IF(B64+1<=F$23*12,B64+1,"")) -> 2 | C65: =IF(B65="","",IF(IF(C64="","",C64-D64-R64)<0.01,AQ64,IF(C64="","",X64))) -> 699253.3333 | D65: =IF(B65="","",AL65-F65) -> 753.0755556 | F65: 6001.924444 | H65: 0 | J65: =IF(B65="","",C65*$AQ$35/1000) -> 307.6714667 | L65: =IF(B65="","",IF(AND($F$20="Pago_Hipoteca+Liquidez",$F$36="Liquidez"),0, IF((($F$28*0.7)*$AQ$38)>C65*$AQ$38,($F$28*0.7)*($AQ$38)/1000,($AQ$38*C65)/1000))) -> 222.18 | N65: =IF(B65="","",VLOOKUP(TRIM(CONCATENATE($F$20," ",$F$17," ",$F$18," ",$F$22," ",$F$21," ",$F$16," ",$F$23," ",$F$24)),Catalogo_Condicione_Financieras!B:W,22,0)) -> 0 | R65: =IF(OR(X64=0,X64=""),"",IF($F$21="Apoyo Infonavit",IF(D65>=C65,0,MIN(IF($F$30="",0,Caratula!$F$30),3439.46*25)*10%),0)) -> 0 | T65: =IF(B65="","",'Tabla_Puntual&Relacionamiento'!$B$2) -> 0.103 | V65: 7284.851467 | X65: 698500.2578 | AL65: =IF(B65="","", IF(X64<AL64,X64+F65, IF($F$16="Pago_Fijo_Puntual",$X$63*$AQ$40/1000, IF($F$16="Pago_Bajo_Puntual",AL64+(AL64*U65))))) -> 6755 | AM65: =IF(C65="",0,AL65+J65+AS65+N65+R65) -> 7254.205949 | AN65: 0 | AP65: =IF(B65="","",IF(AN65>0,AN65*0.16,0)) -> 0 | AS65: =IF(B65="","",IF(AND($F$20="Pago_Hipoteca+Liquidez",$F$36="Liquidez"),0, IF((($F$28*0.7)*$AQ$38/1.16)>C65*$AQ$38/1.16,($F$28*0.7)*($AQ$38/1.16),($AQ$38/1.16)*C65)/1000)) -> 191.5344828
B66: 3 | C66: 698500.2578 | D66: =IF(B66="","",AL66-F66) -> 759.5394541 | F66: 5995.460546 | H66: 0 | J66: 307.3401134 | L66: =IF(B66="","",IF(AND($F$20="Pago_Hipoteca+Liquidez",$F$36="Liquidez"),0, IF((($F$28*0.7)*$AQ$38)>C66*$AQ$38,($F$28*0.7)*($AQ$38)/1000,($AQ$38*C66)/1000))) -> 222.18 | N66: =IF(B66="","",VLOOKUP(TRIM(CONCATENATE($F$20," ",$F$17," ",$F$18," ",$F$22," ",$F$21," ",$F$16," ",$F$23," ",$F$24)),Catalogo_Condicione_Financieras!B:W,22,0)) -> 0 | T66: =IF(B66="","",'Tabla_Puntual&Relacionamiento'!$B$2) -> 0.103 | V66: 7284.520113 | X66: 697740.7183 | AL66: =IF(B66="","", IF(X65<AL65,X65+F66, IF($F$16="Pago_Fijo_Puntual",$X$63*$AQ$40/1000, IF($F$16="Pago_Bajo_Puntual",AL65+(AL65*U66))))) -> 6755 | AM66: =IF(C66="",0,AL66+J66+AS66+N66+R66) -> 7253.874596 | AN66: 0 | AS66: 191.5344828
B67: 4 | C67: 697740.7183 | D67: 766.0588344 | F67: 5988.941166 | H67: 0 | J67: 307.0059161 | L67: 222.18 | N67: =IF(B67="","",VLOOKUP(TRIM(CONCATENATE($F$20," ",$F$17," ",$F$18," ",$F$22," ",$F$21," ",$F$16," ",$F$23," ",$F$24)),Catalogo_Condicione_Financieras!B:W,22,0)) -> 0 | R67: =IF(OR(X66=0,X66=""),"",IF($F$21="Apoyo Infonavit",IF(D67>=C67,0,MIN(IF($F$30="",0,Caratula!$F$30),3439.46*25)*10%),0)) -> 0 | T67: =IF(B67="","",'Tabla_Puntual&Relacionamiento'!$B$2) -> 0.103 | V67: 7284.185916 | X67: 696974.6595 | AL67: 6755 | AM67: =IF(C67="",0,AL67+J67+AS67+N67+R67) -> 7253.540399 | AN67: 0 | AP67: =IF(B67="","",IF(AN67>0,AN67*0.16,0)) -> 0 | AS67: 191.5344828
B68: 5 | C68: 696974.6595 | D68: 772.6341727 | F68: 5982.365827 | H68: 0 | J68: 306.6688502 | L68: 222.18 | N68: =IF(B68="","",VLOOKUP(TRIM(CONCATENATE($F$20," ",$F$17," ",$F$18," ",$F$22," ",$F$21," ",$F$16," ",$F$23," ",$F$24)),Catalogo_Condicione_Financieras!B:W,22,0)) -> 0 | T68: =IF(B68="","",'Tabla_Puntual&Relacionamiento'!$B$2) -> 0.103 | V68: 7283.84885 | X68: 696202.0253 | AL68: 6755 | AM68: 7253.203333 | AN68: 0 | AP68: 0 | AS68: 191.5344828
B69: 6 | C69: 696202.0253 | D69: 779.2659494 | F69: 5975.734051 | H69: 0 | J69: 306.3288911 | L69: 222.18 | N69: =IF(B69="","",VLOOKUP(TRIM(CONCATENATE($F$20," ",$F$17," ",$F$18," ",$F$22," ",$F$21," ",$F$16," ",$F$23," ",$F$24)),Catalogo_Condicione_Financieras!B:W,22,0)) -> 0 | R69: =IF(OR(X68=0,X68=""),"",IF($F$21="Apoyo Infonavit",IF(D69>=C69,0,MIN(IF($F$30="",0,Caratula!$F$30),3439.46*25)*10%),0)) -> 0 | T69: =IF(B69="","",'Tabla_Puntual&Relacionamiento'!$B$2) -> 0.103 | V69: 7283.508891 | X69: 695422.7594 | AL69: 6755 | AM69: 7252.863374 | AN69: 0 | AP69: 0 | AS69: 191.5344828
B70: 7 | C70: 695422.7594 | D70: 785.9546488 | F70: 5969.045351 | H70: 0 | J70: 305.9860141 | L70: 222.18 | N70: =IF(B70="","",VLOOKUP(TRIM(CONCATENATE($F$20," ",$F$17," ",$F$18," ",$F$22," ",$F$21," ",$F$16," ",$F$23," ",$F$24)),Catalogo_Condicione_Financieras!B:W,22,0)) -> 0 | T70: =IF(B70="","",'Tabla_Puntual&Relacionamiento'!$B$2) -> 0.103 | V70: 7283.166014 | X70: 694636.8047 | AL70: 6755 | AM70: 7252.520497 | AN70: 0 | AP70: 0 | AS70: 191.5344828
B71: 8 | C71: 694636.8047 | D71: 792.7007595 | F71: 5962.299241 | H71: 0 | J71: 305.6401941 | L71: 222.18 | N71: =IF(B71="","",VLOOKUP(TRIM(CONCATENATE($F$20," ",$F$17," ",$F$18," ",$F$22," ",$F$21," ",$F$16," ",$F$23," ",$F$24)),Catalogo_Condicione_Financieras!B:W,22,0)) -> 0 | R71: =IF(OR(X70=0,X70=""),"",IF($F$21="Apoyo Infonavit",IF(D71>=C71,0,MIN(IF($F$30="",0,Caratula!$F$30),3439.46*25)*10%),0)) -> 0 | T71: =IF(B71="","",'Tabla_Puntual&Relacionamiento'!$B$2) -> 0.103 | V71: 7282.820194 | X71: 693844.104 | AL71: 6755 | AM71: 7252.174677 | AN71: 0 | AP71: 0 | AS71: 191.5344828
B72: 9 | C72: 693844.104 | D72: 799.5047744 | F72: 5955.495226 | H72: 0 | J72: 305.2914057 | L72: 222.18 | N72: =IF(B72="","",VLOOKUP(TRIM(CONCATENATE($F$20," ",$F$17," ",$F$18," ",$F$22," ",$F$21," ",$F$16," ",$F$23," ",$F$24)),Catalogo_Condicione_Financieras!B:W,22,0)) -> 0 | T72: =IF(B72="","",'Tabla_Puntual&Relacionamiento'!$B$2) -> 0.103 | V72: 7282.471406 | X72: 693044.5992 | AL72: 6755 | AM72: 7251.825889 | AN72: 0 | AP72: 0 | AS72: 191.5344828
B73: 10 | C73: 693044.5992 | D73: 806.3671903 | F73: 5948.63281 | H73: 0 | J73: 304.9396236 | L73: 222.18 | N73: =IF(B73="","",VLOOKUP(TRIM(CONCATENATE($F$20," ",$F$17," ",$F$18," ",$F$22," ",$F$21," ",$F$16," ",$F$23," ",$F$24)),Catalogo_Condicione_Financieras!B:W,22,0)) -> 0 | R73: =IF(OR(X72=0,X72=""),"",IF($F$21="Apoyo Infonavit",IF(D73>=C73,0,MIN(IF($F$30="",0,Caratula!$F$30),3439.46*25)*10%),0)) -> 0 | T73: =IF(B73="","",'Tabla_Puntual&Relacionamiento'!$B$2) -> 0.103 | V73: 7282.119624 | X73: 692238.232 | AL73: 6755 | AM73: 7251.474106 | AN73: 0 | AP73: 0 | AS73: 191.5344828
B74: 11 | C74: 692238.232 | D74: 813.2885087 | F74: 5941.711491 | H74: 0 | J74: 304.5848221 | L74: 222.18 | N74: =IF(B74="","",VLOOKUP(TRIM(CONCATENATE($F$20," ",$F$17," ",$F$18," ",$F$22," ",$F$21," ",$F$16," ",$F$23," ",$F$24)),Catalogo_Condicione_Financieras!B:W,22,0)) -> 0 | T74: =IF(B74="","",'Tabla_Puntual&Relacionamiento'!$B$2) -> 0.103 | V74: 7281.764822 | X74: 691424.9435 | AL74: 6755 | AM74: 7251.119305 | AN74: 0 | AP74: 0 | AS74: 191.5344828
B75: 12 | C75: 691424.9435 | D75: 820.2692351 | F75: 5934.730765 | H75: 0 | J75: 304.2269751 | L75: 222.18 | N75: =IF(B75="","",VLOOKUP(TRIM(CONCATENATE($F$20," ",$F$17," ",$F$18," ",$F$22," ",$F$21," ",$F$16," ",$F$23," ",$F$24)),Catalogo_Condicione_Financieras!B:W,22,0)) -> 0 | R75: =IF(OR(X74=0,X74=""),"",IF($F$21="Apoyo Infonavit",IF(D75>=C75,0,MIN(IF($F$30="",0,Caratula!$F$30),3439.46*25)*10%),0)) -> 0 | T75: =IF(B75="","",'Tabla_Puntual&Relacionamiento'!$B$2) -> 0.103 | V75: 7281.406975 | X75: 690604.6743 | AL75: 6755 | AM75: 7250.761458 | AN75: 0 | AP75: 0 | AS75: 191.5344828
B76: 13 | C76: 690604.6743 | D76: 827.3098793 | F76: 5927.690121 | H76: 0 | J76: 303.8660567 | L76: 222.18 | N76: =IF(B76="","",VLOOKUP(TRIM(CONCATENATE($F$20," ",$F$17," ",$F$18," ",$F$22," ",$F$21," ",$F$16," ",$F$23," ",$F$24)),Catalogo_Condicione_Financieras!B:W,22,0)) -> 0 | T76: =IF(B76="","",'Tabla_Puntual&Relacionamiento'!$B$3) -> 0.103 | U76: =IF(B76="","",IF($F$16="Pago_Bajo_Puntual",0.019,"")) ->  | V76: 7281.046057 | X76: 689777.3644 | AL76: 6755 | AM76: 7250.400539 | AN76: 0 | AP76: 0 | AS76: 191.5344828
B77: 14 | C77: 689777.3644 | D77: 834.4109558 | F77: 5920.589044 | H77: 0 | J77: 303.5020403 | L77: 222.18 | N77: =IF(B77="","",VLOOKUP(TRIM(CONCATENATE($F$20," ",$F$17," ",$F$18," ",$F$22," ",$F$21," ",$F$16," ",$F$23," ",$F$24)),Catalogo_Condicione_Financieras!B:W,22,0)) -> 0 | R77: =IF(OR(X76=0,X76=""),"",IF($F$21="Apoyo Infonavit",IF(D77>=C77,0,MIN(IF($F$30="",0,Caratula!$F$30),3439.46*25)*10%),0)) -> 0 | T77: =IF(B77="","",'Tabla_Puntual&Relacionamiento'!$B$3) -> 0.103 | V77: 7280.68204 | X77: 688942.9534 | AL77: 6755 | AM77: 7250.036523 | AN77: 0 | AP77: 0 | AS77: 191.5344828
B78: 15 | C78: 688942.9534 | D78: 841.5729832 | F78: 5913.427017 | H78: 0 | J78: 303.1348995 | L78: 222.18 | N78: =IF(B78="","",VLOOKUP(TRIM(CONCATENATE($F$20," ",$F$17," ",$F$18," ",$F$22," ",$F$21," ",$F$16," ",$F$23," ",$F$24)),Catalogo_Condicione_Financieras!B:W,22,0)) -> 0 | T78: =IF(B78="","",'Tabla_Puntual&Relacionamiento'!$B$3) -> 0.103 | V78: 7280.3149 | X78: 688101.3804 | AL78: 6755 | AM78: 7249.669382 | AN78: 0 | AP78: 0 | AS78: 191.5344828
B79: 16 | C79: 688101.3804 | D79: 848.7964846 | F79: 5906.203515 | H79: 0 | J79: 302.7646074 | L79: 222.18 | N79: =IF(B79="","",VLOOKUP(TRIM(CONCATENATE($F$20," ",$F$17," ",$F$18," ",$F$22," ",$F$21," ",$F$16," ",$F$23," ",$F$24)),Catalogo_Condicione_Financieras!B:W,22,0)) -> 0 | R79: =IF(OR(X78=0,X78=""),"",IF($F$21="Apoyo Infonavit",IF(D79>=C79,0,MIN(IF($F$30="",0,Caratula!$F$30),3439.46*25)*10%),0)) -> 0 | T79: =IF(B79="","",'Tabla_Puntual&Relacionamiento'!$B$3) -> 0.103 | V79: 7279.944607 | X79: 687252.5839 | AL79: 6755 | AM79: 7249.29909 | AN79: 0 | AP79: 0 | AS79: 191.5344828
B80: 17 | C80: 687252.5839 | D80: 856.0819878 | F80: 5898.918012 | H80: 0 | J80: 302.3911369 | L80: 222.18 | N80: =IF(B80="","",VLOOKUP(TRIM(CONCATENATE($F$20," ",$F$17," ",$F$18," ",$F$22," ",$F$21," ",$F$16," ",$F$23," ",$F$24)),Catalogo_Condicione_Financieras!B:W,22,0)) -> 0 | T80: =IF(B80="","",'Tabla_Puntual&Relacionamiento'!$B$3) -> 0.103 | V80: 7279.571137 | X80: 686396.502 | AL80: 6755 | AM80: 7248.92562 | AN80: 0 | AP80: 0 | AS80: 191.5344828
B81: 18 | C81: 686396.502 | D81: 863.4300248 | F81: 5891.569975 | H81: 0 | J81: 302.0144609 | L81: 222.18 | N81: =IF(B81="","",VLOOKUP(TRIM(CONCATENATE($F$20," ",$F$17," ",$F$18," ",$F$22," ",$F$21," ",$F$16," ",$F$23," ",$F$24)),Catalogo_Condicione_Financieras!B:W,22,0)) -> 0 | R81: =IF(OR(X80=0,X80=""),"",IF($F$21="Apoyo Infonavit",IF(D81>=C81,0,MIN(IF($F$30="",0,Caratula!$F$30),3439.46*25)*10%),0)) -> 0 | T81: =IF(B81="","",'Tabla_Puntual&Relacionamiento'!$B$3) -> 0.103 | V81: 7279.194461 | X81: 685533.0719 | AL81: 6755 | AM81: 7248.548944 | AN81: 0 | AP81: 0 | AS81: 191.5344828
B82: 19 | C82: 685533.0719 | D82: 870.8411326 | F82: 5884.158867 | H82: 0 | J82: 301.6345517 | L82: 222.18 | N82: =IF(B82="","",VLOOKUP(TRIM(CONCATENATE($F$20," ",$F$17," ",$F$18," ",$F$22," ",$F$21," ",$F$16," ",$F$23," ",$F$24)),Catalogo_Condicione_Financieras!B:W,22,0)) -> 0 | T82: =IF(B82="","",'Tabla_Puntual&Relacionamiento'!$B$3) -> 0.103 | V82: 7278.814552 | X82: 684662.2308 | AL82: 6755 | AM82: 7248.169034 | AN82: 0 | AP82: 0 | AS82: 191.5344828
B83: 20 | C83: 684662.2308 | D83: 878.3158523 | F83: 5876.684148 | H83: 0 | J83: 301.2513816 | L83: 222.18 | N83: =IF(B83="","",VLOOKUP(TRIM(CONCATENATE($F$20," ",$F$17," ",$F$18," ",$F$22," ",$F$21," ",$F$16," ",$F$23," ",$F$24)),Catalogo_Condicione_Financieras!B:W,22,0)) -> 0 | R83: =IF(OR(X82=0,X82=""),"",IF($F$21="Apoyo Infonavit",IF(D83>=C83,0,MIN(IF($F$30="",0,Caratula!$F$30),3439.46*25)*10%),0)) -> 0 | T83: =IF(B83="","",'Tabla_Puntual&Relacionamiento'!$B$3) -> 0.103 | V83: 7278.431382 | X83: 683783.915 | AL83: 6755 | AM83: 7247.785864 | AN83: 0 | AP83: 0 | AS83: 191.5344828
B84: 21 | C84: 683783.915 | D84: 885.85473 | F84: 5869.14527 | H84: 0 | J84: 300.8649226 | L84: 222.18 | N84: =IF(B84="","",VLOOKUP(TRIM(CONCATENATE($F$20," ",$F$17," ",$F$18," ",$F$22," ",$F$21," ",$F$16," ",$F$23," ",$F$24)),Catalogo_Condicione_Financieras!B:W,22,0)) -> 0 | T84: =IF(B84="","",'Tabla_Puntual&Relacionamiento'!$B$3) -> 0.103 | V84: 7278.044923 | X84: 682898.0602 | AL84: 6755 | AM84: 7247.399405 | AN84: 0 | AP84: 0 | AS84: 191.5344828
B85: 22 | C85: 682898.0602 | D85: 893.4583164 | F85: 5861.541684 | H85: 0 | J85: 300.4751465 | L85: 222.18 | N85: =IF(B85="","",VLOOKUP(TRIM(CONCATENATE($F$20," ",$F$17," ",$F$18," ",$F$22," ",$F$21," ",$F$16," ",$F$23," ",$F$24)),Catalogo_Condicione_Financieras!B:W,22,0)) -> 0 | R85: =IF(OR(X84=0,X84=""),"",IF($F$21="Apoyo Infonavit",IF(D85>=C85,0,MIN(IF($F$30="",0,Caratula!$F$30),3439.46*25)*10%),0)) -> 0 | T85: =IF(B85="","",'Tabla_Puntual&Relacionamiento'!$B$3) -> 0.103 | V85: 7277.655146 | X85: 682004.6019 | AL85: 6755 | AM85: 7247.009629 | AN85: 0 | AP85: 0 | AS85: 191.5344828
B86: 23 | C86: 682004.6019 | D86: 901.127167 | F86: 5853.872833 | H86: 0 | J86: 300.0820248 | L86: 222.18 | N86: =IF(B86="","",VLOOKUP(TRIM(CONCATENATE($F$20," ",$F$17," ",$F$18," ",$F$22," ",$F$21," ",$F$16," ",$F$23," ",$F$24)),Catalogo_Condicione_Financieras!B:W,22,0)) -> 0 | T86: =IF(B86="","",'Tabla_Puntual&Relacionamiento'!$B$3) -> 0.103 | V86: 7277.262025 | X86: 681103.4747 | AL86: 6755 | AM86: 7246.616508 | AN86: 0 | AP86: 0 | AS86: 191.5344828
B87: 24 | C87: 681103.4747 | D87: 908.8618418 | F87: 5846.138158 | H87: 0 | J87: 299.6855289 | L87: 222.18 | N87: =IF(B87="","",VLOOKUP(TRIM(CONCATENATE($F$20," ",$F$17," ",$F$18," ",$F$22," ",$F$21," ",$F$16," ",$F$23," ",$F$24)),Catalogo_Condicione_Financieras!B:W,22,0)) -> 0 | R87: =IF(OR(X86=0,X86=""),"",IF($F$21="Apoyo Infonavit",IF(D87>=C87,0,MIN(IF($F$30="",0,Caratula!$F$30),3439.46*25)*10%),0)) -> 0 | T87: =IF(B87="","",'Tabla_Puntual&Relacionamiento'!$B$3) -> 0.103 | V87: 7276.865529 | X87: 680194.6129 | AL87: 6755 | AM87: 7246.220012 | AN87: 0 | AP87: 0 | AS87: 191.5344828
B88: 25 | C88: 680194.6129 | D88: 1001.687233 | F88: 5753.312767 | H88: 0 | J88: 299.2856297 | L88: 222.18 | N88: =IF(B88="","",VLOOKUP(TRIM(CONCATENATE($F$20," ",$F$17," ",$F$18," ",$F$22," ",$F$21," ",$F$16," ",$F$23," ",$F$24)),Catalogo_Condicione_Financieras!B:W,22,0)) -> 0 | T88: =IF(B88="","",'Tabla_Puntual&Relacionamiento'!$B$4) -> 0.1015 | U88: =IF(B88="","",IF($F$16="Pago_Bajo_Puntual",0.019,"")) ->  | V88: 7276.46563 | X88: 679192.9257 | AL88: 6755 | AM88: 7245.820112 | AN88: 0 | AP88: 0 | AS88: 191.5344828
B89: 26 | C89: 679192.9257 | D89: 1010.159837 | F89: 5744.840163 | H89: 0 | J89: 298.8448873 | L89: 222.18 | N89: =IF(B89="","",VLOOKUP(TRIM(CONCATENATE($F$20," ",$F$17," ",$F$18," ",$F$22," ",$F$21," ",$F$16," ",$F$23," ",$F$24)),Catalogo_Condicione_Financieras!B:W,22,0)) -> 0 | R89: =IF(OR(X88=0,X88=""),"",IF($F$21="Apoyo Infonavit",IF(D89>=C89,0,MIN(IF($F$30="",0,Caratula!$F$30),3439.46*25)*10%),0)) -> 0 | T89: =IF(B89="","",'Tabla_Puntual&Relacionamiento'!$B$4) -> 0.1015 | V89: 7276.024887 | X89: 678182.7658 | AL89: 6755 | AM89: 7245.37937 | AN89: 0 | AP89: 0 | AS89: 191.5344828
B90: 27 | C90: 678182.7658 | D90: 1018.704106 | F90: 5736.295894 | H90: 0 | J90: 298.400417 | L90: 222.18 | N90: =IF(B90="","",VLOOKUP(TRIM(CONCATENATE($F$20," ",$F$17," ",$F$18," ",$F$22," ",$F$21," ",$F$16," ",$F$23," ",$F$24)),Catalogo_Condicione_Financieras!B:W,22,0)) -> 0 | T90: =IF(B90="","",'Tabla_Puntual&Relacionamiento'!$B$4) -> 0.1015 | V90: 7275.580417 | X90: 677164.0617 | AL90: 6755 | AM90: 7244.9349 | AN90: 0 | AP90: 0 | AS90: 191.5344828
B91: 28 | C91: 677164.0617 | D91: 1027.320645 | F91: 5727.679355 | H91: 0 | J91: 297.9521872 | L91: 222.18 | N91: =IF(B91="","",VLOOKUP(TRIM(CONCATENATE($F$20," ",$F$17," ",$F$18," ",$F$22," ",$F$21," ",$F$16," ",$F$23," ",$F$24)),Catalogo_Condicione_Financieras!B:W,22,0)) -> 0 | R91: =IF(OR(X90=0,X90=""),"",IF($F$21="Apoyo Infonavit",IF(D91>=C91,0,MIN(IF($F$30="",0,Caratula!$F$30),3439.46*25)*10%),0)) -> 0 | T91: =IF(B91="","",'Tabla_Puntual&Relacionamiento'!$B$4) -> 0.1015 | V91: 7275.132187 | X91: 676136.7411 | AL91: 6755 | AM91: 7244.48667 | AN91: 0 | AP91: 0 | AS91: 191.5344828
B92: 29 | C92: 676136.7411 | D92: 1036.010065 | F92: 5718.989935 | H92: 0 | J92: 297.5001661 | L92: 222.18 | N92: =IF(B92="","",VLOOKUP(TRIM(CONCATENATE($F$20," ",$F$17," ",$F$18," ",$F$22," ",$F$21," ",$F$16," ",$F$23," ",$F$24)),Catalogo_Condicione_Financieras!B:W,22,0)) -> 0 | T92: =IF(B92="","",'Tabla_Puntual&Relacionamiento'!$B$4) -> 0.1015 | V92: 7274.680166 | X92: 675100.731 | AL92: 6755 | AM92: 7244.034649 | AN92: 0 | AP92: 0 | AS92: 191.5344828
B93: 30 | C93: 675100.731 | D93: 1044.772984 | F93: 5710.227016 | H93: 0 | J93: 297.0443216 | L93: 222.18 | N93: =IF(B93="","",VLOOKUP(TRIM(CONCATENATE($F$20," ",$F$17," ",$F$18," ",$F$22," ",$F$21," ",$F$16," ",$F$23," ",$F$24)),Catalogo_Condicione_Financieras!B:W,22,0)) -> 0 | R93: =IF(OR(X92=0,X92=""),"",IF($F$21="Apoyo Infonavit",IF(D93>=C93,0,MIN(IF($F$30="",0,Caratula!$F$30),3439.46*25)*10%),0)) -> 0 | T93: =IF(B93="","",'Tabla_Puntual&Relacionamiento'!$B$4) -> 0.1015 | V93: 7274.224322 | X93: 674055.958 | AL93: 6755 | AM93: 7243.578804 | AN93: 0 | AP93: 0 | AS93: 191.5344828
B94: 31 | C94: 674055.958 | D94: 1053.610022 | F94: 5701.389978 | H94: 0 | J94: 296.5846215 | L94: 222.18 | N94: =IF(B94="","",VLOOKUP(TRIM(CONCATENATE($F$20," ",$F$17," ",$F$18," ",$F$22," ",$F$21," ",$F$16," ",$F$23," ",$F$24)),Catalogo_Condicione_Financieras!B:W,22,0)) -> 0 | T94: =IF(B94="","",'Tabla_Puntual&Relacionamiento'!$B$4) -> 0.1015 | V94: 7273.764622 | X94: 673002.348 | AL94: 6755 | AM94: 7243.119104 | AN94: 0 | AP94: 0 | AS94: 191.5344828
B95: 32 | C95: 673002.348 | D95: 1062.521806 | F95: 5692.478194 | H95: 0 | J95: 296.1210331 | L95: 222.18 | N95: =IF(B95="","",VLOOKUP(TRIM(CONCATENATE($F$20," ",$F$17," ",$F$18," ",$F$22," ",$F$21," ",$F$16," ",$F$23," ",$F$24)),Catalogo_Condicione_Financieras!B:W,22,0)) -> 0 | R95: =IF(OR(X94=0,X94=""),"",IF($F$21="Apoyo Infonavit",IF(D95>=C95,0,MIN(IF($F$30="",0,Caratula!$F$30),3439.46*25)*10%),0)) -> 0 | T95: =IF(B95="","",'Tabla_Puntual&Relacionamiento'!$B$4) -> 0.1015 | V95: 7273.301033 | X95: 671939.8262 | AL95: 6755 | AM95: 7242.655516 | AN95: 0 | AP95: 0 | AS95: 191.5344828
B96: 33 | C96: 671939.8262 | D96: 1071.50897 | F96: 5683.49103 | H96: 0 | J96: 295.6535235 | L96: 222.18 | N96: =IF(B96="","",VLOOKUP(TRIM(CONCATENATE($F$20," ",$F$17," ",$F$18," ",$F$22," ",$F$21," ",$F$16," ",$F$23," ",$F$24)),Catalogo_Condicione_Financieras!B:W,22,0)) -> 0 | T96: =IF(B96="","",'Tabla_Puntual&Relacionamiento'!$B$4) -> 0.1015 | V96: 7272.833524 | X96: 670868.3172 | AL96: 6755 | AM96: 7242.188006 | AN96: 0 | AP96: 0 | AS96: 191.5344828
B97: 34 | C97: 670868.3172 | D97: 1080.57215 | F97: 5674.42785 | H97: 0 | J97: 295.1820596 | L97: 222.18 | N97: =IF(B97="","",VLOOKUP(TRIM(CONCATENATE($F$20," ",$F$17," ",$F$18," ",$F$22," ",$F$21," ",$F$16," ",$F$23," ",$F$24)),Catalogo_Condicione_Financieras!B:W,22,0)) -> 0 | R97: =IF(OR(X96=0,X96=""),"",IF($F$21="Apoyo Infonavit",IF(D97>=C97,0,MIN(IF($F$30="",0,Caratula!$F$30),3439.46*25)*10%),0)) -> 0 | T97: =IF(B97="","",'Tabla_Puntual&Relacionamiento'!$B$4) -> 0.1015 | V97: 7272.36206 | X97: 669787.7451 | AL97: 6755 | AM97: 7241.716542 | AN97: 0 | AP97: 0 | AS97: 191.5344828
B98: 35 | C98: 669787.7451 | D98: 1089.71199 | F98: 5665.28801 | H98: 0 | J98: 294.7066078 | L98: 222.18 | N98: =IF(B98="","",VLOOKUP(TRIM(CONCATENATE($F$20," ",$F$17," ",$F$18," ",$F$22," ",$F$21," ",$F$16," ",$F$23," ",$F$24)),Catalogo_Condicione_Financieras!B:W,22,0)) -> 0 | T98: =IF(B98="","",'Tabla_Puntual&Relacionamiento'!$B$4) -> 0.1015 | V98: 7271.886608 | X98: 668698.0331 | AL98: 6755 | AM98: 7241.241091 | AN98: 0 | AP98: 0 | AS98: 191.5344828
B99: 36 | C99: 668698.0331 | D99: 1098.929137 | F99: 5656.070863 | H99: 0 | J99: 294.2271346 | L99: 222.18 | N99: =IF(B99="","",VLOOKUP(TRIM(CONCATENATE($F$20," ",$F$17," ",$F$18," ",$F$22," ",$F$21," ",$F$16," ",$F$23," ",$F$24)),Catalogo_Condicione_Financieras!B:W,22,0)) -> 0 | R99: =IF(OR(X98=0,X98=""),"",IF($F$21="Apoyo Infonavit",IF(D99>=C99,0,MIN(IF($F$30="",0,Caratula!$F$30),3439.46*25)*10%),0)) -> 0 | T99: =IF(B99="","",'Tabla_Puntual&Relacionamiento'!$B$4) -> 0.1015 | V99: 7271.407135 | X99: 667599.104 | AL99: 6755 | AM99: 7240.761617 | AN99: 0 | AP99: 0 | AS99: 191.5344828
B100: 37 | C100: 667599.104 | D100: 1191.674134 | F100: 5563.325866 | H100: 0 | J100: 293.7436057 | L100: 222.18 | N100: =IF(B100="","",VLOOKUP(TRIM(CONCATENATE($F$20," ",$F$17," ",$F$18," ",$F$22," ",$F$21," ",$F$16," ",$F$23," ",$F$24)),Catalogo_Condicione_Financieras!B:W,22,0)) -> 0 | T100: =IF(B100="","",'Tabla_Puntual&Relacionamiento'!$B$5) -> 0.1 | U100: =IF(B100="","",IF($F$16="Pago_Bajo_Puntual",0.019,"")) ->  | V100: 7270.923606 | X100: 666407.4298 | AL100: 6755 | AM100: 7240.278088 | AN100: 0 | AP100: 0 | AS100: 191.5344828
B101: 38 | C101: 666407.4298 | D101: 1201.604752 | F101: 5553.395248 | H101: 0 | J101: 293.2192691 | L101: 222.18 | N101: =IF(B101="","",VLOOKUP(TRIM(CONCATENATE($F$20," ",$F$17," ",$F$18," ",$F$22," ",$F$21," ",$F$16," ",$F$23," ",$F$24)),Catalogo_Condicione_Financieras!B:W,22,0)) -> 0 | R101: =IF(OR(X100=0,X100=""),"",IF($F$21="Apoyo Infonavit",IF(D101>=C101,0,MIN(IF($F$30="",0,Caratula!$F$30),3439.46*25)*10%),0)) -> 0 | T101: =IF(B101="","",'Tabla_Puntual&Relacionamiento'!$B$5) -> 0.1 | V101: 7270.399269 | X101: 665205.8251 | AL101: 6755 | AM101: 7239.753752 | AN101: 0 | AP101: 0 | AS101: 191.5344828
B102: 39 | C102: 665205.8251 | D102: 1211.618124 | F102: 5543.381876 | H102: 0 | J102: 292.690563 | L102: 222.18 | N102: =IF(B102="","",VLOOKUP(TRIM(CONCATENATE($F$20," ",$F$17," ",$F$18," ",$F$22," ",$F$21," ",$F$16," ",$F$23," ",$F$24)),Catalogo_Condicione_Financieras!B:W,22,0)) -> 0 | T102: =IF(B102="","",'Tabla_Puntual&Relacionamiento'!$B$5) -> 0.1 | V102: 7269.870563 | X102: 663994.2069 | AL102: 6755 | AM102: 7239.225046 | AN102: 0 | AP102: 0 | AS102: 191.5344828
B103: 40 | C103: 663994.2069 | D103: 1221.714942 | F103: 5533.285058 | H103: 0 | J103: 292.1574511 | L103: 222.18 | N103: =IF(B103="","",VLOOKUP(TRIM(CONCATENATE($F$20," ",$F$17," ",$F$18," ",$F$22," ",$F$21," ",$F$16," ",$F$23," ",$F$24)),Catalogo_Condicione_Financieras!B:W,22,0)) -> 0 | R103: =IF(OR(X102=0,X102=""),"",IF($F$21="Apoyo Infonavit",IF(D103>=C103,0,MIN(IF($F$30="",0,Caratula!$F$30),3439.46*25)*10%),0)) -> 0 | T103: =IF(B103="","",'Tabla_Puntual&Relacionamiento'!$B$5) -> 0.1 | V103: 7269.337451 | X103: 662772.492 | AL103: 6755 | AM103: 7238.691934 | AN103: 0 | AP103: 0 | AS103: 191.5344828
B104: 41 | C104: 662772.492 | D104: 1231.8959 | F104: 5523.1041 | H104: 0 | J104: 291.6198965 | L104: 222.18 | N104: =IF(B104="","",VLOOKUP(TRIM(CONCATENATE($F$20," ",$F$17," ",$F$18," ",$F$22," ",$F$21," ",$F$16," ",$F$23," ",$F$24)),Catalogo_Condicione_Financieras!B:W,22,0)) -> 0 | T104: =IF(B104="","",'Tabla_Puntual&Relacionamiento'!$B$5) -> 0.1 | V104: 7268.799896 | X104: 661540.5961 | AL104: 6755 | AM104: 7238.154379 | AN104: 0 | AP104: 0 | AS104: 191.5344828
B105: 42 | C105: 661540.5961 | D105: 1242.161699 | F105: 5512.838301 | H105: 0 | J105: 291.0778623 | L105: 222.18 | N105: =IF(B105="","",VLOOKUP(TRIM(CONCATENATE($F$20," ",$F$17," ",$F$18," ",$F$22," ",$F$21," ",$F$16," ",$F$23," ",$F$24)),Catalogo_Condicione_Financieras!B:W,22,0)) -> 0 | R105: =IF(OR(X104=0,X104=""),"",IF($F$21="Apoyo Infonavit",IF(D105>=C105,0,MIN(IF($F$30="",0,Caratula!$F$30),3439.46*25)*10%),0)) -> 0 | T105: =IF(B105="","",'Tabla_Puntual&Relacionamiento'!$B$5) -> 0.1 | V105: 7268.257862 | X105: 660298.4344 | AL105: 6755 | AM105: 7237.612345 | AN105: 0 | AP105: 0 | AS105: 191.5344828
B106: 43 | C106: 660298.4344 | D106: 1252.513047 | F106: 5502.486953 | H106: 0 | J106: 290.5313111 | L106: 222.18 | N106: =IF(B106="","",VLOOKUP(TRIM(CONCATENATE($F$20," ",$F$17," ",$F$18," ",$F$22," ",$F$21," ",$F$16," ",$F$23," ",$F$24)),Catalogo_Condicione_Financieras!B:W,22,0)) -> 0 | T106: =IF(B106="","",'Tabla_Puntual&Relacionamiento'!$B$5) -> 0.1 | V106: 7267.711311 | X106: 659045.9214 | AL106: 6755 | AM106: 7237.065794 | AN106: 0 | AP106: 0 | AS106: 191.5344828
B107: 44 | C107: 659045.9214 | D107: 1262.950655 | F107: 5492.049345 | H107: 0 | J107: 289.9802054 | L107: 222.18 | N107: =IF(B107="","",VLOOKUP(TRIM(CONCATENATE($F$20," ",$F$17," ",$F$18," ",$F$22," ",$F$21," ",$F$16," ",$F$23," ",$F$24)),Catalogo_Condicione_Financieras!B:W,22,0)) -> 0 | R107: =IF(OR(X106=0,X106=""),"",IF($F$21="Apoyo Infonavit",IF(D107>=C107,0,MIN(IF($F$30="",0,Caratula!$F$30),3439.46*25)*10%),0)) -> 0 | T107: =IF(B107="","",'Tabla_Puntual&Relacionamiento'!$B$5) -> 0.1 | V107: 7267.160205 | X107: 657782.9707 | AL107: 6755 | AM107: 7236.514688 | AN107: 0 | AP107: 0 | AS107: 191.5344828
B108: 45 | C108: 657782.9707 | D108: 1273.475244 | F108: 5481.524756 | H108: 0 | J108: 289.4245071 | L108: 222.18 | N108: =IF(B108="","",VLOOKUP(TRIM(CONCATENATE($F$20," ",$F$17," ",$F$18," ",$F$22," ",$F$21," ",$F$16," ",$F$23," ",$F$24)),Catalogo_Condicione_Financieras!B:W,22,0)) -> 0 | T108: =IF(B108="","",'Tabla_Puntual&Relacionamiento'!$B$5) -> 0.1 | V108: 7266.604507 | X108: 656509.4955 | AL108: 6755 | AM108: 7235.95899 | AN108: 0 | AP108: 0 | AS108: 191.5344828
B109: 46 | C109: 656509.4955 | D109: 1284.087538 | F109: 5470.912462 | H109: 0 | J109: 288.864178 | L109: 222.18 | N109: =IF(B109="","",VLOOKUP(TRIM(CONCATENATE($F$20," ",$F$17," ",$F$18," ",$F$22," ",$F$21," ",$F$16," ",$F$23," ",$F$24)),Catalogo_Condicione_Financieras!B:W,22,0)) -> 0 | R109: =IF(OR(X108=0,X108=""),"",IF($F$21="Apoyo Infonavit",IF(D109>=C109,0,MIN(IF($F$30="",0,Caratula!$F$30),3439.46*25)*10%),0)) -> 0 | T109: =IF(B109="","",'Tabla_Puntual&Relacionamiento'!$B$5) -> 0.1 | V109: 7266.044178 | X109: 655225.4079 | AL109: 6755 | AM109: 7235.398661 | AN109: 0 | AP109: 0 | AS109: 191.5344828
B110: 47 | C110: 655225.4079 | D110: 1294.788267 | F110: 5460.211733 | H110: 0 | J110: 288.2991795 | L110: 222.18 | N110: =IF(B110="","",VLOOKUP(TRIM(CONCATENATE($F$20," ",$F$17," ",$F$18," ",$F$22," ",$F$21," ",$F$16," ",$F$23," ",$F$24)),Catalogo_Condicione_Financieras!B:W,22,0)) -> 0 | T110: =IF(B110="","",'Tabla_Puntual&Relacionamiento'!$B$5) -> 0.1 | V110: 7265.479179 | X110: 653930.6196 | AL110: 6755 | AM110: 7234.833662 | AN110: 0 | AP110: 0 | AS110: 191.5344828
B111: 48 | C111: 653930.6196 | D111: 1305.57817 | F111: 5449.42183 | H111: 0 | J111: 287.7294726 | L111: 222.18 | N111: =IF(B111="","",VLOOKUP(TRIM(CONCATENATE($F$20," ",$F$17," ",$F$18," ",$F$22," ",$F$21," ",$F$16," ",$F$23," ",$F$24)),Catalogo_Condicione_Financieras!B:W,22,0)) -> 0 | R111: =IF(OR(X110=0,X110=""),"",IF($F$21="Apoyo Infonavit",IF(D111>=C111,0,MIN(IF($F$30="",0,Caratula!$F$30),3439.46*25)*10%),0)) -> 0 | T111: =IF(B111="","",'Tabla_Puntual&Relacionamiento'!$B$5) -> 0.1 | V111: 7264.909473 | X111: 652625.0415 | AL111: 6755 | AM111: 7234.263955 | AN111: 0 | AP111: 0 | AS111: 191.5344828
B112: 49 | C112: 652625.0415 | D112: 1316.457988 | F112: 5438.542012 | H112: 0 | J112: 287.1550183 | L112: 222.18 | N112: =IF(B112="","",VLOOKUP(TRIM(CONCATENATE($F$20," ",$F$17," ",$F$18," ",$F$22," ",$F$21," ",$F$16," ",$F$23," ",$F$24)),Catalogo_Condicione_Financieras!B:W,22,0)) -> 0 | T112: =IF(B112="","",'Tabla_Puntual&Relacionamiento'!$B$6) -> 0.1 | U112: =IF(B112="","",IF($F$16="Pago_Bajo_Puntual",0.019,"")) ->  | V112: 7264.335018 | X112: 651308.5835 | AL112: 6755 | AM112: 7233.689501 | AN112: 0 | AP112: 0 | AS112: 191.5344828
B113: 50 | C113: 651308.5835 | D113: 1327.428471 | F113: 5427.571529 | H113: 0 | J113: 286.5757767 | L113: 222.18 | N113: =IF(B113="","",VLOOKUP(TRIM(CONCATENATE($F$20," ",$F$17," ",$F$18," ",$F$22," ",$F$21," ",$F$16," ",$F$23," ",$F$24)),Catalogo_Condicione_Financieras!B:W,22,0)) -> 0 | R113: =IF(OR(X112=0,X112=""),"",IF($F$21="Apoyo Infonavit",IF(D113>=C113,0,MIN(IF($F$30="",0,Caratula!$F$30),3439.46*25)*10%),0)) -> 0 | T113: =IF(B113="","",'Tabla_Puntual&Relacionamiento'!$B$6) -> 0.1 | V113: 7263.755777 | X113: 649981.155 | AL113: 6755 | AM113: 7233.110259 | AN113: 0 | AP113: 0 | AS113: 191.5344828
B114: 51 | C114: 649981.155 | D114: 1338.490375 | F114: 5416.509625 | H114: 0 | J114: 285.9917082 | L114: 222.18 | N114: =IF(B114="","",VLOOKUP(TRIM(CONCATENATE($F$20," ",$F$17," ",$F$18," ",$F$22," ",$F$21," ",$F$16," ",$F$23," ",$F$24)),Catalogo_Condicione_Financieras!B:W,22,0)) -> 0 | T114: =IF(B114="","",'Tabla_Puntual&Relacionamiento'!$B$6) -> 0.1 | V114: 7263.171708 | X114: 648642.6646 | AL114: 6755 | AM114: 7232.526191 | AN114: 0 | AP114: 0 | AS114: 191.5344828
B115: 52 | C115: 648642.6646 | D115: 1349.644461 | F115: 5405.355539 | H115: 0 | J115: 285.4027724 | L115: 222.18 | N115: =IF(B115="","",VLOOKUP(TRIM(CONCATENATE($F$20," ",$F$17," ",$F$18," ",$F$22," ",$F$21," ",$F$16," ",$F$23," ",$F$24)),Catalogo_Condicione_Financieras!B:W,22,0)) -> 0 | R115: =IF(OR(X114=0,X114=""),"",IF($F$21="Apoyo Infonavit",IF(D115>=C115,0,MIN(IF($F$30="",0,Caratula!$F$30),3439.46*25)*10%),0)) -> 0 | T115: =IF(B115="","",'Tabla_Puntual&Relacionamiento'!$B$6) -> 0.1 | V115: 7262.582772 | X115: 647293.0202 | AL115: 6755 | AM115: 7231.937255 | AN115: 0 | AP115: 0 | AS115: 191.5344828
B116: 53 | C116: 647293.0202 | D116: 1360.891498 | F116: 5394.108502 | H116: 0 | J116: 284.8089289 | L116: 222.18 | N116: =IF(B116="","",VLOOKUP(TRIM(CONCATENATE($F$20," ",$F$17," ",$F$18," ",$F$22," ",$F$21," ",$F$16," ",$F$23," ",$F$24)),Catalogo_Condicione_Financieras!B:W,22,0)) -> 0 | T116: =IF(B116="","",'Tabla_Puntual&Relacionamiento'!$B$6) -> 0.1 | V116: 7261.988929 | X116: 645932.1287 | AL116: 6755 | AM116: 7231.343412 | AN116: 0 | AP116: 0 | AS116: 191.5344828
B117: 54 | C117: 645932.1287 | D117: 1372.232261 | F117: 5382.767739 | H117: 0 | J117: 284.2101366 | L117: 222.18 | N117: =IF(B117="","",VLOOKUP(TRIM(CONCATENATE($F$20," ",$F$17," ",$F$18," ",$F$22," ",$F$21," ",$F$16," ",$F$23," ",$F$24)),Catalogo_Condicione_Financieras!B:W,22,0)) -> 0 | R117: =IF(OR(X116=0,X116=""),"",IF($F$21="Apoyo Infonavit",IF(D117>=C117,0,MIN(IF($F$30="",0,Caratula!$F$30),3439.46*25)*10%),0)) -> 0 | T117: =IF(B117="","",'Tabla_Puntual&Relacionamiento'!$B$6) -> 0.1 | V117: 7261.390137 | X117: 644559.8964 | AL117: 6755 | AM117: 7230.744619 | AN117: 0 | AP117: 0 | AS117: 191.5344828
B118: 55 | C118: 644559.8964 | D118: 1383.66753 | F118: 5371.33247 | H118: 0 | J118: 283.6063544 | L118: 222.18 | N118: =IF(B118="","",VLOOKUP(TRIM(CONCATENATE($F$20," ",$F$17," ",$F$18," ",$F$22," ",$F$21," ",$F$16," ",$F$23," ",$F$24)),Catalogo_Condicione_Financieras!B:W,22,0)) -> 0 | T118: =IF(B118="","",'Tabla_Puntual&Relacionamiento'!$B$6) -> 0.1 | V118: 7260.786354 | X118: 643176.2289 | AL118: 6755 | AM118: 7230.140837 | AN118: 0 | AP118: 0 | AS118: 191.5344828
B119: 56 | C119: 643176.2289 | D119: 1395.198093 | F119: 5359.801907 | H119: 0 | J119: 282.9975407 | L119: 222.18 | N119: =IF(B119="","",VLOOKUP(TRIM(CONCATENATE($F$20," ",$F$17," ",$F$18," ",$F$22," ",$F$21," ",$F$16," ",$F$23," ",$F$24)),Catalogo_Condicione_Financieras!B:W,22,0)) -> 0 | R119: =IF(OR(X118=0,X118=""),"",IF($F$21="Apoyo Infonavit",IF(D119>=C119,0,MIN(IF($F$30="",0,Caratula!$F$30),3439.46*25)*10%),0)) -> 0 | T119: =IF(B119="","",'Tabla_Puntual&Relacionamiento'!$B$6) -> 0.1 | V119: 7260.177541 | X119: 641781.0308 | AL119: 6755 | AM119: 7229.532023 | AN119: 0 | AP119: 0 | AS119: 191.5344828
B120: 57 | C120: 641781.0308 | D120: 1406.824743 | F120: 5348.175257 | H120: 0 | J120: 282.3836536 | L120: 222.18 | N120: =IF(B120="","",VLOOKUP(TRIM(CONCATENATE($F$20," ",$F$17," ",$F$18," ",$F$22," ",$F$21," ",$F$16," ",$F$23," ",$F$24)),Catalogo_Condicione_Financieras!B:W,22,0)) -> 0 | T120: =IF(B120="","",'Tabla_Puntual&Relacionamiento'!$B$6) -> 0.1 | V120: 7259.563654 | X120: 640374.2061 | AL120: 6755 | AM120: 7228.918136 | AN120: 0 | AP120: 0 | AS120: 191.5344828
B121: 58 | C121: 640374.2061 | D121: 1418.548283 | F121: 5336.451717 | H121: 0 | J121: 281.7646507 | L121: 222.18 | N121: =IF(B121="","",VLOOKUP(TRIM(CONCATENATE($F$20," ",$F$17," ",$F$18," ",$F$22," ",$F$21," ",$F$16," ",$F$23," ",$F$24)),Catalogo_Condicione_Financieras!B:W,22,0)) -> 0 | R121: =IF(OR(X120=0,X120=""),"",IF($F$21="Apoyo Infonavit",IF(D121>=C121,0,MIN(IF($F$30="",0,Caratula!$F$30),3439.46*25)*10%),0)) -> 0 | T121: =IF(B121="","",'Tabla_Puntual&Relacionamiento'!$B$6) -> 0.1 | V121: 7258.944651 | X121: 638955.6578 | AL121: 6755 | AM121: 7228.299133 | AN121: 0 | AP121: 0 | AS121: 191.5344828
B122: 59 | C122: 638955.6578 | D122: 1430.369519 | F122: 5324.630481 | H122: 0 | J122: 281.1404894 | L122: 222.18 | N122: =IF(B122="","",VLOOKUP(TRIM(CONCATENATE($F$20," ",$F$17," ",$F$18," ",$F$22," ",$F$21," ",$F$16," ",$F$23," ",$F$24)),Catalogo_Condicione_Financieras!B:W,22,0)) -> 0 | T122: =IF(B122="","",'Tabla_Puntual&Relacionamiento'!$B$6) -> 0.1 | V122: 7258.320489 | X122: 637525.2883 | AL122: 6755 | AM122: 7227.674972 | AN122: 0 | AP122: 0 | AS122: 191.5344828
B123: 60 | C123: 637525.2883 | D123: 1442.289265 | F123: 5312.710735 | H123: 0 | J123: 280.5111268 | L123: 222.18 | N123: =IF(B123="","",VLOOKUP(TRIM(CONCATENATE($F$20," ",$F$17," ",$F$18," ",$F$22," ",$F$21," ",$F$16," ",$F$23," ",$F$24)),Catalogo_Condicione_Financieras!B:W,22,0)) -> 0 | R123: =IF(OR(X122=0,X122=""),"",IF($F$21="Apoyo Infonavit",IF(D123>=C123,0,MIN(IF($F$30="",0,Caratula!$F$30),3439.46*25)*10%),0)) -> 0 | T123: =IF(B123="","",'Tabla_Puntual&Relacionamiento'!$B$6) -> 0.1 | V123: 7257.691127 | X123: 636082.999 | AL123: 6755 | AM123: 7227.04561 | AN123: 0 | AP123: 0 | AS123: 191.5344828
B124: 61 | C124: 636082.999 | D124: 1454.308342 | F124: 5300.691658 | H124: 0 | J124: 279.8765196 | L124: 222.18 | N124: =IF(B124="","",VLOOKUP(TRIM(CONCATENATE($F$20," ",$F$17," ",$F$18," ",$F$22," ",$F$21," ",$F$16," ",$F$23," ",$F$24)),Catalogo_Condicione_Financieras!B:W,22,0)) -> 0 | T124: =IF(B124="","",'Tabla_Puntual&Relacionamiento'!$B$7) -> 0.1 | U124: =IF(B124="","",IF($F$16="Pago_Bajo_Puntual",0.019,"")) ->  | V124: 7257.05652 | X124: 634628.6907 | AL124: 6755 | AM124: 7226.411002 | AN124: 0 | AP124: 0 | AS124: 191.5344828
B125: 62 | C125: 634628.6907 | D125: 1466.427578 | F125: 5288.572422 | H125: 0 | J125: 279.2366239 | L125: 222.18 | N125: =IF(B125="","",VLOOKUP(TRIM(CONCATENATE($F$20," ",$F$17," ",$F$18," ",$F$22," ",$F$21," ",$F$16," ",$F$23," ",$F$24)),Catalogo_Condicione_Financieras!B:W,22,0)) -> 0 | R125: =IF(OR(X124=0,X124=""),"",IF($F$21="Apoyo Infonavit",IF(D125>=C125,0,MIN(IF($F$30="",0,Caratula!$F$30),3439.46*25)*10%),0)) -> 0 | T125: =IF(B125="","",'Tabla_Puntual&Relacionamiento'!$B$7) -> 0.1 | V125: 7256.416624 | X125: 633162.2631 | AL125: 6755 | AM125: 7225.771107 | AN125: 0 | AP125: 0 | AS125: 191.5344828
B126: 63 | C126: 633162.2631 | D126: 1478.647808 | F126: 5276.352192 | H126: 0 | J126: 278.5913958 | L126: 222.18 | N126: =IF(B126="","",VLOOKUP(TRIM(CONCATENATE($F$20," ",$F$17," ",$F$18," ",$F$22," ",$F$21," ",$F$16," ",$F$23," ",$F$24)),Catalogo_Condicione_Financieras!B:W,22,0)) -> 0 | T126: =IF(B126="","",'Tabla_Puntual&Relacionamiento'!$B$7) -> 0.1 | V126: 7255.771396 | X126: 631683.6153 | AL126: 6755 | AM126: 7225.125879 | AN126: 0 | AP126: 0 | AS126: 191.5344828
B127: 64 | C127: 631683.6153 | D127: 1490.969873 | F127: 5264.030127 | H127: 0 | J127: 277.9407907 | L127: 222.18 | N127: =IF(B127="","",VLOOKUP(TRIM(CONCATENATE($F$20," ",$F$17," ",$F$18," ",$F$22," ",$F$21," ",$F$16," ",$F$23," ",$F$24)),Catalogo_Condicione_Financieras!B:W,22,0)) -> 0 | R127: =IF(OR(X126=0,X126=""),"",IF($F$21="Apoyo Infonavit",IF(D127>=C127,0,MIN(IF($F$30="",0,Caratula!$F$30),3439.46*25)*10%),0)) -> 0 | T127: =IF(B127="","",'Tabla_Puntual&Relacionamiento'!$B$7) -> 0.1 | V127: 7255.120791 | X127: 630192.6454 | AL127: 6755 | AM127: 7224.475273 | AN127: 0 | AP127: 0 | AS127: 191.5344828
B128: 65 | C128: 630192.6454 | D128: 1503.394622 | F128: =IF(B128="","",IF(X127*(T128/12)<0,"",X127*(T128/12))) -> 5251.605378 | H128: =IFERROR(IF($F$20="Liquidez",F128*0.16, IF(AND($F$20="Pago_Hipoteca+Liquidez",$F$36="Liquidez"),F128*0.16,0)),0) -> 0 | J128: 277.284764 | L128: 222.18 | N128: =IF(B128="","",VLOOKUP(TRIM(CONCATENATE($F$20," ",$F$17," ",$F$18," ",$F$22," ",$F$21," ",$F$16," ",$F$23," ",$F$24)),Catalogo_Condicione_Financieras!B:W,22,0)) -> 0 | T128: =IF(B128="","",'Tabla_Puntual&Relacionamiento'!$B$7) -> 0.1 | V128: =IF(B128="","",D128+F128+H128+J128+L128+N128) -> 7254.464764 | X128: =IFERROR(IF(C128="","",IF((C128-D128-P128+AN128+AP128-R128)<1,0,C128-D128-P128+AN128+AP128-R128)),0) -> 628689.2508 | AL128: 6755 | AM128: 7223.819247 | AN128: =IF(B128="","",IF(OR($N$18="C. Contratación Crédito",P128=""),0,IF(AND(P128>0,$S$18>0),P128*$S$18,0))) -> 0 | AP128: 0 | AS128: 191.5344828
B129: =IF(OR(B128="",X128<=0),"",IF(B128+1<=F$23*12,B128+1,"")) -> 66 | C129: =IF(B129="","",IF(IF(C128="","",C128-D128-R128)<0.01,AQ128,IF(C128="","",X128))) -> 628689.2508 | D129: 1515.92291 | F129: 5239.07709 | H129: 0 | J129: =IF(B129="","",C129*$AQ$35/1000) -> 276.6232703 | L129: 222.18 | N129: =IF(B129="","",VLOOKUP(TRIM(CONCATENATE($F$20," ",$F$17," ",$F$18," ",$F$22," ",$F$21," ",$F$16," ",$F$23," ",$F$24)),Catalogo_Condicione_Financieras!B:W,22,0)) -> 0 | R129: =IF(OR(X128=0,X128=""),"",IF($F$21="Apoyo Infonavit",IF(D129>=C129,0,MIN(IF($F$30="",0,Caratula!$F$30),3439.46*25)*10%),0)) -> 0 | T129: =IF(B129="","",'Tabla_Puntual&Relacionamiento'!$B$7) -> 0.1 | V129: 7253.80327 | X129: 627173.3279 | AL129: =IF(B129="","", IF(X128<AL128,X128+F129, IF($F$16="Pago_Fijo_Puntual",$X$63*$AQ$40/1000, IF($F$16="Pago_Bajo_Puntual",AL128+(AL128*U129))))) -> 6755 | AM129: 7223.157753 | AN129: 0 | AP129: 0 | AS129: =IF(B129="","",IF(AND($F$20="Pago_Hipoteca+Liquidez",$F$36="Liquidez"),0, IF((($F$28*0.7)*$AQ$38/1.16)>C129*$AQ$38/1.16,($F$28*0.7)*($AQ$38/1.16),($AQ$38/1.16)*C129)/1000)) -> 191.5344828
B130: 67 | C130: 627173.3279 | D130: =IF(B130="","",AL130-F130) -> 1528.555601 | F130: 5226.444399 | H130: 0 | J130: 275.9562643 | L130: =IF(B130="","",IF(AND($F$20="Pago_Hipoteca+Liquidez",$F$36="Liquidez"),0, IF((($F$28*0.7)*$AQ$38)>C130*$AQ$38,($F$28*0.7)*($AQ$38)/1000,($AQ$38*C130)/1000))) -> 222.18 | N130: =IF(B130="","",VLOOKUP(TRIM(CONCATENATE($F$20," ",$F$17," ",$F$18," ",$F$22," ",$F$21," ",$F$16," ",$F$23," ",$F$24)),Catalogo_Condicione_Financieras!B:W,22,0)) -> 0 | T130: =IF(B130="","",'Tabla_Puntual&Relacionamiento'!$B$7) -> 0.1 | V130: 7253.136264 | X130: 625644.7723 | AL130: 6755 | AM130: 7222.490747 | AN130: 0 | AP130: 0 | AS130: 191.5344828
B131: 68 | C131: 625644.7723 | D131: 1541.293564 | F131: 5213.706436 | H131: 0 | J131: 275.2836998 | L131: 222.18 | N131: =IF(B131="","",VLOOKUP(TRIM(CONCATENATE($F$20," ",$F$17," ",$F$18," ",$F$22," ",$F$21," ",$F$16," ",$F$23," ",$F$24)),Catalogo_Condicione_Financieras!B:W,22,0)) -> 0 | R131: =IF(OR(X130=0,X130=""),"",IF($F$21="Apoyo Infonavit",IF(D131>=C131,0,MIN(IF($F$30="",0,Caratula!$F$30),3439.46*25)*10%),0)) -> 0 | T131: =IF(B131="","",'Tabla_Puntual&Relacionamiento'!$B$7) -> 0.1 | V131: 7252.4637 | X131: 624103.4787 | AL131: 6755 | AM131: =IF(C131="",0,AL131+J131+AS131+N131+R131) -> 7221.818183 | AN131: 0 | AP131: =IF(B131="","",IF(AN131>0,AN131*0.16,0)) -> 0 | AS131: 191.5344828
B132: 69 | C132: 624103.4787 | D132: 1554.137678 | F132: 5200.862322 | H132: 0 | J132: 274.6055306 | L132: 222.18 | N132: =IF(B132="","",VLOOKUP(TRIM(CONCATENATE($F$20," ",$F$17," ",$F$18," ",$F$22," ",$F$21," ",$F$16," ",$F$23," ",$F$24)),Catalogo_Condicione_Financieras!B:W,22,0)) -> 0 | T132: =IF(B132="","",'Tabla_Puntual&Relacionamiento'!$B$7) -> 0.1 | V132: 7251.785531 | X132: 622549.341 | AL132: 6755 | AM132: 7221.140013 | AN132: 0 | AP132: 0 | AS132: 191.5344828
B133: 70 | C133: 622549.341 | D133: 1567.088825 | F133: 5187.911175 | H133: 0 | J133: 273.92171 | L133: 222.18 | N133: =IF(B133="","",VLOOKUP(TRIM(CONCATENATE($F$20," ",$F$17," ",$F$18," ",$F$22," ",$F$21," ",$F$16," ",$F$23," ",$F$24)),Catalogo_Condicione_Financieras!B:W,22,0)) -> 0 | R133: =IF(OR(X132=0,X132=""),"",IF($F$21="Apoyo Infonavit",IF(D133>=C133,0,MIN(IF($F$30="",0,Caratula!$F$30),3439.46*25)*10%),0)) -> 0 | T133: =IF(B133="","",'Tabla_Puntual&Relacionamiento'!$B$7) -> 0.1 | V133: 7251.10171 | X133: 620982.2522 | AL133: 6755 | AM133: 7220.456193 | AN133: 0 | AP133: 0 | AS133: 191.5344828
B134: 71 | C134: 620982.2522 | D134: 1580.147898 | F134: 5174.852102 | H134: 0 | J134: 273.232191 | L134: 222.18 | N134: =IF(B134="","",VLOOKUP(TRIM(CONCATENATE($F$20," ",$F$17," ",$F$18," ",$F$22," ",$F$21," ",$F$16," ",$F$23," ",$F$24)),Catalogo_Condicione_Financieras!B:W,22,0)) -> 0 | T134: =IF(B134="","",'Tabla_Puntual&Relacionamiento'!$B$7) -> 0.1 | V134: 7250.412191 | X134: 619402.1043 | AL134: 6755 | AM134: 7219.766674 | AN134: 0 | AP134: 0 | AS134: 191.5344828
B135: 72 | C135: 619402.1043 | D135: 1593.315798 | F135: 5161.684202 | H135: 0 | J135: 272.5369259 | L135: 222.18 | N135: =IF(B135="","",VLOOKUP(TRIM(CONCATENATE($F$20," ",$F$17," ",$F$18," ",$F$22," ",$F$21," ",$F$16," ",$F$23," ",$F$24)),Catalogo_Condicione_Financieras!B:W,22,0)) -> 0 | R135: =IF(OR(X134=0,X134=""),"",IF($F$21="Apoyo Infonavit",IF(D135>=C135,0,MIN(IF($F$30="",0,Caratula!$F$30),3439.46*25)*10%),0)) -> 0 | T135: =IF(B135="","",'Tabla_Puntual&Relacionamiento'!$B$7) -> 0.1 | V135: 7249.716926 | X135: 617808.7885 | AL135: 6755 | AM135: 7219.071409 | AN135: 0 | AP135: 0 | AS135: 191.5344828
B136: 73 | C136: 617808.7885 | D136: 1606.593429 | F136: 5148.406571 | H136: 0 | J136: 271.8358669 | L136: 222.18 | N136: =IF(B136="","",VLOOKUP(TRIM(CONCATENATE($F$20," ",$F$17," ",$F$18," ",$F$22," ",$F$21," ",$F$16," ",$F$23," ",$F$24)),Catalogo_Condicione_Financieras!B:W,22,0)) -> 0 | T136: =IF(B136="","",'Tabla_Puntual&Relacionamiento'!$B$8) -> 0.1 | U136: =IF(B136="","",IF($F$16="Pago_Bajo_Puntual",0.019,"")) ->  | V136: 7249.015867 | X136: 616202.1951 | AL136: 6755 | AM136: 7218.37035 | AN136: 0 | AP136: 0 | AS136: 191.5344828
B137: 74 | C137: 616202.1951 | D137: 1619.981708 | F137: 5135.018292 | H137: 0 | J137: 271.1289658 | L137: 222.18 | N137: =IF(B137="","",VLOOKUP(TRIM(CONCATENATE($F$20," ",$F$17," ",$F$18," ",$F$22," ",$F$21," ",$F$16," ",$F$23," ",$F$24)),Catalogo_Condicione_Financieras!B:W,22,0)) -> 0 | R137: =IF(OR(X136=0,X136=""),"",IF($F$21="Apoyo Infonavit",IF(D137>=C137,0,MIN(IF($F$30="",0,Caratula!$F$30),3439.46*25)*10%),0)) -> 0 | T137: =IF(B137="","",'Tabla_Puntual&Relacionamiento'!$B$8) -> 0.1 | V137: 7248.308966 | X137: 614582.2134 | AL137: 6755 | AM137: 7217.663449 | AN137: 0 | AP137: 0 | AS137: 191.5344828
B138: 75 | C138: 614582.2134 | D138: 1633.481555 | F138: 5121.518445 | H138: 0 | J138: 270.4161739 | L138: 222.18 | N138: =IF(B138="","",VLOOKUP(TRIM(CONCATENATE($F$20," ",$F$17," ",$F$18," ",$F$22," ",$F$21," ",$F$16," ",$F$23," ",$F$24)),Catalogo_Condicione_Financieras!B:W,22,0)) -> 0 | T138: =IF(B138="","",'Tabla_Puntual&Relacionamiento'!$B$8) -> 0.1 | V138: 7247.596174 | X138: 612948.7318 | AL138: 6755 | AM138: 7216.950657 | AN138: 0 | AP138: 0 | AS138: 191.5344828
B139: 76 | C139: 612948.7318 | D139: 1647.093902 | F139: 5107.906098 | H139: 0 | J139: 269.697442 | L139: 222.18 | N139: =IF(B139="","",VLOOKUP(TRIM(CONCATENATE($F$20," ",$F$17," ",$F$18," ",$F$22," ",$F$21," ",$F$16," ",$F$23," ",$F$24)),Catalogo_Condicione_Financieras!B:W,22,0)) -> 0 | R139: =IF(OR(X138=0,X138=""),"",IF($F$21="Apoyo Infonavit",IF(D139>=C139,0,MIN(IF($F$30="",0,Caratula!$F$30),3439.46*25)*10%),0)) -> 0 | T139: =IF(B139="","",'Tabla_Puntual&Relacionamiento'!$B$8) -> 0.1 | V139: 7246.877442 | X139: 611301.6379 | AL139: 6755 | AM139: 7216.231925 | AN139: 0 | AP139: 0 | AS139: 191.5344828
B140: 77 | C140: 611301.6379 | D140: 1660.819684 | F140: 5094.180316 | H140: 0 | J140: 268.9727207 | L140: 222.18 | N140: =IF(B140="","",VLOOKUP(TRIM(CONCATENATE($F$20," ",$F$17," ",$F$18," ",$F$22," ",$F$21," ",$F$16," ",$F$23," ",$F$24)),Catalogo_Condicione_Financieras!B:W,22,0)) -> 0 | T140: =IF(B140="","",'Tabla_Puntual&Relacionamiento'!$B$8) -> 0.1 | V140: 7246.152721 | X140: 609640.8182 | AL140: 6755 | AM140: 7215.507203 | AN140: 0 | AP140: 0 | AS140: 191.5344828
B141: 78 | C141: 609640.8182 | D141: 1674.659848 | F141: 5080.340152 | H141: 0 | J141: 268.24196 | L141: 222.18 | N141: =IF(B141="","",VLOOKUP(TRIM(CONCATENATE($F$20," ",$F$17," ",$F$18," ",$F$22," ",$F$21," ",$F$16," ",$F$23," ",$F$24)),Catalogo_Condicione_Financieras!B:W,22,0)) -> 0 | R141: =IF(OR(X140=0,X140=""),"",IF($F$21="Apoyo Infonavit",IF(D141>=C141,0,MIN(IF($F$30="",0,Caratula!$F$30),3439.46*25)*10%),0)) -> 0 | T141: =IF(B141="","",'Tabla_Puntual&Relacionamiento'!$B$8) -> 0.1 | V141: 7245.42196 | X141: 607966.1584 | AL141: 6755 | AM141: 7214.776443 | AN141: 0 | AP141: 0 | AS141: 191.5344828
B142: 79 | C142: 607966.1584 | D142: 1688.615347 | F142: 5066.384653 | H142: 0 | J142: 267.5051097 | L142: 222.18 | N142: =IF(B142="","",VLOOKUP(TRIM(CONCATENATE($F$20," ",$F$17," ",$F$18," ",$F$22," ",$F$21," ",$F$16," ",$F$23," ",$F$24)),Catalogo_Condicione_Financieras!B:W,22,0)) -> 0 | T142: =IF(B142="","",'Tabla_Puntual&Relacionamiento'!$B$8) -> 0.1 | V142: 7244.68511 | X142: 606277.543 | AL142: 6755 | AM142: 7214.039592 | AN142: 0 | AP142: 0 | AS142: 191.5344828
B143: 80 | C143: 606277.543 | D143: 1702.687141 | F143: 5052.312859 | H143: 0 | J143: 266.7621189 | L143: 222.18 | N143: =IF(B143="","",VLOOKUP(TRIM(CONCATENATE($F$20," ",$F$17," ",$F$18," ",$F$22," ",$F$21," ",$F$16," ",$F$23," ",$F$24)),Catalogo_Condicione_Financieras!B:W,22,0)) -> 0 | R143: =IF(OR(X142=0,X142=""),"",IF($F$21="Apoyo Infonavit",IF(D143>=C143,0,MIN(IF($F$30="",0,Caratula!$F$30),3439.46*25)*10%),0)) -> 0 | T143: =IF(B143="","",'Tabla_Puntual&Relacionamiento'!$B$8) -> 0.1 | V143: 7243.942119 | X143: 604574.8559 | AL143: 6755 | AM143: 7213.296602 | AN143: 0 | AP143: 0 | AS143: 191.5344828
B144: 81 | C144: 604574.8559 | D144: 1716.876201 | F144: 5038.123799 | H144: 0 | J144: 266.0129366 | L144: 222.18 | N144: =IF(B144="","",VLOOKUP(TRIM(CONCATENATE($F$20," ",$F$17," ",$F$18," ",$F$22," ",$F$21," ",$F$16," ",$F$23," ",$F$24)),Catalogo_Condicione_Financieras!B:W,22,0)) -> 0 | T144: =IF(B144="","",'Tabla_Puntual&Relacionamiento'!$B$8) -> 0.1 | V144: 7243.192937 | X144: 602857.9797 | AL144: 6755 | AM144: 7212.547419 | AN144: 0 | AP144: 0 | AS144: 191.5344828
B145: 82 | C145: 602857.9797 | D145: 1731.183503 | F145: 5023.816497 | H145: 0 | J145: 265.2575111 | L145: 222.18 | N145: =IF(B145="","",VLOOKUP(TRIM(CONCATENATE($F$20," ",$F$17," ",$F$18," ",$F$22," ",$F$21," ",$F$16," ",$F$23," ",$F$24)),Catalogo_Condicione_Financieras!B:W,22,0)) -> 0 | R145: =IF(OR(X144=0,X144=""),"",IF($F$21="Apoyo Infonavit",IF(D145>=C145,0,MIN(IF($F$30="",0,Caratula!$F$30),3439.46*25)*10%),0)) -> 0 | T145: =IF(B145="","",'Tabla_Puntual&Relacionamiento'!$B$8) -> 0.1 | V145: 7242.437511 | X145: 601126.7962 | AL145: 6755 | AM145: 7211.791994 | AN145: 0 | AP145: 0 | AS145: 191.5344828
B146: 83 | C146: 601126.7962 | D146: 1745.610032 | F146: 5009.389968 | H146: 0 | J146: 264.4957903 | L146: 222.18 | N146: =IF(B146="","",VLOOKUP(TRIM(CONCATENATE($F$20," ",$F$17," ",$F$18," ",$F$22," ",$F$21," ",$F$16," ",$F$23," ",$F$24)),Catalogo_Condicione_Financieras!B:W,22,0)) -> 0 | T146: =IF(B146="","",'Tabla_Puntual&Relacionamiento'!$B$8) -> 0.1 | V146: 7241.67579 | X146: 599381.1861 | AL146: 6755 | AM146: 7211.030273 | AN146: 0 | AP146: 0 | AS146: 191.5344828
B147: 84 | C147: 599381.1861 | D147: 1760.156782 | F147: 4994.843218 | H147: 0 | J147: 263.7277219 | L147: 222.18 | N147: =IF(B147="","",VLOOKUP(TRIM(CONCATENATE($F$20," ",$F$17," ",$F$18," ",$F$22," ",$F$21," ",$F$16," ",$F$23," ",$F$24)),Catalogo_Condicione_Financieras!B:W,22,0)) -> 0 | R147: =IF(OR(X146=0,X146=""),"",IF($F$21="Apoyo Infonavit",IF(D147>=C147,0,MIN(IF($F$30="",0,Caratula!$F$30),3439.46*25)*10%),0)) -> 0 | T147: =IF(B147="","",'Tabla_Puntual&Relacionamiento'!$B$8) -> 0.1 | V147: 7240.907722 | X147: 597621.0294 | AL147: 6755 | AM147: 7210.262205 | AN147: 0 | AP147: 0 | AS147: 191.5344828
B148: 85 | C148: 597621.0294 | D148: 1774.824755 | F148: 4980.175245 | H148: 0 | J148: 262.9532529 | L148: 222.18 | N148: =IF(B148="","",VLOOKUP(TRIM(CONCATENATE($F$20," ",$F$17," ",$F$18," ",$F$22," ",$F$21," ",$F$16," ",$F$23," ",$F$24)),Catalogo_Condicione_Financieras!B:W,22,0)) -> 0 | T148: =IF(B148="","",'Tabla_Puntual&Relacionamiento'!$B$9) -> 0.1 | U148: =IF(B148="","",IF($F$16="Pago_Bajo_Puntual",0.019,"")) ->  | V148: 7240.133253 | X148: 595846.2046 | AL148: 6755 | AM148: 7209.487736 | AN148: 0 | AP148: 0 | AS148: 191.5344828
B149: 86 | C149: 595846.2046 | D149: 1789.614962 | F149: 4965.385038 | H149: 0 | J149: 262.17233 | L149: 222.18 | N149: =IF(B149="","",VLOOKUP(TRIM(CONCATENATE($F$20," ",$F$17," ",$F$18," ",$F$22," ",$F$21," ",$F$16," ",$F$23," ",$F$24)),Catalogo_Condicione_Financieras!B:W,22,0)) -> 0 | R149: =IF(OR(X148=0,X148=""),"",IF($F$21="Apoyo Infonavit",IF(D149>=C149,0,MIN(IF($F$30="",0,Caratula!$F$30),3439.46*25)*10%),0)) -> 0 | T149: =IF(B149="","",'Tabla_Puntual&Relacionamiento'!$B$9) -> 0.1 | V149: 7239.35233 | X149: 594056.5896 | AL149: 6755 | AM149: 7208.706813 | AN149: 0 | AP149: 0 | AS149: 191.5344828
B150: 87 | C150: 594056.5896 | D150: 1804.52842 | F150: 4950.47158 | H150: 0 | J150: 261.3848994 | L150: 222.18 | N150: =IF(B150="","",VLOOKUP(TRIM(CONCATENATE($F$20," ",$F$17," ",$F$18," ",$F$22," ",$F$21," ",$F$16," ",$F$23," ",$F$24)),Catalogo_Condicione_Financieras!B:W,22,0)) -> 0 | T150: =IF(B150="","",'Tabla_Puntual&Relacionamiento'!$B$9) -> 0.1 | V150: 7238.564899 | X150: 592252.0612 | AL150: 6755 | AM150: 7207.919382 | AN150: 0 | AP150: 0 | AS150: 191.5344828
B151: 88 | C151: 592252.0612 | D151: 1819.566156 | F151: 4935.433844 | H151: 0 | J151: 260.5909069 | L151: 222.18 | N151: =IF(B151="","",VLOOKUP(TRIM(CONCATENATE($F$20," ",$F$17," ",$F$18," ",$F$22," ",$F$21," ",$F$16," ",$F$23," ",$F$24)),Catalogo_Condicione_Financieras!B:W,22,0)) -> 0 | R151: =IF(OR(X150=0,X150=""),"",IF($F$21="Apoyo Infonavit",IF(D151>=C151,0,MIN(IF($F$30="",0,Caratula!$F$30),3439.46*25)*10%),0)) -> 0 | T151: =IF(B151="","",'Tabla_Puntual&Relacionamiento'!$B$9) -> 0.1 | V151: 7237.770907 | X151: 590432.4951 | AL151: 6755 | AM151: 7207.12539 | AN151: 0 | AP151: 0 | AS151: 191.5344828
B152: 89 | C152: 590432.4951 | D152: 1834.729208 | F152: 4920.270792 | H152: 0 | J152: 259.7902978 | L152: 222.18 | N152: =IF(B152="","",VLOOKUP(TRIM(CONCATENATE($F$20," ",$F$17," ",$F$18," ",$F$22," ",$F$21," ",$F$16," ",$F$23," ",$F$24)),Catalogo_Condicione_Financieras!B:W,22,0)) -> 0 | T152: =IF(B152="","",'Tabla_Puntual&Relacionamiento'!$B$9) -> 0.1 | V152: 7236.970298 | X152: 588597.7659 | AL152: 6755 | AM152: 7206.324781 | AN152: 0 | AP152: 0 | AS152: 191.5344828
B153: 90 | C153: 588597.7659 | D153: 1850.018618 | F153: 4904.981382 | H153: 0 | J153: 258.983017 | L153: 222.18 | N153: =IF(B153="","",VLOOKUP(TRIM(CONCATENATE($F$20," ",$F$17," ",$F$18," ",$F$22," ",$F$21," ",$F$16," ",$F$23," ",$F$24)),Catalogo_Condicione_Financieras!B:W,22,0)) -> 0 | R153: =IF(OR(X152=0,X152=""),"",IF($F$21="Apoyo Infonavit",IF(D153>=C153,0,MIN(IF($F$30="",0,Caratula!$F$30),3439.46*25)*10%),0)) -> 0 | T153: =IF(B153="","",'Tabla_Puntual&Relacionamiento'!$B$9) -> 0.1 | V153: 7236.163017 | X153: 586747.7472 | AL153: 6755 | AM153: 7205.5175 | AN153: 0 | AP153: 0 | AS153: 191.5344828
B154: 91 | C154: 586747.7472 | D154: 1865.43544 | F154: 4889.56456 | H154: 0 | J154: 258.1690088 | L154: 222.18 | N154: =IF(B154="","",VLOOKUP(TRIM(CONCATENATE($F$20," ",$F$17," ",$F$18," ",$F$22," ",$F$21," ",$F$16," ",$F$23," ",$F$24)),Catalogo_Condicione_Financieras!B:W,22,0)) -> 0 | T154: =IF(B154="","",'Tabla_Puntual&Relacionamiento'!$B$9) -> 0.1 | V154: 7235.349009 | X154: 584882.3118 | AL154: 6755 | AM154: 7204.703492 | AN154: 0 | AP154: 0 | AS154: 191.5344828
B155: 92 | C155: 584882.3118 | D155: 1880.980735 | F155: 4874.019265 | H155: 0 | J155: 257.3482172 | L155: 222.18 | N155: =IF(B155="","",VLOOKUP(TRIM(CONCATENATE($F$20," ",$F$17," ",$F$18," ",$F$22," ",$F$21," ",$F$16," ",$F$23," ",$F$24)),Catalogo_Condicione_Financieras!B:W,22,0)) -> 0 | R155: =IF(OR(X154=0,X154=""),"",IF($F$21="Apoyo Infonavit",IF(D155>=C155,0,MIN(IF($F$30="",0,Caratula!$F$30),3439.46*25)*10%),0)) -> 0 | T155: =IF(B155="","",'Tabla_Puntual&Relacionamiento'!$B$9) -> 0.1 | V155: 7234.528217 | X155: 583001.3311 | AL155: 6755 | AM155: 7203.8827 | AN155: 0 | AP155: 0 | AS155: 191.5344828
B156: 93 | C156: 583001.3311 | D156: 1896.655574 | F156: 4858.344426 | H156: 0 | J156: 256.5205857 | L156: 222.18 | N156: =IF(B156="","",VLOOKUP(TRIM(CONCATENATE($F$20," ",$F$17," ",$F$18," ",$F$22," ",$F$21," ",$F$16," ",$F$23," ",$F$24)),Catalogo_Condicione_Financieras!B:W,22,0)) -> 0 | T156: =IF(B156="","",'Tabla_Puntual&Relacionamiento'!$B$9) -> 0.1 | V156: 7233.700586 | X156: 581104.6755 | AL156: 6755 | AM156: 7203.055068 | AN156: 0 | AP156: 0 | AS156: 191.5344828
B157: 94 | C157: 581104.6755 | D157: 1912.461038 | F157: 4842.538962 | H157: 0 | J157: 255.6860572 | L157: 222.18 | N157: =IF(B157="","",VLOOKUP(TRIM(CONCATENATE($F$20," ",$F$17," ",$F$18," ",$F$22," ",$F$21," ",$F$16," ",$F$23," ",$F$24)),Catalogo_Condicione_Financieras!B:W,22,0)) -> 0 | R157: =IF(OR(X156=0,X156=""),"",IF($F$21="Apoyo Infonavit",IF(D157>=C157,0,MIN(IF($F$30="",0,Caratula!$F$30),3439.46*25)*10%),0)) -> 0 | T157: =IF(B157="","",'Tabla_Puntual&Relacionamiento'!$B$9) -> 0.1 | V157: 7232.866057 | X157: 579192.2145 | AL157: 6755 | AM157: 7202.22054 | AN157: 0 | AP157: 0 | AS157: 191.5344828
B158: 95 | C158: 579192.2145 | D158: 1928.398213 | F158: 4826.601787 | H158: 0 | J158: 254.8445744 | L158: 222.18 | N158: =IF(B158="","",VLOOKUP(TRIM(CONCATENATE($F$20," ",$F$17," ",$F$18," ",$F$22," ",$F$21," ",$F$16," ",$F$23," ",$F$24)),Catalogo_Condicione_Financieras!B:W,22,0)) -> 0 | T158: =IF(B158="","",'Tabla_Puntual&Relacionamiento'!$B$9) -> 0.1 | V158: 7232.024574 | X158: 577263.8162 | AL158: 6755 | AM158: 7201.379057 | AN158: 0 | AP158: 0 | AS158: 191.5344828
B159: 96 | C159: 577263.8162 | D159: 1944.468198 | F159: 4810.531802 | H159: 0 | J159: 253.9960791 | L159: 222.18 | N159: =IF(B159="","",VLOOKUP(TRIM(CONCATENATE($F$20," ",$F$17," ",$F$18," ",$F$22," ",$F$21," ",$F$16," ",$F$23," ",$F$24)),Catalogo_Condicione_Financieras!B:W,22,0)) -> 0 | R159: =IF(OR(X158=0,X158=""),"",IF($F$21="Apoyo Infonavit",IF(D159>=C159,0,MIN(IF($F$30="",0,Caratula!$F$30),3439.46*25)*10%),0)) -> 0 | T159: =IF(B159="","",'Tabla_Puntual&Relacionamiento'!$B$9) -> 0.1 | V159: 7231.176079 | X159: 575319.348 | AL159: 6755 | AM159: 7200.530562 | AN159: 0 | AP159: 0 | AS159: 191.5344828
B160: 97 | C160: 575319.348 | D160: 1960.6721 | F160: 4794.3279 | H160: 0 | J160: 253.1405131 | L160: 222.18 | N160: =IF(B160="","",VLOOKUP(TRIM(CONCATENATE($F$20," ",$F$17," ",$F$18," ",$F$22," ",$F$21," ",$F$16," ",$F$23," ",$F$24)),Catalogo_Condicione_Financieras!B:W,22,0)) -> 0 | T160: =IF(B160="","",'Tabla_Puntual&Relacionamiento'!$B$10) -> 0.1 | U160: =IF(B160="","",IF($F$16="Pago_Bajo_Puntual",0.019,"")) ->  | V160: 7230.320513 | X160: 573358.676 | AL160: 6755 | AM160: 7199.674996 | AN160: 0 | AP160: 0 | AS160: 191.5344828
B161: 98 | C161: 573358.676 | D161: 1977.011034 | F161: 4777.988966 | H161: 0 | J161: 252.2778174 | L161: 222.18 | N161: =IF(B161="","",VLOOKUP(TRIM(CONCATENATE($F$20," ",$F$17," ",$F$18," ",$F$22," ",$F$21," ",$F$16," ",$F$23," ",$F$24)),Catalogo_Condicione_Financieras!B:W,22,0)) -> 0 | R161: =IF(OR(X160=0,X160=""),"",IF($F$21="Apoyo Infonavit",IF(D161>=C161,0,MIN(IF($F$30="",0,Caratula!$F$30),3439.46*25)*10%),0)) -> 0 | T161: =IF(B161="","",'Tabla_Puntual&Relacionamiento'!$B$10) -> 0.1 | V161: 7229.457817 | X161: 571381.6649 | AL161: 6755 | AM161: 7198.8123 | AN161: 0 | AP161: 0 | AS161: 191.5344828
B162: 99 | C162: 571381.6649 | D162: 1993.486126 | F162: 4761.513874 | H162: 0 | J162: 251.4079326 | L162: 222.18 | N162: =IF(B162="","",VLOOKUP(TRIM(CONCATENATE($F$20," ",$F$17," ",$F$18," ",$F$22," ",$F$21," ",$F$16," ",$F$23," ",$F$24)),Catalogo_Condicione_Financieras!B:W,22,0)) -> 0 | T162: =IF(B162="","",'Tabla_Puntual&Relacionamiento'!$B$10) -> 0.1 | V162: 7228.587933 | X162: 569388.1788 | AL162: 6755 | AM162: 7197.942415 | AN162: 0 | AP162: 0 | AS162: 191.5344828
B163: 100 | C163: 569388.1788 | D163: 2010.09851 | F163: 4744.90149 | H163: 0 | J163: 250.5307987 | L163: 222.18 | N163: =IF(B163="","",VLOOKUP(TRIM(CONCATENATE($F$20," ",$F$17," ",$F$18," ",$F$22," ",$F$21," ",$F$16," ",$F$23," ",$F$24)),Catalogo_Condicione_Financieras!B:W,22,0)) -> 0 | R163: =IF(OR(X162=0,X162=""),"",IF($F$21="Apoyo Infonavit",IF(D163>=C163,0,MIN(IF($F$30="",0,Caratula!$F$30),3439.46*25)*10%),0)) -> 0 | T163: =IF(B163="","",'Tabla_Puntual&Relacionamiento'!$B$10) -> 0.1 | V163: 7227.710799 | X163: 567378.0803 | AL163: 6755 | AM163: 7197.065281 | AN163: 0 | AP163: 0 | AS163: 191.5344828
B164: 101 | C164: 567378.0803 | D164: 2026.849331 | F164: 4728.150669 | H164: 0 | J164: 249.6463553 | L164: 222.18 | N164: =IF(B164="","",VLOOKUP(TRIM(CONCATENATE($F$20," ",$F$17," ",$F$18," ",$F$22," ",$F$21," ",$F$16," ",$F$23," ",$F$24)),Catalogo_Condicione_Financieras!B:W,22,0)) -> 0 | T164: =IF(B164="","",'Tabla_Puntual&Relacionamiento'!$B$10) -> 0.1 | V164: 7226.826355 | X164: 565351.2309 | AL164: 6755 | AM164: 7196.180838 | AN164: 0 | AP164: 0 | AS164: 191.5344828
B165: 102 | C165: 565351.2309 | D165: 2043.739742 | F165: 4711.260258 | H165: 0 | J165: 248.7545416 | L165: 222.18 | N165: =IF(B165="","",VLOOKUP(TRIM(CONCATENATE($F$20," ",$F$17," ",$F$18," ",$F$22," ",$F$21," ",$F$16," ",$F$23," ",$F$24)),Catalogo_Condicione_Financieras!B:W,22,0)) -> 0 | R165: =IF(OR(X164=0,X164=""),"",IF($F$21="Apoyo Infonavit",IF(D165>=C165,0,MIN(IF($F$30="",0,Caratula!$F$30),3439.46*25)*10%),0)) -> 0 | T165: =IF(B165="","",'Tabla_Puntual&Relacionamiento'!$B$10) -> 0.1 | V165: 7225.934542 | X165: 563307.4912 | AL165: 6755 | AM165: 7195.289024 | AN165: 0 | AP165: 0 | AS165: 191.5344828
B166: 103 | C166: 563307.4912 | D166: 2060.770907 | F166: 4694.229093 | H166: 0 | J166: 247.8552961 | L166: 222.18 | N166: =IF(B166="","",VLOOKUP(TRIM(CONCATENATE($F$20," ",$F$17," ",$F$18," ",$F$22," ",$F$21," ",$F$16," ",$F$23," ",$F$24)),Catalogo_Condicione_Financieras!B:W,22,0)) -> 0 | T166: =IF(B166="","",'Tabla_Puntual&Relacionamiento'!$B$10) -> 0.1 | V166: 7225.035296 | X166: 561246.7203 | AL166: 6755 | AM166: 7194.389779 | AN166: 0 | AP166: 0 | AS166: 191.5344828
B167: 104 | C167: 561246.7203 | D167: 2077.943997 | F167: 4677.056003 | H167: 0 | J167: 246.9485569 | L167: 222.18 | N167: =IF(B167="","",VLOOKUP(TRIM(CONCATENATE($F$20," ",$F$17," ",$F$18," ",$F$22," ",$F$21," ",$F$16," ",$F$23," ",$F$24)),Catalogo_Condicione_Financieras!B:W,22,0)) -> 0 | R167: =IF(OR(X166=0,X166=""),"",IF($F$21="Apoyo Infonavit",IF(D167>=C167,0,MIN(IF($F$30="",0,Caratula!$F$30),3439.46*25)*10%),0)) -> 0 | T167: =IF(B167="","",'Tabla_Puntual&Relacionamiento'!$B$10) -> 0.1 | V167: 7224.128557 | X167: 559168.7763 | AL167: 6755 | AM167: 7193.48304 | AN167: 0 | AP167: 0 | AS167: 191.5344828
B168: 105 | C168: 559168.7763 | D168: 2095.260197 | F168: 4659.739803 | H168: 0 | J168: 246.0342616 | L168: 222.18 | N168: =IF(B168="","",VLOOKUP(TRIM(CONCATENATE($F$20," ",$F$17," ",$F$18," ",$F$22," ",$F$21," ",$F$16," ",$F$23," ",$F$24)),Catalogo_Condicione_Financieras!B:W,22,0)) -> 0 | T168: =IF(B168="","",'Tabla_Puntual&Relacionamiento'!$B$10) -> 0.1 | V168: 7223.214262 | X168: 557073.5161 | AL168: 6755 | AM168: 7192.568744 | AN168: 0 | AP168: 0 | AS168: 191.5344828
B169: 106 | C169: 557073.5161 | D169: 2112.720699 | F169: 4642.279301 | H169: 0 | J169: 245.1123471 | L169: 222.18 | N169: =IF(B169="","",VLOOKUP(TRIM(CONCATENATE($F$20," ",$F$17," ",$F$18," ",$F$22," ",$F$21," ",$F$16," ",$F$23," ",$F$24)),Catalogo_Condicione_Financieras!B:W,22,0)) -> 0 | R169: =IF(OR(X168=0,X168=""),"",IF($F$21="Apoyo Infonavit",IF(D169>=C169,0,MIN(IF($F$30="",0,Caratula!$F$30),3439.46*25)*10%),0)) -> 0 | T169: =IF(B169="","",'Tabla_Puntual&Relacionamiento'!$B$10) -> 0.1 | V169: 7222.292347 | X169: 554960.7954 | AL169: 6755 | AM169: 7191.64683 | AN169: 0 | AP169: 0 | AS169: 191.5344828
B170: 107 | C170: 554960.7954 | D170: 2130.326705 | F170: 4624.673295 | H170: 0 | J170: 244.18275 | L170: 222.18 | N170: =IF(B170="","",VLOOKUP(TRIM(CONCATENATE($F$20," ",$F$17," ",$F$18," ",$F$22," ",$F$21," ",$F$16," ",$F$23," ",$F$24)),Catalogo_Condicione_Financieras!B:W,22,0)) -> 0 | T170: =IF(B170="","",'Tabla_Puntual&Relacionamiento'!$B$10) -> 0.1 | V170: 7221.36275 | X170: 552830.4687 | AL170: 6755 | AM170: 7190.717233 | AN170: 0 | AP170: 0 | AS170: 191.5344828
B171: 108 | C171: 552830.4687 | D171: 2148.079427 | F171: 4606.920573 | H171: 0 | J171: 243.2454062 | L171: 222.18 | N171: =IF(B171="","",VLOOKUP(TRIM(CONCATENATE($F$20," ",$F$17," ",$F$18," ",$F$22," ",$F$21," ",$F$16," ",$F$23," ",$F$24)),Catalogo_Condicione_Financieras!B:W,22,0)) -> 0 | R171: =IF(OR(X170=0,X170=""),"",IF($F$21="Apoyo Infonavit",IF(D171>=C171,0,MIN(IF($F$30="",0,Caratula!$F$30),3439.46*25)*10%),0)) -> 0 | T171: =IF(B171="","",'Tabla_Puntual&Relacionamiento'!$B$10) -> 0.1 | V171: 7220.425406 | X171: 550682.3893 | AL171: 6755 | AM171: 7189.779889 | AN171: 0 | AP171: 0 | AS171: 191.5344828
B172: 109 | C172: 550682.3893 | D172: 2165.980089 | F172: 4589.019911 | H172: 0 | J172: 242.3002513 | L172: 222.18 | N172: =IF(B172="","",VLOOKUP(TRIM(CONCATENATE($F$20," ",$F$17," ",$F$18," ",$F$22," ",$F$21," ",$F$16," ",$F$23," ",$F$24)),Catalogo_Condicione_Financieras!B:W,22,0)) -> 0 | T172: =IF(B172="","",'Tabla_Puntual&Relacionamiento'!$B$11) -> 0.1 | U172: =IF(B172="","",IF($F$16="Pago_Bajo_Puntual",0.019,"")) ->  | V172: 7219.480251 | X172: 548516.4092 | AL172: 6755 | AM172: 7188.834734 | AN172: 0 | AP172: 0 | AS172: 191.5344828
B173: 110 | C173: 548516.4092 | D173: 2184.029923 | F173: 4570.970077 | H173: 0 | J173: 241.34722 | L173: 222.18 | N173: =IF(B173="","",VLOOKUP(TRIM(CONCATENATE($F$20," ",$F$17," ",$F$18," ",$F$22," ",$F$21," ",$F$16," ",$F$23," ",$F$24)),Catalogo_Condicione_Financieras!B:W,22,0)) -> 0 | R173: =IF(OR(X172=0,X172=""),"",IF($F$21="Apoyo Infonavit",IF(D173>=C173,0,MIN(IF($F$30="",0,Caratula!$F$30),3439.46*25)*10%),0)) -> 0 | T173: =IF(B173="","",'Tabla_Puntual&Relacionamiento'!$B$11) -> 0.1 | V173: 7218.52722 | X173: 546332.3793 | AL173: 6755 | AM173: 7187.881703 | AN173: 0 | AP173: 0 | AS173: 191.5344828
B174: 111 | C174: 546332.3793 | D174: 2202.230173 | F174: 4552.769827 | H174: 0 | J174: 240.3862469 | L174: 222.18 | N174: =IF(B174="","",VLOOKUP(TRIM(CONCATENATE($F$20," ",$F$17," ",$F$18," ",$F$22," ",$F$21," ",$F$16," ",$F$23," ",$F$24)),Catalogo_Condicione_Financieras!B:W,22,0)) -> 0 | T174: =IF(B174="","",'Tabla_Puntual&Relacionamiento'!$B$11) -> 0.1 | V174: 7217.566247 | X174: 544130.1491 | AL174: 6755 | AM174: 7186.92073 | AN174: 0 | AP174: 0 | AS174: 191.5344828
B175: 112 | C175: 544130.1491 | D175: 2220.582091 | F175: 4534.417909 | H175: 0 | J175: 239.4172656 | L175: 222.18 | N175: =IF(B175="","",VLOOKUP(TRIM(CONCATENATE($F$20," ",$F$17," ",$F$18," ",$F$22," ",$F$21," ",$F$16," ",$F$23," ",$F$24)),Catalogo_Condicione_Financieras!B:W,22,0)) -> 0 | R175: =IF(OR(X174=0,X174=""),"",IF($F$21="Apoyo Infonavit",IF(D175>=C175,0,MIN(IF($F$30="",0,Caratula!$F$30),3439.46*25)*10%),0)) -> 0 | T175: =IF(B175="","",'Tabla_Puntual&Relacionamiento'!$B$11) -> 0.1 | V175: 7216.597266 | X175: 541909.567 | AL175: 6755 | AM175: 7185.951748 | AN175: 0 | AP175: 0 | AS175: 191.5344828
B176: 113 | C176: 541909.567 | D176: 2239.086942 | F176: 4515.913058 | H176: 0 | J176: 238.4402095 | L176: 222.18 | N176: =IF(B176="","",VLOOKUP(TRIM(CONCATENATE($F$20," ",$F$17," ",$F$18," ",$F$22," ",$F$21," ",$F$16," ",$F$23," ",$F$24)),Catalogo_Condicione_Financieras!B:W,22,0)) -> 0 | T176: =IF(B176="","",'Tabla_Puntual&Relacionamiento'!$B$11) -> 0.1 | V176: 7215.620209 | X176: 539670.4801 | AL176: 6755 | AM176: 7184.974692 | AN176: 0 | AP176: 0 | AS176: 191.5344828
B177: 114 | C177: 539670.4801 | D177: 2257.746 | F177: 4497.254 | H177: 0 | J177: 237.4550112 | L177: 222.18 | N177: =IF(B177="","",VLOOKUP(TRIM(CONCATENATE($F$20," ",$F$17," ",$F$18," ",$F$22," ",$F$21," ",$F$16," ",$F$23," ",$F$24)),Catalogo_Condicione_Financieras!B:W,22,0)) -> 0 | R177: =IF(OR(X176=0,X176=""),"",IF($F$21="Apoyo Infonavit",IF(D177>=C177,0,MIN(IF($F$30="",0,Caratula!$F$30),3439.46*25)*10%),0)) -> 0 | T177: =IF(B177="","",'Tabla_Puntual&Relacionamiento'!$B$11) -> 0.1 | V177: 7214.635011 | X177: 537412.7341 | AL177: 6755 | AM177: 7183.989494 | AN177: 0 | AP177: 0 | AS177: 191.5344828
B178: 115 | C178: 537412.7341 | D178: 2276.56055 | F178: 4478.43945 | H178: 0 | J178: 236.461603 | L178: 222.18 | N178: =IF(B178="","",VLOOKUP(TRIM(CONCATENATE($F$20," ",$F$17," ",$F$18," ",$F$22," ",$F$21," ",$F$16," ",$F$23," ",$F$24)),Catalogo_Condicione_Financieras!B:W,22,0)) -> 0 | T178: =IF(B178="","",'Tabla_Puntual&Relacionamiento'!$B$11) -> 0.1 | V178: 7213.641603 | X178: 535136.1735 | AL178: 6755 | AM178: 7182.996086 | AN178: 0 | AP178: 0 | AS178: 191.5344828
B179: 116 | C179: 535136.1735 | D179: 2295.531887 | F179: 4459.468113 | H179: 0 | J179: 235.4599163 | L179: 222.18 | N179: =IF(B179="","",VLOOKUP(TRIM(CONCATENATE($F$20," ",$F$17," ",$F$18," ",$F$22," ",$F$21," ",$F$16," ",$F$23," ",$F$24)),Catalogo_Condicione_Financieras!B:W,22,0)) -> 0 | R179: =IF(OR(X178=0,X178=""),"",IF($F$21="Apoyo Infonavit",IF(D179>=C179,0,MIN(IF($F$30="",0,Caratula!$F$30),3439.46*25)*10%),0)) -> 0 | T179: =IF(B179="","",'Tabla_Puntual&Relacionamiento'!$B$11) -> 0.1 | V179: 7212.639916 | X179: 532840.6416 | AL179: 6755 | AM179: 7181.994399 | AN179: 0 | AP179: 0 | AS179: 191.5344828
B180: 117 | C180: 532840.6416 | D180: 2314.66132 | F180: 4440.33868 | H180: 0 | J180: 234.4498823 | L180: 222.18 | N180: =IF(B180="","",VLOOKUP(TRIM(CONCATENATE($F$20," ",$F$17," ",$F$18," ",$F$22," ",$F$21," ",$F$16," ",$F$23," ",$F$24)),Catalogo_Condicione_Financieras!B:W,22,0)) -> 0 | T180: =IF(B180="","",'Tabla_Puntual&Relacionamiento'!$B$11) -> 0.1 | V180: 7211.629882 | X180: 530525.9803 | AL180: 6755 | AM180: 7180.984365 | AN180: 0 | AP180: 0 | AS180: 191.5344828
B181: 118 | C181: 530525.9803 | D181: 2333.950164 | F181: 4421.049836 | H181: 0 | J181: 233.4314313 | L181: 222.18 | N181: =IF(B181="","",VLOOKUP(TRIM(CONCATENATE($F$20," ",$F$17," ",$F$18," ",$F$22," ",$F$21," ",$F$16," ",$F$23," ",$F$24)),Catalogo_Condicione_Financieras!B:W,22,0)) -> 0 | R181: =IF(OR(X180=0,X180=""),"",IF($F$21="Apoyo Infonavit",IF(D181>=C181,0,MIN(IF($F$30="",0,Caratula!$F$30),3439.46*25)*10%),0)) -> 0 | T181: =IF(B181="","",'Tabla_Puntual&Relacionamiento'!$B$11) -> 0.1 | V181: 7210.611431 | X181: 528192.0301 | AL181: 6755 | AM181: 7179.965914 | AN181: 0 | AP181: 0 | AS181: 191.5344828
B182: 119 | C182: 528192.0301 | D182: 2353.399749 | F182: 4401.600251 | H182: 0 | J182: 232.4044933 | L182: 222.18 | N182: =IF(B182="","",VLOOKUP(TRIM(CONCATENATE($F$20," ",$F$17," ",$F$18," ",$F$22," ",$F$21," ",$F$16," ",$F$23," ",$F$24)),Catalogo_Condicione_Financieras!B:W,22,0)) -> 0 | T182: =IF(B182="","",'Tabla_Puntual&Relacionamiento'!$B$11) -> 0.1 | V182: 7209.584493 | X182: 525838.6304 | AL182: 6755 | AM182: 7178.938976 | AN182: 0 | AP182: 0 | AS182: 191.5344828
B183: 120 | C183: 525838.6304 | D183: 2373.011413 | F183: 4381.988587 | H183: 0 | J183: 231.3689974 | L183: 222.18 | N183: =IF(B183="","",VLOOKUP(TRIM(CONCATENATE($F$20," ",$F$17," ",$F$18," ",$F$22," ",$F$21," ",$F$16," ",$F$23," ",$F$24)),Catalogo_Condicione_Financieras!B:W,22,0)) -> 0 | R183: =IF(OR(X182=0,X182=""),"",IF($F$21="Apoyo Infonavit",IF(D183>=C183,0,MIN(IF($F$30="",0,Caratula!$F$30),3439.46*25)*10%),0)) -> 0 | T183: =IF(B183="","",'Tabla_Puntual&Relacionamiento'!$B$11) -> 0.1 | V183: 7208.548997 | X183: 523465.619 | AL183: 6755 | AM183: 7177.90348 | AN183: 0 | AP183: 0 | AS183: 191.5344828
B184: 121 | C184: 523465.619 | D184: 2392.786509 | F184: 4362.213491 | H184: 0 | J184: 230.3248723 | L184: 222.18 | N184: =IF(B184="","",VLOOKUP(TRIM(CONCATENATE($F$20," ",$F$17," ",$F$18," ",$F$22," ",$F$21," ",$F$16," ",$F$23," ",$F$24)),Catalogo_Condicione_Financieras!B:W,22,0)) -> 0 | T184: =IF(B184="","",'Tabla_Puntual&Relacionamiento'!$B$12) -> 0.1 | U184: =IF(B184="","",IF($F$16="Pago_Bajo_Puntual",0.019,"")) ->  | V184: 7207.504872 | X184: 521072.8325 | AL184: 6755 | AM184: 7176.859355 | AN184: 0 | AP184: 0 | AS184: 191.5344828
B185: 122 | C185: 521072.8325 | D185: 2412.726396 | F185: 4342.273604 | H185: 0 | J185: 229.2720463 | L185: 222.18 | N185: =IF(B185="","",VLOOKUP(TRIM(CONCATENATE($F$20," ",$F$17," ",$F$18," ",$F$22," ",$F$21," ",$F$16," ",$F$23," ",$F$24)),Catalogo_Condicione_Financieras!B:W,22,0)) -> 0 | R185: =IF(OR(X184=0,X184=""),"",IF($F$21="Apoyo Infonavit",IF(D185>=C185,0,MIN(IF($F$30="",0,Caratula!$F$30),3439.46*25)*10%),0)) -> 0 | T185: =IF(B185="","",'Tabla_Puntual&Relacionamiento'!$B$12) -> 0.1 | V185: 7206.452046 | X185: 518660.1061 | AL185: 6755 | AM185: 7175.806529 | AN185: 0 | AP185: 0 | AS185: 191.5344828
B186: 123 | C186: 518660.1061 | D186: 2432.832449 | F186: 4322.167551 | H186: 0 | J186: 228.2104467 | L186: 222.18 | N186: =IF(B186="","",VLOOKUP(TRIM(CONCATENATE($F$20," ",$F$17," ",$F$18," ",$F$22," ",$F$21," ",$F$16," ",$F$23," ",$F$24)),Catalogo_Condicione_Financieras!B:W,22,0)) -> 0 | T186: =IF(B186="","",'Tabla_Puntual&Relacionamiento'!$B$12) -> 0.1 | V186: 7205.390447 | X186: 516227.2736 | AL186: 6755 | AM186: 7174.744929 | AN186: 0 | AP186: 0 | AS186: 191.5344828
B187: 124 | C187: 516227.2736 | D187: 2453.106053 | F187: 4301.893947 | H187: 0 | J187: 227.1400004 | L187: 222.18 | N187: =IF(B187="","",VLOOKUP(TRIM(CONCATENATE($F$20," ",$F$17," ",$F$18," ",$F$22," ",$F$21," ",$F$16," ",$F$23," ",$F$24)),Catalogo_Condicione_Financieras!B:W,22,0)) -> 0 | R187: =IF(OR(X186=0,X186=""),"",IF($F$21="Apoyo Infonavit",IF(D187>=C187,0,MIN(IF($F$30="",0,Caratula!$F$30),3439.46*25)*10%),0)) -> 0 | T187: =IF(B187="","",'Tabla_Puntual&Relacionamiento'!$B$12) -> 0.1 | V187: 7204.32 | X187: 513774.1676 | AL187: 6755 | AM187: 7173.674483 | AN187: 0 | AP187: 0 | AS187: 191.5344828
B188: 125 | C188: 513774.1676 | D188: 2473.548604 | F188: 4281.451396 | H188: 0 | J188: 226.0606337 | L188: 222.18 | N188: =IF(B188="","",VLOOKUP(TRIM(CONCATENATE($F$20," ",$F$17," ",$F$18," ",$F$22," ",$F$21," ",$F$16," ",$F$23," ",$F$24)),Catalogo_Condicione_Financieras!B:W,22,0)) -> 0 | T188: =IF(B188="","",'Tabla_Puntual&Relacionamiento'!$B$12) -> 0.1 | V188: 7203.240634 | X188: 511300.619 | AL188: 6755 | AM188: 7172.595116 | AN188: 0 | AP188: 0 | AS188: 191.5344828
B189: 126 | C189: 511300.619 | D189: 2494.161509 | F189: 4260.838491 | H189: 0 | J189: 224.9722723 | L189: 222.18 | N189: =IF(B189="","",VLOOKUP(TRIM(CONCATENATE($F$20," ",$F$17," ",$F$18," ",$F$22," ",$F$21," ",$F$16," ",$F$23," ",$F$24)),Catalogo_Condicione_Financieras!B:W,22,0)) -> 0 | R189: =IF(OR(X188=0,X188=""),"",IF($F$21="Apoyo Infonavit",IF(D189>=C189,0,MIN(IF($F$30="",0,Caratula!$F$30),3439.46*25)*10%),0)) -> 0 | T189: =IF(B189="","",'Tabla_Puntual&Relacionamiento'!$B$12) -> 0.1 | V189: 7202.152272 | X189: 508806.4575 | AL189: 6755 | AM189: 7171.506755 | AN189: 0 | AP189: 0 | AS189: 191.5344828
B190: 127 | C190: 508806.4575 | D190: 2514.946188 | F190: 4240.053812 | H190: 0 | J190: 223.8748413 | L190: 222.18 | N190: =IF(B190="","",VLOOKUP(TRIM(CONCATENATE($F$20," ",$F$17," ",$F$18," ",$F$22," ",$F$21," ",$F$16," ",$F$23," ",$F$24)),Catalogo_Condicione_Financieras!B:W,22,0)) -> 0 | T190: =IF(B190="","",'Tabla_Puntual&Relacionamiento'!$B$12) -> 0.1 | V190: 7201.054841 | X190: 506291.5113 | AL190: 6755 | AM190: 7170.409324 | AN190: 0 | AP190: 0 | AS190: 191.5344828
B191: 128 | C191: 506291.5113 | D191: 2535.904073 | F191: 4219.095927 | H191: 0 | J191: 222.768265 | L191: 222.18 | N191: =IF(B191="","",VLOOKUP(TRIM(CONCATENATE($F$20," ",$F$17," ",$F$18," ",$F$22," ",$F$21," ",$F$16," ",$F$23," ",$F$24)),Catalogo_Condicione_Financieras!B:W,22,0)) -> 0 | R191: =IF(OR(X190=0,X190=""),"",IF($F$21="Apoyo Infonavit",IF(D191>=C191,0,MIN(IF($F$30="",0,Caratula!$F$30),3439.46*25)*10%),0)) -> 0 | T191: =IF(B191="","",'Tabla_Puntual&Relacionamiento'!$B$12) -> 0.1 | V191: 7199.948265 | X191: 503755.6072 | AL191: 6755 | AM191: 7169.302748 | AN191: 0 | AP191: 0 | AS191: 191.5344828
B192: 129 | C192: 503755.6072 | D192: 2557.036607 | F192: =IF(B192="","",IF(X191*(T192/12)<0,"",X191*(T192/12))) -> 4197.963393 | H192: =IFERROR(IF($F$20="Liquidez",F192*0.16, IF(AND($F$20="Pago_Hipoteca+Liquidez",$F$36="Liquidez"),F192*0.16,0)),0) -> 0 | J192: 221.6524672 | L192: 222.18 | N192: =IF(B192="","",VLOOKUP(TRIM(CONCATENATE($F$20," ",$F$17," ",$F$18," ",$F$22," ",$F$21," ",$F$16," ",$F$23," ",$F$24)),Catalogo_Condicione_Financieras!B:W,22,0)) -> 0 | T192: =IF(B192="","",'Tabla_Puntual&Relacionamiento'!$B$12) -> 0.1 | V192: =IF(B192="","",D192+F192+H192+J192+L192+N192) -> 7198.832467 | X192: =IFERROR(IF(C192="","",IF((C192-D192-P192+AN192+AP192-R192)<1,0,C192-D192-P192+AN192+AP192-R192)),0) -> 501198.5706 | AL192: 6755 | AM192: 7168.18695 | AN192: =IF(B192="","",IF(OR($N$18="C. Contratación Crédito",P192=""),0,IF(AND(P192>0,$S$18>0),P192*$S$18,0))) -> 0 | AP192: 0 | AS192: 191.5344828
B193: =IF(OR(B192="",X192<=0),"",IF(B192+1<=F$23*12,B192+1,"")) -> 130 | C193: =IF(B193="","",IF(IF(C192="","",C192-D192-R192)<0.01,AQ192,IF(C192="","",X192))) -> 501198.5706 | D193: 2578.345245 | F193: 4176.654755 | H193: 0 | J193: =IF(B193="","",C193*$AQ$35/1000) -> 220.5273711 | L193: 222.18 | N193: =IF(B193="","",VLOOKUP(TRIM(CONCATENATE($F$20," ",$F$17," ",$F$18," ",$F$22," ",$F$21," ",$F$16," ",$F$23," ",$F$24)),Catalogo_Condicione_Financieras!B:W,22,0)) -> 0 | R193: =IF(OR(X192=0,X192=""),"",IF($F$21="Apoyo Infonavit",IF(D193>=C193,0,MIN(IF($F$30="",0,Caratula!$F$30),3439.46*25)*10%),0)) -> 0 | T193: =IF(B193="","",'Tabla_Puntual&Relacionamiento'!$B$12) -> 0.1 | V193: 7197.707371 | X193: 498620.2253 | AL193: =IF(B193="","", IF(X192<AL192,X192+F193, IF($F$16="Pago_Fijo_Puntual",$X$63*$AQ$40/1000, IF($F$16="Pago_Bajo_Puntual",AL192+(AL192*U193))))) -> 6755 | AM193: 7167.061854 | AN193: 0 | AP193: 0 | AS193: =IF(B193="","",IF(AND($F$20="Pago_Hipoteca+Liquidez",$F$36="Liquidez"),0, IF((($F$28*0.7)*$AQ$38/1.16)>C193*$AQ$38/1.16,($F$28*0.7)*($AQ$38/1.16),($AQ$38/1.16)*C193)/1000)) -> 191.5344828
B194: 131 | C194: 498620.2253 | D194: =IF(B194="","",AL194-F194) -> 2599.831455 | F194: 4155.168545 | H194: 0 | J194: 219.3928992 | L194: =IF(B194="","",IF(AND($F$20="Pago_Hipoteca+Liquidez",$F$36="Liquidez"),0, IF((($F$28*0.7)*$AQ$38)>C194*$AQ$38,($F$28*0.7)*($AQ$38)/1000,($AQ$38*C194)/1000))) -> 222.18 | N194: =IF(B194="","",VLOOKUP(TRIM(CONCATENATE($F$20," ",$F$17," ",$F$18," ",$F$22," ",$F$21," ",$F$16," ",$F$23," ",$F$24)),Catalogo_Condicione_Financieras!B:W,22,0)) -> 0 | T194: =IF(B194="","",'Tabla_Puntual&Relacionamiento'!$B$12) -> 0.1 | V194: 7196.572899 | X194: 496020.3939 | AL194: 6755 | AM194: 7165.927382 | AN194: 0 | AP194: 0 | AS194: 191.5344828
B195: 132 | C195: 496020.3939 | D195: 2621.496718 | F195: 4133.503282 | H195: 0 | J195: 218.2489733 | L195: 222.18 | N195: =IF(B195="","",VLOOKUP(TRIM(CONCATENATE($F$20," ",$F$17," ",$F$18," ",$F$22," ",$F$21," ",$F$16," ",$F$23," ",$F$24)),Catalogo_Condicione_Financieras!B:W,22,0)) -> 0 | R195: =IF(OR(X194=0,X194=""),"",IF($F$21="Apoyo Infonavit",IF(D195>=C195,0,MIN(IF($F$30="",0,Caratula!$F$30),3439.46*25)*10%),0)) -> 0 | T195: =IF(B195="","",'Tabla_Puntual&Relacionamiento'!$B$12) -> 0.1 | V195: 7195.428973 | X195: 493398.8972 | AL195: 6755 | AM195: =IF(C195="",0,AL195+J195+AS195+N195+R195) -> 7164.783456 | AN195: 0 | AP195: =IF(B195="","",IF(AN195>0,AN195*0.16,0)) -> 0 | AS195: 191.5344828
B196: 133 | C196: 493398.8972 | D196: 2643.342524 | F196: 4111.657476 | H196: 0 | J196: 217.0955148 | L196: 222.18 | N196: =IF(B196="","",VLOOKUP(TRIM(CONCATENATE($F$20," ",$F$17," ",$F$18," ",$F$22," ",$F$21," ",$F$16," ",$F$23," ",$F$24)),Catalogo_Condicione_Financieras!B:W,22,0)) -> 0 | T196: =IF(B196="","",'Tabla_Puntual&Relacionamiento'!$B$13) -> 0.1 | U196: =IF(B196="","",IF($F$16="Pago_Bajo_Puntual",0.019,"")) ->  | V196: 7194.275515 | X196: 490755.5546 | AL196: 6755 | AM196: 7163.629998 | AN196: 0 | AP196: 0 | AS196: 191.5344828
B197: 134 | C197: 490755.5546 | D197: 2665.370378 | F197: 4089.629622 | H197: 0 | J197: 215.932444 | L197: 222.18 | N197: =IF(B197="","",VLOOKUP(TRIM(CONCATENATE($F$20," ",$F$17," ",$F$18," ",$F$22," ",$F$21," ",$F$16," ",$F$23," ",$F$24)),Catalogo_Condicione_Financieras!B:W,22,0)) -> 0 | R197: =IF(OR(X196=0,X196=""),"",IF($F$21="Apoyo Infonavit",IF(D197>=C197,0,MIN(IF($F$30="",0,Caratula!$F$30),3439.46*25)*10%),0)) -> 0 | T197: =IF(B197="","",'Tabla_Puntual&Relacionamiento'!$B$13) -> 0.1 | V197: 7193.112444 | X197: 488090.1843 | AL197: 6755 | AM197: 7162.466927 | AN197: 0 | AP197: 0 | AS197: 191.5344828
B198: 135 | C198: 488090.1843 | D198: 2687.581798 | F198: 4067.418202 | H198: 0 | J198: 214.7596811 | L198: 222.18 | N198: =IF(B198="","",VLOOKUP(TRIM(CONCATENATE($F$20," ",$F$17," ",$F$18," ",$F$22," ",$F$21," ",$F$16," ",$F$23," ",$F$24)),Catalogo_Condicione_Financieras!B:W,22,0)) -> 0 | T198: =IF(B198="","",'Tabla_Puntual&Relacionamiento'!$B$13) -> 0.1 | V198: 7191.939681 | X198: 485402.6025 | AL198: 6755 | AM198: 7161.294164 | AN198: 0 | AP198: 0 | AS198: 191.5344828
B199: 136 | C199: 485402.6025 | D199: 2709.978313 | F199: 4045.021687 | H199: 0 | J199: 213.5771451 | L199: 222.18 | N199: =IF(B199="","",VLOOKUP(TRIM(CONCATENATE($F$20," ",$F$17," ",$F$18," ",$F$22," ",$F$21," ",$F$16," ",$F$23," ",$F$24)),Catalogo_Condicione_Financieras!B:W,22,0)) -> 0 | R199: =IF(OR(X198=0,X198=""),"",IF($F$21="Apoyo Infonavit",IF(D199>=C199,0,MIN(IF($F$30="",0,Caratula!$F$30),3439.46*25)*10%),0)) -> 0 | T199: =IF(B199="","",'Tabla_Puntual&Relacionamiento'!$B$13) -> 0.1 | V199: 7190.757145 | X199: 482692.6242 | AL199: 6755 | AM199: 7160.111628 | AN199: 0 | AP199: 0 | AS199: 191.5344828
B200: 137 | C200: 482692.6242 | D200: 2732.561465 | F200: 4022.438535 | H200: 0 | J200: 212.3847546 | L200: 222.18 | N200: =IF(B200="","",VLOOKUP(TRIM(CONCATENATE($F$20," ",$F$17," ",$F$18," ",$F$22," ",$F$21," ",$F$16," ",$F$23," ",$F$24)),Catalogo_Condicione_Financieras!B:W,22,0)) -> 0 | T200: =IF(B200="","",'Tabla_Puntual&Relacionamiento'!$B$13) -> 0.1 | V200: 7189.564755 | X200: 479960.0627 | AL200: 6755 | AM200: 7158.919237 | AN200: 0 | AP200: 0 | AS200: 191.5344828
B201: 138 | C201: 479960.0627 | D201: 2755.332811 | F201: 3999.667189 | H201: 0 | J201: 211.1824276 | L201: 222.18 | N201: =IF(B201="","",VLOOKUP(TRIM(CONCATENATE($F$20," ",$F$17," ",$F$18," ",$F$22," ",$F$21," ",$F$16," ",$F$23," ",$F$24)),Catalogo_Condicione_Financieras!B:W,22,0)) -> 0 | R201: =IF(OR(X200=0,X200=""),"",IF($F$21="Apoyo Infonavit",IF(D201>=C201,0,MIN(IF($F$30="",0,Caratula!$F$30),3439.46*25)*10%),0)) -> 0 | T201: =IF(B201="","",'Tabla_Puntual&Relacionamiento'!$B$13) -> 0.1 | V201: 7188.362428 | X201: 477204.7299 | AL201: 6755 | AM201: 7157.71691 | AN201: 0 | AP201: 0 | AS201: 191.5344828
B202: 139 | C202: 477204.7299 | D202: 2778.293918 | F202: 3976.706082 | H202: 0 | J202: 209.9700811 | L202: 222.18 | N202: =IF(B202="","",VLOOKUP(TRIM(CONCATENATE($F$20," ",$F$17," ",$F$18," ",$F$22," ",$F$21," ",$F$16," ",$F$23," ",$F$24)),Catalogo_Condicione_Financieras!B:W,22,0)) -> 0 | T202: =IF(B202="","",'Tabla_Puntual&Relacionamiento'!$B$13) -> 0.1 | V202: 7187.150081 | X202: 474426.436 | AL202: 6755 | AM202: 7156.504564 | AN202: 0 | AP202: 0 | AS202: 191.5344828
B203: 140 | C203: 474426.436 | D203: 2801.446367 | F203: 3953.553633 | H203: 0 | J203: 208.7476318 | L203: 222.18 | N203: =IF(B203="","",VLOOKUP(TRIM(CONCATENATE($F$20," ",$F$17," ",$F$18," ",$F$22," ",$F$21," ",$F$16," ",$F$23," ",$F$24)),Catalogo_Condicione_Financieras!B:W,22,0)) -> 0 | R203: =IF(OR(X202=0,X202=""),"",IF($F$21="Apoyo Infonavit",IF(D203>=C203,0,MIN(IF($F$30="",0,Caratula!$F$30),3439.46*25)*10%),0)) -> 0 | T203: =IF(B203="","",'Tabla_Puntual&Relacionamiento'!$B$13) -> 0.1 | V203: 7185.927632 | X203: 471624.9896 | AL203: 6755 | AM203: 7155.282115 | AN203: 0 | AP203: 0 | AS203: 191.5344828
B204: 141 | C204: 471624.9896 | D204: 2824.791753 | F204: 3930.208247 | H204: 0 | J204: 207.5149954 | L204: 222.18 | N204: =IF(B204="","",VLOOKUP(TRIM(CONCATENATE($F$20," ",$F$17," ",$F$18," ",$F$22," ",$F$21," ",$F$16," ",$F$23," ",$F$24)),Catalogo_Condicione_Financieras!B:W,22,0)) -> 0 | T204: =IF(B204="","",'Tabla_Puntual&Relacionamiento'!$B$13) -> 0.1 | V204: 7184.694995 | X204: 468800.1978 | AL204: 6755 | AM204: 7154.049478 | AN204: 0 | AP204: 0 | AS204: 191.5344828
B205: 142 | C205: 468800.1978 | D205: 2848.331685 | F205: 3906.668315 | H205: 0 | J205: 206.2720871 | L205: 222.18 | N205: =IF(B205="","",VLOOKUP(TRIM(CONCATENATE($F$20," ",$F$17," ",$F$18," ",$F$22," ",$F$21," ",$F$16," ",$F$23," ",$F$24)),Catalogo_Condicione_Financieras!B:W,22,0)) -> 0 | R205: =IF(OR(X204=0,X204=""),"",IF($F$21="Apoyo Infonavit",IF(D205>=C205,0,MIN(IF($F$30="",0,Caratula!$F$30),3439.46*25)*10%),0)) -> 0 | T205: =IF(B205="","",'Tabla_Puntual&Relacionamiento'!$B$13) -> 0.1 | V205: 7183.452087 | X205: 465951.8662 | AL205: 6755 | AM205: 7152.80657 | AN205: 0 | AP205: 0 | AS205: 191.5344828
B206: 143 | C206: 465951.8662 | D206: 2872.067782 | F206: 3882.932218 | H206: 0 | J206: 205.0188211 | L206: 222.18 | N206: =IF(B206="","",VLOOKUP(TRIM(CONCATENATE($F$20," ",$F$17," ",$F$18," ",$F$22," ",$F$21," ",$F$16," ",$F$23," ",$F$24)),Catalogo_Condicione_Financieras!B:W,22,0)) -> 0 | T206: =IF(B206="","",'Tabla_Puntual&Relacionamiento'!$B$13) -> 0.1 | V206: 7182.198821 | X206: 463079.7984 | AL206: 6755 | AM206: 7151.553304 | AN206: 0 | AP206: 0 | AS206: 191.5344828
B207: 144 | C207: 463079.7984 | D207: 2896.00168 | F207: 3858.99832 | H207: 0 | J207: 203.7551113 | L207: 222.18 | N207: =IF(B207="","",VLOOKUP(TRIM(CONCATENATE($F$20," ",$F$17," ",$F$18," ",$F$22," ",$F$21," ",$F$16," ",$F$23," ",$F$24)),Catalogo_Condicione_Financieras!B:W,22,0)) -> 0 | R207: =IF(OR(X206=0,X206=""),"",IF($F$21="Apoyo Infonavit",IF(D207>=C207,0,MIN(IF($F$30="",0,Caratula!$F$30),3439.46*25)*10%),0)) -> 0 | T207: =IF(B207="","",'Tabla_Puntual&Relacionamiento'!$B$13) -> 0.1 | V207: 7180.935111 | X207: 460183.7967 | AL207: 6755 | AM207: 7150.289594 | AN207: 0 | AP207: 0 | AS207: 191.5344828
B208: 145 | C208: 460183.7967 | D208: 2920.135028 | F208: 3834.864972 | H208: 0 | J208: 202.4808705 | L208: 222.18 | N208: =IF(B208="","",VLOOKUP(TRIM(CONCATENATE($F$20," ",$F$17," ",$F$18," ",$F$22," ",$F$21," ",$F$16," ",$F$23," ",$F$24)),Catalogo_Condicione_Financieras!B:W,22,0)) -> 0 | T208: =IF(B208="","",'Tabla_Puntual&Relacionamiento'!$B$14) -> 0.1 | U208: =IF(B208="","",IF($F$16="Pago_Bajo_Puntual",0.019,"")) ->  | V208: 7179.660871 | X208: 457263.6617 | AL208: 6755 | AM208: 7149.015353 | AN208: 0 | AP208: 0 | AS208: 191.5344828
B209: 146 | C209: 457263.6617 | D209: 2944.469486 | F209: 3810.530514 | H209: 0 | J209: 201.1960111 | L209: 222.18 | N209: =IF(B209="","",VLOOKUP(TRIM(CONCATENATE($F$20," ",$F$17," ",$F$18," ",$F$22," ",$F$21," ",$F$16," ",$F$23," ",$F$24)),Catalogo_Condicione_Financieras!B:W,22,0)) -> 0 | R209: =IF(OR(X208=0,X208=""),"",IF($F$21="Apoyo Infonavit",IF(D209>=C209,0,MIN(IF($F$30="",0,Caratula!$F$30),3439.46*25)*10%),0)) -> 0 | T209: =IF(B209="","",'Tabla_Puntual&Relacionamiento'!$B$14) -> 0.1 | V209: 7178.376011 | X209: 454319.1922 | AL209: 6755 | AM209: 7147.730494 | AN209: 0 | AP209: 0 | AS209: 191.5344828
B210: 147 | C210: 454319.1922 | D210: 2969.006732 | F210: 3785.993268 | H210: 0 | J210: 199.9004446 | L210: 222.18 | N210: =IF(B210="","",VLOOKUP(TRIM(CONCATENATE($F$20," ",$F$17," ",$F$18," ",$F$22," ",$F$21," ",$F$16," ",$F$23," ",$F$24)),Catalogo_Condicione_Financieras!B:W,22,0)) -> 0 | T210: =IF(B210="","",'Tabla_Puntual&Relacionamiento'!$B$14) -> 0.1 | V210: 7177.080445 | X210: 451350.1854 | AL210: 6755 | AM210: 7146.434927 | AN210: 0 | AP210: 0 | AS210: 191.5344828
B211: 148 | C211: 451350.1854 | D211: 2993.748455 | F211: 3761.251545 | H211: 0 | J211: 198.5940816 | L211: 222.18 | N211: =IF(B211="","",VLOOKUP(TRIM(CONCATENATE($F$20," ",$F$17," ",$F$18," ",$F$22," ",$F$21," ",$F$16," ",$F$23," ",$F$24)),Catalogo_Condicione_Financieras!B:W,22,0)) -> 0 | R211: =IF(OR(X210=0,X210=""),"",IF($F$21="Apoyo Infonavit",IF(D211>=C211,0,MIN(IF($F$30="",0,Caratula!$F$30),3439.46*25)*10%),0)) -> 0 | T211: =IF(B211="","",'Tabla_Puntual&Relacionamiento'!$B$14) -> 0.1 | V211: 7175.774082 | X211: 448356.437 | AL211: 6755 | AM211: 7145.128564 | AN211: 0 | AP211: 0 | AS211: 191.5344828
B212: 149 | C212: 448356.437 | D212: 3018.696358 | F212: 3736.303642 | H212: 0 | J212: 197.2768323 | L212: 222.18 | N212: =IF(B212="","",VLOOKUP(TRIM(CONCATENATE($F$20," ",$F$17," ",$F$18," ",$F$22," ",$F$21," ",$F$16," ",$F$23," ",$F$24)),Catalogo_Condicione_Financieras!B:W,22,0)) -> 0 | T212: =IF(B212="","",'Tabla_Puntual&Relacionamiento'!$B$14) -> 0.1 | V212: 7174.456832 | X212: 445337.7406 | AL212: 6755 | AM212: 7143.811315 | AN212: 0 | AP212: 0 | AS212: 191.5344828
B213: 150 | C213: 445337.7406 | D213: 3043.852161 | F213: 3711.147839 | H213: 0 | J213: 195.9486059 | L213: 222.18 | N213: =IF(B213="","",VLOOKUP(TRIM(CONCATENATE($F$20," ",$F$17," ",$F$18," ",$F$22," ",$F$21," ",$F$16," ",$F$23," ",$F$24)),Catalogo_Condicione_Financieras!B:W,22,0)) -> 0 | R213: =IF(OR(X212=0,X212=""),"",IF($F$21="Apoyo Infonavit",IF(D213>=C213,0,MIN(IF($F$30="",0,Caratula!$F$30),3439.46*25)*10%),0)) -> 0 | T213: =IF(B213="","",'Tabla_Puntual&Relacionamiento'!$B$14) -> 0.1 | V213: 7173.128606 | X213: 442293.8885 | AL213: 6755 | AM213: 7142.483089 | AN213: 0 | AP213: 0 | AS213: 191.5344828
B214: 151 | C214: 442293.8885 | D214: 3069.217596 | F214: 3685.782404 | H214: 0 | J214: 194.6093109 | L214: 222.18 | N214: =IF(B214="","",VLOOKUP(TRIM(CONCATENATE($F$20," ",$F$17," ",$F$18," ",$F$22," ",$F$21," ",$F$16," ",$F$23," ",$F$24)),Catalogo_Condicione_Financieras!B:W,22,0)) -> 0 | T214: =IF(B214="","",'Tabla_Puntual&Relacionamiento'!$B$14) -> 0.1 | V214: 7171.789311 | X214: 439224.6709 | AL214: 6755 | AM214: 7141.143794 | AN214: 0 | AP214: 0 | AS214: 191.5344828
B215: 152 | C215: 439224.6709 | D215: 3094.794409 | F215: 3660.205591 | H215: 0 | J215: 193.2588552 | L215: 222.18 | N215: =IF(B215="","",VLOOKUP(TRIM(CONCATENATE($F$20," ",$F$17," ",$F$18," ",$F$22," ",$F$21," ",$F$16," ",$F$23," ",$F$24)),Catalogo_Condicione_Financieras!B:W,22,0)) -> 0 | R215: =IF(OR(X214=0,X214=""),"",IF($F$21="Apoyo Infonavit",IF(D215>=C215,0,MIN(IF($F$30="",0,Caratula!$F$30),3439.46*25)*10%),0)) -> 0 | T215: =IF(B215="","",'Tabla_Puntual&Relacionamiento'!$B$14) -> 0.1 | V215: 7170.438855 | X215: 436129.8765 | AL215: 6755 | AM215: 7139.793338 | AN215: 0 | AP215: 0 | AS215: 191.5344828
B216: 153 | C216: 436129.8765 | D216: 3120.584363 | F216: 3634.415637 | H216: 0 | J216: 191.8971456 | L216: 222.18 | N216: =IF(B216="","",VLOOKUP(TRIM(CONCATENATE($F$20," ",$F$17," ",$F$18," ",$F$22," ",$F$21," ",$F$16," ",$F$23," ",$F$24)),Catalogo_Condicione_Financieras!B:W,22,0)) -> 0 | T216: =IF(B216="","",'Tabla_Puntual&Relacionamiento'!$B$14) -> 0.1 | V216: 7169.077146 | X216: 433009.2921 | AL216: 6755 | AM216: 7138.431628 | AN216: 0 | AP216: 0 | AS216: 191.5344828
B217: 154 | C217: 433009.2921 | D217: 3146.589232 | F217: 3608.410768 | H217: 0 | J217: 190.5240885 | L217: 222.18 | N217: =IF(B217="","",VLOOKUP(TRIM(CONCATENATE($F$20," ",$F$17," ",$F$18," ",$F$22," ",$F$21," ",$F$16," ",$F$23," ",$F$24)),Catalogo_Condicione_Financieras!B:W,22,0)) -> 0 | R217: =IF(OR(X216=0,X216=""),"",IF($F$21="Apoyo Infonavit",IF(D217>=C217,0,MIN(IF($F$30="",0,Caratula!$F$30),3439.46*25)*10%),0)) -> 0 | T217: =IF(B217="","",'Tabla_Puntual&Relacionamiento'!$B$14) -> 0.1 | V217: 7167.704089 | X217: 429862.7029 | AL217: 6755 | AM217: 7137.058571 | AN217: 0 | AP217: 0 | AS217: 191.5344828
B218: 155 | C218: 429862.7029 | D218: 3172.810809 | F218: 3582.189191 | H218: 0 | J218: 189.1395893 | L218: 222.18 | N218: =IF(B218="","",VLOOKUP(TRIM(CONCATENATE($F$20," ",$F$17," ",$F$18," ",$F$22," ",$F$21," ",$F$16," ",$F$23," ",$F$24)),Catalogo_Condicione_Financieras!B:W,22,0)) -> 0 | T218: =IF(B218="","",'Tabla_Puntual&Relacionamiento'!$B$14) -> 0.1 | V218: 7166.319589 | X218: 426689.8921 | AL218: 6755 | AM218: 7135.674072 | AN218: 0 | AP218: 0 | AS218: 191.5344828
B219: 156 | C219: 426689.8921 | D219: 3199.250899 | F219: 3555.749101 | H219: 0 | J219: 187.7435525 | L219: 222.18 | N219: =IF(B219="","",VLOOKUP(TRIM(CONCATENATE($F$20," ",$F$17," ",$F$18," ",$F$22," ",$F$21," ",$F$16," ",$F$23," ",$F$24)),Catalogo_Condicione_Financieras!B:W,22,0)) -> 0 | R219: =IF(OR(X218=0,X218=""),"",IF($F$21="Apoyo Infonavit",IF(D219>=C219,0,MIN(IF($F$30="",0,Caratula!$F$30),3439.46*25)*10%),0)) -> 0 | T219: =IF(B219="","",'Tabla_Puntual&Relacionamiento'!$B$14) -> 0.1 | V219: 7164.923553 | X219: 423490.6412 | AL219: 6755 | AM219: 7134.278035 | AN219: 0 | AP219: 0 | AS219: 191.5344828
B220: 157 | C220: 423490.6412 | D220: 3225.911324 | F220: 3529.088676 | H220: 0 | J220: 186.3358821 | L220: 222.18 | N220: =IF(B220="","",VLOOKUP(TRIM(CONCATENATE($F$20," ",$F$17," ",$F$18," ",$F$22," ",$F$21," ",$F$16," ",$F$23," ",$F$24)),Catalogo_Condicione_Financieras!B:W,22,0)) -> 0 | T220: =IF(B220="","",'Tabla_Puntual&Relacionamiento'!$B$15) -> 0.1 | U220: =IF(B220="","",IF($F$16="Pago_Bajo_Puntual",0.019,"")) ->  | V220: 7163.515882 | X220: 420264.7298 | AL220: 6755 | AM220: 7132.870365 | AN220: 0 | AP220: 0 | AS220: 191.5344828
B221: 158 | C221: 420264.7298 | D221: 3252.793918 | F221: 3502.206082 | H221: 0 | J221: 184.9164811 | L221: 222.18 | N221: =IF(B221="","",VLOOKUP(TRIM(CONCATENATE($F$20," ",$F$17," ",$F$18," ",$F$22," ",$F$21," ",$F$16," ",$F$23," ",$F$24)),Catalogo_Condicione_Financieras!B:W,22,0)) -> 0 | R221: =IF(OR(X220=0,X220=""),"",IF($F$21="Apoyo Infonavit",IF(D221>=C221,0,MIN(IF($F$30="",0,Caratula!$F$30),3439.46*25)*10%),0)) -> 0 | T221: =IF(B221="","",'Tabla_Puntual&Relacionamiento'!$B$15) -> 0.1 | V221: 7162.096481 | X221: 417011.9359 | AL221: 6755 | AM221: 7131.450964 | AN221: 0 | AP221: 0 | AS221: 191.5344828
B222: 159 | C222: 417011.9359 | D222: 3279.900534 | F222: 3475.099466 | H222: 0 | J222: 183.4852518 | L222: 222.18 | N222: =IF(B222="","",VLOOKUP(TRIM(CONCATENATE($F$20," ",$F$17," ",$F$18," ",$F$22," ",$F$21," ",$F$16," ",$F$23," ",$F$24)),Catalogo_Condicione_Financieras!B:W,22,0)) -> 0 | T222: =IF(B222="","",'Tabla_Puntual&Relacionamiento'!$B$15) -> 0.1 | V222: 7160.665252 | X222: 413732.0354 | AL222: 6755 | AM222: 7130.019735 | AN222: 0 | AP222: 0 | AS222: 191.5344828
... 148 more rows

Sheet Catalogo_Condicione_Financieras (hidden)
A1: Destino | B1: Destino Concatenado | C1: Producto | D1: Tipo de Persona | E1: Perfil | F1: Tipo de Cliente | G1: Tipo de Programa | H1: Nómina HSBC | I1: Esquema | J1: Plazo | K1: NR | L1: Factor de Pago | M1: Factor de Línea | N1: Tasa Inicial | O1: Tasa Piso | P1: Tasa Techo | Q1: Factor de Vida | R1: Factor de Daños | S1: Comisión Por PREPAGO | T1: Comisión Por Apertura | U1: LTV | V1: Gastos de Investigción | W1: Comisión Por Administración | X1: LTV <= 70 % ó >70 %
A2: =TRIM(CONCATENATE(C2," ",D2," ",E2," ",F2," ",G2," ",I2," ",X2," ",J2)) -> Adquisicion PF No_Premier GSC Apoyo Infonavit Pago_Fijo_Puntual Si 20 | B2: =CONCATENATE(A2," ",N2) -> Adquisicion PF No_Premier GSC Apoyo Infonavit Pago_Fijo_Puntual Si 20 0.103 | C2: Adquisicion | D2: PF | E2: No_Premier | F2: GSC | G2: Apoyo Infonavit | I2: Pago_Fijo_Puntual | J2: 20 | K2: 1 y 2 | L2: 10.16 | M2: 10.82 | N2: 0.103 | O2: 0.1 | P2: 0.112 | Q2: 0.44 | R2: 0.3174 | S2: 0 | T2: 0 | U2: 0.95 | V2: 0 | W2: 0 | X2: Si
A3: =TRIM(CONCATENATE(C3," ",D3," ",E3," ",F3," ",G3," ",I3," ",X3," ",J3)) -> Adquisicion PF No_Premier GSC Apoyo Infonavit Pago_Fijo_Puntual 20 | B3: Adquisicion PF No_Premier GSC Apoyo Infonavit Pago_Fijo_Puntual 20 0.106 | C3: Adquisicion | D3: PF | E3: No_Premier | F3: GSC | G3: Apoyo Infonavit | I3: Pago_Fijo_Puntual | J3: 20 | K3: 3 | L3: 10.41 | M3: 11.07 | N3: 0.106 | O3: 0.103 | P3: 0.118 | Q3: 0.44 | R3: 0.3174 | S3: 0 | T3: 0 | U3: 0.95 | V3: 0 | W3: 0
A4: Adquisicion PF No_Premier GSC Apoyo Infonavit Pago_Fijo_Puntual Si 15 | B4: Adquisicion PF No_Premier GSC Apoyo Infonavit Pago_Fijo_Puntual Si 15 0.103 | C4: Adquisicion | D4: PF | E4: No_Premier | F4: GSC | G4: Apoyo Infonavit | I4: Pago_Fijo_Puntual | J4: 15 | K4: 1 y 2 | L4: 11.18 | M4: 11.84 | N4: 0.103 | O4: 0.1 | P4: 0.112 | Q4: 0.44 | R4: 0.3174 | S4: 0 | T4: 0 | U4: 0.95 | V4: 0 | W4: 0 | X4: Si
A5: Adquisicion PF No_Premier GSC Apoyo Infonavit Pago_Fijo_Puntual 15 | B5: Adquisicion PF No_Premier GSC Apoyo Infonavit Pago_Fijo_Puntual 15 0.106 | C5: Adquisicion | D5: PF | E5: No_Premier | F5: GSC | G5: Apoyo Infonavit | I5: Pago_Fijo_Puntual | J5: 15 | K5: 3 | L5: 11.39 | M5: 12.05 | N5: 0.106 | O5: 0.103 | P5: 0.118 | Q5: 0.44 | R5: 0.3174 | S5: 0 | T5: 0 | U5: 0.95 | V5: 0 | W5: 0
A6: Adquisicion PF No_Premier GSC Apoyo Infonavit Pago_Fijo_Puntual Si 10 | B6: Adquisicion PF No_Premier GSC Apoyo Infonavit Pago_Fijo_Puntual Si 10 0.103 | C6: Adquisicion | D6: PF | E6: No_Premier | F6: GSC | G6: Apoyo Infonavit | I6: Pago_Fijo_Puntual | J6: 10 | K6: 1 y 2 | L6: 13.54 | M6: 14.2 | N6: 0.103 | O6: 0.1 | P6: 0.112 | Q6: 0.44 | R6: 0.3174 | S6: 0 | T6: 0 | U6: 0.95 | V6: 0 | W6: 0 | X6: Si
A7: Adquisicion PF No_Premier GSC Apoyo Infonavit Pago_Fijo_Puntual 10 | B7: Adquisicion PF No_Premier GSC Apoyo Infonavit Pago_Fijo_Puntual 10 0.106 | C7: Adquisicion | D7: PF | E7: No_Premier | F7: GSC | G7: Apoyo Infonavit | I7: Pago_Fijo_Puntual | J7: 10 | K7: 3 | L7: 13.71 | M7: 14.37 | N7: 0.106 | O7: 0.103 | P7: 0.118 | Q7: 0.44 | R7: 0.3174 | S7: 0 | T7: 0 | U7: 0.95 | V7: 0 | W7: 0
A8: Adquisicion PF No_Premier GSC Apoyo Infonavit Pago_Fijo_Puntual Si 5 | B8: Adquisicion PF No_Premier GSC Apoyo Infonavit Pago_Fijo_Puntual Si 5 0.103 | C8: Adquisicion | D8: PF | E8: No_Premier | F8: GSC | G8: Apoyo Infonavit | I8: Pago_Fijo_Puntual | J8: 5 | K8: 1 y 2 | L8: 21.44 | M8: 22.1 | N8: 0.103 | O8: 0.1 | P8: 0.112 | Q8: 0.44 | R8: 0.3174 | S8: 0 | T8: 0 | U8: 0.95 | V8: 0 | W8: 0 | X8: Si
A9: Adquisicion PF No_Premier GSC Apoyo Infonavit Pago_Fijo_Puntual 5 | B9: Adquisicion PF No_Premier GSC Apoyo Infonavit Pago_Fijo_Puntual 5 0.106 | C9: Adquisicion | D9: PF | E9: No_Premier | F9: GSC | G9: Apoyo Infonavit | I9: Pago_Fijo_Puntual | J9: 5 | K9: 3 | L9: 21.59 | M9: 22.25 | N9: 0.106 | O9: 0.103 | P9: 0.118 | Q9: 0.44 | R9: 0.3174 | S9: 0 | T9: 0 | U9: 0.95 | V9: 0 | W9: 0
A10: Adquisicion PF No_Premier GSC Cofinavit Pago_Fijo_Puntual Si 20 | B10: Adquisicion PF No_Premier GSC Cofinavit Pago_Fijo_Puntual Si 20 0.103 | C10: Adquisicion | D10: PF | E10: No_Premier | F10: GSC | G10: Cofinavit | I10: Pago_Fijo_Puntual | J10: 20 | K10: 1 y 2 | L10: 10.16 | M10: 10.82 | N10: 0.103 | O10: 0.1 | P10: 0.112 | Q10: 0.44 | R10: 0.3174 | S10: 0 | T10: 0 | U10: 0.95 | V10: 0 | W10: 0 | X10: Si
A11: Adquisicion PF No_Premier GSC Cofinavit Pago_Fijo_Puntual 20 | B11: Adquisicion PF No_Premier GSC Cofinavit Pago_Fijo_Puntual 20 0.106 | C11: Adquisicion | D11: PF | E11: No_Premier | F11: GSC | G11: Cofinavit | I11: Pago_Fijo_Puntual | J11: 20 | K11: 3 | L11: 10.41 | M11: 11.07 | N11: 0.106 | O11: 0.103 | P11: 0.118 | Q11: 0.44 | R11: 0.3174 | S11: 0 | T11: 0 | U11: 0.95 | V11: 0 | W11: 0
A12: Adquisicion PF No_Premier GSC Cofinavit Pago_Fijo_Puntual Si 15 | B12: Adquisicion PF No_Premier GSC Cofinavit Pago_Fijo_Puntual Si 15 0.103 | C12: Adquisicion | D12: PF | E12: No_Premier | F12: GSC | G12: Cofinavit | I12: Pago_Fijo_Puntual | J12: 15 | K12: 1 y 2 | L12: 11.18 | M12: 11.84 | N12: 0.103 | O12: 0.1 | P12: 0.112 | Q12: 0.44 | R12: 0.3174 | S12: 0 | T12: 0 | U12: 0.95 | V12: 0 | W12: 0 | X12: Si
A13: Adquisicion PF No_Premier GSC Cofinavit Pago_Fijo_Puntual 15 | B13: Adquisicion PF No_Premier GSC Cofinavit Pago_Fijo_Puntual 15 0.106 | C13: Adquisicion | D13: PF | E13: No_Premier | F13: GSC | G13: Cofinavit | I13: Pago_Fijo_Puntual | J13: 15 | K13: 3 | L13: 11.39 | M13: 12.05 | N13: 0.106 | O13: 0.103 | P13: 0.118 | Q13: 0.44 | R13: 0.3174 | S13: 0 | T13: 0 | U13: 0.95 | V13: 0 | W13: 0
A14: Adquisicion PF No_Premier GSC Cofinavit Pago_Fijo_Puntual Si 10 | B14: Adquisicion PF No_Premier GSC Cofinavit Pago_Fijo_Puntual Si 10 0.103 | C14: Adquisicion | D14: PF | E14: No_Premier | F14: GSC | G14: Cofinavit | I14: Pago_Fijo_Puntual | J14: 10 | K14: 1 y 2 | L14: 13.54 | M14: 14.2 | N14: 0.103 | O14: 0.1 | P14: 0.112 | Q14: 0.44 | R14: 0.3174 | S14: 0 | T14: 0 | U14: 0.95 | V14: 0 | W14: 0 | X14: Si
A15: Adquisicion PF No_Premier GSC Cofinavit Pago_Fijo_Puntual 10 | B15: Adquisicion PF No_Premier GSC Cofinavit Pago_Fijo_Puntual 10 0.106 | C15: Adquisicion | D15: PF | E15: No_Premier | F15: GSC | G15: Cofinavit | I15: Pago_Fijo_Puntual | J15: 10 | K15: 3 | L15: 13.71 | M15: 14.37 | N15: 0.106 | O15: 0.103 | P15: 0.118 | Q15: 0.44 | R15: 0.3174 | S15: 0 | T15: 0 | U15: 0.95 | V15: 0 | W15: 0
A16: Adquisicion PF No_Premier GSC Cofinavit Pago_Fijo_Puntual Si 5 | B16: Adquisicion PF No_Premier GSC Cofinavit Pago_Fijo_Puntual Si 5 0.103 | C16: Adquisicion | D16: PF | E16: No_Premier | F16: GSC | G16: Cofinavit | I16: Pago_Fijo_Puntual | J16: 5 | K16: 1 y 2 | L16: 21.44 | M16: 22.1 | N16: 0.103 | O16: 0.1 | P16: 0.112 | Q16: 0.44 | R16: 0.3174 | S16: 0 | T16: 0 | U16: 0.95 | V16: 0 | W16: 0 | X16: Si
A17: Adquisicion PF No_Premier GSC Cofinavit Pago_Fijo_Puntual 5 | B17: Adquisicion PF No_Premier GSC Cofinavit Pago_Fijo_Puntual 5 0.106 | C17: Adquisicion | D17: PF | E17: No_Premier | F17: GSC | G17: Cofinavit | I17: Pago_Fijo_Puntual | J17: 5 | K17: 3 | L17: 21.59 | M17: 22.25 | N17: 0.106 | O17: 0.103 | P17: 0.118 | Q17: 0.44 | R17: 0.3174 | S17: 0 | T17: 0 | U17: 0.95 | V17: 0 | W17: 0
A18: Adquisicion PF No_Premier Nómina Apoyo Infonavit Pago_Fijo_Puntual Si 25 | B18: Adquisicion PF No_Premier Nómina Apoyo Infonavit Pago_Fijo_Puntual Si 25 0.103 | C18: Adquisicion | D18: PF | E18: No_Premier | F18: Nómina | G18: Apoyo Infonavit | I18: Pago_Fijo_Puntual | J18: 25 | K18: 1 y 2 | L18: 9.65 | M18: 10.31 | N18: 0.103 | O18: 0.1 | P18: 0.112 | Q18: 0.44 | R18: 0.3174 | S18: 0.025 | T18: 0.005 | U18: 0.95 | V18: 0 | W18: 0 | X18: Si
A19: Adquisicion PF No_Premier Nómina Apoyo Infonavit Pago_Fijo_Puntual 25 | B19: Adquisicion PF No_Premier Nómina Apoyo Infonavit Pago_Fijo_Puntual 25 0.106 | C19: Adquisicion | D19: PF | E19: No_Premier | F19: Nómina | G19: Apoyo Infonavit | I19: Pago_Fijo_Puntual | J19: 25 | K19: 3 | L19: 9.93 | M19: 10.59 | N19: 0.106 | O19: 0.103 | P19: 0.118 | Q19: 0.44 | R19: 0.3174 | S19: 0.025 | T19: 0.005 | U19: 0.95 | V19: 0 | W19: 0
A20: Adquisicion PF No_Premier Nómina Apoyo Infonavit Pago_Fijo_Puntual Si 20 | B20: Adquisicion PF No_Premier Nómina Apoyo Infonavit Pago_Fijo_Puntual Si 20 0.103 | C20: Adquisicion | D20: PF | E20: No_Premier | F20: Nómina | G20: Apoyo Infonavit | I20: Pago_Fijo_Puntual | J20: 20 | K20: 1 y 2 | L20: 10.16 | M20: 10.82 | N20: 0.103 | O20: 0.1 | P20: 0.112 | Q20: 0.44 | R20: 0.3174 | S20: 0.025 | T20: 0.005 | U20: 0.95 | V20: 0 | W20: 0 | X20: Si
A21: Adquisicion PF No_Premier Nómina Apoyo Infonavit Pago_Fijo_Puntual 20 | B21: Adquisicion PF No_Premier Nómina Apoyo Infonavit Pago_Fijo_Puntual 20 0.106 | C21: Adquisicion | D21: PF | E21: No_Premier | F21: Nómina | G21: Apoyo Infonavit | I21: Pago_Fijo_Puntual | J21: 20 | K21: 3 | L21: 10.41 | M21: 11.07 | N21: 0.106 | O21: 0.103 | P21: 0.118 | Q21: 0.44 | R21: 0.3174 | S21: 0.025 | T21: 0.005 | U21: 0.95 | V21: 0 | W21: 0
A22: Adquisicion PF No_Premier Nómina Apoyo Infonavit Pago_Fijo_Puntual Si 15 | B22: Adquisicion PF No_Premier Nómina Apoyo Infonavit Pago_Fijo_Puntual Si 15 0.103 | C22: Adquisicion | D22: PF | E22: No_Premier | F22: Nómina | G22: Apoyo Infonavit | I22: Pago_Fijo_Puntual | J22: 15 | K22: 1 y 2 | L22: 11.18 | M22: 11.84 | N22: 0.103 | O22: 0.1 | P22: 0.112 | Q22: 0.44 | R22: 0.3174 | S22: 0.025 | T22: 0.005 | U22: 0.95 | V22: 0 | W22: 0 | X22: Si
A23: Adquisicion PF No_Premier Nómina Apoyo Infonavit Pago_Fijo_Puntual 15 | B23: Adquisicion PF No_Premier Nómina Apoyo Infonavit Pago_Fijo_Puntual 15 0.106 | C23: Adquisicion | D23: PF | E23: No_Premier | F23: Nómina | G23: Apoyo Infonavit | I23: Pago_Fijo_Puntual | J23: 15 | K23: 3 | L23: 11.39 | M23: 12.05 | N23: 0.106 | O23: 0.103 | P23: 0.118 | Q23: 0.44 | R23: 0.3174 | S23: 0.025 | T23: 0.005 | U23: 0.95 | V23: 0 | W23: 0
A24: Adquisicion PF No_Premier Nómina Apoyo Infonavit Pago_Fijo_Puntual Si 10 | B24: Adquisicion PF No_Premier Nómina Apoyo Infonavit Pago_Fijo_Puntual Si 10 0.103 | C24: Adquisicion | D24: PF | E24: No_Premier | F24: Nómina | G24: Apoyo Infonavit | I24: Pago_Fijo_Puntual | J24: 10 | K24: 1 y 2 | L24: 13.54 | M24: 14.2 | N24: 0.103 | O24: 0.1 | P24: 0.112 | Q24: 0.44 | R24: 0.3174 | S24: 0.025 | T24: 0.005 | U24: 0.95 | V24: 0 | W24: 0 | X24: Si
A25: Adquisicion PF No_Premier Nómina Apoyo Infonavit Pago_Fijo_Puntual 10 | B25: Adquisicion PF No_Premier Nómina Apoyo Infonavit Pago_Fijo_Puntual 10 0.106 | C25: Adquisicion | D25: PF | E25: No_Premier | F25: Nómina | G25: Apoyo Infonavit | I25: Pago_Fijo_Puntual | J25: 10 | K25: 3 | L25: 13.71 | M25: 14.37 | N25: 0.106 | O25: 0.103 | P25: 0.118 | Q25: 0.44 | R25: 0.3174 | S25: 0.025 | T25: 0.005 | U25: 0.95 | V25: 0 | W25: 0
A26: Adquisicion PF No_Premier Nómina Apoyo Infonavit Pago_Fijo_Puntual Si 5 | B26: Adquisicion PF No_Premier Nómina Apoyo Infonavit Pago_Fijo_Puntual Si 5 0.103 | C26: Adquisicion | D26: PF | E26: No_Premier | F26: Nómina | G26: Apoyo Infonavit | I26: Pago_Fijo_Puntual | J26: 5 | K26: 1 y 2 | L26: 21.44 | M26: 22.1 | N26: 0.103 | O26: 0.1 | P26: 0.112 | Q26: 0.44 | R26: 0.3174 | S26: 0.025 | T26: 0.005 | U26: 0.95 | V26: 0 | W26: 0 | X26: Si
A27: Adquisicion PF No_Premier Nómina Apoyo Infonavit Pago_Fijo_Puntual 5 | B27: Adquisicion PF No_Premier Nómina Apoyo Infonavit Pago_Fijo_Puntual 5 0.106 | C27: Adquisicion | D27: PF | E27: No_Premier | F27: Nómina | G27: Apoyo Infonavit | I27: Pago_Fijo_Puntual | J27: 5 | K27: 3 | L27: 21.59 | M27: 22.25 | N27: 0.106 | O27: 0.103 | P27: 0.118 | Q27: 0.44 | R27: 0.3174 | S27: 0.025 | T27: 0.005 | U27: 0.95 | V27: 0 | W27: 0
A28: Adquisicion PF No_Premier Nómina Apoyo Infonavit Pago_Bajo_Puntual Si 25 | B28: Adquisicion PF No_Premier Nómina Apoyo Infonavit Pago_Bajo_Puntual Si 25 0.103 | C28: Adquisicion | D28: PF | E28: No_Premier | F28: Nómina | G28: Apoyo Infonavit | I28: Pago_Bajo_Puntual | J28: 25 | K28: 1 y 2 | L28: 8.64 | M28: 9.3 | N28: 0.103 | O28: 0.1 | P28: 0.112 | Q28: 0.44 | R28: 0.3174 | S28: 0.025 | T28: 0.005 | U28: 0.95 | V28: 0 | W28: 0 | X28: Si
A29: Adquisicion PF No_Premier Nómina Apoyo Infonavit Pago_Bajo_Puntual 25 | B29: Adquisicion PF No_Premier Nómina Apoyo Infonavit Pago_Bajo_Puntual 25 0.106 | C29: Adquisicion | D29: PF | E29: No_Premier | F29: Nómina | G29: Apoyo Infonavit | I29: Pago_Bajo_Puntual | J29: 25 | K29: 3 | L29: 8.89 | M29: 9.55 | N29: 0.106 | O29: 0.103 | P29: 0.118 | Q29: 0.44 | R29: 0.3174 | S29: 0.025 | T29: 0.005 | U29: 0.95 | V29: 0 | W29: 0
A30: Adquisicion PF No_Premier Nómina Apoyo Infonavit Pago_Bajo_Puntual Si 20 | B30: Adquisicion PF No_Premier Nómina Apoyo Infonavit Pago_Bajo_Puntual Si 20 0.103 | C30: Adquisicion | D30: PF | E30: No_Premier | F30: Nómina | G30: Apoyo Infonavit | I30: Pago_Bajo_Puntual | J30: 20 | K30: 1 y 2 | L30: 9 | M30: 9.66 | N30: 0.103 | O30: 0.1 | P30: 0.112 | Q30: 0.44 | R30: 0.3174 | S30: 0.025 | T30: 0.005 | U30: 0.95 | V30: 0 | W30: 0 | X30: Si
A31: Adquisicion PF No_Premier Nómina Apoyo Infonavit Pago_Bajo_Puntual 20 | B31: Adquisicion PF No_Premier Nómina Apoyo Infonavit Pago_Bajo_Puntual 20 0.106 | C31: Adquisicion | D31: PF | E31: No_Premier | F31: Nómina | G31: Apoyo Infonavit | I31: Pago_Bajo_Puntual | J31: 20 | K31: 3 | L31: 9.24 | M31: 9.9 | N31: 0.106 | O31: 0.103 | P31: 0.118 | Q31: 0.44 | R31: 0.3174 | S31: 0.025 | T31: 0.005 | U31: 0.95 | V31: 0 | W31: 0
A32: Adquisicion PF No_Premier Nómina Apoyo Infonavit Pago_Bajo_Puntual Si 15 | B32: Adquisicion PF No_Premier Nómina Apoyo Infonavit Pago_Bajo_Puntual Si 15 0.103 | C32: Adquisicion | D32: PF | E32: No_Premier | F32: Nómina | G32: Apoyo Infonavit | I32: Pago_Bajo_Puntual | J32: 15 | K32: 1 y 2 | L32: 10.12 | M32: 10.78 | N32: 0.103 | O32: 0.1 | P32: 0.112 | Q32: 0.44 | R32: 0.3174 | S32: 0.025 | T32: 0.005 | U32: 0.95 | V32: 0 | W32: 0 | X32: Si
A33: Adquisicion PF No_Premier Nómina Apoyo Infonavit Pago_Bajo_Puntual 15 | B33: Adquisicion PF No_Premier Nómina Apoyo Infonavit Pago_Bajo_Puntual 15 0.106 | C33: Adquisicion | D33: PF | E33: No_Premier | F33: Nómina | G33: Apoyo Infonavit | I33: Pago_Bajo_Puntual | J33: 15 | K33: 3 | L33: 10.33 | M33: 10.99 | N33: 0.106 | O33: 0.103 | P33: 0.118 | Q33: 0.44 | R33: 0.3174 | S33: 0.025 | T33: 0.005 | U33: 0.95 | V33: 0 | W33: 0
A34: Adquisicion PF No_Premier GSC Mercado_Abierto Pago_Fijo_Puntual Si 20 | B34: Adquisicion PF No_Premier GSC Mercado_Abierto Pago_Fijo_Puntual Si 20 0.103 | C34: Adquisicion | D34: PF | E34: No_Premier | F34: GSC | G34: Mercado_Abierto | I34: Pago_Fijo_Puntual | J34: 20 | K34: 1 y 2 | L34: 10.16 | M34: 10.82 | N34: 0.103 | O34: 0.1 | P34: 0.112 | Q34: 0.44 | R34: 0.3174 | S34: 0 | T34: 0 | U34: 0.9 | V34: 0 | W34: 0 | X34: Si
A35: Adquisicion PF No_Premier GSC Mercado_Abierto Pago_Fijo_Puntual 20 | B35: Adquisicion PF No_Premier GSC Mercado_Abierto Pago_Fijo_Puntual 20 0.106 | C35: Adquisicion | D35: PF | E35: No_Premier | F35: GSC | G35: Mercado_Abierto | I35: Pago_Fijo_Puntual | J35: 20 | K35: 3 | L35: 10.41 | M35: 11.07 | N35: 0.106 | O35: 0.103 | P35: 0.118 | Q35: 0.44 | R35: 0.3174 | S35: 0 | T35: 0 | U35: 0.85 | V35: 0 | W35: 0
A36: Adquisicion PF No_Premier GSC Mercado_Abierto Pago_Fijo_Puntual Si 15 | B36: Adquisicion PF No_Premier GSC Mercado_Abierto Pago_Fijo_Puntual Si 15 0.103 | C36: Adquisicion | D36: PF | E36: No_Premier | F36: GSC | G36: Mercado_Abierto | I36: Pago_Fijo_Puntual | J36: 15 | K36: 1 y 2 | L36: 11.18 | M36: 11.84 | N36: 0.103 | O36: 0.1 | P36: 0.112 | Q36: 0.44 | R36: 0.3174 | S36: 0 | T36: 0 | U36: 0.9 | V36: 0 | W36: 0 | X36: Si
A37: Adquisicion PF No_Premier GSC Mercado_Abierto Pago_Fijo_Puntual 15 | B37: Adquisicion PF No_Premier GSC Mercado_Abierto Pago_Fijo_Puntual 15 0.106 | C37: Adquisicion | D37: PF | E37: No_Premier | F37: GSC | G37: Mercado_Abierto | I37: Pago_Fijo_Puntual | J37: 15 | K37: 3 | L37: 11.39 | M37: 12.05 | N37: 0.106 | O37: 0.103 | P37: 0.118 | Q37: 0.44 | R37: 0.3174 | S37: 0 | T37: 0 | U37: 0.85 | V37: 0 | W37: 0
A38: Adquisicion PF No_Premier GSC Mercado_Abierto Pago_Fijo_Puntual Si 10 | B38: Adquisicion PF No_Premier GSC Mercado_Abierto Pago_Fijo_Puntual Si 10 0.103 | C38: Adquisicion | D38: PF | E38: No_Premier | F38: GSC | G38: Mercado_Abierto | I38: Pago_Fijo_Puntual | J38: 10 | K38: 1 y 2 | L38: 13.54 | M38: 14.2 | N38: 0.103 | O38: 0.1 | P38: 0.112 | Q38: 0.44 | R38: 0.3174 | S38: 0 | T38: 0 | U38: 0.9 | V38: 0 | W38: 0 | X38: Si
A39: Adquisicion PF No_Premier GSC Mercado_Abierto Pago_Fijo_Puntual 10 | B39: Adquisicion PF No_Premier GSC Mercado_Abierto Pago_Fijo_Puntual 10 0.106 | C39: Adquisicion | D39: PF | E39: No_Premier | F39: GSC | G39: Mercado_Abierto | I39: Pago_Fijo_Puntual | J39: 10 | K39: 3 | L39: 13.71 | M39: 14.37 | N39: 0.106 | O39: 0.103 | P39: 0.118 | Q39: 0.44 | R39: 0.3174 | S39: 0 | T39: 0 | U39: 0.85 | V39: 0 | W39: 0
A40: Adquisicion PF No_Premier GSC Mercado_Abierto Pago_Fijo_Puntual Si 5 | B40: Adquisicion PF No_Premier GSC Mercado_Abierto Pago_Fijo_Puntual Si 5 0.103 | C40: Adquisicion | D40: PF | E40: No_Premier | F40: GSC | G40: Mercado_Abierto | I40: Pago_Fijo_Puntual | J40: 5 | K40: 1 y 2 | L40: 21.44 | M40: 22.1 | N40: 0.103 | O40: 0.1 | P40: 0.112 | Q40: 0.44 | R40: 0.3174 | S40: 0 | T40: 0 | U40: 0.9 | V40: 0 | W40: 0 | X40: Si
A41: Adquisicion PF No_Premier GSC Mercado_Abierto Pago_Fijo_Puntual 5 | B41: Adquisicion PF No_Premier GSC Mercado_Abierto Pago_Fijo_Puntual 5 0.106 | C41: Adquisicion | D41: PF | E41: No_Premier | F41: GSC | G41: Mercado_Abierto | I41: Pago_Fijo_Puntual | J41: 5 | K41: 3 | L41: 21.59 | M41: 22.25 | N41: 0.106 | O41: 0.103 | P41: 0.118 | Q41: 0.44 | R41: 0.3174 | S41: 0 | T41: 0 | U41: 0.85 | V41: 0 | W41: 0
A42: Adquisicion PF No_Premier GSC Mercado_Abierto Pago_Fijo_Puntual 20 | B42: Adquisicion PF No_Premier GSC Mercado_Abierto Pago_Fijo_Puntual 20 0.0965 | C42: Adquisicion | D42: PF | E42: No_Premier | F42: GSC | G42: Mercado_Abierto | I42: Pago_Fijo_Puntual | J42: 20 | K42: 1 y 2 + | L42: 9.66 | M42: 10.32 | N42: 0.0965 | O42: 0.092 | P42: 0.1025 | Q42: 0.44 | R42: 0.3174 | S42: 0 | T42: 0 | U42: 0.7 | V42: 0 | W42: 0
A43: Adquisicion PF No_Premier GSC Mercado_Abierto Pago_Fijo_Puntual 20 | B43: Adquisicion PF No_Premier GSC Mercado_Abierto Pago_Fijo_Puntual 20 0.103 | C43: Adquisicion | D43: PF | E43: No_Premier | F43: GSC | G43: Mercado_Abierto | I43: Pago_Fijo_Puntual | J43: 20 | K43: 3 + | L43: 10.16 | M43: 10.82 | N43: 0.103 | O43: 0.1 | P43: 0.112 | Q43: 0.44 | R43: 0.3174 | S43: 0 | T43: 0 | U43: 0.7 | V43: 0 | W43: 0
A44: Adquisicion PF No_Premier GSC Mercado_Abierto Pago_Fijo_Puntual 15 | B44: Adquisicion PF No_Premier GSC Mercado_Abierto Pago_Fijo_Puntual 15 0.0965 | C44: Adquisicion | D44: PF | E44: No_Premier | F44: GSC | G44: Mercado_Abierto | I44: Pago_Fijo_Puntual | J44: 15 | K44: 1 y 2 + | L44: 10.73 | M44: 11.39 | N44: 0.0965 | O44: 0.092 | P44: 0.1025 | Q44: 0.44 | R44: 0.3174 | S44: 0 | T44: 0 | U44: 0.7 | V44: 0 | W44: 0
A45: Adquisicion PF No_Premier GSC Mercado_Abierto Pago_Fijo_Puntual 15 | B45: Adquisicion PF No_Premier GSC Mercado_Abierto Pago_Fijo_Puntual 15 0.103 | C45: Adquisicion | D45: PF | E45: No_Premier | F45: GSC | G45: Mercado_Abierto | I45: Pago_Fijo_Puntual | J45: 15 | K45: 3 + | L45: 11.18 | M45: 11.84 | N45: 0.103 | O45: 0.1 | P45: 0.112 | Q45: 0.44 | R45: 0.3174 | S45: 0 | T45: 0 | U45: 0.7 | V45: 0 | W45: 0
A46: Adquisicion PF No_Premier GSC Mercado_Abierto Pago_Fijo_Puntual 10 | B46: Adquisicion PF No_Premier GSC Mercado_Abierto Pago_Fijo_Puntual 10 0.0965 | C46: Adquisicion | D46: PF | E46: No_Premier | F46: GSC | G46: Mercado_Abierto | I46: Pago_Fijo_Puntual | J46: 10 | K46: 1 y 2 + | L46: 13.16 | M46: 13.82 | N46: 0.0965 | O46: 0.092 | P46: 0.1025 | Q46: 0.44 | R46: 0.3174 | S46: 0 | T46: 0 | U46: 0.7 | V46: 0 | W46: 0
A47: Adquisicion PF No_Premier GSC Mercado_Abierto Pago_Fijo_Puntual 10 | B47: Adquisicion PF No_Premier GSC Mercado_Abierto Pago_Fijo_Puntual 10 0.103 | C47: Adquisicion | D47: PF | E47: No_Premier | F47: GSC | G47: Mercado_Abierto | I47: Pago_Fijo_Puntual | J47: 10 | K47: 3 + | L47: 13.54 | M47: 14.2 | N47: 0.103 | O47: 0.1 | P47: 0.112 | Q47: 0.44 | R47: 0.3174 | S47: 0 | T47: 0 | U47: 0.7 | V47: 0 | W47: 0
A48: Adquisicion PF No_Premier GSC Mercado_Abierto Pago_Fijo_Puntual 5 | B48: Adquisicion PF No_Premier GSC Mercado_Abierto Pago_Fijo_Puntual 5 0.0965 | C48: Adquisicion | D48: PF | E48: No_Premier | F48: GSC | G48: Mercado_Abierto | I48: Pago_Fijo_Puntual | J48: 5 | K48: 1 y 2 + | L48: 21.12 | M48: 21.78 | N48: 0.0965 | O48: 0.092 | P48: 0.1025 | Q48: 0.44 | R48: 0.3174 | S48: 0 | T48: 0 | U48: 0.7 | V48: 0 | W48: 0
A49: Adquisicion PF No_Premier GSC Mercado_Abierto Pago_Fijo_Puntual 5 | B49: Adquisicion PF No_Premier GSC Mercado_Abierto Pago_Fijo_Puntual 5 0.103 | C49: Adquisicion | D49: PF | E49: No_Premier | F49: GSC | G49: Mercado_Abierto | I49: Pago_Fijo_Puntual | J49: 5 | K49: 3 + | L49: 21.44 | M49: 22.1 | N49: 0.103 | O49: 0.1 | P49: 0.112 | Q49: 0.44 | R49: 0.3174 | S49: 0 | T49: 0 | U49: 0.7 | V49: 0 | W49: 0
A50: Adquisicion PF No_Premier Nómina Apoyo Infonavit Pago_Bajo_Puntual Si 10 | B50: Adquisicion PF No_Premier Nómina Apoyo Infonavit Pago_Bajo_Puntual Si 10 0.103 | C50: Adquisicion | D50: PF | E50: No_Premier | F50: Nómina | G50: Apoyo Infonavit | I50: Pago_Bajo_Puntual | J50: 10 | K50: 1 y 2 | L50: 12.62 | M50: 13.28 | N50: 0.103 | O50: 0.1 | P50: 0.112 | Q50: 0.44 | R50: 0.3174 | S50: 0.025 | T50: 0.005 | U50: 0.95 | V50: 0 | W50: 0 | X50: Si
A51: Adquisicion PF No_Premier Nómina Apoyo Infonavit Pago_Bajo_Puntual 10 | B51: Adquisicion PF No_Premier Nómina Apoyo Infonavit Pago_Bajo_Puntual 10 0.106 | C51: Adquisicion | D51: PF | E51: No_Premier | F51: Nómina | G51: Apoyo Infonavit | I51: Pago_Bajo_Puntual | J51: 10 | K51: 3 | L51: 12.78 | M51: 13.44 | N51: 0.106 | O51: 0.103 | P51: 0.118 | Q51: 0.44 | R51: 0.3174 | S51: 0.025 | T51: 0.005 | U51: 0.95 | V51: 0 | W51: 0
A52: Adquisicion PF No_Premier Nómina Apoyo Infonavit Pago_Bajo_Puntual Si 5 | B52: Adquisicion PF No_Premier Nómina Apoyo Infonavit Pago_Bajo_Puntual Si 5 0.103 | C52: Adquisicion | D52: PF | E52: No_Premier | F52: Nómina | G52: Apoyo Infonavit | I52: Pago_Bajo_Puntual | J52: 5 | K52: 1 y 2 | L52: 20.72 | M52: 21.38 | N52: 0.103 | O52: 0.1 | P52: 0.112 | Q52: 0.44 | R52: 0.3174 | S52: 0.025 | T52: 0.005 | U52: 0.95 | V52: 0 | W52: 0 | X52: Si
A53: Adquisicion PF No_Premier Nómina Apoyo Infonavit Pago_Bajo_Puntual 5 | B53: Adquisicion PF No_Premier Nómina Apoyo Infonavit Pago_Bajo_Puntual 5 0.106 | C53: Adquisicion | D53: PF | E53: No_Premier | F53: Nómina | G53: Apoyo Infonavit | I53: Pago_Bajo_Puntual | J53: 5 | K53: 3 | L53: 20.86 | M53: 21.52 | N53: 0.106 | O53: 0.103 | P53: 0.118 | Q53: 0.44 | R53: 0.3174 | S53: 0.025 | T53: 0.005 | U53: 0.95 | V53: 0 | W53: 0
A54: Adquisicion PF No_Premier Nómina Cofinavit Pago_Fijo_Puntual Si 25 | B54: Adquisicion PF No_Premier Nómina Cofinavit Pago_Fijo_Puntual Si 25 0.103 | C54: Adquisicion | D54: PF | E54: No_Premier | F54: Nómina | G54: Cofinavit | I54: Pago_Fijo_Puntual | J54: 25 | K54: 1 y 2 | L54: 9.65 | M54: 10.31 | N54: 0.103 | O54: 0.1 | P54: 0.112 | Q54: 0.44 | R54: 0.3174 | S54: 0.025 | T54: 0.005 | U54: 0.95 | V54: 0 | W54: 0 | X54: Si
A55: Adquisicion PF No_Premier Nómina Cofinavit Pago_Fijo_Puntual 25 | B55: Adquisicion PF No_Premier Nómina Cofinavit Pago_Fijo_Puntual 25 0.106 | C55: Adquisicion | D55: PF | E55: No_Premier | F55: Nómina | G55: Cofinavit | I55: Pago_Fijo_Puntual | J55: 25 | K55: 3 | L55: 9.93 | M55: 10.59 | N55: 0.106 | O55: 0.103 | P55: 0.118 | Q55: 0.44 | R55: 0.3174 | S55: 0.025 | T55: 0.005 | U55: 0.95 | V55: 0 | W55: 0
A56: Adquisicion PF No_Premier Nómina Cofinavit Pago_Fijo_Puntual Si 20 | B56: Adquisicion PF No_Premier Nómina Cofinavit Pago_Fijo_Puntual Si 20 0.103 | C56: Adquisicion | D56: PF | E56: No_Premier | F56: Nómina | G56: Cofinavit | I56: Pago_Fijo_Puntual | J56: 20 | K56: 1 y 2 | L56: 10.16 | M56: 10.82 | N56: 0.103 | O56: 0.1 | P56: 0.112 | Q56: 0.44 | R56: 0.3174 | S56: 0.025 | T56: 0.005 | U56: 0.95 | V56: 0 | W56: 0 | X56: Si
A57: Adquisicion PF No_Premier Nómina Cofinavit Pago_Fijo_Puntual 20 | B57: Adquisicion PF No_Premier Nómina Cofinavit Pago_Fijo_Puntual 20 0.106 | C57: Adquisicion | D57: PF | E57: No_Premier | F57: Nómina | G57: Cofinavit | I57: Pago_Fijo_Puntual | J57: 20 | K57: 3 | L57: 10.41 | M57: 11.07 | N57: 0.106 | O57: 0.103 | P57: 0.118 | Q57: 0.44 | R57: 0.3174 | S57: 0.025 | T57: 0.005 | U57: 0.95 | V57: 0 | W57: 0
A58: Adquisicion PF No_Premier Nómina Cofinavit Pago_Fijo_Puntual Si 15 | B58: Adquisicion PF No_Premier Nómina Cofinavit Pago_Fijo_Puntual Si 15 0.103 | C58: Adquisicion | D58: PF | E58: No_Premier | F58: Nómina | G58: Cofinavit | I58: Pago_Fijo_Puntual | J58: 15 | K58: 1 y 2 | L58: 11.18 | M58: 11.84 | N58: 0.103 | O58: 0.1 | P58: 0.112 | Q58: 0.44 | R58: 0.3174 | S58: 0.025 | T58: 0.005 | U58: 0.95 | V58: 0 | W58: 0 | X58: Si
A59: Adquisicion PF No_Premier Nómina Cofinavit Pago_Fijo_Puntual 15 | B59: Adquisicion PF No_Premier Nómina Cofinavit Pago_Fijo_Puntual 15 0.106 | C59: Adquisicion | D59: PF | E59: No_Premier | F59: Nómina | G59: Cofinavit | I59: Pago_Fijo_Puntual | J59: 15 | K59: 3 | L59: 11.39 | M59: 12.05 | N59: 0.106 | O59: 0.103 | P59: 0.118 | Q59: 0.44 | R59: 0.3174 | S59: 0.025 | T59: 0.005 | U59: 0.95 | V59: 0 | W59: 0
A60: Adquisicion PF No_Premier Nómina Cofinavit Pago_Fijo_Puntual Si 10 | B60: Adquisicion PF No_Premier Nómina Cofinavit Pago_Fijo_Puntual Si 10 0.103 | C60: Adquisicion | D60: PF | E60: No_Premier | F60: Nómina | G60: Cofinavit | I60: Pago_Fijo_Puntual | J60: 10 | K60: 1 y 2 | L60: 13.54 | M60: 14.2 | N60: 0.103 | O60: 0.1 | P60: 0.112 | Q60: 0.44 | R60: 0.3174 | S60: 0.025 | T60: 0.005 | U60: 0.95 | V60: 0 | W60: 0 | X60: Si
A61: Adquisicion PF No_Premier Nómina Cofinavit Pago_Fijo_Puntual 10 | B61: Adquisicion PF No_Premier Nómina Cofinavit Pago_Fijo_Puntual 10 0.106 | C61: Adquisicion | D61: PF | E61: No_Premier | F61: Nómina | G61: Cofinavit | I61: Pago_Fijo_Puntual | J61: 10 | K61: 3 | L61: 13.71 | M61: 14.37 | N61: 0.106 | O61: 0.103 | P61: 0.118 | Q61: 0.44 | R61: 0.3174 | S61: 0.025 | T61: 0.005 | U61: 0.95 | V61: 0 | W61: 0
A62: Adquisicion PF No_Premier Nómina Cofinavit Pago_Fijo_Puntual Si 5 | B62: Adquisicion PF No_Premier Nómina Cofinavit Pago_Fijo_Puntual Si 5 0.103 | C62: Adquisicion | D62: PF | E62: No_Premier | F62: Nómina | G62: Cofinavit | I62: Pago_Fijo_Puntual | J62: 5 | K62: 1 y 2 | L62: 21.44 | M62: 22.1 | N62: 0.103 | O62: 0.1 | P62: 0.112 | Q62: 0.44 | R62: 0.3174 | S62: 0.025 | T62: 0.005 | U62: 0.95 | V62: 0 | W62: 0 | X62: Si
A63: Adquisicion PF No_Premier Nómina Cofinavit Pago_Fijo_Puntual 5 | B63: Adquisicion PF No_Premier Nómina Cofinavit Pago_Fijo_Puntual 5 0.106 | C63: Adquisicion | D63: PF | E63: No_Premier | F63: Nómina | G63: Cofinavit | I63: Pago_Fijo_Puntual | J63: 5 | K63: 3 | L63: 21.59 | M63: 22.25 | N63: 0.106 | O63: 0.103 | P63: 0.118 | Q63: 0.44 | R63: 0.3174 | S63: 0.025 | T63: 0.005 | U63: 0.95 | V63: 0 | W63: 0
A64: Adquisicion PF No_Premier Nómina Cofinavit Pago_Bajo_Puntual Si 25 | B64: Adquisicion PF No_Premier Nómina Cofinavit Pago_Bajo_Puntual Si 25 0.103 | C64: Adquisicion | D64: PF | E64: No_Premier | F64: Nómina | G64: Cofinavit | I64: Pago_Bajo_Puntual | J64: 25 | K64: 1 y 2 | L64: 8.64 | M64: 9.3 | N64: 0.103 | O64: 0.1 | P64: 0.112 | Q64: 0.44 | R64: 0.3174 | S64: 0.025 | T64: 0.005 | U64: 0.95 | V64: 0 | W64: 0 | X64: Si
A65: Adquisicion PF No_Premier Nómina Cofinavit Pago_Bajo_Puntual 25 | B65: Adquisicion PF No_Premier Nómina Cofinavit Pago_Bajo_Puntual 25 0.106 | C65: Adquisicion | D65: PF | E65: No_Premier | F65: Nómina | G65: Cofinavit | I65: Pago_Bajo_Puntual | J65: 25 | K65: 3 | L65: 8.89 | M65: 9.55 | N65: 0.106 | O65: 0.103 | P65: 0.118 | Q65: 0.44 | R65: 0.3174 | S65: 0.025 | T65: 0.005 | U65: 0.95 | V65: 0 | W65: 0
A66: Adquisicion PF No_Premier Nómina Cofinavit Pago_Bajo_Puntual Si 20 | B66: =CONCATENATE(A66," ",N66) -> Adquisicion PF No_Premier Nómina Cofinavit Pago_Bajo_Puntual Si 20 0.103 | C66: Adquisicion | D66: PF | E66: No_Premier | F66: Nómina | G66: Cofinavit | I66: Pago_Bajo_Puntual | J66: 20 | K66: 1 y 2 | L66: 9 | M66: 9.66 | N66: 0.103 | O66: 0.1 | P66: 0.112 | Q66: 0.44 | R66: 0.3174 | S66: 0.025 | T66: 0.005 | U66: 0.95 | V66: 0 | W66: 0 | X66: Si
A67: =TRIM(CONCATENATE(C67," ",D67," ",E67," ",F67," ",G67," ",I67," ",X67," ",J67)) -> Adquisicion PF No_Premier Nómina Cofinavit Pago_Bajo_Puntual 20 | B67: Adquisicion PF No_Premier Nómina Cofinavit Pago_Bajo_Puntual 20 0.106 | C67: Adquisicion | D67: PF | E67: No_Premier | F67: Nómina | G67: Cofinavit | I67: Pago_Bajo_Puntual | J67: 20 | K67: 3 | L67: 9.24 | M67: 9.9 | N67: 0.106 | O67: 0.103 | P67: 0.118 | Q67: 0.44 | R67: 0.3174 | S67: 0.025 | T67: 0.005 | U67: 0.95 | V67: 0 | W67: 0
A68: Adquisicion PF No_Premier Nómina Cofinavit Pago_Bajo_Puntual Si 15 | B68: Adquisicion PF No_Premier Nómina Cofinavit Pago_Bajo_Puntual Si 15 0.103 | C68: Adquisicion | D68: PF | E68: No_Premier | F68: Nómina | G68: Cofinavit | I68: Pago_Bajo_Puntual | J68: 15 | K68: 1 y 2 | L68: 10.12 | M68: 10.78 | N68: 0.103 | O68: 0.1 | P68: 0.112 | Q68: 0.44 | R68: 0.3174 | S68: 0.025 | T68: 0.005 | U68: 0.95 | V68: 0 | W68: 0 | X68: Si
A69: Adquisicion PF No_Premier Nómina Cofinavit Pago_Bajo_Puntual 15 | B69: Adquisicion PF No_Premier Nómina Cofinavit Pago_Bajo_Puntual 15 0.106 | C69: Adquisicion | D69: PF | E69: No_Premier | F69: Nómina | G69: Cofinavit | I69: Pago_Bajo_Puntual | J69: 15 | K69: 3 | L69: 10.33 | M69: 10.99 | N69: 0.106 | O69: 0.103 | P69: 0.118 | Q69: 0.44 | R69: 0.3174 | S69: 0.025 | T69: 0.005 | U69: 0.95 | V69: 0 | W69: 0
A70: Adquisicion PF No_Premier Nómina Cofinavit Pago_Bajo_Puntual Si 10 | B70: Adquisicion PF No_Premier Nómina Cofinavit Pago_Bajo_Puntual Si 10 0.103 | C70: Adquisicion | D70: PF | E70: No_Premier | F70: Nómina | G70: Cofinavit | I70: Pago_Bajo_Puntual | J70: 10 | K70: 1 y 2 | L70: 12.62 | M70: 13.28 | N70: 0.103 | O70: 0.1 | P70: 0.112 | Q70: 0.44 | R70: 0.3174 | S70: 0.025 | T70: 0.005 | U70: 0.95 | V70: 0 | W70: 0 | X70: Si
A71: Adquisicion PF No_Premier Nómina Cofinavit Pago_Bajo_Puntual 10 | B71: Adquisicion PF No_Premier Nómina Cofinavit Pago_Bajo_Puntual 10 0.106 | C71: Adquisicion | D71: PF | E71: No_Premier | F71: Nómina | G71: Cofinavit | I71: Pago_Bajo_Puntual | J71: 10 | K71: 3 | L71: 12.78 | M71: 13.44 | N71: 0.106 | O71: 0.103 | P71: 0.118 | Q71: 0.44 | R71: 0.3174 | S71: 0.025 | T71: 0.005 | U71: 0.95 | V71: 0 | W71: 0
A72: Adquisicion PF No_Premier Nómina Cofinavit Pago_Bajo_Puntual Si 5 | B72: Adquisicion PF No_Premier Nómina Cofinavit Pago_Bajo_Puntual Si 5 0.103 | C72: Adquisicion | D72: PF | E72: No_Premier | F72: Nómina | G72: Cofinavit | I72: Pago_Bajo_Puntual | J72: 5 | K72: 1 y 2 | L72: 20.72 | M72: 21.38 | N72: 0.103 | O72: 0.1 | P72: 0.112 | Q72: 0.44 | R72: 0.3174 | S72: 0.025 | T72: 0.005 | U72: 0.95 | V72: 0 | W72: 0 | X72: Si
A73: Adquisicion PF No_Premier Nómina Cofinavit Pago_Bajo_Puntual 5 | B73: Adquisicion PF No_Premier Nómina Cofinavit Pago_Bajo_Puntual 5 0.106 | C73: Adquisicion | D73: PF | E73: No_Premier | F73: Nómina | G73: Cofinavit | I73: Pago_Bajo_Puntual | J73: 5 | K73: 3 | L73: 20.86 | M73: 21.52 | N73: 0.106 | O73: 0.103 | P73: 0.118 | Q73: 0.44 | R73: 0.3174 | S73: 0.025 | T73: 0.005 | U73: 0.95 | V73: 0 | W73: 0
A74: Adquisicion PF No_Premier Nómina Especial Apoyo Infonavit Pago_Fijo_Puntual Si 25 | B74: Adquisicion PF No_Premier Nómina Especial Apoyo Infonavit Pago_Fijo_Puntual Si 25 0.103 | C74: Adquisicion | D74: PF | E74: No_Premier | F74: Nómina Especial | G74: Apoyo Infonavit | I74: Pago_Fijo_Puntual | J74: 25 | K74: 1 y 2 | L74: 9.65 | M74: 10.31 | N74: 0.103 | O74: 0.1 | P74: 0.112 | Q74: 0.44 | R74: 0.3174 | S74: 0.025 | T74: 0.005 | U74: 0.95 | V74: 0 | W74: 0 | X74: Si
A75: Adquisicion PF No_Premier Nómina Especial Apoyo Infonavit Pago_Fijo_Puntual 25 | B75: Adquisicion PF No_Premier Nómina Especial Apoyo Infonavit Pago_Fijo_Puntual 25 0.106 | C75: Adquisicion | D75: PF | E75: No_Premier | F75: Nómina Especial | G75: Apoyo Infonavit | I75: Pago_Fijo_Puntual | J75: 25 | K75: 3 | L75: 9.93 | M75: 10.59 | N75: 0.106 | O75: 0.103 | P75: 0.118 | Q75: 0.44 | R75: 0.3174 | S75: 0.025 | T75: 0.005 | U75: 0.95 | V75: 0 | W75: 0
A76: Adquisicion PF No_Premier Nómina Especial Apoyo Infonavit Pago_Fijo_Puntual Si 20 | B76: Adquisicion PF No_Premier Nómina Especial Apoyo Infonavit Pago_Fijo_Puntual Si 20 0.103 | C76: Adquisicion | D76: PF | E76: No_Premier | F76: Nómina Especial | G76: Apoyo Infonavit | I76: Pago_Fijo_Puntual | J76: 20 | K76: 1 y 2 | L76: 10.16 | M76: 10.82 | N76: 0.103 | O76: 0.1 | P76: 0.112 | Q76: 0.44 | R76: 0.3174 | S76: 0.025 | T76: 0.005 | U76: 0.95 | V76: 0 | W76: 0 | X76: Si
A77: Adquisicion PF No_Premier Nómina Especial Apoyo Infonavit Pago_Fijo_Puntual 20 | B77: Adquisicion PF No_Premier Nómina Especial Apoyo Infonavit Pago_Fijo_Puntual 20 0.106 | C77: Adquisicion | D77: PF | E77: No_Premier | F77: Nómina Especial | G77: Apoyo Infonavit | I77: Pago_Fijo_Puntual | J77: 20 | K77: 3 | L77: 10.41 | M77: 11.07 | N77: 0.106 | O77: 0.103 | P77: 0.118 | Q77: 0.44 | R77: 0.3174 | S77: 0.025 | T77: 0.005 | U77: 0.95 | V77: 0 | W77: 0
A78: Adquisicion PF No_Premier Nómina Especial Apoyo Infonavit Pago_Fijo_Puntual Si 15 | B78: Adquisicion PF No_Premier Nómina Especial Apoyo Infonavit Pago_Fijo_Puntual Si 15 0.103 | C78: Adquisicion | D78: PF | E78: No_Premier | F78: Nómina Especial | G78: Apoyo Infonavit | I78: Pago_Fijo_Puntual | J78: 15 | K78: 1 y 2 | L78: 11.18 | M78: 11.84 | N78: 0.103 | O78: 0.1 | P78: 0.112 | Q78: 0.44 | R78: 0.3174 | S78: 0.025 | T78: 0.005 | U78: 0.95 | V78: 0 | W78: 0 | X78: Si
A79: Adquisicion PF No_Premier Nómina Especial Apoyo Infonavit Pago_Fijo_Puntual 15 | B79: Adquisicion PF No_Premier Nómina Especial Apoyo Infonavit Pago_Fijo_Puntual 15 0.106 | C79: Adquisicion | D79: PF | E79: No_Premier | F79: Nómina Especial | G79: Apoyo Infonavit | I79: Pago_Fijo_Puntual | J79: 15 | K79: 3 | L79: 11.39 | M79: 12.05 | N79: 0.106 | O79: 0.103 | P79: 0.118 | Q79: 0.44 | R79: 0.3174 | S79: 0.025 | T79: 0.005 | U79: 0.95 | V79: 0 | W79: 0
A80: Adquisicion PF No_Premier Nómina Especial Apoyo Infonavit Pago_Fijo_Puntual Si 10 | B80: Adquisicion PF No_Premier Nómina Especial Apoyo Infonavit Pago_Fijo_Puntual Si 10 0.103 | C80: Adquisicion | D80: PF | E80: No_Premier | F80: Nómina Especial | G80: Apoyo Infonavit | I80: Pago_Fijo_Puntual | J80: 10 | K80: 1 y 2 | L80: 13.54 | M80: 14.2 | N80: 0.103 | O80: 0.1 | P80: 0.112 | Q80: 0.44 | R80: 0.3174 | S80: 0.025 | T80: 0.005 | U80: 0.95 | V80: 0 | W80: 0 | X80: Si
A81: Adquisicion PF No_Premier Nómina Especial Apoyo Infonavit Pago_Fijo_Puntual 10 | B81: Adquisicion PF No_Premier Nómina Especial Apoyo Infonavit Pago_Fijo_Puntual 10 0.106 | C81: Adquisicion | D81: PF | E81: No_Premier | F81: Nómina Especial | G81: Apoyo Infonavit | I81: Pago_Fijo_Puntual | J81: 10 | K81: 3 | L81: 13.71 | M81: 14.37 | N81: 0.106 | O81: 0.103 | P81: 0.118 | Q81: 0.44 | R81: 0.3174 | S81: 0.025 | T81: 0.005 | U81: 0.95 | V81: 0 | W81: 0
A82: Adquisicion PF No_Premier Nómina Especial Apoyo Infonavit Pago_Fijo_Puntual Si 5 | B82: Adquisicion PF No_Premier Nómina Especial Apoyo Infonavit Pago_Fijo_Puntual Si 5 0.103 | C82: Adquisicion | D82: PF | E82: No_Premier | F82: Nómina Especial | G82: Apoyo Infonavit | I82: Pago_Fijo_Puntual | J82: 5 | K82: 1 y 2 | L82: 21.44 | M82: 22.1 | N82: 0.103 | O82: 0.1 | P82: 0.112 | Q82: 0.44 | R82: 0.3174 | S82: 0.025 | T82: 0.005 | U82: 0.95 | V82: 0 | W82: 0 | X82: Si
A83: Adquisicion PF No_Premier Nómina Especial Apoyo Infonavit Pago_Fijo_Puntual 5 | B83: Adquisicion PF No_Premier Nómina Especial Apoyo Infonavit Pago_Fijo_Puntual 5 0.106 | C83: Adquisicion | D83: PF | E83: No_Premier | F83: Nómina Especial | G83: Apoyo Infonavit | I83: Pago_Fijo_Puntual | J83: 5 | K83: 3 | L83: 21.59 | M83: 22.25 | N83: 0.106 | O83: 0.103 | P83: 0.118 | Q83: 0.44 | R83: 0.3174 | S83: 0.025 | T83: 0.005 | U83: 0.95 | V83: 0 | W83: 0
A84: Adquisicion PF No_Premier Nómina Especial Apoyo Infonavit Pago_Bajo_Puntual Si 25 | B84: Adquisicion PF No_Premier Nómina Especial Apoyo Infonavit Pago_Bajo_Puntual Si 25 0.103 | C84: Adquisicion | D84: PF | E84: No_Premier | F84: Nómina Especial | G84: Apoyo Infonavit | I84: Pago_Bajo_Puntual | J84: 25 | K84: 1 y 2 | L84: 8.64 | M84: 9.3 | N84: 0.103 | O84: 0.1 | P84: 0.112 | Q84: 0.44 | R84: 0.3174 | S84: 0.025 | T84: 0.005 | U84: 0.95 | V84: 0 | W84: 0 | X84: Si
A85: Adquisicion PF No_Premier Nómina Especial Apoyo Infonavit Pago_Bajo_Puntual 25 | B85: Adquisicion PF No_Premier Nómina Especial Apoyo Infonavit Pago_Bajo_Puntual 25 0.106 | C85: Adquisicion | D85: PF | E85: No_Premier | F85: Nómina Especial | G85: Apoyo Infonavit | I85: Pago_Bajo_Puntual | J85: 25 | K85: 3 | L85: 8.89 | M85: 9.55 | N85: 0.106 | O85: 0.103 | P85: 0.118 | Q85: 0.44 | R85: 0.3174 | S85: 0.025 | T85: 0.005 | U85: 0.95 | V85: 0 | W85: 0
A86: Adquisicion PF No_Premier Nómina Especial Apoyo Infonavit Pago_Bajo_Puntual Si 20 | B86: Adquisicion PF No_Premier Nómina Especial Apoyo Infonavit Pago_Bajo_Puntual Si 20 0.103 | C86: Adquisicion | D86: PF | E86: No_Premier | F86: Nómina Especial | G86: Apoyo Infonavit | I86: Pago_Bajo_Puntual | J86: 20 | K86: 1 y 2 | L86: 9 | M86: 9.66 | N86: 0.103 | O86: 0.1 | P86: 0.112 | Q86: 0.44 | R86: 0.3174 | S86: 0.025 | T86: 0.005 | U86: 0.95 | V86: 0 | W86: 0 | X86: Si
A87: Adquisicion PF No_Premier Nómina Especial Apoyo Infonavit Pago_Bajo_Puntual 20 | B87: Adquisicion PF No_Premier Nómina Especial Apoyo Infonavit Pago_Bajo_Puntual 20 0.106 | C87: Adquisicion | D87: PF | E87: No_Premier | F87: Nómina Especial | G87: Apoyo Infonavit | I87: Pago_Bajo_Puntual | J87: 20 | K87: 3 | L87: 9.24 | M87: 9.9 | N87: 0.106 | O87: 0.103 | P87: 0.118 | Q87: 0.44 | R87: 0.3174 | S87: 0.025 | T87: 0.005 | U87: 0.95 | V87: 0 | W87: 0
A88: Adquisicion PF No_Premier Nómina Especial Apoyo Infonavit Pago_Bajo_Puntual Si 15 | B88: Adquisicion PF No_Premier Nómina Especial Apoyo Infonavit Pago_Bajo_Puntual Si 15 0.103 | C88: Adquisicion | D88: PF | E88: No_Premier | F88: Nómina Especial | G88: Apoyo Infonavit | I88: Pago_Bajo_Puntual | J88: 15 | K88: 1 y 2 | L88: 10.12 | M88: 10.78 | N88: 0.103 | O88: 0.1 | P88: 0.112 | Q88: 0.44 | R88: 0.3174 | S88: 0.025 | T88: 0.005 | U88: 0.95 | V88: 0 | W88: 0 | X88: Si
A89: Adquisicion PF No_Premier Nómina Especial Apoyo Infonavit Pago_Bajo_Puntual 15 | B89: Adquisicion PF No_Premier Nómina Especial Apoyo Infonavit Pago_Bajo_Puntual 15 0.106 | C89: Adquisicion | D89: PF | E89: No_Premier | F89: Nómina Especial | G89: Apoyo Infonavit | I89: Pago_Bajo_Puntual | J89: 15 | K89: 3 | L89: 10.33 | M89: 10.99 | N89: 0.106 | O89: 0.103 | P89: 0.118 | Q89: 0.44 | R89: 0.3174 | S89: 0.025 | T89: 0.005 | U89: 0.95 | V89: 0 | W89: 0
A90: Adquisicion PF No_Premier Nómina Especial Apoyo Infonavit Pago_Bajo_Puntual Si 10 | B90: Adquisicion PF No_Premier Nómina Especial Apoyo Infonavit Pago_Bajo_Puntual Si 10 0.103 | C90: Adquisicion | D90: PF | E90: No_Premier | F90: Nómina Especial | G90: Apoyo Infonavit | I90: Pago_Bajo_Puntual | J90: 10 | K90: 1 y 2 | L90: 12.62 | M90: 13.28 | N90: 0.103 | O90: 0.1 | P90: 0.112 | Q90: 0.44 | R90: 0.3174 | S90: 0.025 | T90: 0.005 | U90: 0.95 | V90: 0 | W90: 0 | X90: Si
A91: Adquisicion PF No_Premier Nómina Especial Apoyo Infonavit Pago_Bajo_Puntual 10 | B91: Adquisicion PF No_Premier Nómina Especial Apoyo Infonavit Pago_Bajo_Puntual 10 0.106 | C91: Adquisicion | D91: PF | E91: No_Premier | F91: Nómina Especial | G91: Apoyo Infonavit | I91: Pago_Bajo_Puntual | J91: 10 | K91: 3 | L91: 12.78 | M91: 13.44 | N91: 0.106 | O91: 0.103 | P91: 0.118 | Q91: 0.44 | R91: 0.3174 | S91: 0.025 | T91: 0.005 | U91: 0.95 | V91: 0 | W91: 0
A92: Adquisicion PF No_Premier Nómina Especial Apoyo Infonavit Pago_Bajo_Puntual Si 5 | B92: Adquisicion PF No_Premier Nómina Especial Apoyo Infonavit Pago_Bajo_Puntual Si 5 0.103 | C92: Adquisicion | D92: PF | E92: No_Premier | F92: Nómina Especial | G92: Apoyo Infonavit | I92: Pago_Bajo_Puntual | J92: 5 | K92: 1 y 2 | L92: 20.72 | M92: 21.38 | N92: 0.103 | O92: 0.1 | P92: 0.112 | Q92: 0.44 | R92: 0.3174 | S92: 0.025 | T92: 0.005 | U92: 0.95 | V92: 0 | W92: 0 | X92: Si
A93: Adquisicion PF No_Premier Nómina Especial Apoyo Infonavit Pago_Bajo_Puntual 5 | B93: Adquisicion PF No_Premier Nómina Especial Apoyo Infonavit Pago_Bajo_Puntual 5 0.106 | C93: Adquisicion | D93: PF | E93: No_Premier | F93: Nómina Especial | G93: Apoyo Infonavit | I93: Pago_Bajo_Puntual | J93: 5 | K93: 3 | L93: 20.86 | M93: 21.52 | N93: 0.106 | O93: 0.103 | P93: 0.118 | Q93: 0.44 | R93: 0.3174 | S93: 0.025 | T93: 0.005 | U93: 0.95 | V93: 0 | W93: 0
A94: Adquisicion PF No_Premier Nómina Especial Cofinavit Pago_Fijo_Puntual Si 25 | B94: Adquisicion PF No_Premier Nómina Especial Cofinavit Pago_Fijo_Puntual Si 25 0.103 | C94: Adquisicion | D94: PF | E94: No_Premier | F94: Nómina Especial | G94: Cofinavit | I94: Pago_Fijo_Puntual | J94: 25 | K94: 1 y 2 | L94: 9.65 | M94: 10.31 | N94: 0.103 | O94: 0.1 | P94: 0.112 | Q94: 0.44 | R94: 0.3174 | S94: 0.025 | T94: 0.005 | U94: 0.95 | V94: 0 | W94: 0 | X94: Si
A95: Adquisicion PF No_Premier Nómina Especial Cofinavit Pago_Fijo_Puntual 25 | B95: Adquisicion PF No_Premier Nómina Especial Cofinavit Pago_Fijo_Puntual 25 0.106 | C95: Adquisicion | D95: PF | E95: No_Premier | F95: Nómina Especial | G95: Cofinavit | I95: Pago_Fijo_Puntual | J95: 25 | K95: 3 | L95: 9.93 | M95: 10.59 | N95: 0.106 | O95: 0.103 | P95: 0.118 | Q95: 0.44 | R95: 0.3174 | S95: 0.025 | T95: 0.005 | U95: 0.95 | V95: 0 | W95: 0
A96: Adquisicion PF No_Premier Nómina Especial Cofinavit Pago_Fijo_Puntual Si 20 | B96: Adquisicion PF No_Premier Nómina Especial Cofinavit Pago_Fijo_Puntual Si 20 0.103 | C96: Adquisicion | D96: PF | E96: No_Premier | F96: Nómina Especial | G96: Cofinavit | I96: Pago_Fijo_Puntual | J96: 20 | K96: 1 y 2 | L96: 10.16 | M96: 10.82 | N96: 0.103 | O96: 0.1 | P96: 0.112 | Q96: 0.44 | R96: 0.3174 | S96: 0.025 | T96: 0.005 | U96: 0.95 | V96: 0 | W96: 0 | X96: Si
A97: Adquisicion PF No_Premier Nómina Especial Cofinavit Pago_Fijo_Puntual 20 | B97: Adquisicion PF No_Premier Nómina Especial Cofinavit Pago_Fijo_Puntual 20 0.106 | C97: Adquisicion | D97: PF | E97: No_Premier | F97: Nómina Especial | G97: Cofinavit | I97: Pago_Fijo_Puntual | J97: 20 | K97: 3 | L97: 10.41 | M97: 11.07 | N97: 0.106 | O97: 0.103 | P97: 0.118 | Q97: 0.44 | R97: 0.3174 | S97: 0.025 | T97: 0.005 | U97: 0.95 | V97: 0 | W97: 0
A98: Adquisicion PF No_Premier Nómina Especial Cofinavit Pago_Fijo_Puntual Si 15 | B98: Adquisicion PF No_Premier Nómina Especial Cofinavit Pago_Fijo_Puntual Si 15 0.103 | C98: Adquisicion | D98: PF | E98: No_Premier | F98: Nómina Especial | G98: Cofinavit | I98: Pago_Fijo_Puntual | J98: 15 | K98: 1 y 2 | L98: 11.18 | M98: 11.84 | N98: 0.103 | O98: 0.1 | P98: 0.112 | Q98: 0.44 | R98: 0.3174 | S98: 0.025 | T98: 0.005 | U98: 0.95 | V98: 0 | W98: 0 | X98: Si
A99: Adquisicion PF No_Premier Nómina Especial Cofinavit Pago_Fijo_Puntual 15 | B99: Adquisicion PF No_Premier Nómina Especial Cofinavit Pago_Fijo_Puntual 15 0.106 | C99: Adquisicion | D99: PF | E99: No_Premier | F99: Nómina Especial | G99: Cofinavit | I99: Pago_Fijo_Puntual | J99: 15 | K99: 3 | L99: 11.39 | M99: 12.05 | N99: 0.106 | O99: 0.103 | P99: 0.118 | Q99: 0.44 | R99: 0.3174 | S99: 0.025 | T99: 0.005 | U99: 0.95 | V99: 0 | W99: 0
A100: Adquisicion PF No_Premier Nómina Especial Cofinavit Pago_Fijo_Puntual Si 10 | B100: Adquisicion PF No_Premier Nómina Especial Cofinavit Pago_Fijo_Puntual Si 10 0.103 | C100: Adquisicion | D100: PF | E100: No_Premier | F100: Nómina Especial | G100: Cofinavit | I100: Pago_Fijo_Puntual | J100: 10 | K100: 1 y 2 | L100: 13.54 | M100: 14.2 | N100: 0.103 | O100: 0.1 | P100: 0.112 | Q100: 0.44 | R100: 0.3174 | S100: 0.025 | T100: 0.005 | U100: 0.95 | V100: 0 | W100: 0 | X100: Si
A101: Adquisicion PF No_Premier Nómina Especial Cofinavit Pago_Fijo_Puntual 10 | B101: Adquisicion PF No_Premier Nómina Especial Cofinavit Pago_Fijo_Puntual 10 0.106 | C101: Adquisicion | D101: PF | E101: No_Premier | F101: Nómina Especial | G101: Cofinavit | I101: Pago_Fijo_Puntual | J101: 10 | K101: 3 | L101: 13.71 | M101: 14.37 | N101: 0.106 | O101: 0.103 | P101: 0.118 | Q101: 0.44 | R101: 0.3174 | S101: 0.025 | T101: 0.005 | U101: 0.95 | V101: 0 | W101: 0
A102: Adquisicion PF No_Premier Nómina Especial Cofinavit Pago_Fijo_Puntual Si 5 | B102: Adquisicion PF No_Premier Nómina Especial Cofinavit Pago_Fijo_Puntual Si 5 0.103 | C102: Adquisicion | D102: PF | E102: No_Premier | F102: Nómina Especial | G102: Cofinavit | I102: Pago_Fijo_Puntual | J102: 5 | K102: 1 y 2 | L102: 21.44 | M102: 22.1 | N102: 0.103 | O102: 0.1 | P102: 0.112 | Q102: 0.44 | R102: 0.3174 | S102: 0.025 | T102: 0.005 | U102: 0.95 | V102: 0 | W102: 0 | X102: Si
A103: Adquisicion PF No_Premier Nómina Especial Cofinavit Pago_Fijo_Puntual 5 | B103: Adquisicion PF No_Premier Nómina Especial Cofinavit Pago_Fijo_Puntual 5 0.106 | C103: Adquisicion | D103: PF | E103: No_Premier | F103: Nómina Especial | G103: Cofinavit | I103: Pago_Fijo_Puntual | J103: 5 | K103: 3 | L103: 21.59 | M103: 22.25 | N103: 0.106 | O103: 0.103 | P103: 0.118 | Q103: 0.44 | R103: 0.3174 | S103: 0.025 | T103: 0.005 | U103: 0.95 | V103: 0 | W103: 0
A104: Adquisicion PF No_Premier Nómina Especial Cofinavit Pago_Bajo_Puntual Si 25 | B104: Adquisicion PF No_Premier Nómina Especial Cofinavit Pago_Bajo_Puntual Si 25 0.103 | C104: Adquisicion | D104: PF | E104: No_Premier | F104: Nómina Especial | G104: Cofinavit | I104: Pago_Bajo_Puntual | J104: 25 | K104: 1 y 2 | L104: 8.64 | M104: 9.3 | N104: 0.103 | O104: 0.1 | P104: 0.112 | Q104: 0.44 | R104: 0.3174 | S104: 0.025 | T104: 0.005 | U104: 0.95 | V104: 0 | W104: 0 | X104: Si
A105: Adquisicion PF No_Premier Nómina Especial Cofinavit Pago_Bajo_Puntual 25 | B105: Adquisicion PF No_Premier Nómina Especial Cofinavit Pago_Bajo_Puntual 25 0.106 | C105: Adquisicion | D105: PF | E105: No_Premier | F105: Nómina Especial | G105: Cofinavit | I105: Pago_Bajo_Puntual | J105: 25 | K105: 3 | L105: 8.89 | M105: 9.55 | N105: 0.106 | O105: 0.103 | P105: 0.118 | Q105: 0.44 | R105: 0.3174 | S105: 0.025 | T105: 0.005 | U105: 0.95 | V105: 0 | W105: 0
A106: Adquisicion PF No_Premier Nómina Especial Cofinavit Pago_Bajo_Puntual Si 20 | B106: Adquisicion PF No_Premier Nómina Especial Cofinavit Pago_Bajo_Puntual Si 20 0.103 | C106: Adquisicion | D106: PF | E106: No_Premier | F106: Nómina Especial | G106: Cofinavit | I106: Pago_Bajo_Puntual | J106: 20 | K106: 1 y 2 | L106: 9 | M106: 9.66 | N106: 0.103 | O106: 0.1 | P106: 0.112 | Q106: 0.44 | R106: 0.3174 | S106: 0.025 | T106: 0.005 | U106: 0.95 | V106: 0 | W106: 0 | X106: Si
A107: Adquisicion PF No_Premier Nómina Especial Cofinavit Pago_Bajo_Puntual 20 | B107: Adquisicion PF No_Premier Nómina Especial Cofinavit Pago_Bajo_Puntual 20 0.106 | C107: Adquisicion | D107: PF | E107: No_Premier | F107: Nómina Especial | G107: Cofinavit | I107: Pago_Bajo_Puntual | J107: 20 | K107: 3 | L107: 9.24 | M107: 9.9 | N107: 0.106 | O107: 0.103 | P107: 0.118 | Q107: 0.44 | R107: 0.3174 | S107: 0.025 | T107: 0.005 | U107: 0.95 | V107: 0 | W107: 0
A108: Adquisicion PF No_Premier Nómina Especial Cofinavit Pago_Bajo_Puntual Si 15 | B108: Adquisicion PF No_Premier Nómina Especial Cofinavit Pago_Bajo_Puntual Si 15 0.103 | C108: Adquisicion | D108: PF | E108: No_Premier | F108: Nómina Especial | G108: Cofinavit | I108: Pago_Bajo_Puntual | J108: 15 | K108: 1 y 2 | L108: 10.12 | M108: 10.78 | N108: 0.103 | O108: 0.1 | P108: 0.112 | Q108: 0.44 | R108: 0.3174 | S108: 0.025 | T108: 0.005 | U108: 0.95 | V108: 0 | W108: 0 | X108: Si
A109: Adquisicion PF No_Premier Nómina Especial Cofinavit Pago_Bajo_Puntual 15 | B109: Adquisicion PF No_Premier Nómina Especial Cofinavit Pago_Bajo_Puntual 15 0.106 | C109: Adquisicion | D109: PF | E109: No_Premier | F109: Nómina Especial | G109: Cofinavit | I109: Pago_Bajo_Puntual | J109: 15 | K109: 3 | L109: 10.33 | M109: 10.99 | N109: 0.106 | O109: 0.103 | P109: 0.118 | Q109: 0.44 | R109: 0.3174 | S109: 0.025 | T109: 0.005 | U109: 0.95 | V109: 0 | W109: 0
A110: Adquisicion PF No_Premier Nómina Especial Cofinavit Pago_Bajo_Puntual Si 10 | B110: Adquisicion PF No_Premier Nómina Especial Cofinavit Pago_Bajo_Puntual Si 10 0.103 | C110: Adquisicion | D110: PF | E110: No_Premier | F110: Nómina Especial | G110: Cofinavit | I110: Pago_Bajo_Puntual | J110: 10 | K110: 1 y 2 | L110: 12.62 | M110: 13.28 | N110: 0.103 | O110: 0.1 | P110: 0.112 | Q110: 0.44 | R110: 0.3174 | S110: 0.025 | T110: 0.005 | U110: 0.95 | V110: 0 | W110: 0 | X110: Si
A111: Adquisicion PF No_Premier Nómina Especial Cofinavit Pago_Bajo_Puntual 10 | B111: Adquisicion PF No_Premier Nómina Especial Cofinavit Pago_Bajo_Puntual 10 0.106 | C111: Adquisicion | D111: PF | E111: No_Premier | F111: Nómina Especial | G111: Cofinavit | I111: Pago_Bajo_Puntual | J111: 10 | K111: 3 | L111: 12.78 | M111: 13.44 | N111: 0.106 | O111: 0.103 | P111: 0.118 | Q111: 0.44 | R111: 0.3174 | S111: 0.025 | T111: 0.005 | U111: 0.95 | V111: 0 | W111: 0
A112: Adquisicion PF No_Premier Nómina Especial Cofinavit Pago_Bajo_Puntual Si 5 | B112: Adquisicion PF No_Premier Nómina Especial Cofinavit Pago_Bajo_Puntual Si 5 0.103 | C112: Adquisicion | D112: PF | E112: No_Premier | F112: Nómina Especial | G112: Cofinavit | I112: Pago_Bajo_Puntual | J112: 5 | K112: 1 y 2 | L112: 20.72 | M112: 21.38 | N112: 0.103 | O112: 0.1 | P112: 0.112 | Q112: 0.44 | R112: 0.3174 | S112: 0.025 | T112: 0.005 | U112: 0.95 | V112: 0 | W112: 0 | X112: Si
A113: Adquisicion PF No_Premier Nómina Especial Cofinavit Pago_Bajo_Puntual 5 | B113: Adquisicion PF No_Premier Nómina Especial Cofinavit Pago_Bajo_Puntual 5 0.106 | C113: Adquisicion | D113: PF | E113: No_Premier | F113: Nómina Especial | G113: Cofinavit | I113: Pago_Bajo_Puntual | J113: 5 | K113: 3 | L113: 20.86 | M113: 21.52 | N113: 0.106 | O113: 0.103 | P113: 0.118 | Q113: 0.44 | R113: 0.3174 | S113: 0.025 | T113: 0.005 | U113: 0.95 | V113: 0 | W113: 0
A114: Adquisicion PF No_Premier Normal Apoyo Infonavit Pago_Fijo_Puntual Si 25 | B114: Adquisicion PF No_Premier Normal Apoyo Infonavit Pago_Fijo_Puntual Si 25 0.103 | C114: Adquisicion | D114: PF | E114: No_Premier | F114: Normal | G114: Apoyo Infonavit | I114: Pago_Fijo_Puntual | J114: 25 | K114: 1 y 2 | L114: 9.65 | M114: 10.31 | N114: 0.103 | O114: 0.1 | P114: 0.112 | Q114: 0.44 | R114: 0.3174 | S114: 0.025 | T114: 0.005 | U114: 0.95 | V114: 0 | W114: 0 | X114: Si
A115: Adquisicion PF No_Premier Normal Apoyo Infonavit Pago_Fijo_Puntual 25 | B115: Adquisicion PF No_Premier Normal Apoyo Infonavit Pago_Fijo_Puntual 25 0.106 | C115: Adquisicion | D115: PF | E115: No_Premier | F115: Normal | G115: Apoyo Infonavit | I115: Pago_Fijo_Puntual | J115: 25 | K115: 3 | L115: 9.93 | M115: 10.59 | N115: 0.106 | O115: 0.103 | P115: 0.118 | Q115: 0.44 | R115: 0.3174 | S115: 0.025 | T115: 0.005 | U115: 0.95 | V115: 0 | W115: 0
A116: Adquisicion PF No_Premier Normal Apoyo Infonavit Pago_Fijo_Puntual Si 20 | B116: Adquisicion PF No_Premier Normal Apoyo Infonavit Pago_Fijo_Puntual Si 20 0.103 | C116: Adquisicion | D116: PF | E116: No_Premier | F116: Normal | G116: Apoyo Infonavit | I116: Pago_Fijo_Puntual | J116: 20 | K116: 1 y 2 | L116: 10.16 | M116: 10.82 | N116: 0.103 | O116: 0.1 | P116: 0.112 | Q116: 0.44 | R116: 0.3174 | S116: 0.025 | T116: 0.005 | U116: 0.95 | V116: 0 | W116: 0 | X116: Si
A117: Adquisicion PF No_Premier Normal Apoyo Infonavit Pago_Fijo_Puntual 20 | B117: Adquisicion PF No_Premier Normal Apoyo Infonavit Pago_Fijo_Puntual 20 0.106 | C117: Adquisicion | D117: PF | E117: No_Premier | F117: Normal | G117: Apoyo Infonavit | I117: Pago_Fijo_Puntual | J117: 20 | K117: 3 | L117: 10.41 | M117: 11.07 | N117: 0.106 | O117: 0.103 | P117: 0.118 | Q117: 0.44 | R117: 0.3174 | S117: 0.025 | T117: 0.005 | U117: 0.95 | V117: 0 | W117: 0
A118: Adquisicion PF No_Premier Normal Apoyo Infonavit Pago_Fijo_Puntual Si 15 | B118: Adquisicion PF No_Premier Normal Apoyo Infonavit Pago_Fijo_Puntual Si 15 0.103 | C118: Adquisicion | D118: PF | E118: No_Premier | F118: Normal | G118: Apoyo Infonavit | I118: Pago_Fijo_Puntual | J118: 15 | K118: 1 y 2 | L118: 11.18 | M118: 11.84 | N118: 0.103 | O118: 0.1 | P118: 0.112 | Q118: 0.44 | R118: 0.3174 | S118: 0.025 | T118: 0.005 | U118: 0.95 | V118: 0 | W118: 0 | X118: Si
A119: Adquisicion PF No_Premier Normal Apoyo Infonavit Pago_Fijo_Puntual 15 | B119: Adquisicion PF No_Premier Normal Apoyo Infonavit Pago_Fijo_Puntual 15 0.106 | C119: Adquisicion | D119: PF | E119: No_Premier | F119: Normal | G119: Apoyo Infonavit | I119: Pago_Fijo_Puntual | J119: 15 | K119: 3 | L119: 11.39 | M119: 12.05 | N119: 0.106 | O119: 0.103 | P119: 0.118 | Q119: 0.44 | R119: 0.3174 | S119: 0.025 | T119: 0.005 | U119: 0.95 | V119: 0 | W119: 0
A120: Adquisicion PF No_Premier Normal Apoyo Infonavit Pago_Fijo_Puntual Si 10 | B120: Adquisicion PF No_Premier Normal Apoyo Infonavit Pago_Fijo_Puntual Si 10 0.103 | C120: Adquisicion | D120: PF | E120: No_Premier | F120: Normal | G120: Apoyo Infonavit | I120: Pago_Fijo_Puntual | J120: 10 | K120: 1 y 2 | L120: 13.54 | M120: 14.2 | N120: 0.103 | O120: 0.1 | P120: 0.112 | Q120: 0.44 | R120: 0.3174 | S120: 0.025 | T120: 0.005 | U120: 0.95 | V120: 0 | W120: 0 | X120: Si
A121: Adquisicion PF No_Premier Normal Apoyo Infonavit Pago_Fijo_Puntual 10 | B121: Adquisicion PF No_Premier Normal Apoyo Infonavit Pago_Fijo_Puntual 10 0.106 | C121: Adquisicion | D121: PF | E121: No_Premier | F121: Normal | G121: Apoyo Infonavit | I121: Pago_Fijo_Puntual | J121: 10 | K121: 3 | L121: 13.71 | M121: 14.37 | N121: 0.106 | O121: 0.103 | P121: 0.118 | Q121: 0.44 | R121: 0.3174 | S121: 0.025 | T121: 0.005 | U121: 0.95 | V121: 0 | W121: 0
A122: Adquisicion PF No_Premier Normal Apoyo Infonavit Pago_Fijo_Puntual Si 5 | B122: Adquisicion PF No_Premier Normal Apoyo Infonavit Pago_Fijo_Puntual Si 5 0.103 | C122: Adquisicion | D122: PF | E122: No_Premier | F122: Normal | G122: Apoyo Infonavit | I122: Pago_Fijo_Puntual | J122: 5 | K122: 1 y 2 | L122: 21.44 | M122: 22.1 | N122: 0.103 | O122: 0.1 | P122: 0.112 | Q122: 0.44 | R122: 0.3174 | S122: 0.025 | T122: 0.005 | U122: 0.95 | V122: 0 | W122: 0 | X122: Si
A123: Adquisicion PF No_Premier Normal Apoyo Infonavit Pago_Fijo_Puntual 5 | B123: Adquisicion PF No_Premier Normal Apoyo Infonavit Pago_Fijo_Puntual 5 0.106 | C123: Adquisicion | D123: PF | E123: No_Premier | F123: Normal | G123: Apoyo Infonavit | I123: Pago_Fijo_Puntual | J123: 5 | K123: 3 | L123: 21.59 | M123: 22.25 | N123: 0.106 | O123: 0.103 | P123: 0.118 | Q123: 0.44 | R123: 0.3174 | S123: 0.025 | T123: 0.005 | U123: 0.95 | V123: 0 | W123: 0
A124: Adquisicion PF No_Premier Normal Apoyo Infonavit Pago_Bajo_Puntual Si 25 | B124: Adquisicion PF No_Premier Normal Apoyo Infonavit Pago_Bajo_Puntual Si 25 0.103 | C124: Adquisicion | D124: PF | E124: No_Premier | F124: Normal | G124: Apoyo Infonavit | I124: Pago_Bajo_Puntual | J124: 25 | K124: 1 y 2 | L124: 8.64 | M124: 9.3 | N124: 0.103 | O124: 0.1 | P124: 0.112 | Q124: 0.44 | R124: 0.3174 | S124: 0.025 | T124: 0.005 | U124: 0.95 | V124: 0 | W124: 0 | X124: Si
A125: Adquisicion PF No_Premier Normal Apoyo Infonavit Pago_Bajo_Puntual 25 | B125: Adquisicion PF No_Premier Normal Apoyo Infonavit Pago_Bajo_Puntual 25 0.106 | C125: Adquisicion | D125: PF | E125: No_Premier | F125: Normal | G125: Apoyo Infonavit | I125: Pago_Bajo_Puntual | J125: 25 | K125: 3 | L125: 8.89 | M125: 9.55 | N125: 0.106 | O125: 0.103 | P125: 0.118 | Q125: 0.44 | R125: 0.3174 | S125: 0.025 | T125: 0.005 | U125: 0.95 | V125: 0 | W125: 0
A126: Adquisicion PF No_Premier Normal Apoyo Infonavit Pago_Bajo_Puntual Si 20 | B126: Adquisicion PF No_Premier Normal Apoyo Infonavit Pago_Bajo_Puntual Si 20 0.103 | C126: Adquisicion | D126: PF | E126: No_Premier | F126: Normal | G126: Apoyo Infonavit | I126: Pago_Bajo_Puntual | J126: 20 | K126: 1 y 2 | L126: 9 | M126: 9.66 | N126: 0.103 | O126: 0.1 | P126: 0.112 | Q126: 0.44 | R126: 0.3174 | S126: 0.025 | T126: 0.005 | U126: 0.95 | V126: 0 | W126: 0 | X126: Si
A127: Adquisicion PF No_Premier Normal Apoyo Infonavit Pago_Bajo_Puntual 20 | B127: Adquisicion PF No_Premier Normal Apoyo Infonavit Pago_Bajo_Puntual 20 0.106 | C127: Adquisicion | D127: PF | E127: No_Premier | F127: Normal | G127: Apoyo Infonavit | I127: Pago_Bajo_Puntual | J127: 20 | K127: 3 | L127: 9.24 | M127: 9.9 | N127: 0.106 | O127: 0.103 | P127: 0.118 | Q127: 0.44 | R127: 0.3174 | S127: 0.025 | T127: 0.005 | U127: 0.95 | V127: 0 | W127: 0
A128: =TRIM(CONCATENATE(C128," ",D128," ",E128," ",F128," ",G128," ",I128," ",X128," ",J128)) -> Adquisicion PF No_Premier Normal Apoyo Infonavit Pago_Bajo_Puntual Si 15 | B128: =CONCATENATE(A128," ",N128) -> Adquisicion PF No_Premier Normal Apoyo Infonavit Pago_Bajo_Puntual Si 15 0.103 | C128: Adquisicion | D128: PF | E128: No_Premier | F128: Normal | G128: Apoyo Infonavit | I128: Pago_Bajo_Puntual | J128: 15 | K128: 1 y 2 | L128: 10.12 | M128: 10.78 | N128: 0.103 | O128: 0.1 | P128: 0.112 | Q128: 0.44 | R128: 0.3174 | S128: 0.025 | T128: 0.005 | U128: 0.95 | V128: 0 | W128: 0 | X128: Si
A129: Adquisicion PF No_Premier Normal Apoyo Infonavit Pago_Bajo_Puntual 15 | B129: Adquisicion PF No_Premier Normal Apoyo Infonavit Pago_Bajo_Puntual 15 0.106 | C129: Adquisicion | D129: PF | E129: No_Premier | F129: Normal | G129: Apoyo Infonavit | I129: Pago_Bajo_Puntual | J129: 15 | K129: 3 | L129: 10.33 | M129: 10.99 | N129: 0.106 | O129: 0.103 | P129: 0.118 | Q129: 0.44 | R129: 0.3174 | S129: 0.025 | T129: 0.005 | U129: 0.95 | V129: 0 | W129: 0
A130: Adquisicion PF No_Premier Normal Apoyo Infonavit Pago_Bajo_Puntual Si 10 | B130: Adquisicion PF No_Premier Normal Apoyo Infonavit Pago_Bajo_Puntual Si 10 0.103 | C130: Adquisicion | D130: PF | E130: No_Premier | F130: Normal | G130: Apoyo Infonavit | I130: Pago_Bajo_Puntual | J130: 10 | K130: 1 y 2 | L130: 12.62 | M130: 13.28 | N130: 0.103 | O130: 0.1 | P130: 0.112 | Q130: 0.44 | R130: 0.3174 | S130: 0.025 | T130: 0.005 | U130: 0.95 | V130: 0 | W130: 0 | X130: Si
A131: Adquisicion PF No_Premier Normal Apoyo Infonavit Pago_Bajo_Puntual 10 | B131: Adquisicion PF No_Premier Normal Apoyo Infonavit Pago_Bajo_Puntual 10 0.106 | C131: Adquisicion | D131: PF | E131: No_Premier | F131: Normal | G131: Apoyo Infonavit | I131: Pago_Bajo_Puntual | J131: 10 | K131: 3 | L131: 12.78 | M131: 13.44 | N131: 0.106 | O131: 0.103 | P131: 0.118 | Q131: 0.44 | R131: 0.3174 | S131: 0.025 | T131: 0.005 | U131: 0.95 | V131: 0 | W131: 0
A132: Adquisicion PF No_Premier Normal Apoyo Infonavit Pago_Bajo_Puntual Si 5 | B132: Adquisicion PF No_Premier Normal Apoyo Infonavit Pago_Bajo_Puntual Si 5 0.103 | C132: Adquisicion | D132: PF | E132: No_Premier | F132: Normal | G132: Apoyo Infonavit | I132: Pago_Bajo_Puntual | J132: 5 | K132: 1 y 2 | L132: 20.72 | M132: 21.38 | N132: 0.103 | O132: 0.1 | P132: 0.112 | Q132: 0.44 | R132: 0.3174 | S132: 0.025 | T132: 0.005 | U132: 0.95 | V132: 0 | W132: 0 | X132: Si
A133: Adquisicion PF No_Premier Normal Apoyo Infonavit Pago_Bajo_Puntual 5 | B133: Adquisicion PF No_Premier Normal Apoyo Infonavit Pago_Bajo_Puntual 5 0.106 | C133: Adquisicion | D133: PF | E133: No_Premier | F133: Normal | G133: Apoyo Infonavit | I133: Pago_Bajo_Puntual | J133: 5 | K133: 3 | L133: 20.86 | M133: 21.52 | N133: 0.106 | O133: 0.103 | P133: 0.118 | Q133: 0.44 | R133: 0.3174 | S133: 0.025 | T133: 0.005 | U133: 0.95 | V133: 0 | W133: 0
A134: Adquisicion PF No_Premier Nómina Especial Mercado_Abierto Pago_Fijo_Puntual Si 20 | B134: =CONCATENATE(A134," ",N134) -> Adquisicion PF No_Premier Nómina Especial Mercado_Abierto Pago_Fijo_Puntual Si 20 0.103 | C134: Adquisicion | D134: PF | E134: No_Premier | F134: Nómina Especial | G134: Mercado_Abierto | I134: Pago_Fijo_Puntual | J134: 20 | K134: 1 y 2 | L134: 10.16 | M134: 10.82 | N134: 0.103 | O134: 0.1 | P134: 0.112 | Q134: 0.44 | R134: 0.3174 | S134: 0.025 | T134: 0.005 | U134: 0.9 | V134: 0 | W134: 250 | X134: Si
A135: =TRIM(CONCATENATE(C135," ",D135," ",E135," ",F135," ",G135," ",I135," ",X135," ",J135)) -> Adquisicion PF No_Premier Nómina Especial Mercado_Abierto Pago_Fijo_Puntual 20 | B135: Adquisicion PF No_Premier Nómina Especial Mercado_Abierto Pago_Fijo_Puntual 20 0.106 | C135: Adquisicion | D135: PF | E135: No_Premier | F135: Nómina Especial | G135: Mercado_Abierto | I135: Pago_Fijo_Puntual | J135: 20 | K135: 3 | L135: 10.41 | M135: 11.07 | N135: 0.106 | O135: 0.103 | P135: 0.118 | Q135: 0.44 | R135: 0.3174 | S135: 0.025 | T135: 0.005 | U135: 0.85 | V135: 0 | W135: 250
A136: Adquisicion PF No_Premier Nómina Especial Mercado_Abierto Pago_Fijo_Puntual Si 15 | B136: Adquisicion PF No_Premier Nómina Especial Mercado_Abierto Pago_Fijo_Puntual Si 15 0.103 | C136: Adquisicion | D136: PF | E136: No_Premier | F136: Nómina Especial | G136: Mercado_Abierto | I136: Pago_Fijo_Puntual | J136: 15 | K136: 1 y 2 | L136: 11.18 | M136: 11.84 | N136: 0.103 | O136: 0.1 | P136: 0.112 | Q136: 0.44 | R136: 0.3174 | S136: 0.025 | T136: 0.005 | U136: 0.9 | V136: 0 | W136: 250 | X136: Si
A137: Adquisicion PF No_Premier Nómina Especial Mercado_Abierto Pago_Fijo_Puntual 15 | B137: Adquisicion PF No_Premier Nómina Especial Mercado_Abierto Pago_Fijo_Puntual 15 0.106 | C137: Adquisicion | D137: PF | E137: No_Premier | F137: Nómina Especial | G137: Mercado_Abierto | I137: Pago_Fijo_Puntual | J137: 15 | K137: 3 | L137: 11.39 | M137: 12.05 | N137: 0.106 | O137: 0.103 | P137: 0.118 | Q137: 0.44 | R137: 0.3174 | S137: 0.025 | T137: 0.005 | U137: 0.85 | V137: 0 | W137: 250
A138: Adquisicion PF No_Premier Nómina Especial Mercado_Abierto Pago_Fijo_Puntual Si 10 | B138: Adquisicion PF No_Premier Nómina Especial Mercado_Abierto Pago_Fijo_Puntual Si 10 0.103 | C138: Adquisicion | D138: PF | E138: No_Premier | F138: Nómina Especial | G138: Mercado_Abierto | I138: Pago_Fijo_Puntual | J138: 10 | K138: 1 y 2 | L138: 13.54 | M138: 14.2 | N138: 0.103 | O138: 0.1 | P138: 0.112 | Q138: 0.44 | R138: 0.3174 | S138: 0.025 | T138: 0.005 | U138: 0.9 | V138: 0 | W138: 250 | X138: Si
A139: Adquisicion PF No_Premier Nómina Especial Mercado_Abierto Pago_Fijo_Puntual 10 | B139: Adquisicion PF No_Premier Nómina Especial Mercado_Abierto Pago_Fijo_Puntual 10 0.106 | C139: Adquisicion | D139: PF | E139: No_Premier | F139: Nómina Especial | G139: Mercado_Abierto | I139: Pago_Fijo_Puntual | J139: 10 | K139: 3 | L139: 13.71 | M139: 14.37 | N139: 0.106 | O139: 0.103 | P139: 0.118 | Q139: 0.44 | R139: 0.3174 | S139: 0.025 | T139: 0.005 | U139: 0.85 | V139: 0 | W139: 250
A140: Adquisicion PF No_Premier Nómina Especial Mercado_Abierto Pago_Fijo_Puntual Si 5 | B140: Adquisicion PF No_Premier Nómina Especial Mercado_Abierto Pago_Fijo_Puntual Si 5 0.103 | C140: Adquisicion | D140: PF | E140: No_Premier | F140: Nómina Especial | G140: Mercado_Abierto | I140: Pago_Fijo_Puntual | J140: 5 | K140: 1 y 2 | L140: 21.44 | M140: 22.1 | N140: 0.103 | O140: 0.1 | P140: 0.112 | Q140: 0.44 | R140: 0.3174 | S140: 0.025 | T140: 0.005 | U140: 0.9 | V140: 0 | W140: 250 | X140: Si
A141: Adquisicion PF No_Premier Nómina Especial Mercado_Abierto Pago_Fijo_Puntual 5 | B141: Adquisicion PF No_Premier Nómina Especial Mercado_Abierto Pago_Fijo_Puntual 5 0.106 | C141: Adquisicion | D141: PF | E141: No_Premier | F141: Nómina Especial | G141: Mercado_Abierto | I141: Pago_Fijo_Puntual | J141: 5 | K141: 3 | L141: 21.59 | M141: 22.25 | N141: 0.106 | O141: 0.103 | P141: 0.118 | Q141: 0.44 | R141: 0.3174 | S141: 0.025 | T141: 0.005 | U141: 0.85 | V141: 0 | W141: 250
A142: Adquisicion PF No_Premier Nómina Especial Mercado_Abierto Pago_Bajo_Puntual Si 20 | B142: Adquisicion PF No_Premier Nómina Especial Mercado_Abierto Pago_Bajo_Puntual Si 20 0.103 | C142: Adquisicion | D142: PF | E142: No_Premier | F142: Nómina Especial | G142: Mercado_Abierto | I142: Pago_Bajo_Puntual | J142: 20 | K142: 1 y 2 | L142: 9 | M142: 9.66 | N142: 0.103 | O142: 0.1 | P142: 0.112 | Q142: 0.44 | R142: 0.3174 | S142: 0.025 | T142: 0.005 | U142: 0.9 | V142: 0 | W142: 250 | X142: Si
A143: Adquisicion PF No_Premier Nómina Especial Mercado_Abierto Pago_Bajo_Puntual 20 | B143: Adquisicion PF No_Premier Nómina Especial Mercado_Abierto Pago_Bajo_Puntual 20 0.106 | C143: Adquisicion | D143: PF | E143: No_Premier | F143: Nómina Especial | G143: Mercado_Abierto | I143: Pago_Bajo_Puntual | J143: 20 | K143: 3 | L143: 9.24 | M143: 9.9 | N143: 0.106 | O143: 0.103 | P143: 0.118 | Q143: 0.44 | R143: 0.3174 | S143: 0.025 | T143: 0.005 | U143: 0.85 | V143: 0 | W143: 250
A144: Adquisicion PF No_Premier Nómina Especial Mercado_Abierto Pago_Bajo_Puntual Si 15 | B144: Adquisicion PF No_Premier Nómina Especial Mercado_Abierto Pago_Bajo_Puntual Si 15 0.103 | C144: Adquisicion | D144: PF | E144: No_Premier | F144: Nómina Especial | G144: Mercado_Abierto | I144: Pago_Bajo_Puntual | J144: 15 | K144: 1 y 2 | L144: 10.12 | M144: 10.78 | N144: 0.103 | O144: 0.1 | P144: 0.112 | Q144: 0.44 | R144: 0.3174 | S144: 0.025 | T144: 0.005 | U144: 0.9 | V144: 0 | W144: 250 | X144: Si
A145: Adquisicion PF No_Premier Nómina Especial Mercado_Abierto Pago_Bajo_Puntual 15 | B145: Adquisicion PF No_Premier Nómina Especial Mercado_Abierto Pago_Bajo_Puntual 15 0.106 | C145: Adquisicion | D145: PF | E145: No_Premier | F145: Nómina Especial | G145: Mercado_Abierto | I145: Pago_Bajo_Puntual | J145: 15 | K145: 3 | L145: 10.33 | M145: 10.99 | N145: 0.106 | O145: 0.103 | P145: 0.118 | Q145: 0.44 | R145: 0.3174 | S145: 0.025 | T145: 0.005 | U145: 0.85 | V145: 0 | W145: 250
A146: Adquisicion PF No_Premier Nómina Especial Mercado_Abierto Pago_Bajo_Puntual Si 10 | B146: Adquisicion PF No_Premier Nómina Especial Mercado_Abierto Pago_Bajo_Puntual Si 10 0.103 | C146: Adquisicion | D146: PF | E146: No_Premier | F146: Nómina Especial | G146: Mercado_Abierto | I146: Pago_Bajo_Puntual | J146: 10 | K146: 1 y 2 | L146: 12.62 | M146: 13.28 | N146: 0.103 | O146: 0.1 | P146: 0.112 | Q146: 0.44 | R146: 0.3174 | S146: 0.025 | T146: 0.005 | U146: 0.9 | V146: 0 | W146: 250 | X146: Si
A147: Adquisicion PF No_Premier Nómina Especial Mercado_Abierto Pago_Bajo_Puntual 10 | B147: Adquisicion PF No_Premier Nómina Especial Mercado_Abierto Pago_Bajo_Puntual 10 0.106 | C147: Adquisicion | D147: PF | E147: No_Premier | F147: Nómina Especial | G147: Mercado_Abierto | I147: Pago_Bajo_Puntual | J147: 10 | K147: 3 | L147: 12.78 | M147: 13.44 | N147: 0.106 | O147: 0.103 | P147: 0.118 | Q147: 0.44 | R147: 0.3174 | S147: 0.025 | T147: 0.005 | U147: 0.85 | V147: 0 | W147: 250
A148: Adquisicion PF No_Premier Nómina Especial Mercado_Abierto Pago_Bajo_Puntual Si 5 | B148: Adquisicion PF No_Premier Nómina Especial Mercado_Abierto Pago_Bajo_Puntual Si 5 0.103 | C148: Adquisicion | D148: PF | E148: No_Premier | F148: Nómina Especial | G148: Mercado_Abierto | I148: Pago_Bajo_Puntual | J148: 5 | K148: 1 y 2 | L148: 20.72 | M148: 21.38 | N148: 0.103 | O148: 0.1 | P148: 0.112 | Q148: 0.44 | R148: 0.3174 | S148: 0.025 | T148: 0.005 | U148: 0.9 | V148: 0 | W148: 250 | X148: Si
A149: Adquisicion PF No_Premier Nómina Especial Mercado_Abierto Pago_Bajo_Puntual 5 | B149: Adquisicion PF No_Premier Nómina Especial Mercado_Abierto Pago_Bajo_Puntual 5 0.106 | C149: Adquisicion | D149: PF | E149: No_Premier | F149: Nómina Especial | G149: Mercado_Abierto | I149: Pago_Bajo_Puntual | J149: 5 | K149: 3 | L149: 20.86 | M149: 21.52 | N149: 0.106 | O149: 0.103 | P149: 0.118 | Q149: 0.44 | R149: 0.3174 | S149: 0.025 | T149: 0.005 | U149: 0.85 | V149: 0 | W149: 250
A150: Adquisicion PF No_Premier Nómina Especial Mercado_Abierto Pago_Fijo_Puntual 20 | B150: Adquisicion PF No_Premier Nómina Especial Mercado_Abierto Pago_Fijo_Puntual 20 0.0965 | C150: Adquisicion | D150: PF | E150: No_Premier | F150: Nómina Especial | G150: Mercado_Abierto | I150: Pago_Fijo_Puntual | J150: 20 | K150: 1 y 2 + | L150: 9.66 | M150: 10.32 | N150: 0.0965 | O150: 0.092 | P150: 0.1025 | Q150: 0.44 | R150: 0.3174 | S150: 0.025 | T150: 0.005 | U150: 0.7 | V150: 0 | W150: 250
A151: Adquisicion PF No_Premier Nómina Especial Mercado_Abierto Pago_Fijo_Puntual 20 | B151: Adquisicion PF No_Premier Nómina Especial Mercado_Abierto Pago_Fijo_Puntual 20 0.103 | C151: Adquisicion | D151: PF | E151: No_Premier | F151: Nómina Especial | G151: Mercado_Abierto | I151: Pago_Fijo_Puntual | J151: 20 | K151: 3 + | L151: 10.16 | M151: 10.82 | N151: 0.103 | O151: 0.1 | P151: 0.112 | Q151: 0.44 | R151: 0.3174 | S151: 0.025 | T151: 0.005 | U151: 0.7 | V151: 0 | W151: 250
A152: Adquisicion PF No_Premier Nómina Especial Mercado_Abierto Pago_Fijo_Puntual 15 | B152: Adquisicion PF No_Premier Nómina Especial Mercado_Abierto Pago_Fijo_Puntual 15 0.0965 | C152: Adquisicion | D152: PF | E152: No_Premier | F152: Nómina Especial | G152: Mercado_Abierto | I152: Pago_Fijo_Puntual | J152: 15 | K152: 1 y 2 + | L152: 10.73 | M152: 11.39 | N152: 0.0965 | O152: 0.092 | P152: 0.1025 | Q152: 0.44 | R152: 0.3174 | S152: 0.025 | T152: 0.005 | U152: 0.7 | V152: 0 | W152: 250
A153: Adquisicion PF No_Premier Nómina Especial Mercado_Abierto Pago_Fijo_Puntual 15 | B153: Adquisicion PF No_Premier Nómina Especial Mercado_Abierto Pago_Fijo_Puntual 15 0.103 | C153: Adquisicion | D153: PF | E153: No_Premier | F153: Nómina Especial | G153: Mercado_Abierto | I153: Pago_Fijo_Puntual | J153: 15 | K153: 3 + | L153: 11.18 | M153: 11.84 | N153: 0.103 | O153: 0.1 | P153: 0.112 | Q153: 0.44 | R153: 0.3174 | S153: 0.025 | T153: 0.005 | U153: 0.7 | V153: 0 | W153: 250
A154: Adquisicion PF No_Premier Nómina Especial Mercado_Abierto Pago_Fijo_Puntual 10 | B154: Adquisicion PF No_Premier Nómina Especial Mercado_Abierto Pago_Fijo_Puntual 10 0.0965 | C154: Adquisicion | D154: PF | E154: No_Premier | F154: Nómina Especial | G154: Mercado_Abierto | I154: Pago_Fijo_Puntual | J154: 10 | K154: 1 y 2 + | L154: 13.16 | M154: 13.82 | N154: 0.0965 | O154: 0.092 | P154: 0.1025 | Q154: 0.44 | R154: 0.3174 | S154: 0.025 | T154: 0.005 | U154: 0.7 | V154: 0 | W154: 250
A155: Adquisicion PF No_Premier Nómina Especial Mercado_Abierto Pago_Fijo_Puntual 10 | B155: Adquisicion PF No_Premier Nómina Especial Mercado_Abierto Pago_Fijo_Puntual 10 0.103 | C155: Adquisicion | D155: PF | E155: No_Premier | F155: Nómina Especial | G155: Mercado_Abierto | I155: Pago_Fijo_Puntual | J155: 10 | K155: 3 + | L155: 13.54 | M155: 14.2 | N155: 0.103 | O155: 0.1 | P155: 0.112 | Q155: 0.44 | R155: 0.3174 | S155: 0.025 | T155: 0.005 | U155: 0.7 | V155: 0 | W155: 250
A156: Adquisicion PF No_Premier Nómina Especial Mercado_Abierto Pago_Fijo_Puntual 5 | B156: Adquisicion PF No_Premier Nómina Especial Mercado_Abierto Pago_Fijo_Puntual 5 0.0965 | C156: Adquisicion | D156: PF | E156: No_Premier | F156: Nómina Especial | G156: Mercado_Abierto | I156: Pago_Fijo_Puntual | J156: 5 | K156: 1 y 2 + | L156: 21.12 | M156: 21.78 | N156: 0.0965 | O156: 0.092 | P156: 0.1025 | Q156: 0.44 | R156: 0.3174 | S156: 0.025 | T156: 0.005 | U156: 0.7 | V156: 0 | W156: 250
A157: Adquisicion PF No_Premier Nómina Especial Mercado_Abierto Pago_Fijo_Puntual 5 | B157: Adquisicion PF No_Premier Nómina Especial Mercado_Abierto Pago_Fijo_Puntual 5 0.103 | C157: Adquisicion | D157: PF | E157: No_Premier | F157: Nómina Especial | G157: Mercado_Abierto | I157: Pago_Fijo_Puntual | J157: 5 | K157: 3 + | L157: 21.44 | M157: 22.1 | N157: 0.103 | O157: 0.1 | P157: 0.112 | Q157: 0.44 | R157: 0.3174 | S157: 0.025 | T157: 0.005 | U157: 0.7 | V157: 0 | W157: 250
A158: Adquisicion PF No_Premier Nómina Especial Mercado_Abierto Pago_Bajo_Puntual 20 | B158: Adquisicion PF No_Premier Nómina Especial Mercado_Abierto Pago_Bajo_Puntual 20 0.0965 | C158: Adquisicion | D158: PF | E158: No_Premier | F158: Nómina Especial | G158: Mercado_Abierto | I158: Pago_Bajo_Puntual | J158: 20 | K158: 1 y 2 + | L158: 8.52 | M158: 9.18 | N158: 0.0965 | O158: 0.092 | P158: 0.1025 | Q158: 0.44 | R158: 0.3174 | S158: 0.025 | T158: 0.005 | U158: 0.7 | V158: 0 | W158: 250
A159: Adquisicion PF No_Premier Nómina Especial Mercado_Abierto Pago_Bajo_Puntual 20 | B159: Adquisicion PF No_Premier Nómina Especial Mercado_Abierto Pago_Bajo_Puntual 20 0.103 | C159: Adquisicion | D159: PF | E159: No_Premier | F159: Nómina Especial | G159: Mercado_Abierto | I159: Pago_Bajo_Puntual | J159: 20 | K159: 3 + | L159: 9 | M159: 9.66 | N159: 0.103 | O159: 0.1 | P159: 0.112 | Q159: 0.44 | R159: 0.3174 | S159: 0.025 | T159: 0.005 | U159: 0.7 | V159: 0 | W159: 250
A160: Adquisicion PF No_Premier Nómina Especial Mercado_Abierto Pago_Bajo_Puntual 15 | B160: Adquisicion PF No_Premier Nómina Especial Mercado_Abierto Pago_Bajo_Puntual 15 0.0965 | C160: Adquisicion | D160: PF | E160: No_Premier | F160: Nómina Especial | G160: Mercado_Abierto | I160: Pago_Bajo_Puntual | J160: 15 | K160: 1 y 2 + | L160: 9.7 | M160: 10.36 | N160: 0.0965 | O160: 0.092 | P160: 0.1025 | Q160: 0.44 | R160: 0.3174 | S160: 0.025 | T160: 0.005 | U160: 0.7 | V160: 0 | W160: 250
A161: Adquisicion PF No_Premier Nómina Especial Mercado_Abierto Pago_Bajo_Puntual 15 | B161: Adquisicion PF No_Premier Nómina Especial Mercado_Abierto Pago_Bajo_Puntual 15 0.103 | C161: Adquisicion | D161: PF | E161: No_Premier | F161: Nómina Especial | G161: Mercado_Abierto | I161: Pago_Bajo_Puntual | J161: 15 | K161: 3 + | L161: 10.12 | M161: 10.78 | N161: 0.103 | O161: 0.1 | P161: 0.112 | Q161: 0.44 | R161: 0.3174 | S161: 0.025 | T161: 0.005 | U161: 0.7 | V161: 0 | W161: 250
A162: Adquisicion PF No_Premier Nómina Especial Mercado_Abierto Pago_Bajo_Puntual 10 | B162: Adquisicion PF No_Premier Nómina Especial Mercado_Abierto Pago_Bajo_Puntual 10 0.0965 | C162: Adquisicion | D162: PF | E162: No_Premier | F162: Nómina Especial | G162: Mercado_Abierto | I162: Pago_Bajo_Puntual | J162: 10 | K162: 1 y 2 + | L162: 12.25 | M162: 12.91 | N162: 0.0965 | O162: 0.092 | P162: 0.1025 | Q162: 0.44 | R162: 0.3174 | S162: 0.025 | T162: 0.005 | U162: 0.7 | V162: 0 | W162: 250
A163: Adquisicion PF No_Premier Nómina Especial Mercado_Abierto Pago_Bajo_Puntual 10 | B163: Adquisicion PF No_Premier Nómina Especial Mercado_Abierto Pago_Bajo_Puntual 10 0.103 | C163: Adquisicion | D163: PF | E163: No_Premier | F163: Nómina Especial | G163: Mercado_Abierto | I163: Pago_Bajo_Puntual | J163: 10 | K163: 3 + | L163: 12.62 | M163: 13.28 | N163: 0.103 | O163: 0.1 | P163: 0.112 | Q163: 0.44 | R163: 0.3174 | S163: 0.025 | T163: 0.005 | U163: 0.7 | V163: 0 | W163: 250
A164: Adquisicion PF No_Premier Nómina Especial Mercado_Abierto Pago_Bajo_Puntual 5 | B164: Adquisicion PF No_Premier Nómina Especial Mercado_Abierto Pago_Bajo_Puntual 5 0.0965 | C164: Adquisicion | D164: PF | E164: No_Premier | F164: Nómina Especial | G164: Mercado_Abierto | I164: Pago_Bajo_Puntual | J164: 5 | K164: 1 y 2 + | L164: 20.4 | M164: 21.06 | N164: 0.0965 | O164: 0.092 | P164: 0.1025 | Q164: 0.44 | R164: 0.3174 | S164: 0.025 | T164: 0.005 | U164: 0.7 | V164: 0 | W164: 250
A165: Adquisicion PF No_Premier Nómina Especial Mercado_Abierto Pago_Bajo_Puntual 5 | B165: Adquisicion PF No_Premier Nómina Especial Mercado_Abierto Pago_Bajo_Puntual 5 0.103 | C165: Adquisicion | D165: PF | E165: No_Premier | F165: Nómina Especial | G165: Mercado_Abierto | I165: Pago_Bajo_Puntual | J165: 5 | K165: 3 + | L165: 20.72 | M165: 21.38 | N165: 0.103 | O165: 0.1 | P165: 0.112 | Q165: 0.44 | R165: 0.3174 | S165: 0.025 | T165: 0.005 | U165: 0.7 | V165: 0 | W165: 250
A166: Adquisicion PF No_Premier Normal Cofinavit Pago_Fijo_Puntual Si 25 | B166: Adquisicion PF No_Premier Normal Cofinavit Pago_Fijo_Puntual Si 25 0.103 | C166: Adquisicion | D166: PF | E166: No_Premier | F166: Normal | G166: Cofinavit | I166: Pago_Fijo_Puntual | J166: 25 | K166: 1 y 2 | L166: 9.65 | M166: 10.31 | N166: 0.103 | O166: 0.1 | P166: 0.112 | Q166: 0.44 | R166: 0.3174 | S166: 0.025 | T166: 0.005 | U166: 0.95 | V166: 0 | W166: 0 | X166: Si
A167: Adquisicion PF No_Premier Normal Cofinavit Pago_Fijo_Puntual 25 | B167: Adquisicion PF No_Premier Normal Cofinavit Pago_Fijo_Puntual 25 0.106 | C167: Adquisicion | D167: PF | E167: No_Premier | F167: Normal | G167: Cofinavit | I167: Pago_Fijo_Puntual | J167: 25 | K167: 3 | L167: 9.93 | M167: 10.59 | N167: 0.106 | O167: 0.103 | P167: 0.118 | Q167: 0.44 | R167: 0.3174 | S167: 0.025 | T167: 0.005 | U167: 0.95 | V167: 0 | W167: 0
A168: Adquisicion PF No_Premier Normal Cofinavit Pago_Fijo_Puntual Si 20 | B168: Adquisicion PF No_Premier Normal Cofinavit Pago_Fijo_Puntual Si 20 0.103 | C168: Adquisicion | D168: PF | E168: No_Premier | F168: Normal | G168: Cofinavit | I168: Pago_Fijo_Puntual | J168: 20 | K168: 1 y 2 | L168: 10.16 | M168: 10.82 | N168: 0.103 | O168: 0.1 | P168: 0.112 | Q168: 0.44 | R168: 0.3174 | S168: 0.025 | T168: 0.005 | U168: 0.95 | V168: 0 | W168: 0 | X168: Si
A169: Adquisicion PF No_Premier Normal Cofinavit Pago_Fijo_Puntual 20 | B169: Adquisicion PF No_Premier Normal Cofinavit Pago_Fijo_Puntual 20 0.106 | C169: Adquisicion | D169: PF | E169: No_Premier | F169: Normal | G169: Cofinavit | I169: Pago_Fijo_Puntual | J169: 20 | K169: 3 | L169: 10.41 | M169: 11.07 | N169: 0.106 | O169: 0.103 | P169: 0.118 | Q169: 0.44 | R169: 0.3174 | S169: 0.025 | T169: 0.005 | U169: 0.95 | V169: 0 | W169: 0
A170: Adquisicion PF No_Premier Normal Cofinavit Pago_Fijo_Puntual Si 15 | B170: Adquisicion PF No_Premier Normal Cofinavit Pago_Fijo_Puntual Si 15 0.103 | C170: Adquisicion | D170: PF | E170: No_Premier | F170: Normal | G170: Cofinavit | I170: Pago_Fijo_Puntual | J170: 15 | K170: 1 y 2 | L170: 11.18 | M170: 11.84 | N170: 0.103 | O170: 0.1 | P170: 0.112 | Q170: 0.44 | R170: 0.3174 | S170: 0.025 | T170: 0.005 | U170: 0.95 | V170: 0 | W170: 0 | X170: Si
A171: Adquisicion PF No_Premier Normal Cofinavit Pago_Fijo_Puntual 15 | B171: Adquisicion PF No_Premier Normal Cofinavit Pago_Fijo_Puntual 15 0.106 | C171: Adquisicion | D171: PF | E171: No_Premier | F171: Normal | G171: Cofinavit | I171: Pago_Fijo_Puntual | J171: 15 | K171: 3 | L171: 11.39 | M171: 12.05 | N171: 0.106 | O171: 0.103 | P171: 0.118 | Q171: 0.44 | R171: 0.3174 | S171: 0.025 | T171: 0.005 | U171: 0.95 | V171: 0 | W171: 0
A172: Adquisicion PF No_Premier Normal Cofinavit Pago_Fijo_Puntual Si 10 | B172: Adquisicion PF No_Premier Normal Cofinavit Pago_Fijo_Puntual Si 10 0.103 | C172: Adquisicion | D172: PF | E172: No_Premier | F172: Normal | G172: Cofinavit | I172: Pago_Fijo_Puntual | J172: 10 | K172: 1 y 2 | L172: 13.54 | M172: 14.2 | N172: 0.103 | O172: 0.1 | P172: 0.112 | Q172: 0.44 | R172: 0.3174 | S172: 0.025 | T172: 0.005 | U172: 0.95 | V172: 0 | W172: 0 | X172: Si
A173: Adquisicion PF No_Premier Normal Cofinavit Pago_Fijo_Puntual 10 | B173: Adquisicion PF No_Premier Normal Cofinavit Pago_Fijo_Puntual 10 0.106 | C173: Adquisicion | D173: PF | E173: No_Premier | F173: Normal | G173: Cofinavit | I173: Pago_Fijo_Puntual | J173: 10 | K173: 3 | L173: 13.71 | M173: 14.37 | N173: 0.106 | O173: 0.103 | P173: 0.118 | Q173: 0.44 | R173: 0.3174 | S173: 0.025 | T173: 0.005 | U173: 0.95 | V173: 0 | W173: 0
A174: Adquisicion PF No_Premier Normal Cofinavit Pago_Fijo_Puntual Si 5 | B174: Adquisicion PF No_Premier Normal Cofinavit Pago_Fijo_Puntual Si 5 0.103 | C174: Adquisicion | D174: PF | E174: No_Premier | F174: Normal | G174: Cofinavit | I174: Pago_Fijo_Puntual | J174: 5 | K174: 1 y 2 | L174: 21.44 | M174: 22.1 | N174: 0.103 | O174: 0.1 | P174: 0.112 | Q174: 0.44 | R174: 0.3174 | S174: 0.025 | T174: 0.005 | U174: 0.95 | V174: 0 | W174: 0 | X174: Si
A175: Adquisicion PF No_Premier Normal Cofinavit Pago_Fijo_Puntual 5 | B175: Adquisicion PF No_Premier Normal Cofinavit Pago_Fijo_Puntual 5 0.106 | C175: Adquisicion | D175: PF | E175: No_Premier | F175: Normal | G175: Cofinavit | I175: Pago_Fijo_Puntual | J175: 5 | K175: 3 | L175: 21.59 | M175: 22.25 | N175: 0.106 | O175: 0.103 | P175: 0.118 | Q175: 0.44 | R175: 0.3174 | S175: 0.025 | T175: 0.005 | U175: 0.95 | V175: 0 | W175: 0
A176: Adquisicion PF No_Premier Normal Cofinavit Pago_Bajo_Puntual Si 25 | B176: Adquisicion PF No_Premier Normal Cofinavit Pago_Bajo_Puntual Si 25 0.103 | C176: Adquisicion | D176: PF | E176: No_Premier | F176: Normal | G176: Cofinavit | I176: Pago_Bajo_Puntual | J176: 25 | K176: 1 y 2 | L176: 8.64 | M176: 9.3 | N176: 0.103 | O176: 0.1 | P176: 0.112 | Q176: 0.44 | R176: 0.3174 | S176: 0.025 | T176: 0.005 | U176: 0.95 | V176: 0 | W176: 0 | X176: Si
A177: Adquisicion PF No_Premier Normal Cofinavit Pago_Bajo_Puntual 25 | B177: Adquisicion PF No_Premier Normal Cofinavit Pago_Bajo_Puntual 25 0.106 | C177: Adquisicion | D177: PF | E177: No_Premier | F177: Normal | G177: Cofinavit | I177: Pago_Bajo_Puntual | J177: 25 | K177: 3 | L177: 8.89 | M177: 9.55 | N177: 0.106 | O177: 0.103 | P177: 0.118 | Q177: 0.44 | R177: 0.3174 | S177: 0.025 | T177: 0.005 | U177: 0.95 | V177: 0 | W177: 0
A178: Adquisicion PF No_Premier Normal Cofinavit Pago_Bajo_Puntual Si 20 | B178: Adquisicion PF No_Premier Normal Cofinavit Pago_Bajo_Puntual Si 20 0.103 | C178: Adquisicion | D178: PF | E178: No_Premier | F178: Normal | G178: Cofinavit | I178: Pago_Bajo_Puntual | J178: 20 | K178: 1 y 2 | L178: 9 | M178: 9.66 | N178: 0.103 | O178: 0.1 | P178: 0.112 | Q178: 0.44 | R178: 0.3174 | S178: 0.025 | T178: 0.005 | U178: 0.95 | V178: 0 | W178: 0 | X178: Si
A179: Adquisicion PF No_Premier Normal Cofinavit Pago_Bajo_Puntual 20 | B179: Adquisicion PF No_Premier Normal Cofinavit Pago_Bajo_Puntual 20 0.106 | C179: Adquisicion | D179: PF | E179: No_Premier | F179: Normal | G179: Cofinavit | I179: Pago_Bajo_Puntual | J179: 20 | K179: 3 | L179: 9.24 | M179: 9.9 | N179: 0.106 | O179: 0.103 | P179: 0.118 | Q179: 0.44 | R179: 0.3174 | S179: 0.025 | T179: 0.005 | U179: 0.95 | V179: 0 | W179: 0
A180: Adquisicion PF No_Premier Normal Cofinavit Pago_Bajo_Puntual Si 15 | B180: Adquisicion PF No_Premier Normal Cofinavit Pago_Bajo_Puntual Si 15 0.103 | C180: Adquisicion | D180: PF | E180: No_Premier | F180: Normal | G180: Cofinavit | I180: Pago_Bajo_Puntual | J180: 15 | K180: 1 y 2 | L180: 10.12 | M180: 10.78 | N180: 0.103 | O180: 0.1 | P180: 0.112 | Q180: 0.44 | R180: 0.3174 | S180: 0.025 | T180: 0.005 | U180: 0.95 | V180: 0 | W180: 0 | X180: Si
A181: Adquisicion PF No_Premier Normal Cofinavit Pago_Bajo_Puntual 15 | B181: Adquisicion PF No_Premier Normal Cofinavit Pago_Bajo_Puntual 15 0.106 | C181: Adquisicion | D181: PF | E181: No_Premier | F181: Normal | G181: Cofinavit | I181: Pago_Bajo_Puntual | J181: 15 | K181: 3 | L181: 10.33 | M181: 10.99 | N181: 0.106 | O181: 0.103 | P181: 0.118 | Q181: 0.44 | R181: 0.3174 | S181: 0.025 | T181: 0.005 | U181: 0.95 | V181: 0 | W181: 0
A182: Adquisicion PF No_Premier Normal Cofinavit Pago_Bajo_Puntual Si 10 | B182: Adquisicion PF No_Premier Normal Cofinavit Pago_Bajo_Puntual Si 10 0.103 | C182: Adquisicion | D182: PF | E182: No_Premier | F182: Normal | G182: Cofinavit | I182: Pago_Bajo_Puntual | J182: 10 | K182: 1 y 2 | L182: 12.62 | M182: 13.28 | N182: 0.103 | O182: 0.1 | P182: 0.112 | Q182: 0.44 | R182: 0.3174 | S182: 0.025 | T182: 0.005 | U182: 0.95 | V182: 0 | W182: 0 | X182: Si
A183: Adquisicion PF No_Premier Normal Cofinavit Pago_Bajo_Puntual 10 | B183: Adquisicion PF No_Premier Normal Cofinavit Pago_Bajo_Puntual 10 0.106 | C183: Adquisicion | D183: PF | E183: No_Premier | F183: Normal | G183: Cofinavit | I183: Pago_Bajo_Puntual | J183: 10 | K183: 3 | L183: 12.78 | M183: 13.44 | N183: 0.106 | O183: 0.103 | P183: 0.118 | Q183: 0.44 | R183: 0.3174 | S183: 0.025 | T183: 0.005 | U183: 0.95 | V183: 0 | W183: 0
A184: Adquisicion PF No_Premier Normal Cofinavit Pago_Bajo_Puntual Si 5 | B184: Adquisicion PF No_Premier Normal Cofinavit Pago_Bajo_Puntual Si 5 0.103 | C184: Adquisicion | D184: PF | E184: No_Premier | F184: Normal | G184: Cofinavit | I184: Pago_Bajo_Puntual | J184: 5 | K184: 1 y 2 | L184: 20.72 | M184: 21.38 | N184: 0.103 | O184: 0.1 | P184: 0.112 | Q184: 0.44 | R184: 0.3174 | S184: 0.025 | T184: 0.005 | U184: 0.95 | V184: 0 | W184: 0 | X184: Si
A185: Adquisicion PF No_Premier Normal Cofinavit Pago_Bajo_Puntual 5 | B185: Adquisicion PF No_Premier Normal Cofinavit Pago_Bajo_Puntual 5 0.106 | C185: Adquisicion | D185: PF | E185: No_Premier | F185: Normal | G185: Cofinavit | I185: Pago_Bajo_Puntual | J185: 5 | K185: 3 | L185: 20.86 | M185: 21.52 | N185: 0.106 | O185: 0.103 | P185: 0.118 | Q185: 0.44 | R185: 0.3174 | S185: 0.025 | T185: 0.005 | U185: 0.95 | V185: 0 | W185: 0
A186: Adquisicion PF Premier Apoyo Infonavit Pago_Fijo_Puntual Si 25 | B186: Adquisicion PF Premier Apoyo Infonavit Pago_Fijo_Puntual Si 25 0.103 | C186: Adquisicion | D186: PF | E186: Premier | G186: Apoyo Infonavit | I186: Pago_Fijo_Puntual | J186: 25 | K186: 1 y 2 | L186: 9.65 | M186: 10.31 | N186: 0.103 | O186: 0.1 | P186: 0.112 | Q186: 0.44 | R186: 0.3174 | S186: 0.015 | T186: 0.005 | U186: 0.95 | V186: 0 | W186: 0 | X186: Si
A187: Adquisicion PF Premier Apoyo Infonavit Pago_Fijo_Puntual 25 | B187: Adquisicion PF Premier Apoyo Infonavit Pago_Fijo_Puntual 25 0.106 | C187: Adquisicion | D187: PF | E187: Premier | G187: Apoyo Infonavit | I187: Pago_Fijo_Puntual | J187: 25 | K187: 3 | L187: 9.93 | M187: 10.59 | N187: 0.106 | O187: 0.103 | P187: 0.118 | Q187: 0.44 | R187: 0.3174 | S187: 0.015 | T187: 0.005 | U187: 0.95 | V187: 0 | W187: 0
A188: Adquisicion PF Premier Apoyo Infonavit Pago_Fijo_Puntual Si 20 | B188: Adquisicion PF Premier Apoyo Infonavit Pago_Fijo_Puntual Si 20 0.103 | C188: Adquisicion | D188: PF | E188: Premier | G188: Apoyo Infonavit | I188: Pago_Fijo_Puntual | J188: 20 | K188: 1 y 2 | L188: 10.16 | M188: 10.82 | N188: 0.103 | O188: 0.1 | P188: 0.112 | Q188: 0.44 | R188: 0.3174 | S188: 0.015 | T188: 0.005 | U188: 0.95 | V188: 0 | W188: 0 | X188: Si
A189: Adquisicion PF Premier Apoyo Infonavit Pago_Fijo_Puntual 20 | B189: Adquisicion PF Premier Apoyo Infonavit Pago_Fijo_Puntual 20 0.106 | C189: Adquisicion | D189: PF | E189: Premier | G189: Apoyo Infonavit | I189: Pago_Fijo_Puntual | J189: 20 | K189: 3 | L189: 10.41 | M189: 11.07 | N189: 0.106 | O189: 0.103 | P189: 0.118 | Q189: 0.44 | R189: 0.3174 | S189: 0.015 | T189: 0.005 | U189: 0.95 | V189: 0 | W189: 0
A190: Adquisicion PF Premier Apoyo Infonavit Pago_Fijo_Puntual Si 15 | B190: Adquisicion PF Premier Apoyo Infonavit Pago_Fijo_Puntual Si 15 0.103 | C190: Adquisicion | D190: PF | E190: Premier | G190: Apoyo Infonavit | I190: Pago_Fijo_Puntual | J190: 15 | K190: 1 y 2 | L190: 11.18 | M190: 11.84 | N190: 0.103 | O190: 0.1 | P190: 0.112 | Q190: 0.44 | R190: 0.3174 | S190: 0.015 | T190: 0.005 | U190: 0.95 | V190: 0 | W190: 0 | X190: Si
A191: Adquisicion PF Premier Apoyo Infonavit Pago_Fijo_Puntual 15 | B191: Adquisicion PF Premier Apoyo Infonavit Pago_Fijo_Puntual 15 0.106 | C191: Adquisicion | D191: PF | E191: Premier | G191: Apoyo Infonavit | I191: Pago_Fijo_Puntual | J191: 15 | K191: 3 | L191: 11.39 | M191: 12.05 | N191: 0.106 | O191: 0.103 | P191: 0.118 | Q191: 0.44 | R191: 0.3174 | S191: 0.015 | T191: 0.005 | U191: 0.95 | V191: 0 | W191: 0
A192: Adquisicion PF Premier Apoyo Infonavit Pago_Fijo_Puntual Si 10 | B192: Adquisicion PF Premier Apoyo Infonavit Pago_Fijo_Puntual Si 10 0.103 | C192: Adquisicion | D192: PF | E192: Premier | G192: Apoyo Infonavit | I192: Pago_Fijo_Puntual | J192: 10 | K192: 1 y 2 | L192: 13.54 | M192: 14.2 | N192: 0.103 | O192: 0.1 | P192: 0.112 | Q192: 0.44 | R192: 0.3174 | S192: 0.015 | T192: 0.005 | U192: 0.95 | V192: 0 | W192: 0 | X192: Si
A193: Adquisicion PF Premier Apoyo Infonavit Pago_Fijo_Puntual 10 | B193: Adquisicion PF Premier Apoyo Infonavit Pago_Fijo_Puntual 10 0.106 | C193: Adquisicion | D193: PF | E193: Premier | G193: Apoyo Infonavit | I193: Pago_Fijo_Puntual | J193: 10 | K193: 3 | L193: 13.71 | M193: 14.37 | N193: 0.106 | O193: 0.103 | P193: 0.118 | Q193: 0.44 | R193: 0.3174 | S193: 0.015 | T193: 0.005 | U193: 0.95 | V193: 0 | W193: 0
A194: Adquisicion PF Premier Apoyo Infonavit Pago_Fijo_Puntual Si 5 | B194: =CONCATENATE(A194," ",N194) -> Adquisicion PF Premier Apoyo Infonavit Pago_Fijo_Puntual Si 5 0.103 | C194: Adquisicion | D194: PF | E194: Premier | G194: Apoyo Infonavit | I194: Pago_Fijo_Puntual | J194: 5 | K194: 1 y 2 | L194: 21.44 | M194: 22.1 | N194: 0.103 | O194: 0.1 | P194: 0.112 | Q194: 0.44 | R194: 0.3174 | S194: 0.015 | T194: 0.005 | U194: 0.95 | V194: 0 | W194: 0 | X194: Si
A195: =TRIM(CONCATENATE(C195," ",D195," ",E195," ",F195," ",G195," ",I195," ",X195," ",J195)) -> Adquisicion PF Premier Apoyo Infonavit Pago_Fijo_Puntual 5 | B195: Adquisicion PF Premier Apoyo Infonavit Pago_Fijo_Puntual 5 0.106 | C195: Adquisicion | D195: PF | E195: Premier | G195: Apoyo Infonavit | I195: Pago_Fijo_Puntual | J195: 5 | K195: 3 | L195: 21.59 | M195: 22.25 | N195: 0.106 | O195: 0.103 | P195: 0.118 | Q195: 0.44 | R195: 0.3174 | S195: 0.015 | T195: 0.005 | U195: 0.95 | V195: 0 | W195: 0
A196: Adquisicion PF Premier Apoyo Infonavit Pago_Bajo_Puntual Si 25 | B196: Adquisicion PF Premier Apoyo Infonavit Pago_Bajo_Puntual Si 25 0.103 | C196: Adquisicion | D196: PF | E196: Premier | G196: Apoyo Infonavit | I196: Pago_Bajo_Puntual | J196: 25 | K196: 1 y 2 | L196: 8.64 | M196: 9.3 | N196: 0.103 | O196: 0.1 | P196: 0.112 | Q196: 0.44 | R196: 0.3174 | S196: 0.015 | T196: 0.005 | U196: 0.95 | V196: 0 | W196: 0 | X196: Si
A197: Adquisicion PF Premier Apoyo Infonavit Pago_Bajo_Puntual 25 | B197: Adquisicion PF Premier Apoyo Infonavit Pago_Bajo_Puntual 25 0.106 | C197: Adquisicion | D197: PF | E197: Premier | G197: Apoyo Infonavit | I197: Pago_Bajo_Puntual | J197: 25 | K197: 3 | L197: 8.89 | M197: 9.55 | N197: 0.106 | O197: 0.103 | P197: 0.118 | Q197: 0.44 | R197: 0.3174 | S197: 0.015 | T197: 0.005 | U197: 0.95 | V197: 0 | W197: 0
A198: Adquisicion PF Premier Apoyo Infonavit Pago_Bajo_Puntual Si 20 | B198: Adquisicion PF Premier Apoyo Infonavit Pago_Bajo_Puntual Si 20 0.103 | C198: Adquisicion | D198: PF | E198: Premier | G198: Apoyo Infonavit | I198: Pago_Bajo_Puntual | J198: 20 | K198: 1 y 2 | L198: 9.02 | M198: 9.68 | N198: 0.103 | O198: 0.1 | P198: 0.112 | Q198: 0.44 | R198: 0.3174 | S198: 0.015 | T198: 0.005 | U198: 0.95 | V198: 0 | W198: 0 | X198: Si
A199: Adquisicion PF Premier Apoyo Infonavit Pago_Bajo_Puntual 20 | B199: Adquisicion PF Premier Apoyo Infonavit Pago_Bajo_Puntual 20 0.106 | C199: Adquisicion | D199: PF | E199: Premier | G199: Apoyo Infonavit | I199: Pago_Bajo_Puntual | J199: 20 | K199: 3 | L199: 9.26 | M199: 9.92 | N199: 0.106 | O199: 0.103 | P199: 0.118 | Q199: 0.44 | R199: 0.3174 | S199: 0.015 | T199: 0.005 | U199: 0.95 | V199: 0 | W199: 0
A200: Adquisicion PF Premier Apoyo Infonavit Pago_Bajo_Puntual Si 15 | B200: Adquisicion PF Premier Apoyo Infonavit Pago_Bajo_Puntual Si 15 0.103 | C200: Adquisicion | D200: PF | E200: Premier | G200: Apoyo Infonavit | I200: Pago_Bajo_Puntual | J200: 15 | K200: 1 y 2 | L200: 10.13 | M200: 10.79 | N200: 0.103 | O200: 0.1 | P200: 0.112 | Q200: 0.44 | R200: 0.3174 | S200: 0.015 | T200: 0.005 | U200: 0.95 | V200: 0 | W200: 0 | X200: Si
... 2685 more rows

Sheet Tabla_Amortización_PeorEscenari (hidden)
I3: CREDITO HIPOTECARIO | R3: =Caratula!Q10 -> Versión M110 V3
C4: Tabla de amortización
C7: Datos Generales | I7: Datos del crédito
C8: Producto | E8: =Caratula!F20 -> Exclusiva | I8: Monto de Vivienda | J8: =Caratula!F28 -> 1000000
C9: Perfil cliente | E9: =Caratula!F18 -> No_Premier | I9: Monto de Crédito | J9: =Caratula!X63 -> 700000
C10: Tipo de financiamiento | E10: =IF(Caratula!F21="","",Caratula!F21) -> Mercado_Abierto | I10: Tasa Inicial | J10: =VLOOKUP(TRIM(CONCATENATE(E8," ",Caratula!F17," ",E9," ",E12," ",E10," ",E14," ",E15," ",Caratula!F24)),Catalogo_Condicione_Financieras!B:W,13,0) -> 0.103 | K10: Tasa Piso | L10: =VLOOKUP(TRIM(CONCATENATE(E8," ",Caratula!F17," ",E9," ",E12," ",E10," ",E14," ",E15," ",Caratula!F24)),Catalogo_Condicione_Financieras!B:W,14,0) -> 0.1 | M10: Tasa Techo | N10: =VLOOKUP(TRIM(CONCATENATE(E8," ",Caratula!F17," ",E9," ",E12," ",E10," ",E14," ",E15," ",Caratula!F24)),Catalogo_Condicione_Financieras!B:W,15,0) -> 0.112
C11: Perfil de Cliente HSBC | E11: =Caratula!F24 -> 0.103
C12: =IF(Caratula!F22="","","Tipo de Cliente") -> Tipo de Cliente | E12: =IF(Caratula!F22="","",Caratula!F22) -> Normal | I12: =Caratula!N18 -> Sin Comisiones | J12: =Caratula!S18 -> 0 | K12: Factor de Vida | L12: =VLOOKUP(TRIM(CONCATENATE(E8," ",Caratula!F17," ",E9," ",E12," ",E10," ",E14," ",E15," ",Caratula!F24)),Catalogo_Condicione_Financieras!B:W,16,0) -> 0.44 | M12: Factor de Daños | N12: =VLOOKUP(TRIM(CONCATENATE(E8," ",Caratula!F17," ",E9," ",E12," ",E10," ",E14," ",E15," ",Caratula!F24)),Catalogo_Condicione_Financieras!B:W,17,0) -> 0.3174
C13: Opciones de pago | I13: Gastos de Preoriginación - avalúo hipotecario | J13: =VLOOKUP(J8,Costo_Avaluos!$A$3:$B$11,2) -> 3422
C14: Esquema | E14: =Caratula!F16 -> Pago_Fijo_Puntual | I14: Plazo para liquidación
C15: Plazo | E15: =Caratula!F23 -> 25 | G15: =MAX(C21:C320) -> 300 | I15: Factor Pago | J15: =VLOOKUP(TRIM(CONCATENATE(E8," ",Caratula!F17," ",E9," ",E12," ",E10," ",E14," ",E15," ",Caratula!F24)),Catalogo_Condicione_Financieras!B:W,11,0) -> 9.65 | L15: ¿Con Relacionamiento? | M15: No | O15: C. Administración Renta | Q15: =VLOOKUP(TRIM(CONCATENATE(E8," ",Caratula!F17," ",E9," ",E12," ",E10," ",E14," ",E15," ",Caratula!F24)),Catalogo_Condicione_Financieras!B:W,22,0) -> 0
C16: =IF(Caratula!F20="Pago_Hipoteca+Liquidez","Tabla a simular","") ->  | E16: =IF(Caratula!F36="","",Caratula!F36) ->  | G16: =F21 -> 746.6666667 | I16: Factor de Línea | J16: =VLOOKUP(TRIM(CONCATENATE(E8," ",Caratula!F17," ",E9," ",E12," ",E10," ",E14," ",E15," ",Caratula!F24)),Catalogo_Condicione_Financieras!B:W,12,0) -> 10.31
I17: CAT* | J17: =IF(ISERROR(((1+IRR(X20:X320))^(12))-1),"-",(((1+IRR(X20:X320))^(12))-1)) -> 0.1242958465 | L17: Factor de Incremento | M17: =IF(E14="Pago_Bajo_Puntual",1.9%,0) -> 0
C19: Mes/Periodo | D19: Saldo Inicial | E19: Pago Capital+ Interes | F19: Pago a Capital | G19: Intereses | H19: Seguro de Vida | I19: Seguro de Daños | J19: C. Administración Renta | K19: =IF(E8="Liquidez","Iva Intereses",IF(AND(E8="Pago_Hipoteca+Liquidez",E16="Liquidez"),"Iva Intereses","")) ->  | L19: Pago Anticipado | M19: Anticipos a Capital | N19: C. Penalización Pago Anticipado | O19: IVA C. Penalización Pago Anticipado | P19: Aportación Infonavit | Q19: Tasa de Interes | R19: Ajuste Pago | S19: Mensualidad Total | T19: Saldo Final | U19: Contador | X19: Flujo CAT | Y19: FACTOR | Z19: Prepago real | AA19: Intereses diferidos por pagar | AB19: Prepago a saldo | AC19: Factor de Incremento Pago Bajo Acumulado
C20: 0 | T20: =IF(OR(J8="",J9=""),"",MIN(J8,J9)) -> 700000 | U20: =IF(C20>0,1,"") ->  | V20: 0 | X20: =IF(ISNUMBER(J9),-J9,0)+IF(I12="Comisión por apertura",IF(ISNUMBER(J12),J12*J9,0),0)+IF(ISNUMBER(J13),J13/1.16,0)+IF(ISNUMBER(Caratula!S19),Caratula!S19/1.16) -> -697050 | Z20: =SUM(M21:M320) -> 0 | AA20: =IF(D17="NO",0,J9*J10*3/12) -> 18025
C21: 1 | D21: =T20 -> 700000 | E21: =IF(C21="","",IF(T20<E20,T20+$G$21,$J$9*$J$15/1000)) -> 6755 | F21: =IF(C21="","",E21-G21+P21+M21) -> 746.6666667 | G21: =IF(C21="","",IF(T20*(Q21/12)<0,"",T20*(Q21/12))) -> 6008.333333 | H21: =IF(C21="","",L$12*T$20/1000) -> 308 | I21: =IF(C21="","",IF(AND($E$8="Pago_Hipoteca+Liquidez",$E$16="Liquidez"),0,IF((($J$8*0.8)*($N$12/1.16))>T20*($N$12/1.16),($J$8*0.8)*($N$12/1.16),($N$12/1.16)*T20)/1000)) -> 218.8965517 | J21: =IF($D$17="SI",0,IF(D21="","",$Q$15)) -> 0 | K21: =IFERROR(IF($E$8="Liquidez",G21*0.16,IF(AND($E$8="Pago_Hipoteca+Liquidez",$E$16="Liquidez"),G21*0.16,"")),"") ->  | M21: =IF(C21="","",IF(L21="",0,L21-N21-O21)) -> 0 | N21: =IF(C21="","",(L21+P21)*$J$12) -> 0 | O21: =IF(C21="","",((L21+P21)*$J$12)*0.16) -> 0 | Q21: =IF(C21="","",'Tabla_Puntual&Relacionamiento'!$E$2) -> 0.103 | S21: =IF(C21="","",IF($K$19="",E21+H21+I21+J21+L21+P21,E21+H21+I21+J21+K21+L21+P21)) -> 7281.896552 | T21: =IF(C21="","",T20-F21) -> 699253.3333 | U21: =IF(C21="","",1) -> 1 | V21: =IF(ISNUMBER(V20),IF($E$15*12>=V20+1,V20+1,""),"") -> 1 | X21: =IF(C21="","",IF($D$17="SI",AB21, IF(ISNUMBER(V21),IF($E$14="Pago_Fijo_Puntual",PMT(Q21/12,$E$15*12,-$J$9), Y21*$J$15*$J$9/1000)+H21+AB21+P21+I21/1.16+$Q$15,0))) -> 7006.240534 | Y21: 1 | Z21: =IF($AA$20=0,0,IF(M21>AA20,MAX(0,M21-AA20),M21)) -> 0 | AA21: =IFERROR(MAX(0,AA20-M21),0) -> 18025 | AB21: =IF($D$17="NO",M21,IF(AA21>0,0,Z21)) -> 0
C22: =IF(OR(C21="",T21<=0),"",IF(C21+1<=E$15*12,C21+1,"")) -> 2 | D22: =IF(T21<=0,"",T21) -> 699253.3333 | E22: =IF(C22="","",IF(T21<E21,T21+G22,IF(E14="Pago_Fijo_Puntual",$J$9*$J$15/1000,IF($E$14="Pago_Bajo_Puntual",E21+(E21*R22))))) -> 6755 | F22: 753.0755556 | G22: 6001.924444 | H22: =IF(C22="","",L$12*T21/1000) -> 307.6714667 | I22: =IF(C22="","",IF(AND($E$8="Pago_Hipoteca+Liquidez",$E$16="Liquidez"),0,IF((($J$8*0.8)*($N$12/1.16))>T21*($N$12/1.16),($J$8*0.8)*($N$12/1.16),($N$12/1.16)*T21)/1000)) -> 218.8965517 | J22: 0 | K22: =IFERROR(IF($E$8="Liquidez",G22*0.16,IF(AND($E$8="Pago_Hipoteca+Liquidez",$E$16="Liquidez"),G22*0.16,"")),"") ->  | M22: =IF(C22="","",IF(L22="",0,L22-N22-O22)) -> 0 | N22: 0 | O22: 0 | Q22: =IF(C22="","",'Tabla_Puntual&Relacionamiento'!$E$2) -> 0.103 | S22: =IF(C22="","",IF($K$19="",E22+H22+I22+J22+L22+P22,E22+H22+I22+J22+K22+L22+P22)) -> 7281.568018 | T22: 698500.2578 | U22: 1 | V22: =C22 -> 2 | X22: 7005.912001 | Y22: =Y21 -> 1 | Z22: 0 | AA22: 18025 | AB22: 0
C23: 3 | D23: 698500.2578 | E23: =IF(C23="","",IF(T22<E22,T22+G23,IF($E$14="Pago_Fijo_Puntual",$J$9*$J$15/1000,IF($E$14="Pago_Bajo_Puntual",E22+(E22*R23))))) -> 6755 | F23: 759.5394541 | G23: 5995.460546 | H23: 307.3401134 | I23: =IF(C23="","",IF(AND($E$8="Pago_Hipoteca+Liquidez",$E$16="Liquidez"),0,IF((($J$8*0.8)*($N$12/1.16))>T22*($N$12/1.16),($J$8*0.8)*($N$12/1.16),($N$12/1.16)*T22)/1000)) -> 218.8965517 | J23: 0 | K23: =IFERROR(IF($E$8="Liquidez",G23*0.16,IF(AND($E$8="Pago_Hipoteca+Liquidez",$E$16="Liquidez"),G23*0.16,"")),"") ->  | M23: 0 | N23: 0 | O23: 0 | Q23: =IF(C23="","",'Tabla_Puntual&Relacionamiento'!$E$2) -> 0.103 | S23: 7281.236665 | T23: 697740.7183 | U23: 1 | V23: =C23 -> 3 | X23: 7005.580647 | Y23: 1 | Z23: 0 | AA23: 18025 | AB23: 0
C24: 4 | D24: 697740.7183 | E24: 6755 | F24: 766.0588344 | G24: 5988.941166 | H24: 307.0059161 | I24: =IF(C24="","",IF(AND($E$8="Pago_Hipoteca+Liquidez",$E$16="Liquidez"),0,IF((($J$8*0.8)*($N$12/1.16))>T23*($N$12/1.16),($J$8*0.8)*($N$12/1.16),($N$12/1.16)*T23)/1000)) -> 218.8965517 | J24: 0 | K24: =IFERROR(IF($E$8="Liquidez",G24*0.16,IF(AND($E$8="Pago_Hipoteca+Liquidez",$E$16="Liquidez"),G24*0.16,"")),"") ->  | M24: 0 | N24: 0 | O24: 0 | Q24: =IF(C24="","",'Tabla_Puntual&Relacionamiento'!$E$2) -> 0.103 | S24: 7280.902468 | T24: 696974.6595 | U24: 1 | V24: 4 | X24: 7005.24645 | Y24: 1 | Z24: 0 | AA24: 18025 | AB24: 0
C25: 5 | D25: 696974.6595 | E25: 6755 | F25: 772.6341727 | G25: 5982.365827 | H25: 306.6688502 | I25: =IF(C25="","",IF(AND($E$8="Pago_Hipoteca+Liquidez",$E$16="Liquidez"),0,IF((($J$8*0.8)*($N$12/1.16))>T24*($N$12/1.16),($J$8*0.8)*($N$12/1.16),($N$12/1.16)*T24)/1000)) -> 218.8965517 | J25: 0 | M25: 0 | N25: 0 | O25: 0 | Q25: =IF(C25="","",'Tabla_Puntual&Relacionamiento'!$E$2) -> 0.103 | S25: 7280.565402 | T25: 696202.0253 | U25: 1 | V25: 5 | X25: 7004.909384 | Y25: 1 | Z25: 0 | AA25: 18025 | AB25: 0
C26: 6 | D26: 696202.0253 | E26: 6755 | F26: 779.2659494 | G26: 5975.734051 | H26: 306.3288911 | I26: 218.8965517 | J26: 0 | M26: 0 | N26: 0 | O26: 0 | Q26: =IF(C26="","",'Tabla_Puntual&Relacionamiento'!$E$2) -> 0.103 | S26: 7280.225443 | T26: 695422.7594 | U26: 1 | V26: 6 | X26: 7004.569425 | Y26: 1 | Z26: 0 | AA26: 18025 | AB26: 0
C27: 7 | D27: 695422.7594 | E27: 6755 | F27: 785.9546488 | G27: 5969.045351 | H27: 305.9860141 | I27: 218.8965517 | J27: 0 | M27: 0 | N27: 0 | O27: 0 | Q27: =IF(C27="","",'Tabla_Puntual&Relacionamiento'!$E$2) -> 0.103 | S27: 7279.882566 | T27: 694636.8047 | U27: 1 | V27: 7 | X27: 7004.226548 | Y27: 1 | Z27: 0 | AA27: 18025 | AB27: 0
C28: 8 | D28: 694636.8047 | E28: 6755 | F28: 792.7007595 | G28: 5962.299241 | H28: 305.6401941 | I28: 218.8965517 | J28: 0 | M28: 0 | N28: 0 | O28: 0 | Q28: =IF(C28="","",'Tabla_Puntual&Relacionamiento'!$E$2) -> 0.103 | S28: 7279.536746 | T28: 693844.104 | U28: 1 | V28: 8 | X28: 7003.880728 | Y28: 1 | Z28: 0 | AA28: 18025 | AB28: 0
C29: 9 | D29: 693844.104 | E29: 6755 | F29: 799.5047744 | G29: 5955.495226 | H29: 305.2914057 | I29: 218.8965517 | J29: 0 | M29: 0 | N29: 0 | O29: 0 | Q29: =IF(C29="","",'Tabla_Puntual&Relacionamiento'!$E$2) -> 0.103 | S29: 7279.187957 | T29: 693044.5992 | U29: 1 | V29: 9 | X29: 7003.53194 | Y29: 1 | Z29: 0 | AA29: 18025 | AB29: 0
C30: 10 | D30: 693044.5992 | E30: 6755 | F30: 806.3671903 | G30: 5948.63281 | H30: 304.9396236 | I30: 218.8965517 | J30: 0 | M30: 0 | N30: 0 | O30: 0 | Q30: =IF(C30="","",'Tabla_Puntual&Relacionamiento'!$E$2) -> 0.103 | S30: 7278.836175 | T30: 692238.232 | U30: 1 | V30: 10 | X30: 7003.180158 | Y30: 1 | Z30: 0 | AA30: 18025 | AB30: 0
C31: 11 | D31: 692238.232 | E31: 6755 | F31: 813.2885087 | G31: 5941.711491 | H31: 304.5848221 | I31: 218.8965517 | J31: 0 | M31: 0 | N31: 0 | O31: 0 | Q31: =IF(C31="","",'Tabla_Puntual&Relacionamiento'!$E$2) -> 0.103 | S31: 7278.481374 | T31: 691424.9435 | U31: 1 | V31: 11 | X31: 7002.825356 | Y31: 1 | Z31: 0 | AA31: 18025 | AB31: 0
C32: 12 | D32: 691424.9435 | E32: 6755 | F32: 820.2692351 | G32: 5934.730765 | H32: 304.2269751 | I32: 218.8965517 | J32: 0 | M32: 0 | N32: 0 | O32: 0 | Q32: =IF(C32="","",'Tabla_Puntual&Relacionamiento'!$E$2) -> 0.103 | S32: 7278.123527 | T32: 690604.6743 | U32: 1 | V32: 12 | X32: 7002.467509 | Y32: 1 | Z32: 0 | AA32: 18025 | AB32: 0
C33: 13 | D33: 690604.6743 | E33: 6755 | F33: 827.3098793 | G33: 5927.690121 | H33: 303.8660567 | I33: 218.8965517 | J33: 0 | M33: 0 | N33: 0 | O33: 0 | Q33: =IF(C33="","",'Tabla_Puntual&Relacionamiento'!$E$3) -> 0.103 | R33: =IF(C33="","",IF($E$14="Pago_Bajo_Puntual",$M$17,"")) ->  | S33: 7277.762608 | T33: 689777.3644 | U33: 1 | V33: 13 | X33: 7002.106591 | Y33: =Y32*1.019 -> 1.019 | Z33: 0 | AA33: 18025 | AB33: 0 | AC33: =M17 -> 0
C34: 14 | D34: 689777.3644 | E34: 6755 | F34: 834.4109558 | G34: 5920.589044 | H34: 303.5020403 | I34: 218.8965517 | J34: 0 | M34: 0 | N34: 0 | O34: 0 | Q34: =IF(C34="","",'Tabla_Puntual&Relacionamiento'!$E$3) -> 0.103 | S34: 7277.398592 | T34: 688942.9534 | U34: 1 | V34: 14 | X34: 7001.742574 | Y34: =Y33 -> 1.019 | Z34: 0 | AA34: 18025 | AB34: 0 | AC34: =AC33 -> 0
C35: 15 | D35: 688942.9534 | E35: 6755 | F35: 841.5729832 | G35: 5913.427017 | H35: 303.1348995 | I35: 218.8965517 | J35: 0 | M35: 0 | N35: 0 | O35: 0 | Q35: =IF(C35="","",'Tabla_Puntual&Relacionamiento'!$E$3) -> 0.103 | S35: 7277.031451 | T35: 688101.3804 | U35: 1 | V35: 15 | X35: 7001.375434 | Y35: 1.019 | Z35: 0 | AA35: 18025 | AB35: 0 | AC35: =AC34 -> 0
C36: 16 | D36: 688101.3804 | E36: 6755 | F36: 848.7964846 | G36: 5906.203515 | H36: 302.7646074 | I36: 218.8965517 | J36: 0 | M36: 0 | N36: 0 | O36: 0 | Q36: =IF(C36="","",'Tabla_Puntual&Relacionamiento'!$E$3) -> 0.103 | S36: 7276.661159 | T36: 687252.5839 | U36: 1 | V36: 16 | X36: 7001.005141 | Y36: 1.019 | Z36: 0 | AA36: 18025 | AB36: 0 | AC36: 0
C37: 17 | D37: 687252.5839 | E37: 6755 | F37: 856.0819878 | G37: 5898.918012 | H37: 302.3911369 | I37: 218.8965517 | J37: 0 | M37: 0 | N37: 0 | O37: 0 | Q37: =IF(C37="","",'Tabla_Puntual&Relacionamiento'!$E$3) -> 0.103 | S37: 7276.287689 | T37: 686396.502 | U37: 1 | V37: 17 | X37: 7000.631671 | Y37: 1.019 | Z37: 0 | AA37: 18025 | AB37: 0 | AC37: 0
C38: 18 | D38: 686396.502 | E38: 6755 | F38: 863.4300248 | G38: 5891.569975 | H38: 302.0144609 | I38: 218.8965517 | J38: 0 | M38: 0 | N38: 0 | O38: 0 | Q38: =IF(C38="","",'Tabla_Puntual&Relacionamiento'!$E$3) -> 0.103 | S38: 7275.911013 | T38: 685533.0719 | U38: 1 | V38: 18 | X38: 7000.254995 | Y38: 1.019 | Z38: 0 | AA38: 18025 | AB38: 0 | AC38: 0
C39: 19 | D39: 685533.0719 | E39: 6755 | F39: 870.8411326 | G39: 5884.158867 | H39: 301.6345517 | I39: 218.8965517 | J39: 0 | M39: 0 | N39: 0 | O39: 0 | Q39: =IF(C39="","",'Tabla_Puntual&Relacionamiento'!$E$3) -> 0.103 | S39: 7275.531103 | T39: 684662.2308 | U39: 1 | V39: 19 | X39: 6999.875086 | Y39: 1.019 | Z39: 0 | AA39: 18025 | AB39: 0 | AC39: 0
C40: 20 | D40: 684662.2308 | E40: 6755 | F40: 878.3158523 | G40: 5876.684148 | H40: 301.2513816 | I40: 218.8965517 | J40: 0 | M40: 0 | N40: 0 | O40: 0 | Q40: =IF(C40="","",'Tabla_Puntual&Relacionamiento'!$E$3) -> 0.103 | S40: 7275.147933 | T40: 683783.915 | U40: 1 | V40: 20 | X40: 6999.491916 | Y40: 1.019 | Z40: 0 | AA40: 18025 | AB40: 0 | AC40: 0
C41: 21 | D41: 683783.915 | E41: 6755 | F41: 885.85473 | G41: 5869.14527 | H41: 300.8649226 | I41: 218.8965517 | J41: 0 | M41: 0 | N41: 0 | O41: 0 | Q41: =IF(C41="","",'Tabla_Puntual&Relacionamiento'!$E$3) -> 0.103 | S41: 7274.761474 | T41: 682898.0602 | U41: 1 | V41: 21 | X41: 6999.105457 | Y41: 1.019 | Z41: 0 | AA41: 18025 | AB41: 0 | AC41: 0
C42: 22 | D42: 682898.0602 | E42: 6755 | F42: 893.4583164 | G42: 5861.541684 | H42: 300.4751465 | I42: 218.8965517 | J42: 0 | M42: 0 | N42: 0 | O42: 0 | Q42: =IF(C42="","",'Tabla_Puntual&Relacionamiento'!$E$3) -> 0.103 | S42: 7274.371698 | T42: 682004.6019 | U42: 1 | V42: 22 | X42: 6998.715681 | Y42: 1.019 | Z42: 0 | AA42: 18025 | AB42: 0 | AC42: 0
C43: 23 | D43: 682004.6019 | E43: 6755 | F43: 901.127167 | G43: 5853.872833 | H43: 300.0820248 | I43: 218.8965517 | J43: 0 | M43: 0 | N43: 0 | O43: 0 | Q43: =IF(C43="","",'Tabla_Puntual&Relacionamiento'!$E$3) -> 0.103 | S43: 7273.978577 | T43: 681103.4747 | U43: 1 | V43: 23 | X43: 6998.322559 | Y43: 1.019 | Z43: 0 | AA43: 18025 | AB43: 0 | AC43: 0
C44: 24 | D44: 681103.4747 | E44: 6755 | F44: 908.8618418 | G44: 5846.138158 | H44: 299.6855289 | I44: 218.8965517 | J44: 0 | M44: 0 | N44: 0 | O44: 0 | Q44: =IF(C44="","",'Tabla_Puntual&Relacionamiento'!$E$3) -> 0.103 | S44: 7273.582081 | T44: 680194.6129 | U44: 1 | V44: 24 | X44: 6997.926063 | Y44: 1.019 | Z44: 0 | AA44: 18025 | AB44: 0 | AC44: 0
C45: 25 | D45: 680194.6129 | E45: 6755 | F45: 831.6385794 | G45: 5923.361421 | H45: 299.2856297 | I45: 218.8965517 | J45: 0 | M45: 0 | N45: 0 | O45: 0 | Q45: =IF(C45="","",'Tabla_Puntual&Relacionamiento'!$E$4) -> 0.1045 | R45: =IF(C45="","",IF($E$14="Pago_Bajo_Puntual",$M$17,"")) ->  | S45: 7273.182181 | T45: 679362.9743 | U45: 1 | V45: 25 | X45: 7072.27991 | Y45: =Y44*1.019 -> 1.038361 | Z45: 0 | AA45: 18025 | AB45: 0 | AC45: =AC44+$M$17 -> 0
C46: 26 | D46: 679362.9743 | E46: 6755 | F46: 838.8807653 | G46: 5916.119235 | H46: 298.9197087 | I46: 218.8965517 | J46: 0 | M46: 0 | N46: 0 | O46: 0 | Q46: =IF(C46="","",'Tabla_Puntual&Relacionamiento'!$E$4) -> 0.1045 | S46: 7272.81626 | T46: 678524.0936 | U46: 1 | V46: 26 | X46: 7071.913989 | Y46: =Y45 -> 1.038361 | Z46: 0 | AA46: 18025 | AB46: 0 | AC46: 0
C47: 27 | D47: 678524.0936 | E47: 6755 | F47: 846.1860187 | G47: 5908.813981 | H47: 298.5506012 | I47: 218.8965517 | J47: 0 | M47: 0 | N47: 0 | O47: 0 | Q47: =IF(C47="","",'Tabla_Puntual&Relacionamiento'!$E$4) -> 0.1045 | S47: 7272.447153 | T47: 677677.9075 | U47: 1 | V47: 27 | X47: 7071.544882 | Y47: 1.038361 | Z47: 0 | AA47: 18025 | AB47: 0 | AC47: 0
C48: 28 | D48: 677677.9075 | E48: 6755 | F48: 853.5548886 | G48: 5901.445111 | H48: 298.1782793 | I48: 218.8965517 | J48: 0 | M48: 0 | N48: 0 | O48: 0 | Q48: =IF(C48="","",'Tabla_Puntual&Relacionamiento'!$E$4) -> 0.1045 | S48: 7272.074831 | T48: 676824.3526 | U48: 1 | V48: 28 | X48: 7071.17256 | Y48: 1.038361 | Z48: 0 | AA48: 18025 | AB48: 0 | AC48: 0
C49: 29 | D49: 676824.3526 | E49: 6755 | F49: 860.9879291 | G49: 5894.012071 | H49: 297.8027152 | I49: 218.8965517 | J49: 0 | M49: 0 | N49: 0 | O49: 0 | Q49: =IF(C49="","",'Tabla_Puntual&Relacionamiento'!$E$4) -> 0.1045 | S49: 7271.699267 | T49: 675963.3647 | U49: 1 | V49: 29 | X49: 7070.796996 | Y49: 1.038361 | Z49: 0 | AA49: 18025 | AB49: 0 | AC49: 0
C50: 30 | D50: 675963.3647 | E50: 6755 | F50: 868.485699 | G50: 5886.514301 | H50: 297.4238805 | I50: 218.8965517 | J50: 0 | M50: 0 | N50: 0 | O50: 0 | Q50: =IF(C50="","",'Tabla_Puntual&Relacionamiento'!$E$4) -> 0.1045 | S50: 7271.320432 | T50: 675094.879 | U50: 1 | V50: 30 | X50: 7070.418161 | Y50: 1.038361 | Z50: 0 | AA50: 18025 | AB50: 0 | AC50: 0
C51: 31 | D51: 675094.879 | E51: 6755 | F51: 876.0487619 | G51: 5878.951238 | H51: 297.0417468 | I51: 218.8965517 | J51: 0 | M51: 0 | N51: 0 | O51: 0 | Q51: =IF(C51="","",'Tabla_Puntual&Relacionamiento'!$E$4) -> 0.1045 | S51: 7270.938298 | T51: 674218.8303 | U51: 1 | V51: 31 | X51: 7070.036027 | Y51: 1.038361 | Z51: 0 | AA51: 18025 | AB51: 0 | AC51: 0
C52: 32 | D52: 674218.8303 | E52: 6755 | F52: 883.6776865 | G52: 5871.322313 | H52: 296.6562853 | I52: 218.8965517 | J52: 0 | M52: 0 | N52: 0 | O52: 0 | Q52: =IF(C52="","",'Tabla_Puntual&Relacionamiento'!$E$4) -> 0.1045 | S52: 7270.552837 | T52: 673335.1526 | U52: 1 | V52: 32 | X52: 7069.650566 | Y52: 1.038361 | Z52: 0 | AA52: 18025 | AB52: 0 | AC52: 0
C53: 33 | D53: 673335.1526 | E53: 6755 | F53: 891.3730464 | G53: 5863.626954 | H53: 296.2674671 | I53: 218.8965517 | J53: 0 | M53: 0 | N53: 0 | O53: 0 | Q53: =IF(C53="","",'Tabla_Puntual&Relacionamiento'!$E$4) -> 0.1045 | S53: 7270.164019 | T53: 672443.7795 | U53: 1 | V53: 33 | X53: 7069.261748 | Y53: 1.038361 | Z53: 0 | AA53: 18025 | AB53: 0 | AC53: 0
C54: 34 | D54: 672443.7795 | E54: 6755 | F54: 899.13542 | G54: 5855.86458 | H54: 295.875263 | I54: 218.8965517 | J54: 0 | M54: 0 | N54: 0 | O54: 0 | Q54: =IF(C54="","",'Tabla_Puntual&Relacionamiento'!$E$4) -> 0.1045 | S54: 7269.771815 | T54: 671544.6441 | U54: 1 | V54: 34 | X54: 7068.869544 | Y54: 1.038361 | Z54: 0 | AA54: 18025 | AB54: 0 | AC54: 0
C55: 35 | D55: 671544.6441 | E55: 6755 | F55: 906.965391 | G55: 5848.034609 | H55: 295.4796434 | I55: 218.8965517 | J55: 0 | M55: 0 | N55: 0 | O55: 0 | Q55: =IF(C55="","",'Tabla_Puntual&Relacionamiento'!$E$4) -> 0.1045 | S55: 7269.376195 | T55: 670637.6787 | U55: 1 | V55: 35 | X55: 7068.473924 | Y55: 1.038361 | Z55: 0 | AA55: 18025 | AB55: 0 | AC55: 0
C56: 36 | D56: 670637.6787 | E56: 6755 | F56: 914.8635479 | G56: 5840.136452 | H56: 295.0805786 | I56: 218.8965517 | J56: 0 | M56: 0 | N56: 0 | O56: 0 | Q56: =IF(C56="","",'Tabla_Puntual&Relacionamiento'!$E$4) -> 0.1045 | S56: 7268.97713 | T56: 669722.8152 | U56: 1 | V56: 36 | X56: 7068.074859 | Y56: 1.038361 | Z56: 0 | AA56: 18025 | AB56: 0 | AC56: 0
C57: 37 | D57: 669722.8152 | E57: 6755 | F57: 839.1151327 | G57: 5915.884867 | H57: 294.6780387 | I57: 218.8965517 | J57: 0 | M57: 0 | N57: 0 | O57: 0 | Q57: =IF(C57="","",'Tabla_Puntual&Relacionamiento'!$E$5) -> 0.106 | R57: =IF(C57="","",IF($E$14="Pago_Bajo_Puntual",$M$17,"")) ->  | S57: 7268.57459 | T57: 668883.7 | U57: 1 | V57: 37 | X57: 7142.711451 | Y57: =Y56*1.019 -> 1.058089859 | Z57: 0 | AA57: 18025 | AB57: 0 | AC57: =AC56+$M$17 -> 0
C58: 38 | D58: 668883.7 | E58: 6755 | F58: 846.5273164 | G58: 5908.472684 | H58: 294.308828 | I58: 218.8965517 | J58: 0 | M58: 0 | N58: 0 | O58: 0 | Q58: =IF(C58="","",'Tabla_Puntual&Relacionamiento'!$E$5) -> 0.106 | S58: 7268.20538 | T58: 668037.1727 | U58: 1 | V58: 38 | X58: 7142.34224 | Y58: =Y57 -> 1.058089859 | Z58: 0 | AA58: 18025 | AB58: 0 | AC58: 0
C59: 39 | D59: 668037.1727 | E59: 6755 | F59: 854.0049744 | G59: 5900.995026 | H59: 293.936356 | I59: 218.8965517 | J59: 0 | M59: 0 | N59: 0 | O59: 0 | Q59: =IF(C59="","",'Tabla_Puntual&Relacionamiento'!$E$5) -> 0.106 | S59: 7267.832908 | T59: 667183.1677 | U59: 1 | V59: 39 | X59: 7141.969768 | Y59: 1.058089859 | Z59: 0 | AA59: 18025 | AB59: 0 | AC59: 0
C60: 40 | D60: 667183.1677 | E60: 6755 | F60: 861.548685 | G60: 5893.451315 | H60: 293.5605938 | I60: 218.8965517 | J60: 0 | M60: 0 | N60: 0 | O60: 0 | Q60: =IF(C60="","",'Tabla_Puntual&Relacionamiento'!$E$5) -> 0.106 | S60: 7267.457146 | T60: 666321.6191 | U60: 1 | V60: 40 | X60: 7141.594006 | Y60: 1.058089859 | Z60: 0 | AA60: 18025 | AB60: 0 | AC60: 0
C61: 41 | D61: 666321.6191 | E61: 6755 | F61: 869.1590317 | G61: 5885.840968 | H61: 293.1815124 | I61: 218.8965517 | J61: 0 | M61: 0 | N61: 0 | O61: 0 | Q61: =IF(C61="","",'Tabla_Puntual&Relacionamiento'!$E$5) -> 0.106 | S61: 7267.078064 | T61: 665452.46 | U61: 1 | V61: 41 | X61: 7141.214925 | Y61: 1.058089859 | Z61: 0 | AA61: 18025 | AB61: 0 | AC61: 0
C62: 42 | D62: 665452.46 | E62: 6755 | F62: 876.8366031 | G62: 5878.163397 | H62: 292.7990824 | I62: 218.8965517 | J62: 0 | M62: 0 | N62: 0 | O62: 0 | Q62: =IF(C62="","",'Tabla_Puntual&Relacionamiento'!$E$5) -> 0.106 | S62: 7266.695634 | T62: 664575.6234 | U62: 1 | V62: 42 | X62: 7140.832495 | Y62: 1.058089859 | Z62: 0 | AA62: 18025 | AB62: 0 | AC62: 0
C63: 43 | D63: 664575.6234 | E63: 6755 | F63: 884.5819931 | G63: 5870.418007 | H63: 292.4132743 | I63: 218.8965517 | J63: 0 | M63: 0 | N63: 0 | O63: 0 | Q63: =IF(C63="","",'Tabla_Puntual&Relacionamiento'!$E$5) -> 0.106 | S63: 7266.309826 | T63: 663691.0414 | U63: 1 | V63: 43 | X63: 7140.446687 | Y63: 1.058089859 | Z63: 0 | AA63: 18025 | AB63: 0 | AC63: 0
C64: 44 | D64: 663691.0414 | E64: 6755 | F64: 892.3958008 | G64: 5862.604199 | H64: 292.0240582 | I64: 218.8965517 | J64: 0 | M64: 0 | N64: 0 | O64: 0 | Q64: =IF(C64="","",'Tabla_Puntual&Relacionamiento'!$E$5) -> 0.106 | S64: 7265.92061 | T64: 662798.6456 | U64: 1 | V64: 44 | X64: 7140.057471 | Y64: 1.058089859 | Z64: 0 | AA64: 18025 | AB64: 0 | AC64: 0
C65: 45 | D65: 662798.6456 | E65: 6755 | F65: 900.2786303 | G65: 5854.72137 | H65: 291.6314041 | I65: 218.8965517 | J65: 0 | M65: 0 | N65: 0 | O65: 0 | Q65: =IF(C65="","",'Tabla_Puntual&Relacionamiento'!$E$5) -> 0.106 | S65: 7265.527956 | T65: 661898.367 | U65: 1 | V65: 45 | X65: 7139.664816 | Y65: 1.058089859 | Z65: 0 | AA65: 18025 | AB65: 0 | AC65: 0
C66: 46 | D66: 661898.367 | E66: 6755 | F66: 908.2310916 | G66: 5846.768908 | H66: 291.2352815 | I66: 218.8965517 | J66: 0 | M66: 0 | N66: 0 | O66: 0 | Q66: =IF(C66="","",'Tabla_Puntual&Relacionamiento'!$E$5) -> 0.106 | S66: 7265.131833 | T66: 660990.1359 | U66: 1 | V66: 46 | X66: 7139.268694 | Y66: 1.058089859 | Z66: 0 | AA66: 18025 | AB66: 0 | AC66: 0
C67: 47 | D67: 660990.1359 | E67: 6755 | F67: 916.2537995 | G67: 5838.7462 | H67: 290.8356598 | I67: 218.8965517 | J67: 0 | M67: 0 | N67: 0 | O67: 0 | Q67: =IF(C67="","",'Tabla_Puntual&Relacionamiento'!$E$5) -> 0.106 | S67: 7264.732212 | T67: 660073.8821 | U67: 1 | V67: 47 | X67: 7138.869072 | Y67: 1.058089859 | Z67: 0 | AA67: 18025 | AB67: 0 | AC67: 0
C68: 48 | D68: 660073.8821 | E68: 6755 | F68: 924.3473748 | G68: 5830.652625 | H68: 290.4325081 | I68: 218.8965517 | J68: 0 | M68: 0 | N68: 0 | O68: 0 | Q68: =IF(C68="","",'Tabla_Puntual&Relacionamiento'!$E$5) -> 0.106 | S68: 7264.32906 | T68: 659149.5347 | U68: 1 | V68: 48 | X68: 7138.46592 | Y68: 1.058089859 | Z68: 0 | AA68: 18025 | AB68: 0 | AC68: 0
C69: 49 | D69: 659149.5347 | E69: 6755 | F69: 850.1187514 | G69: 5904.881249 | H69: 290.0257953 | I69: 218.8965517 | J69: 0 | M69: 0 | N69: 0 | O69: 0 | Q69: =IF(C69="","",'Tabla_Puntual&Relacionamiento'!$E$6) -> 0.1075 | R69: =IF(C69="","",IF($E$14="Pago_Bajo_Puntual",$M$17,"")) ->  | S69: 7263.922347 | T69: 658299.416 | U69: 1 | V69: 49 | X69: 7213.378777 | Y69: =Y68*1.019 -> 1.078193566 | Z69: 0 | AA69: 18025 | AB69: 0 | AC69: =AC68+$M$17 -> 0
C70: 50 | D70: 658299.416 | E70: 6755 | F70: 857.7343985 | G70: 5897.265601 | H70: 289.651743 | I70: 218.8965517 | J70: 0 | M70: 0 | N70: 0 | O70: 0 | Q70: =IF(C70="","",'Tabla_Puntual&Relacionamiento'!$E$6) -> 0.1075 | S70: 7263.548295 | T70: 657441.6816 | U70: 1 | V70: 50 | X70: 7213.004725 | Y70: =Y69 -> 1.078193566 | Z70: 0 | AA70: 18025 | AB70: 0 | AC70: 0
C71: 51 | D71: 657441.6816 | E71: 6755 | F71: 865.4182692 | G71: 5889.581731 | H71: 289.2743399 | I71: 218.8965517 | J71: 0 | M71: 0 | N71: 0 | O71: 0 | Q71: =IF(C71="","",'Tabla_Puntual&Relacionamiento'!$E$6) -> 0.1075 | S71: 7263.170892 | T71: 656576.2633 | U71: 1 | V71: 51 | X71: 7212.627322 | Y71: 1.078193566 | Z71: 0 | AA71: 18025 | AB71: 0 | AC71: 0
C72: 52 | D72: 656576.2633 | E72: 6755 | F72: 873.1709745 | G72: 5881.829025 | H72: 288.8935559 | I72: 218.8965517 | J72: 0 | M72: 0 | N72: 0 | O72: 0 | Q72: =IF(C72="","",'Tabla_Puntual&Relacionamiento'!$E$6) -> 0.1075 | S72: 7262.790108 | T72: 655703.0923 | U72: 1 | V72: 52 | X72: 7212.246538 | Y72: 1.078193566 | Z72: 0 | AA72: 18025 | AB72: 0 | AC72: 0
C73: 53 | D73: 655703.0923 | E73: 6755 | F73: 880.9931312 | G73: 5874.006869 | H73: 288.5093606 | I73: 218.8965517 | J73: 0 | M73: 0 | N73: 0 | O73: 0 | Q73: =IF(C73="","",'Tabla_Puntual&Relacionamiento'!$E$6) -> 0.1075 | S73: 7262.405912 | T73: 654822.0992 | U73: 1 | V73: 53 | X73: 7211.862342 | Y73: 1.078193566 | Z73: 0 | AA73: 18025 | AB73: 0 | AC73: 0
C74: 54 | D74: 654822.0992 | E74: 6755 | F74: 888.8853613 | G74: 5866.114639 | H74: 288.1217236 | I74: 218.8965517 | J74: 0 | M74: 0 | N74: 0 | O74: 0 | Q74: =IF(C74="","",'Tabla_Puntual&Relacionamiento'!$E$6) -> 0.1075 | S74: 7262.018275 | T74: 653933.2138 | U74: 1 | V74: 54 | X74: 7211.474705 | Y74: 1.078193566 | Z74: 0 | AA74: 18025 | AB74: 0 | AC74: 0
C75: 55 | D75: 653933.2138 | E75: 6755 | F75: 896.8482927 | G75: 5858.151707 | H75: 287.7306141 | I75: 218.8965517 | J75: 0 | M75: 0 | N75: 0 | O75: 0 | Q75: =IF(C75="","",'Tabla_Puntual&Relacionamiento'!$E$6) -> 0.1075 | S75: 7261.627166 | T75: 653036.3655 | U75: 1 | V75: 55 | X75: 7211.083596 | Y75: 1.078193566 | Z75: 0 | AA75: 18025 | AB75: 0 | AC75: 0
C76: 56 | D76: 653036.3655 | E76: 6755 | F76: 904.8825586 | G76: 5850.117441 | H76: 287.3360008 | I76: 218.8965517 | J76: 0 | M76: 0 | N76: 0 | O76: 0 | Q76: =IF(C76="","",'Tabla_Puntual&Relacionamiento'!$E$6) -> 0.1075 | S76: 7261.232553 | T76: 652131.483 | U76: 1 | V76: 56 | X76: 7210.688983 | Y76: 1.078193566 | Z76: 0 | AA76: 18025 | AB76: 0 | AC76: 0
C77: 57 | D77: 652131.483 | E77: 6755 | F77: 912.9887982 | G77: 5842.011202 | H77: 286.9378525 | I77: 218.8965517 | J77: 0 | M77: 0 | N77: 0 | O77: 0 | Q77: =IF(C77="","",'Tabla_Puntual&Relacionamiento'!$E$6) -> 0.1075 | S77: 7260.834404 | T77: 651218.4942 | U77: 1 | V77: 57 | X77: 7210.290834 | Y77: 1.078193566 | Z77: 0 | AA77: 18025 | AB77: 0 | AC77: 0
C78: 58 | D78: 651218.4942 | E78: 6755 | F78: 921.1676562 | G78: 5833.832344 | H78: 286.5361374 | I78: 218.8965517 | J78: 0 | M78: 0 | N78: 0 | O78: 0 | Q78: =IF(C78="","",'Tabla_Puntual&Relacionamiento'!$E$6) -> 0.1075 | S78: 7260.432689 | T78: 650297.3265 | U78: 1 | V78: 58 | X78: 7209.889119 | Y78: 1.078193566 | Z78: 0 | AA78: 18025 | AB78: 0 | AC78: 0
C79: 59 | D79: 650297.3265 | E79: 6755 | F79: 929.4197831 | G79: 5825.580217 | H79: 286.1308237 | I79: 218.8965517 | J79: 0 | M79: 0 | N79: 0 | O79: 0 | Q79: =IF(C79="","",'Tabla_Puntual&Relacionamiento'!$E$6) -> 0.1075 | S79: 7260.027375 | T79: 649367.9068 | U79: 1 | V79: 59 | X79: 7209.483806 | Y79: 1.078193566 | Z79: 0 | AA79: 18025 | AB79: 0 | AC79: 0
C80: 60 | D80: 649367.9068 | E80: 6755 | F80: 937.7458353 | G80: 5817.254165 | H80: 285.721879 | I80: 218.8965517 | J80: 0 | M80: 0 | N80: 0 | O80: 0 | Q80: =IF(C80="","",'Tabla_Puntual&Relacionamiento'!$E$6) -> 0.1075 | S80: 7259.618431 | T80: 648430.1609 | U80: 1 | V80: 60 | X80: 7209.074861 | Y80: 1.078193566 | Z80: 0 | AA80: 18025 | AB80: 0 | AC80: 0
C81: 61 | D81: 648430.1609 | E81: 6755 | F81: 865.092705 | G81: 5889.907295 | H81: 285.3092708 | I81: 218.8965517 | J81: 0 | M81: 0 | N81: 0 | O81: 0 | Q81: =IF(C81="","",'Tabla_Puntual&Relacionamiento'!$E$7) -> 0.109 | R81: =IF(C81="","",IF($E$14="Pago_Bajo_Puntual",$M$17,"")) ->  | S81: 7259.205823 | T81: 647565.0682 | U81: 1 | V81: 61 | X81: 7284.257346 | Y81: =Y80*1.019 -> 1.098679244 | Z81: 0 | AA81: 18025 | AB81: 0 | AC81: =AC80+$M$17 -> 0
C82: 62 | D82: 647565.0682 | E82: 6755 | F82: 872.9506304 | G82: 5882.04937 | H82: 284.92863 | I82: 218.8965517 | J82: 0 | M82: 0 | N82: 0 | O82: 0 | Q82: =IF(C82="","",'Tabla_Puntual&Relacionamiento'!$E$7) -> 0.109 | S82: 7258.825182 | T82: 646692.1176 | U82: 1 | V82: 62 | X82: 7283.876705 | Y82: =Y81 -> 1.098679244 | Z82: 0 | AA82: 18025 | AB82: 0 | AC82: 0
C83: 63 | D83: 646692.1176 | E83: 6755 | F83: 880.879932 | G83: 5874.120068 | H83: 284.5445317 | I83: 218.8965517 | J83: 0 | M83: 0 | N83: 0 | O83: 0 | Q83: =IF(C83="","",'Tabla_Puntual&Relacionamiento'!$E$7) -> 0.109 | S83: 7258.441083 | T83: 645811.2376 | U83: 1 | V83: 63 | X83: 7283.492607 | Y83: 1.098679244 | Z83: 0 | AA83: 18025 | AB83: 0 | AC83: 0
C84: 64 | D84: 645811.2376 | E84: 6755 | F84: 888.881258 | G84: 5866.118742 | H84: 284.1569446 | I84: 218.8965517 | J84: 0 | M84: 0 | N84: 0 | O84: 0 | Q84: =IF(C84="","",'Tabla_Puntual&Relacionamiento'!$E$7) -> 0.109 | S84: 7258.053496 | T84: 644922.3564 | U84: 1 | V84: 64 | X84: 7283.10502 | Y84: 1.098679244 | Z84: 0 | AA84: 18025 | AB84: 0 | AC84: 0
C85: 65 | D85: 644922.3564 | E85: 6755 | F85: =IF(C85="","",E85-G85+P85+M85) -> 896.9552628 | G85: =IF(C85="","",IF(T84*(Q85/12)<0,"",T84*(Q85/12))) -> 5858.044737 | H85: 283.7658368 | I85: 218.8965517 | J85: 0 | M85: 0 | N85: =IF(C85="","",(L85+P85)*$J$12) -> 0 | O85: =IF(C85="","",((L85+P85)*$J$12)*0.16) -> 0 | Q85: =IF(C85="","",'Tabla_Puntual&Relacionamiento'!$E$7) -> 0.109 | S85: 7257.662389 | T85: =IF(C85="","",T84-F85) -> 644025.4011 | U85: =IF(C85="","",1) -> 1 | V85: 65 | X85: =IF(C85="","",IF($D$17="SI",AB85, IF(ISNUMBER(V85),IF($E$14="Pago_Fijo_Puntual",PMT(Q85/12,$E$15*12,-$J$9), Y85*$J$15*$J$9/1000)+H85+AB85+P85+I85/1.16+$Q$15,0))) -> 7282.713912 | Y85: 1.098679244 | Z85: =IF($AA$20=0,0,IF(M85>AA84,MAX(0,M85-AA84),M85)) -> 0 | AA85: =IFERROR(MAX(0,AA84-M85),0) -> 18025 | AB85: =IF($D$17="NO",M85,IF(AA85>0,0,Z85)) -> 0 | AC85: 0
C86: =IF(OR(C85="",T85<=0),"",IF(C85+1<=E$15*12,C85+1,"")) -> 66 | D86: =IF(T85<=0,"",T85) -> 644025.4011 | E86: 6755 | F86: 905.1026064 | G86: 5849.897394 | H86: =IF(C86="","",L$12*T85/1000) -> 283.3711765 | I86: 218.8965517 | J86: =IF($D$17="SI",0,IF(D86="","",$Q$15)) -> 0 | M86: =IF(C86="","",IF(L86="",0,L86-N86-O86)) -> 0 | N86: 0 | O86: 0 | Q86: =IF(C86="","",'Tabla_Puntual&Relacionamiento'!$E$7) -> 0.109 | S86: =IF(C86="","",IF($K$19="",E86+H86+I86+J86+L86+P86,E86+H86+I86+J86+K86+L86+P86)) -> 7257.267728 | T86: 643120.2985 | U86: 1 | V86: 66 | X86: 7282.319252 | Y86: 1.098679244 | Z86: 0 | AA86: 18025 | AB86: 0 | AC86: 0
C87: 67 | D87: 643120.2985 | E87: =IF(C87="","",IF(T86<E86,T86+G87,IF($E$14="Pago_Fijo_Puntual",$J$9*$J$15/1000,IF($E$14="Pago_Bajo_Puntual",E86+(E86*R87))))) -> 6755 | F87: 913.3239551 | G87: 5841.676045 | H87: 282.9729313 | I87: 218.8965517 | J87: 0 | M87: 0 | N87: 0 | O87: 0 | Q87: =IF(C87="","",'Tabla_Puntual&Relacionamiento'!$E$7) -> 0.109 | S87: 7256.869483 | T87: 642206.9746 | U87: 1 | V87: =C87 -> 67 | X87: 7281.921007 | Y87: 1.098679244 | Z87: 0 | AA87: 18025 | AB87: 0 | AC87: 0
C88: 68 | D88: 642206.9746 | E88: 6755 | F88: 921.619981 | G88: 5833.380019 | H88: 282.5710688 | I88: 218.8965517 | J88: 0 | K88: =IFERROR(IF($E$8="Liquidez",G88*0.16,IF(AND($E$8="Pago_Hipoteca+Liquidez",$E$16="Liquidez"),G88*0.16,"")),"") ->  | M88: 0 | N88: 0 | O88: 0 | Q88: =IF(C88="","",'Tabla_Puntual&Relacionamiento'!$E$7) -> 0.109 | S88: 7256.467621 | T88: 641285.3546 | U88: 1 | V88: 68 | X88: 7281.519144 | Y88: 1.098679244 | Z88: 0 | AA88: 18025 | AB88: 0 | AC88: 0
C89: 69 | D89: 641285.3546 | E89: 6755 | F89: 929.9913625 | G89: 5825.008637 | H89: 282.165556 | I89: =IF(C89="","",IF(AND($E$8="Pago_Hipoteca+Liquidez",$E$16="Liquidez"),0,IF((($J$8*0.8)*($N$12/1.16))>T88*($N$12/1.16),($J$8*0.8)*($N$12/1.16),($N$12/1.16)*T88)/1000)) -> 218.8965517 | J89: 0 | M89: 0 | N89: 0 | O89: 0 | Q89: =IF(C89="","",'Tabla_Puntual&Relacionamiento'!$E$7) -> 0.109 | S89: 7256.062108 | T89: 640355.3632 | U89: 1 | V89: 69 | X89: 7281.113631 | Y89: 1.098679244 | Z89: 0 | AA89: 18025 | AB89: 0 | AC89: 0
C90: 70 | D90: 640355.3632 | E90: 6755 | F90: 938.438784 | G90: 5816.561216 | H90: 281.7563598 | I90: 218.8965517 | J90: 0 | M90: 0 | N90: 0 | O90: 0 | Q90: =IF(C90="","",'Tabla_Puntual&Relacionamiento'!$E$7) -> 0.109 | S90: 7255.652912 | T90: 639416.9244 | U90: 1 | V90: 70 | X90: 7280.704435 | Y90: 1.098679244 | Z90: 0 | AA90: 18025 | AB90: 0 | AC90: 0
C91: 71 | D91: 639416.9244 | E91: 6755 | F91: 946.9629363 | G91: 5808.037064 | H91: 281.3434468 | I91: 218.8965517 | J91: 0 | M91: 0 | N91: 0 | O91: 0 | Q91: =IF(C91="","",'Tabla_Puntual&Relacionamiento'!$E$7) -> 0.109 | S91: 7255.239998 | T91: 638469.9615 | U91: 1 | V91: 71 | X91: 7280.291522 | Y91: 1.098679244 | Z91: 0 | AA91: 18025 | AB91: 0 | AC91: 0
C92: 72 | D92: 638469.9615 | E92: 6755 | F92: 955.5645163 | G92: 5799.435484 | H92: 280.9267831 | I92: 218.8965517 | J92: 0 | M92: 0 | N92: 0 | O92: 0 | Q92: =IF(C92="","",'Tabla_Puntual&Relacionamiento'!$E$7) -> 0.109 | S92: 7254.823335 | T92: 637514.397 | U92: 1 | V92: 72 | X92: 7279.874858 | Y92: 1.098679244 | Z92: 0 | AA92: 18025 | AB92: 0 | AC92: 0
C93: 73 | D93: 637514.397 | E93: 6755 | F93: 884.5549277 | G93: 5870.445072 | H93: 280.5063347 | I93: 218.8965517 | J93: 0 | M93: 0 | N93: 0 | O93: 0 | Q93: =IF(C93="","",'Tabla_Puntual&Relacionamiento'!$E$8) -> 0.1105 | R93: =IF(C93="","",IF($E$14="Pago_Bajo_Puntual",$M$17,"")) ->  | S93: 7254.402886 | T93: 636629.8421 | U93: 1 | V93: 73 | X93: 7355.320149 | Y93: =Y92*1.019 -> 1.11955415 | Z93: 0 | AA93: 18025 | AB93: 0 | AC93: =AC92+$M$17 -> 0
C94: 74 | D94: 636629.8421 | E94: 6755 | F94: 892.7002044 | G94: 5862.299796 | H94: 280.1171305 | I94: 218.8965517 | J94: 0 | M94: 0 | N94: 0 | O94: 0 | Q94: =IF(C94="","",'Tabla_Puntual&Relacionamiento'!$E$8) -> 0.1105 | S94: 7254.013682 | T94: 635737.1419 | U94: 1 | V94: 74 | X94: 7354.930944 | Y94: =Y93 -> 1.11955415 | Z94: 0 | AA94: 18025 | AB94: 0 | AC94: 0
C95: 75 | D95: 635737.1419 | E95: 6755 | F95: 900.9204854 | G95: 5854.079515 | H95: 279.7243424 | I95: 218.8965517 | J95: 0 | M95: 0 | N95: 0 | O95: 0 | Q95: =IF(C95="","",'Tabla_Puntual&Relacionamiento'!$E$8) -> 0.1105 | S95: 7253.620894 | T95: 634836.2214 | U95: 1 | V95: 75 | X95: 7354.538156 | Y95: 1.11955415 | Z95: 0 | AA95: 18025 | AB95: 0 | AC95: 0
C96: 76 | D96: 634836.2214 | E96: 6755 | F96: 909.2164616 | G96: 5845.783538 | H96: 279.3279374 | I96: 218.8965517 | J96: 0 | M96: 0 | N96: 0 | O96: 0 | Q96: =IF(C96="","",'Tabla_Puntual&Relacionamiento'!$E$8) -> 0.1105 | S96: 7253.224489 | T96: 633927.0049 | U96: 1 | V96: 76 | X96: 7354.141751 | Y96: 1.11955415 | Z96: 0 | AA96: 18025 | AB96: 0 | AC96: 0
C97: 77 | D97: 633927.0049 | E97: 6755 | F97: 917.5888298 | G97: 5837.41117 | H97: 278.9278822 | I97: 218.8965517 | J97: 0 | M97: 0 | N97: 0 | O97: 0 | Q97: =IF(C97="","",'Tabla_Puntual&Relacionamiento'!$E$8) -> 0.1105 | S97: 7252.824434 | T97: 633009.4161 | U97: 1 | V97: 77 | X97: 7353.741696 | Y97: 1.11955415 | Z97: 0 | AA97: 18025 | AB97: 0 | AC97: 0
C98: 78 | D98: 633009.4161 | E98: 6755 | F98: 926.0382936 | G98: 5828.961706 | H98: 278.5241431 | I98: 218.8965517 | J98: 0 | M98: 0 | N98: 0 | O98: 0 | Q98: =IF(C98="","",'Tabla_Puntual&Relacionamiento'!$E$8) -> 0.1105 | S98: 7252.420695 | T98: 632083.3778 | U98: 1 | V98: 78 | X98: 7353.337957 | Y98: 1.11955415 | Z98: 0 | AA98: 18025 | AB98: 0 | AC98: 0
C99: 79 | D99: 632083.3778 | E99: 6755 | F99: 934.5655629 | G99: 5820.434437 | H99: 278.1166862 | I99: 218.8965517 | J99: 0 | M99: 0 | N99: 0 | O99: 0 | Q99: =IF(C99="","",'Tabla_Puntual&Relacionamiento'!$E$8) -> 0.1105 | S99: 7252.013238 | T99: 631148.8122 | U99: 1 | V99: 79 | X99: 7352.9305 | Y99: 1.11955415 | Z99: 0 | AA99: 18025 | AB99: 0 | AC99: =AC98 -> 0
C100: 80 | D100: 631148.8122 | E100: 6755 | F100: 943.1713541 | G100: 5811.828646 | H100: 277.7054774 | I100: 218.8965517 | J100: 0 | M100: 0 | N100: 0 | O100: 0 | Q100: =IF(C100="","",'Tabla_Puntual&Relacionamiento'!$E$8) -> 0.1105 | S100: 7251.602029 | T100: 630205.6409 | U100: 1 | V100: 80 | X100: 7352.519291 | Y100: 1.11955415 | Z100: 0 | AA100: 18025 | AB100: 0 | AC100: 0
C101: 81 | D101: 630205.6409 | E101: 6755 | F101: 951.8563903 | G101: 5803.14361 | H101: 277.290482 | I101: 218.8965517 | J101: 0 | M101: 0 | N101: 0 | O101: 0 | Q101: =IF(C101="","",'Tabla_Puntual&Relacionamiento'!$E$8) -> 0.1105 | S101: 7251.187034 | T101: 629253.7845 | U101: 1 | V101: 81 | X101: 7352.104296 | Y101: 1.11955415 | Z101: 0 | AA101: 18025 | AB101: 0 | AC101: 0
C102: 82 | D102: 629253.7845 | E102: 6755 | F102: 960.6214013 | G102: 5794.378599 | H102: 276.8716652 | I102: 218.8965517 | J102: 0 | M102: 0 | N102: 0 | O102: 0 | Q102: =IF(C102="","",'Tabla_Puntual&Relacionamiento'!$E$8) -> 0.1105 | S102: 7250.768217 | T102: 628293.1631 | U102: 1 | V102: 82 | X102: 7351.685479 | Y102: 1.11955415 | Z102: 0 | AA102: 18025 | AB102: 0 | AC102: 0
C103: 83 | D103: 628293.1631 | E103: 6755 | F103: 969.4671233 | G103: 5785.532877 | H103: 276.4489918 | I103: 218.8965517 | J103: 0 | M103: 0 | N103: 0 | O103: 0 | Q103: =IF(C103="","",'Tabla_Puntual&Relacionamiento'!$E$8) -> 0.1105 | S103: 7250.345543 | T103: 627323.696 | U103: 1 | V103: 83 | X103: 7351.262806 | Y103: 1.11955415 | Z103: 0 | AA103: 18025 | AB103: 0 | AC103: 0
C104: 84 | D104: 627323.696 | E104: 6755 | F104: 978.3942998 | G104: 5776.6057 | H104: 276.0224262 | I104: 218.8965517 | J104: 0 | M104: 0 | N104: 0 | O104: 0 | Q104: =IF(C104="","",'Tabla_Puntual&Relacionamiento'!$E$8) -> 0.1105 | S104: 7249.918978 | T104: 626345.3017 | U104: 1 | V104: 84 | X104: 7350.83624 | Y104: 1.11955415 | Z104: 0 | AA104: 18025 | AB104: 0 | AC104: 0
C105: 85 | D105: 626345.3017 | E105: 6755 | F105: 909.1105179 | G105: 5845.889482 | H105: 275.5919327 | I105: 218.8965517 | J105: 0 | M105: 0 | N105: 0 | O105: 0 | Q105: =IF(C105="","",'Tabla_Puntual&Relacionamiento'!$E$9) -> 0.112 | R105: =IF(C105="","",IF($E$14="Pago_Bajo_Puntual",$M$17,"")) ->  | S105: 7249.488484 | T105: 625436.1911 | U105: 1 | V105: 85 | X105: 7426.537289 | Y105: =Y104*1.019 -> 1.140825679 | Z105: 0 | AA105: 18025 | AB105: 0 | AC105: =AC104+$M$17 -> 0
C106: 86 | D106: 625436.1911 | E106: 6755 | F106: 917.5955494 | G106: 5837.404451 | H106: 275.1919241 | I106: 218.8965517 | J106: 0 | M106: 0 | N106: 0 | O106: 0 | Q106: =IF(C106="","",'Tabla_Puntual&Relacionamiento'!$E$9) -> 0.112 | S106: 7249.088476 | T106: 624518.5956 | U106: 1 | V106: 86 | X106: 7426.13728 | Y106: =Y105 -> 1.140825679 | Z106: 0 | AA106: 18025 | AB106: 0 | AC106: 0
C107: 87 | D107: 624518.5956 | E107: 6755 | F107: 926.1597745 | G107: 5828.840225 | H107: 274.7881821 | I107: 218.8965517 | J107: 0 | M107: 0 | N107: 0 | O107: 0 | Q107: =IF(C107="","",'Tabla_Puntual&Relacionamiento'!$E$9) -> 0.112 | S107: 7248.684734 | T107: 623592.4358 | U107: 1 | V107: 87 | X107: 7425.733538 | Y107: 1.140825679 | Z107: 0 | AA107: 18025 | AB107: 0 | AC107: 0
C108: 88 | D108: 623592.4358 | E108: 6755 | F108: 934.8039324 | G108: 5820.196068 | H108: 274.3806718 | I108: 218.8965517 | J108: 0 | M108: 0 | N108: 0 | O108: 0 | Q108: =IF(C108="","",'Tabla_Puntual&Relacionamiento'!$E$9) -> 0.112 | S108: 7248.277223 | T108: 622657.6319 | U108: 1 | V108: 88 | X108: 7425.326028 | Y108: 1.140825679 | Z108: 0 | AA108: 18025 | AB108: 0 | AC108: 0
C109: 89 | D109: 622657.6319 | E109: 6755 | F109: 943.5287691 | G109: 5811.471231 | H109: 273.969358 | I109: 218.8965517 | J109: 0 | M109: 0 | N109: 0 | O109: 0 | Q109: =IF(C109="","",'Tabla_Puntual&Relacionamiento'!$E$9) -> 0.112 | S109: 7247.86591 | T109: 621714.1031 | U109: 1 | V109: 89 | X109: 7424.914714 | Y109: 1.140825679 | Z109: 0 | AA109: 18025 | AB109: 0 | AC109: 0
C110: 90 | D110: 621714.1031 | E110: 6755 | F110: 952.3350376 | G110: 5802.664962 | H110: 273.5542054 | I110: 218.8965517 | J110: 0 | M110: 0 | N110: 0 | O110: 0 | Q110: =IF(C110="","",'Tabla_Puntual&Relacionamiento'!$E$9) -> 0.112 | S110: 7247.450757 | T110: 620761.7681 | U110: 1 | V110: 90 | X110: 7424.499561 | Y110: 1.140825679 | Z110: 0 | AA110: 18025 | AB110: 0 | AC110: 0
C111: 91 | D111: 620761.7681 | E111: 6755 | F111: 961.223498 | G111: 5793.776502 | H111: 273.135178 | I111: 218.8965517 | J111: 0 | M111: 0 | N111: 0 | O111: 0 | Q111: =IF(C111="","",'Tabla_Puntual&Relacionamiento'!$E$9) -> 0.112 | S111: 7247.03173 | T111: 619800.5446 | U111: 1 | V111: 91 | X111: 7424.080534 | Y111: 1.140825679 | Z111: 0 | AA111: 18025 | AB111: 0 | AC111: 0
C112: 92 | D112: 619800.5446 | E112: 6755 | F112: 970.1949173 | G112: 5784.805083 | H112: 272.7122396 | I112: 218.8965517 | J112: 0 | M112: 0 | N112: 0 | O112: 0 | Q112: =IF(C112="","",'Tabla_Puntual&Relacionamiento'!$E$9) -> 0.112 | S112: 7246.608791 | T112: 618830.3497 | U112: 1 | V112: 92 | X112: 7423.657596 | Y112: 1.140825679 | Z112: 0 | AA112: 18025 | AB112: 0 | AC112: 0
C113: 93 | D113: 618830.3497 | E113: 6755 | F113: 979.2500699 | G113: 5775.74993 | H113: 272.2853538 | I113: 218.8965517 | J113: 0 | M113: 0 | N113: 0 | O113: 0 | Q113: =IF(C113="","",'Tabla_Puntual&Relacionamiento'!$E$9) -> 0.112 | S113: 7246.181906 | T113: 617851.0996 | U113: 1 | V113: 93 | X113: 7423.23071 | Y113: 1.140825679 | Z113: 0 | AA113: 18025 | AB113: 0 | AC113: 0
C114: 94 | D114: 617851.0996 | E114: 6755 | F114: 988.3897372 | G114: 5766.610263 | H114: 271.8544838 | I114: 218.8965517 | J114: 0 | M114: 0 | N114: 0 | O114: 0 | Q114: =IF(C114="","",'Tabla_Puntual&Relacionamiento'!$E$9) -> 0.112 | S114: 7245.751036 | T114: 616862.7098 | U114: 1 | V114: 94 | X114: 7422.79984 | Y114: 1.140825679 | Z114: 0 | AA114: 18025 | AB114: 0 | AC114: 0
C115: 95 | D115: 616862.7098 | E115: 6755 | F115: 997.6147081 | G115: 5757.385292 | H115: 271.4195923 | I115: 218.8965517 | J115: 0 | M115: 0 | N115: 0 | O115: 0 | Q115: =IF(C115="","",'Tabla_Puntual&Relacionamiento'!$E$9) -> 0.112 | S115: 7245.316144 | T115: 615865.0951 | U115: 1 | V115: 95 | X115: 7422.364948 | Y115: 1.140825679 | Z115: 0 | AA115: 18025 | AB115: 0 | AC115: 0
C116: 96 | D116: 615865.0951 | E116: 6755 | F116: 1006.925779 | G116: 5748.074221 | H116: 270.9806419 | I116: 218.8965517 | J116: 0 | M116: 0 | N116: 0 | O116: 0 | Q116: =IF(C116="","",'Tabla_Puntual&Relacionamiento'!$E$9) -> 0.112 | S116: 7244.877194 | T116: 614858.1694 | U116: 1 | V116: 96 | X116: 7421.925998 | Y116: 1.140825679 | Z116: 0 | AA116: 18025 | AB116: 0 | AC116: 0
C117: 97 | D117: 614858.1694 | E117: 6755 | F117: 1016.323753 | G117: 5738.676247 | H117: 270.5375945 | I117: 218.8965517 | J117: 0 | M117: 0 | N117: 0 | O117: 0 | Q117: =IF(C117="","",'Tabla_Puntual&Relacionamiento'!$E$10) -> 0.112 | R117: =IF(C117="","",IF($E$14="Pago_Bajo_Puntual",$M$17,"")) ->  | S117: 7244.434146 | T117: 613841.8456 | U117: 1 | V117: 97 | X117: 7421.482951 | Y117: =Y116*1.019 -> 1.162501366 | Z117: 0 | AA117: 18025 | AB117: 0 | AC117: =AC116+$M$17 -> 0
C118: 98 | D118: 613841.8456 | E118: 6755 | F118: 1025.809441 | G118: 5729.190559 | H118: 270.0904121 | I118: 218.8965517 | J118: 0 | M118: 0 | N118: 0 | O118: 0 | Q118: =IF(C118="","",'Tabla_Puntual&Relacionamiento'!$E$10) -> 0.112 | S118: 7243.986964 | T118: 612816.0362 | U118: 1 | V118: 98 | X118: 7421.035768 | Y118: =Y117 -> 1.162501366 | Z118: 0 | AA118: 18025 | AB118: 0 | AC118: 0
C119: 99 | D119: 612816.0362 | E119: 6755 | F119: 1035.383662 | G119: 5719.616338 | H119: 269.6390559 | I119: 218.8965517 | J119: 0 | M119: 0 | N119: 0 | O119: 0 | Q119: =IF(C119="","",'Tabla_Puntual&Relacionamiento'!$E$10) -> 0.112 | S119: 7243.535608 | T119: 611780.6525 | U119: 1 | V119: 99 | X119: 7420.584412 | Y119: 1.162501366 | Z119: 0 | AA119: 18025 | AB119: 0 | AC119: 0
C120: 100 | D120: 611780.6525 | E120: 6755 | F120: 1045.047243 | G120: 5709.952757 | H120: 269.1834871 | I120: 218.8965517 | J120: 0 | M120: 0 | N120: 0 | O120: 0 | Q120: =IF(C120="","",'Tabla_Puntual&Relacionamiento'!$E$10) -> 0.112 | S120: 7243.080039 | T120: 610735.6053 | U120: 1 | V120: 100 | X120: 7420.128843 | Y120: 1.162501366 | Z120: 0 | AA120: 18025 | AB120: 0 | AC120: 0
C121: 101 | D121: 610735.6053 | E121: 6755 | F121: 1054.801018 | G121: 5700.198982 | H121: 268.7236663 | I121: 218.8965517 | J121: 0 | M121: 0 | N121: 0 | O121: 0 | Q121: =IF(C121="","",'Tabla_Puntual&Relacionamiento'!$E$10) -> 0.112 | S121: 7242.620218 | T121: 609680.8042 | U121: 1 | V121: 101 | X121: 7419.669022 | Y121: 1.162501366 | Z121: 0 | AA121: 18025 | AB121: 0 | AC121: 0
C122: 102 | D122: 609680.8042 | E122: 6755 | F122: 1064.645827 | G122: 5690.354173 | H122: 268.2595539 | I122: 218.8965517 | J122: 0 | M122: 0 | N122: 0 | O122: 0 | Q122: =IF(C122="","",'Tabla_Puntual&Relacionamiento'!$E$10) -> 0.112 | S122: 7242.156106 | T122: 608616.1584 | U122: 1 | V122: 102 | X122: 7419.20491 | Y122: 1.162501366 | Z122: 0 | AA122: 18025 | AB122: 0 | AC122: 0
C123: 103 | D123: 608616.1584 | E123: 6755 | F123: 1074.582521 | G123: 5680.417479 | H123: 267.7911097 | I123: 218.8965517 | J123: 0 | M123: 0 | N123: 0 | O123: 0 | Q123: =IF(C123="","",'Tabla_Puntual&Relacionamiento'!$E$10) -> 0.112 | S123: 7241.687661 | T123: 607541.5759 | U123: 1 | V123: 103 | X123: 7418.736466 | Y123: 1.162501366 | Z123: 0 | AA123: 18025 | AB123: 0 | AC123: 0
C124: 104 | D124: 607541.5759 | E124: 6755 | F124: 1084.611958 | G124: 5670.388042 | H124: 267.3182934 | I124: 218.8965517 | J124: 0 | M124: 0 | N124: 0 | O124: 0 | Q124: =IF(C124="","",'Tabla_Puntual&Relacionamiento'!$E$10) -> 0.112 | S124: 7241.214845 | T124: 606456.9639 | U124: 1 | V124: 104 | X124: 7418.263649 | Y124: 1.162501366 | Z124: 0 | AA124: 18025 | AB124: 0 | AC124: 0
C125: 105 | D125: 606456.9639 | E125: 6755 | F125: 1094.735003 | G125: 5660.264997 | H125: 266.8410641 | I125: 218.8965517 | J125: 0 | M125: 0 | N125: 0 | O125: 0 | Q125: =IF(C125="","",'Tabla_Puntual&Relacionamiento'!$E$10) -> 0.112 | S125: 7240.737616 | T125: 605362.2289 | U125: 1 | V125: 105 | X125: 7417.78642 | Y125: 1.162501366 | Z125: 0 | AA125: 18025 | AB125: 0 | AC125: 0
C126: 106 | D126: 605362.2289 | E126: 6755 | F126: 1104.95253 | G126: 5650.04747 | H126: 266.3593807 | I126: 218.8965517 | J126: 0 | M126: 0 | N126: 0 | O126: 0 | Q126: =IF(C126="","",'Tabla_Puntual&Relacionamiento'!$E$10) -> 0.112 | S126: 7240.255932 | T126: 604257.2764 | U126: 1 | V126: 106 | X126: 7417.304737 | Y126: 1.162501366 | Z126: 0 | AA126: 18025 | AB126: 0 | AC126: 0
C127: 107 | D127: 604257.2764 | E127: 6755 | F127: 1115.26542 | G127: 5639.73458 | H127: 265.8732016 | I127: 218.8965517 | J127: 0 | M127: 0 | N127: 0 | O127: 0 | Q127: =IF(C127="","",'Tabla_Puntual&Relacionamiento'!$E$10) -> 0.112 | S127: 7239.769753 | T127: 603142.011 | U127: 1 | V127: 107 | X127: 7416.818558 | Y127: 1.162501366 | Z127: 0 | AA127: 18025 | AB127: 0 | AC127: 0
C128: 108 | D128: 603142.011 | E128: 6755 | F128: 1125.674564 | G128: 5629.325436 | H128: 265.3824848 | I128: 218.8965517 | J128: 0 | M128: 0 | N128: 0 | O128: 0 | Q128: =IF(C128="","",'Tabla_Puntual&Relacionamiento'!$E$10) -> 0.112 | S128: 7239.279037 | T128: 602016.3364 | U128: 1 | V128: 108 | X128: 7416.327841 | Y128: 1.162501366 | Z128: 0 | AA128: 18025 | AB128: 0 | AC128: 0
C129: 109 | D129: 602016.3364 | E129: 6755 | F129: 1136.18086 | G129: 5618.81914 | H129: 264.887188 | I129: 218.8965517 | J129: 0 | M129: 0 | N129: 0 | O129: 0 | Q129: =IF(C129="","",'Tabla_Puntual&Relacionamiento'!$E$11) -> 0.112 | R129: =IF(C129="","",IF($E$14="Pago_Bajo_Puntual",$M$17,"")) ->  | S129: 7238.78374 | T129: 600880.1556 | U129: 1 | V129: 109 | X129: 7415.832544 | Y129: =Y128*1.019 -> 1.184588892 | Z129: 0 | AA129: 18025 | AB129: 0 | AC129: =AC128+$M$17 -> 0
C130: 110 | D130: 600880.1556 | E130: 6755 | F130: 1146.785215 | G130: 5608.214785 | H130: 264.3872684 | I130: 218.8965517 | J130: 0 | M130: 0 | N130: 0 | O130: 0 | Q130: =IF(C130="","",'Tabla_Puntual&Relacionamiento'!$E$11) -> 0.112 | S130: 7238.28382 | T130: 599733.3703 | U130: 1 | V130: 110 | X130: 7415.332625 | Y130: =Y129 -> 1.184588892 | Z130: 0 | AA130: 18025 | AB130: 0 | AC130: 0
C131: 111 | D131: 599733.3703 | E131: 6755 | F131: 1157.488543 | G131: 5597.511457 | H131: 263.882683 | I131: 218.8965517 | J131: 0 | M131: 0 | N131: 0 | O131: 0 | Q131: =IF(C131="","",'Tabla_Puntual&Relacionamiento'!$E$11) -> 0.112 | S131: 7237.779235 | T131: 598575.8818 | U131: 1 | V131: 111 | X131: 7414.828039 | Y131: 1.184588892 | Z131: 0 | AA131: 18025 | AB131: 0 | AC131: 0
C132: 112 | D132: 598575.8818 | E132: 6755 | F132: 1168.29177 | G132: 5586.70823 | H132: 263.373388 | I132: 218.8965517 | J132: 0 | M132: 0 | N132: 0 | O132: 0 | Q132: =IF(C132="","",'Tabla_Puntual&Relacionamiento'!$E$11) -> 0.112 | S132: 7237.26994 | T132: 597407.59 | U132: 1 | V132: 112 | X132: 7414.318744 | Y132: 1.184588892 | Z132: 0 | AA132: 18025 | AB132: 0 | AC132: 0
C133: 113 | D133: 597407.59 | E133: 6755 | F133: 1179.195826 | G133: 5575.804174 | H133: 262.8593396 | I133: 218.8965517 | J133: 0 | M133: 0 | N133: 0 | O133: 0 | Q133: =IF(C133="","",'Tabla_Puntual&Relacionamiento'!$E$11) -> 0.112 | S133: 7236.755891 | T133: 596228.3942 | U133: 1 | V133: 113 | X133: 7413.804696 | Y133: 1.184588892 | Z133: 0 | AA133: 18025 | AB133: 0 | AC133: 0
C134: 114 | D134: 596228.3942 | E134: 6755 | F134: 1190.201654 | G134: 5564.798346 | H134: 262.3404935 | I134: 218.8965517 | J134: 0 | M134: 0 | N134: 0 | O134: 0 | Q134: =IF(C134="","",'Tabla_Puntual&Relacionamiento'!$E$11) -> 0.112 | S134: 7236.237045 | T134: 595038.1926 | U134: 1 | V134: 114 | X134: 7413.28585 | Y134: 1.184588892 | Z134: 0 | AA134: 18025 | AB134: 0 | AC134: 0
C135: 115 | D135: 595038.1926 | E135: 6755 | F135: 1201.310203 | G135: 5553.689797 | H135: 261.8168047 | I135: 218.8965517 | J135: 0 | M135: 0 | N135: 0 | O135: 0 | Q135: =IF(C135="","",'Tabla_Puntual&Relacionamiento'!$E$11) -> 0.112 | S135: 7235.713356 | T135: 593836.8824 | U135: 1 | V135: 115 | X135: 7412.762161 | Y135: 1.184588892 | Z135: 0 | AA135: 18025 | AB135: 0 | AC135: 0
C136: 116 | D136: 593836.8824 | E136: 6755 | F136: 1212.522431 | G136: 5542.477569 | H136: 261.2882282 | I136: 218.8965517 | J136: 0 | M136: 0 | N136: 0 | O136: 0 | Q136: =IF(C136="","",'Tabla_Puntual&Relacionamiento'!$E$11) -> 0.112 | S136: 7235.18478 | T136: 592624.3599 | U136: 1 | V136: 116 | X136: 7412.233584 | Y136: 1.184588892 | Z136: 0 | AA136: 18025 | AB136: 0 | AC136: 0
C137: 117 | D137: 592624.3599 | E137: 6755 | F137: 1223.839307 | G137: 5531.160693 | H137: 260.7547184 | I137: 218.8965517 | J137: 0 | M137: 0 | N137: 0 | O137: 0 | Q137: =IF(C137="","",'Tabla_Puntual&Relacionamiento'!$E$11) -> 0.112 | S137: 7234.65127 | T137: 591400.5206 | U137: 1 | V137: 117 | X137: 7411.700074 | Y137: 1.184588892 | Z137: 0 | AA137: 18025 | AB137: 0 | AC137: 0
C138: 118 | D138: 591400.5206 | E138: 6755 | F138: 1235.261808 | G138: 5519.738192 | H138: 260.2162291 | I138: 218.8965517 | J138: 0 | M138: 0 | N138: 0 | O138: 0 | Q138: =IF(C138="","",'Tabla_Puntual&Relacionamiento'!$E$11) -> 0.112 | S138: 7234.112781 | T138: 590165.2588 | U138: 1 | V138: 118 | X138: 7411.161585 | Y138: 1.184588892 | Z138: 0 | AA138: 18025 | AB138: 0 | AC138: 0
C139: 119 | D139: 590165.2588 | E139: 6755 | F139: 1246.790918 | G139: 5508.209082 | H139: 259.6727139 | I139: 218.8965517 | J139: 0 | M139: 0 | N139: 0 | O139: 0 | Q139: =IF(C139="","",'Tabla_Puntual&Relacionamiento'!$E$11) -> 0.112 | S139: 7233.569266 | T139: 588918.4679 | U139: 1 | V139: 119 | X139: 7410.61807 | Y139: 1.184588892 | Z139: 0 | AA139: 18025 | AB139: 0 | AC139: 0
C140: 120 | D140: 588918.4679 | E140: 6755 | F140: 1258.427633 | G140: 5496.572367 | H140: 259.1241259 | I140: 218.8965517 | J140: 0 | M140: 0 | N140: 0 | O140: 0 | Q140: =IF(C140="","",'Tabla_Puntual&Relacionamiento'!$E$11) -> 0.112 | S140: 7233.020678 | T140: 587660.0403 | U140: 1 | V140: 120 | X140: 7410.069482 | Y140: 1.184588892 | Z140: 0 | AA140: 18025 | AB140: 0 | AC140: 0
C141: 121 | D141: 587660.0403 | E141: 6755 | F141: 1270.172958 | G141: 5484.827042 | H141: 258.5704177 | I141: 218.8965517 | J141: 0 | M141: 0 | N141: 0 | O141: 0 | Q141: =IF(C141="","",'Tabla_Puntual&Relacionamiento'!$E$12) -> 0.112 | R141: =IF(C141="","",IF($E$14="Pago_Bajo_Puntual",$M$17,"")) ->  | S141: 7232.466969 | T141: 586389.8673 | U141: 1 | V141: 121 | X141: 7409.515774 | Y141: =Y140*1.019 -> 1.207096081 | Z141: 0 | AA141: 18025 | AB141: 0 | AC141: =AC140+$M$17 -> 0
C142: 122 | D142: 586389.8673 | E142: 6755 | F142: 1282.027905 | G142: 5472.972095 | H142: 258.0115416 | I142: 218.8965517 | J142: 0 | M142: 0 | N142: 0 | O142: 0 | Q142: =IF(C142="","",'Tabla_Puntual&Relacionamiento'!$E$12) -> 0.112 | S142: 7231.908093 | T142: 585107.8394 | U142: 1 | V142: 122 | X142: 7408.956898 | Y142: =Y141 -> 1.207096081 | Z142: 0 | AA142: 18025 | AB142: 0 | AC142: 0
C143: 123 | D143: 585107.8394 | E143: 6755 | F143: 1293.993499 | G143: 5461.006501 | H143: 257.4474493 | I143: 218.8965517 | J143: 0 | M143: 0 | N143: 0 | O143: 0 | Q143: =IF(C143="","",'Tabla_Puntual&Relacionamiento'!$E$12) -> 0.112 | S143: 7231.344001 | T143: 583813.8459 | U143: 1 | V143: 123 | X143: 7408.392805 | Y143: 1.207096081 | Z143: 0 | AA143: 18025 | AB143: 0 | AC143: 0
C144: 124 | D144: 583813.8459 | E144: 6755 | F144: 1306.070772 | G144: 5448.929228 | H144: 256.8780922 | I144: 218.8965517 | J144: 0 | M144: 0 | N144: 0 | O144: 0 | Q144: =IF(C144="","",'Tabla_Puntual&Relacionamiento'!$E$12) -> 0.112 | S144: 7230.774644 | T144: 582507.7751 | U144: 1 | V144: 124 | X144: 7407.823448 | Y144: 1.207096081 | Z144: 0 | AA144: 18025 | AB144: 0 | AC144: 0
C145: 125 | D145: 582507.7751 | E145: 6755 | F145: 1318.260766 | G145: 5436.739234 | H145: 256.3034211 | I145: 218.8965517 | J145: 0 | M145: 0 | N145: 0 | O145: 0 | Q145: =IF(C145="","",'Tabla_Puntual&Relacionamiento'!$E$12) -> 0.112 | S145: 7230.199973 | T145: 581189.5144 | U145: 1 | V145: 125 | X145: 7407.248777 | Y145: 1.207096081 | Z145: 0 | AA145: 18025 | AB145: 0 | AC145: 0
C146: 126 | D146: 581189.5144 | E146: 6755 | F146: 1330.564533 | G146: 5424.435467 | H146: 255.7233863 | I146: 218.8965517 | J146: 0 | M146: 0 | N146: 0 | O146: 0 | Q146: =IF(C146="","",'Tabla_Puntual&Relacionamiento'!$E$12) -> 0.112 | S146: 7229.619938 | T146: 579858.9498 | U146: 1 | V146: 126 | X146: 7406.668742 | Y146: 1.207096081 | Z146: 0 | AA146: 18025 | AB146: 0 | AC146: 0
C147: 127 | D147: 579858.9498 | E147: 6755 | F147: 1342.983135 | G147: 5412.016865 | H147: 255.1379379 | I147: 218.8965517 | J147: 0 | M147: 0 | N147: 0 | O147: 0 | Q147: =IF(C147="","",'Tabla_Puntual&Relacionamiento'!$E$12) -> 0.112 | S147: 7229.03449 | T147: 578515.9667 | U147: 1 | V147: 127 | X147: 7406.083294 | Y147: 1.207096081 | Z147: 0 | AA147: 18025 | AB147: 0 | AC147: 0
C148: 128 | D148: 578515.9667 | E148: 6755 | F148: 1355.517644 | G148: 5399.482356 | H148: 254.5470253 | I148: 218.8965517 | J148: 0 | M148: 0 | N148: 0 | O148: 0 | Q148: =IF(C148="","",'Tabla_Puntual&Relacionamiento'!$E$12) -> 0.112 | S148: 7228.443577 | T148: 577160.449 | U148: 1 | V148: 128 | X148: 7405.492381 | Y148: 1.207096081 | Z148: 0 | AA148: 18025 | AB148: 0 | AC148: 0
C149: 129 | D149: 577160.449 | E149: 6755 | F149: =IF(C149="","",E149-G149+P149+M149) -> 1368.169142 | G149: =IF(C149="","",IF(T148*(Q149/12)<0,"",T148*(Q149/12))) -> 5386.830858 | H149: 253.9505976 | I149: 218.8965517 | J149: 0 | M149: 0 | N149: =IF(C149="","",(L149+P149)*$J$12) -> 0 | O149: =IF(C149="","",((L149+P149)*$J$12)*0.16) -> 0 | Q149: =IF(C149="","",'Tabla_Puntual&Relacionamiento'!$E$12) -> 0.112 | S149: 7227.847149 | T149: =IF(C149="","",T148-F149) -> 575792.2799 | U149: =IF(C149="","",1) -> 1 | V149: 129 | X149: =IF(C149="","",IF($D$17="SI",AB149, IF(ISNUMBER(V149),IF($E$14="Pago_Fijo_Puntual",PMT(Q149/12,$E$15*12,-$J$9), Y149*$J$15*$J$9/1000)+H149+AB149+P149+I149/1.16+$Q$15,0))) -> 7404.895954 | Y149: 1.207096081 | Z149: =IF($AA$20=0,0,IF(M149>AA148,MAX(0,M149-AA148),M149)) -> 0 | AA149: =IFERROR(MAX(0,AA148-M149),0) -> 18025 | AB149: =IF($D$17="NO",M149,IF(AA149>0,0,Z149)) -> 0 | AC149: 0
C150: =IF(OR(C149="",T149<=0),"",IF(C149+1<=E$15*12,C149+1,"")) -> 130 | D150: =IF(T149<=0,"",T149) -> 575792.2799 | E150: 6755 | F150: 1380.938721 | G150: 5374.061279 | H150: =IF(C150="","",L$12*T149/1000) -> 253.3486032 | I150: 218.8965517 | J150: =IF($D$17="SI",0,IF(D150="","",$Q$15)) -> 0 | M150: =IF(C150="","",IF(L150="",0,L150-N150-O150)) -> 0 | N150: 0 | O150: 0 | Q150: =IF(C150="","",'Tabla_Puntual&Relacionamiento'!$E$12) -> 0.112 | S150: =IF(C150="","",IF($K$19="",E150+H150+I150+J150+L150+P150,E150+H150+I150+J150+K150+L150+P150)) -> 7227.245155 | T150: 574411.3412 | U150: 1 | V150: 130 | X150: 7404.293959 | Y150: 1.207096081 | Z150: 0 | AA150: 18025 | AB150: 0 | AC150: 0
C151: 131 | D151: 574411.3412 | E151: =IF(C151="","",IF(T150<E150,T150+G151,IF($E$14="Pago_Fijo_Puntual",$J$9*$J$15/1000,IF($E$14="Pago_Bajo_Puntual",E150+(E150*R151))))) -> 6755 | F151: 1393.827482 | G151: 5361.172518 | H151: 252.7409901 | I151: 218.8965517 | J151: 0 | M151: 0 | N151: 0 | O151: 0 | Q151: =IF(C151="","",'Tabla_Puntual&Relacionamiento'!$E$12) -> 0.112 | S151: 7226.637542 | T151: 573017.5137 | U151: 1 | V151: =C151 -> 131 | X151: 7403.686346 | Y151: 1.207096081 | Z151: 0 | AA151: 18025 | AB151: 0 | AC151: 0
C152: 132 | D152: 573017.5137 | E152: 6755 | F152: 1406.836539 | G152: 5348.163461 | H152: 252.127706 | I152: 218.8965517 | J152: 0 | K152: =IFERROR(IF($E$8="Liquidez",G152*0.16,IF(AND($E$8="Pago_Hipoteca+Liquidez",$E$16="Liquidez"),G152*0.16,"")),"") ->  | M152: 0 | N152: 0 | O152: 0 | Q152: =IF(C152="","",'Tabla_Puntual&Relacionamiento'!$E$12) -> 0.112 | S152: 7226.024258 | T152: 571610.6772 | U152: 1 | V152: 132 | X152: 7403.073062 | Y152: 1.207096081 | Z152: 0 | AA152: 18025 | AB152: 0 | AC152: 0
C153: 133 | D153: 571610.6772 | E153: 6755 | F153: 1419.967013 | G153: 5335.032987 | H153: 251.5086979 | I153: =IF(C153="","",IF(AND($E$8="Pago_Hipoteca+Liquidez",$E$16="Liquidez"),0,IF((($J$8*0.8)*($N$12/1.16))>T152*($N$12/1.16),($J$8*0.8)*($N$12/1.16),($N$12/1.16)*T152)/1000)) -> 218.8965517 | J153: 0 | M153: 0 | N153: 0 | O153: 0 | Q153: =IF(C153="","",'Tabla_Puntual&Relacionamiento'!$E$13) -> 0.112 | R153: =IF(C153="","",IF($E$14="Pago_Bajo_Puntual",$M$17,"")) ->  | S153: 7225.40525 | T153: 570190.7101 | U153: 1 | V153: 133 | X153: 7402.454054 | Y153: =Y152*1.019 -> 1.230030907 | Z153: 0 | AA153: 18025 | AB153: 0 | AC153: =AC152+$M$17 -> 0
C154: 134 | D154: 570190.7101 | E154: 6755 | F154: 1433.220039 | G154: 5321.779961 | H154: 250.8839125 | I154: 218.8965517 | J154: 0 | M154: 0 | N154: 0 | O154: 0 | Q154: =IF(C154="","",'Tabla_Puntual&Relacionamiento'!$E$13) -> 0.112 | S154: 7224.780464 | T154: 568757.4901 | U154: 1 | V154: 134 | X154: 7401.829269 | Y154: =Y153 -> 1.230030907 | Z154: 0 | AA154: 18025 | AB154: 0 | AC154: 0
C155: 135 | D155: 568757.4901 | E155: 6755 | F155: 1446.596759 | G155: 5308.403241 | H155: 250.2532956 | I155: 218.8965517 | J155: 0 | M155: 0 | N155: 0 | O155: 0 | Q155: =IF(C155="","",'Tabla_Puntual&Relacionamiento'!$E$13) -> 0.112 | S155: 7224.149847 | T155: 567310.8933 | U155: 1 | V155: 135 | X155: 7401.198652 | Y155: 1.230030907 | Z155: 0 | AA155: 18025 | AB155: 0 | AC155: 0
C156: 136 | D156: 567310.8933 | E156: 6755 | F156: 1460.098329 | G156: 5294.901671 | H156: 249.6167931 | I156: 218.8965517 | J156: 0 | M156: 0 | N156: 0 | O156: 0 | Q156: =IF(C156="","",'Tabla_Puntual&Relacionamiento'!$E$13) -> 0.112 | S156: 7223.513345 | T156: 565850.795 | U156: 1 | V156: 136 | X156: 7400.562149 | Y156: 1.230030907 | Z156: 0 | AA156: 18025 | AB156: 0 | AC156: 0
C157: 137 | D157: 565850.795 | E157: 6755 | F157: 1473.725913 | G157: 5281.274087 | H157: 248.9743498 | I157: 218.8965517 | J157: 0 | M157: 0 | N157: 0 | O157: 0 | Q157: =IF(C157="","",'Tabla_Puntual&Relacionamiento'!$E$13) -> 0.112 | S157: 7222.870902 | T157: 564377.0691 | U157: 1 | V157: 137 | X157: 7399.919706 | Y157: 1.230030907 | Z157: 0 | AA157: 18025 | AB157: 0 | AC157: 0
C158: 138 | D158: 564377.0691 | E158: 6755 | F158: 1487.480688 | G158: 5267.519312 | H158: 248.3259104 | I158: 218.8965517 | J158: 0 | M158: 0 | N158: 0 | O158: 0 | Q158: =IF(C158="","",'Tabla_Puntual&Relacionamiento'!$E$13) -> 0.112 | S158: 7222.222462 | T158: 562889.5884 | U158: 1 | V158: 138 | X158: 7399.271267 | Y158: 1.230030907 | Z158: 0 | AA158: 18025 | AB158: 0 | AC158: 0
C159: 139 | D159: 562889.5884 | E159: 6755 | F159: 1501.363841 | G159: 5253.636159 | H159: 247.6714189 | I159: 218.8965517 | J159: 0 | M159: 0 | N159: 0 | O159: 0 | Q159: =IF(C159="","",'Tabla_Puntual&Relacionamiento'!$E$13) -> 0.112 | S159: 7221.567971 | T159: 561388.2246 | U159: 1 | V159: 139 | X159: 7398.616775 | Y159: 1.230030907 | Z159: 0 | AA159: 18025 | AB159: 0 | AC159: 0
C160: 140 | D160: 561388.2246 | E160: 6755 | F160: 1515.376571 | G160: 5239.623429 | H160: 247.0108188 | I160: 218.8965517 | J160: 0 | M160: 0 | N160: 0 | O160: 0 | Q160: =IF(C160="","",'Tabla_Puntual&Relacionamiento'!$E$13) -> 0.112 | S160: 7220.907371 | T160: 559872.848 | U160: 1 | V160: 140 | X160: 7397.956175 | Y160: 1.230030907 | Z160: 0 | AA160: 18025 | AB160: 0 | AC160: 0
C161: 141 | D161: 559872.848 | E161: 6755 | F161: 1529.520085 | G161: 5225.479915 | H161: 246.3440531 | I161: 218.8965517 | J161: 0 | M161: 0 | N161: 0 | O161: 0 | Q161: =IF(C161="","",'Tabla_Puntual&Relacionamiento'!$E$13) -> 0.112 | S161: 7220.240605 | T161: 558343.3279 | U161: 1 | V161: 141 | X161: 7397.289409 | Y161: 1.230030907 | Z161: 0 | AA161: 18025 | AB161: 0 | AC161: 0
C162: 142 | D162: 558343.3279 | E162: 6755 | F162: 1543.795606 | G162: 5211.204394 | H162: 245.6710643 | I162: 218.8965517 | J162: 0 | M162: 0 | N162: 0 | O162: 0 | Q162: =IF(C162="","",'Tabla_Puntual&Relacionamiento'!$E$13) -> 0.112 | S162: 7219.567616 | T162: 556799.5323 | U162: 1 | V162: 142 | X162: 7396.61642 | Y162: 1.230030907 | Z162: 0 | AA162: 18025 | AB162: 0 | AC162: 0
C163: 143 | D163: 556799.5323 | E163: 6755 | F163: 1558.204365 | G163: 5196.795635 | H163: 244.9917942 | I163: 218.8965517 | J163: 0 | M163: 0 | N163: 0 | O163: 0 | Q163: =IF(C163="","",'Tabla_Puntual&Relacionamiento'!$E$13) -> 0.112 | S163: 7218.888346 | T163: 555241.3279 | U163: 1 | V163: 143 | X163: 7395.93715 | Y163: 1.230030907 | Z163: 0 | AA163: 18025 | AB163: 0 | AC163: =AC162 -> 0
C164: 144 | D164: 555241.3279 | E164: 6755 | F164: 1572.747606 | G164: 5182.252394 | H164: 244.3061843 | I164: 218.8965517 | J164: 0 | M164: 0 | N164: 0 | O164: 0 | Q164: =IF(C164="","",'Tabla_Puntual&Relacionamiento'!$E$13) -> 0.112 | S164: 7218.202736 | T164: 553668.5803 | U164: 1 | V164: 144 | X164: 7395.25154 | Y164: 1.230030907 | Z164: 0 | AA164: 18025 | AB164: 0 | AC164: 0
C165: 145 | D165: 553668.5803 | E165: 6755 | F165: 1587.426583 | G165: 5167.573417 | H165: 243.6141754 | I165: 218.8965517 | J165: 0 | M165: 0 | N165: 0 | O165: 0 | Q165: =IF(C165="","",'Tabla_Puntual&Relacionamiento'!$E$14) -> 0.112 | R165: =IF(C165="","",IF($E$14="Pago_Bajo_Puntual",$M$17,"")) ->  | S165: 7217.510727 | T165: 552081.1538 | U165: 1 | V165: 145 | X165: 7394.559531 | Y165: =Y164*1.019 -> 1.253401494 | Z165: 0 | AA165: 18025 | AB165: 0 | AC165: =AC164+$M$17 -> 0
C166: 146 | D166: 552081.1538 | E166: 6755 | F166: 1602.242565 | G166: 5152.757435 | H166: 242.9157077 | I166: 218.8965517 | J166: 0 | M166: 0 | N166: 0 | O166: 0 | Q166: =IF(C166="","",'Tabla_Puntual&Relacionamiento'!$E$14) -> 0.112 | S166: 7216.812259 | T166: 550478.9112 | U166: 1 | V166: 146 | X166: 7393.861064 | Y166: =Y165 -> 1.253401494 | Z166: 0 | AA166: 18025 | AB166: 0 | AC166: 0
C167: 147 | D167: 550478.9112 | E167: 6755 | F167: 1617.196829 | G167: 5137.803171 | H167: 242.2107209 | I167: 218.8965517 | J167: 0 | M167: 0 | N167: 0 | O167: 0 | Q167: =IF(C167="","",'Tabla_Puntual&Relacionamiento'!$E$14) -> 0.112 | S167: 7216.107273 | T167: 548861.7144 | U167: 1 | V167: 147 | X167: 7393.156077 | Y167: 1.253401494 | Z167: 0 | AA167: 18025 | AB167: 0 | AC167: 0
C168: 148 | D168: 548861.7144 | E168: 6755 | F168: 1632.290666 | G168: 5122.709334 | H168: 241.4991543 | I168: 218.8965517 | J168: 0 | M168: 0 | N168: 0 | O168: 0 | Q168: =IF(C168="","",'Tabla_Puntual&Relacionamiento'!$E$14) -> 0.112 | S168: 7215.395706 | T168: 547229.4237 | U168: 1 | V168: 148 | X168: 7392.44451 | Y168: 1.253401494 | Z168: 0 | AA168: 18025 | AB168: 0 | AC168: 0
C169: 149 | D169: 547229.4237 | E169: 6755 | F169: 1647.525379 | G169: 5107.474621 | H169: 240.7809464 | I169: 218.8965517 | J169: 0 | M169: 0 | N169: 0 | O169: 0 | Q169: =IF(C169="","",'Tabla_Puntual&Relacionamiento'!$E$14) -> 0.112 | S169: 7214.677498 | T169: 545581.8983 | U169: 1 | V169: 149 | X169: 7391.726303 | Y169: 1.253401494 | Z169: 0 | AA169: 18025 | AB169: 0 | AC169: 0
C170: 150 | D170: 545581.8983 | E170: 6755 | F170: 1662.902282 | G170: 5092.097718 | H170: 240.0560353 | I170: 218.8965517 | J170: 0 | M170: 0 | N170: 0 | O170: 0 | Q170: =IF(C170="","",'Tabla_Puntual&Relacionamiento'!$E$14) -> 0.112 | S170: 7213.952587 | T170: 543918.996 | U170: 1 | V170: 150 | X170: 7391.001391 | Y170: 1.253401494 | Z170: 0 | AA170: 18025 | AB170: 0 | AC170: 0
C171: 151 | D171: 543918.996 | E171: 6755 | F171: 1678.422704 | G171: 5076.577296 | H171: 239.3243583 | I171: 218.8965517 | J171: 0 | M171: 0 | N171: 0 | O171: 0 | Q171: =IF(C171="","",'Tabla_Puntual&Relacionamiento'!$E$14) -> 0.112 | S171: 7213.22091 | T171: 542240.5733 | U171: 1 | V171: 151 | X171: 7390.269714 | Y171: 1.253401494 | Z171: 0 | AA171: 18025 | AB171: 0 | AC171: 0
C172: 152 | D172: 542240.5733 | E172: 6755 | F172: 1694.087982 | G172: 5060.912018 | H172: 238.5858523 | I172: 218.8965517 | J172: 0 | M172: 0 | N172: 0 | O172: 0 | Q172: =IF(C172="","",'Tabla_Puntual&Relacionamiento'!$E$14) -> 0.112 | S172: 7212.482404 | T172: 540546.4854 | U172: 1 | V172: 152 | X172: 7389.531208 | Y172: 1.253401494 | Z172: 0 | AA172: 18025 | AB172: 0 | AC172: 0
C173: 153 | D173: 540546.4854 | E173: 6755 | F173: 1709.89947 | G173: 5045.10053 | H173: 237.8404536 | I173: 218.8965517 | J173: 0 | M173: 0 | N173: 0 | O173: 0 | Q173: =IF(C173="","",'Tabla_Puntual&Relacionamiento'!$E$14) -> 0.112 | S173: 7211.737005 | T173: 538836.5859 | U173: 1 | V173: 153 | X173: 7388.78581 | Y173: 1.253401494 | Z173: 0 | AA173: 18025 | AB173: 0 | AC173: 0
C174: 154 | D174: 538836.5859 | E174: 6755 | F174: 1725.858532 | G174: 5029.141468 | H174: 237.0880978 | I174: 218.8965517 | J174: 0 | M174: 0 | N174: 0 | O174: 0 | Q174: =IF(C174="","",'Tabla_Puntual&Relacionamiento'!$E$14) -> 0.112 | S174: 7210.98465 | T174: 537110.7274 | U174: 1 | V174: 154 | X174: 7388.033454 | Y174: 1.253401494 | Z174: 0 | AA174: 18025 | AB174: 0 | AC174: 0
C175: 155 | D175: 537110.7274 | E175: 6755 | F175: 1741.966545 | G175: 5013.033455 | H175: 236.32872 | I175: 218.8965517 | J175: 0 | M175: 0 | N175: 0 | O175: 0 | Q175: =IF(C175="","",'Tabla_Puntual&Relacionamiento'!$E$14) -> 0.112 | S175: 7210.225272 | T175: 535368.7608 | U175: 1 | V175: 155 | X175: 7387.274076 | Y175: 1.253401494 | Z175: 0 | AA175: 18025 | AB175: 0 | AC175: 0
C176: 156 | D176: 535368.7608 | E176: 6755 | F176: 1758.224899 | G176: 4996.775101 | H176: 235.5622548 | I176: 218.8965517 | J176: 0 | M176: 0 | N176: 0 | O176: 0 | Q176: =IF(C176="","",'Tabla_Puntual&Relacionamiento'!$E$14) -> 0.112 | S176: 7209.458806 | T176: 533610.5359 | U176: 1 | V176: 156 | X176: 7386.507611 | Y176: 1.253401494 | Z176: 0 | AA176: 18025 | AB176: 0 | AC176: 0
C177: 157 | D177: 533610.5359 | E177: 6755 | F177: 1774.634998 | G177: 4980.365002 | H177: 234.7886358 | I177: 218.8965517 | J177: 0 | M177: 0 | N177: 0 | O177: 0 | Q177: =IF(C177="","",'Tabla_Puntual&Relacionamiento'!$E$15) -> 0.112 | R177: =IF(C177="","",IF($E$14="Pago_Bajo_Puntual",$M$17,"")) ->  | S177: 7208.685188 | T177: 531835.9009 | U177: 1 | V177: 157 | X177: 7385.733992 | Y177: =Y176*1.019 -> 1.277216123 | Z177: 0 | AA177: 18025 | AB177: 0 | AC177: =AC176+$M$17 -> 0
C178: 158 | D178: 531835.9009 | E178: 6755 | F178: 1791.198258 | G178: 4963.801742 | H178: 234.0077964 | I178: 218.8965517 | J178: 0 | M178: 0 | N178: 0 | O178: 0 | Q178: =IF(C178="","",'Tabla_Puntual&Relacionamiento'!$E$15) -> 0.112 | S178: 7207.904348 | T178: 530044.7027 | U178: 1 | V178: 158 | X178: 7384.953152 | Y178: =Y177 -> 1.277216123 | Z178: 0 | AA178: 18025 | AB178: 0 | AC178: 0
C179: 159 | D179: 530044.7027 | E179: 6755 | F179: 1807.916109 | G179: 4947.083891 | H179: 233.2196692 | I179: 218.8965517 | J179: 0 | M179: 0 | N179: 0 | O179: 0 | Q179: =IF(C179="","",'Tabla_Puntual&Relacionamiento'!$E$15) -> 0.112 | S179: 7207.116221 | T179: 528236.7865 | U179: 1 | V179: 159 | X179: 7384.165025 | Y179: 1.277216123 | Z179: 0 | AA179: 18025 | AB179: 0 | AC179: 0
C180: 160 | D180: 528236.7865 | E180: 6755 | F180: 1824.789992 | G180: 4930.210008 | H180: 232.4241861 | I180: 218.8965517 | J180: 0 | M180: 0 | N180: 0 | O180: 0 | Q180: =IF(C180="","",'Tabla_Puntual&Relacionamiento'!$E$15) -> 0.112 | S180: 7206.320738 | T180: 526411.9965 | U180: 1 | V180: 160 | X180: 7383.369542 | Y180: 1.277216123 | Z180: 0 | AA180: 18025 | AB180: 0 | AC180: 0
C181: 161 | D181: 526411.9965 | E181: 6755 | F181: 1841.821366 | G181: 4913.178634 | H181: 231.6212785 | I181: 218.8965517 | J181: 0 | M181: 0 | N181: 0 | O181: 0 | Q181: =IF(C181="","",'Tabla_Puntual&Relacionamiento'!$E$15) -> 0.112 | S181: 7205.51783 | T181: 524570.1752 | U181: 1 | V181: 161 | X181: 7382.566635 | Y181: 1.277216123 | Z181: 0 | AA181: 18025 | AB181: 0 | AC181: 0
C182: 162 | D182: 524570.1752 | E182: 6755 | F182: 1859.011698 | G182: 4895.988302 | H182: 230.8108771 | I182: 218.8965517 | J182: 0 | M182: 0 | N182: 0 | O182: 0 | Q182: =IF(C182="","",'Tabla_Puntual&Relacionamiento'!$E$15) -> 0.112 | S182: 7204.707429 | T182: 522711.1635 | U182: 1 | V182: 162 | X182: 7381.756233 | Y182: 1.277216123 | Z182: 0 | AA182: 18025 | AB182: 0 | AC182: 0
C183: 163 | D183: 522711.1635 | E183: 6755 | F183: 1876.362474 | G183: 4878.637526 | H183: 229.9929119 | I183: 218.8965517 | J183: 0 | M183: 0 | N183: 0 | O183: 0 | Q183: =IF(C183="","",'Tabla_Puntual&Relacionamiento'!$E$15) -> 0.112 | S183: 7203.889464 | T183: 520834.801 | U183: 1 | V183: 163 | X183: 7380.938268 | Y183: 1.277216123 | Z183: 0 | AA183: 18025 | AB183: 0 | AC183: 0
C184: 164 | D184: 520834.801 | E184: 6755 | F184: 1893.875191 | G184: 4861.124809 | H184: 229.1673124 | I184: 218.8965517 | J184: 0 | M184: 0 | N184: 0 | O184: 0 | Q184: =IF(C184="","",'Tabla_Puntual&Relacionamiento'!$E$15) -> 0.112 | S184: 7203.063864 | T184: 518940.9258 | U184: 1 | V184: 164 | X184: 7380.112669 | Y184: 1.277216123 | Z184: 0 | AA184: 18025 | AB184: 0 | AC184: 0
C185: 165 | D185: 518940.9258 | E185: 6755 | F185: 1911.551359 | G185: 4843.448641 | H185: 228.3340074 | I185: 218.8965517 | J185: 0 | M185: 0 | N185: 0 | O185: 0 | Q185: =IF(C185="","",'Tabla_Puntual&Relacionamiento'!$E$15) -> 0.112 | S185: 7202.230559 | T185: 517029.3745 | U185: 1 | V185: 165 | X185: 7379.279363 | Y185: 1.277216123 | Z185: 0 | AA185: 18025 | AB185: 0 | AC185: 0
C186: 166 | D186: 517029.3745 | E186: 6755 | F186: 1929.392505 | G186: 4825.607495 | H186: 227.4929248 | I186: 218.8965517 | J186: 0 | M186: 0 | N186: 0 | O186: 0 | Q186: =IF(C186="","",'Tabla_Puntual&Relacionamiento'!$E$15) -> 0.112 | S186: 7201.389476 | T186: 515099.982 | U186: 1 | V186: 166 | X186: 7378.438281 | Y186: 1.277216123 | Z186: 0 | AA186: 18025 | AB186: 0 | AC186: 0
C187: 167 | D187: 515099.982 | E187: 6755 | F187: 1947.400168 | G187: 4807.599832 | H187: 226.6439921 | I187: 218.8965517 | J187: 0 | M187: 0 | N187: 0 | O187: 0 | Q187: =IF(C187="","",'Tabla_Puntual&Relacionamiento'!$E$15) -> 0.112 | S187: 7200.540544 | T187: 513152.5818 | U187: 1 | V187: 167 | X187: 7377.589348 | Y187: 1.277216123 | Z187: 0 | AA187: 18025 | AB187: 0 | AC187: 0
C188: 168 | D188: 513152.5818 | E188: 6755 | F188: 1965.575903 | G188: 4789.424097 | H188: 225.787136 | I188: 218.8965517 | J188: 0 | M188: 0 | N188: 0 | O188: 0 | Q188: =IF(C188="","",'Tabla_Puntual&Relacionamiento'!$E$15) -> 0.112 | S188: 7199.683688 | T188: 511187.0059 | U188: 1 | V188: 168 | X188: 7376.732492 | Y188: 1.277216123 | Z188: 0 | AA188: 18025 | AB188: 0 | AC188: 0
C189: 169 | D189: 511187.0059 | E189: 6755 | F189: 1983.921278 | G189: 4771.078722 | H189: 224.9222826 | I189: 218.8965517 | J189: 0 | M189: 0 | N189: 0 | O189: 0 | Q189: =IF(C189="","",'Tabla_Puntual&Relacionamiento'!$E$16) -> 0.112 | R189: =IF(C189="","",IF($E$14="Pago_Bajo_Puntual",$M$17,"")) ->  | S189: 7198.818834 | T189: 509203.0846 | U189: 1 | V189: 169 | X189: 7375.867639 | Y189: =Y188*1.019 -> 1.301483229 | Z189: 0 | AA189: 18025 | AB189: 0 | AC189: =AC188+$M$17 -> 0
C190: 170 | D190: 509203.0846 | E190: 6755 | F190: 2002.437877 | G190: 4752.562123 | H190: 224.0493572 | I190: 218.8965517 | J190: 0 | M190: 0 | N190: 0 | O190: 0 | Q190: =IF(C190="","",'Tabla_Puntual&Relacionamiento'!$E$16) -> 0.112 | S190: 7197.945909 | T190: 507200.6467 | U190: 1 | V190: 170 | X190: 7374.994713 | Y190: =Y189 -> 1.301483229 | Z190: 0 | AA190: 18025 | AB190: 0 | AC190: 0
C191: 171 | D191: 507200.6467 | E191: 6755 | F191: 2021.127297 | G191: 4733.872703 | H191: 223.1682846 | I191: 218.8965517 | J191: 0 | M191: 0 | N191: 0 | O191: 0 | Q191: =IF(C191="","",'Tabla_Puntual&Relacionamiento'!$E$16) -> 0.112 | S191: 7197.064836 | T191: 505179.5194 | U191: 1 | V191: 171 | X191: 7374.113641 | Y191: 1.301483229 | Z191: 0 | AA191: 18025 | AB191: 0 | AC191: 0
C192: 172 | D192: 505179.5194 | E192: 6755 | F192: 2039.991152 | G192: 4715.008848 | H192: 222.2789886 | I192: 218.8965517 | J192: 0 | M192: 0 | N192: 0 | O192: 0 | Q192: =IF(C192="","",'Tabla_Puntual&Relacionamiento'!$E$16) -> 0.112 | S192: 7196.17554 | T192: 503139.5283 | U192: 1 | V192: 172 | X192: 7373.224345 | Y192: 1.301483229 | Z192: 0 | AA192: 18025 | AB192: 0 | AC192: 0
C193: 173 | D193: 503139.5283 | E193: 6755 | F193: 2059.031069 | G193: 4695.968931 | H193: 221.3813924 | I193: 218.8965517 | J193: 0 | M193: 0 | N193: 0 | O193: 0 | Q193: =IF(C193="","",'Tabla_Puntual&Relacionamiento'!$E$16) -> 0.112 | S193: 7195.277944 | T193: 501080.4972 | U193: 1 | V193: 173 | X193: 7372.326749 | Y193: 1.301483229 | Z193: 0 | AA193: 18025 | AB193: 0 | AC193: 0
C194: 174 | D194: 501080.4972 | E194: 6755 | F194: 2078.248693 | G194: 4676.751307 | H194: 220.4754188 | I194: 218.8965517 | J194: 0 | M194: 0 | N194: 0 | O194: 0 | Q194: =IF(C194="","",'Tabla_Puntual&Relacionamiento'!$E$16) -> 0.112 | S194: 7194.37197 | T194: 499002.2485 | U194: 1 | V194: 174 | X194: 7371.420775 | Y194: 1.301483229 | Z194: 0 | AA194: 18025 | AB194: 0 | AC194: 0
C195: 175 | D195: 499002.2485 | E195: 6755 | F195: 2097.64568 | G195: 4657.35432 | H195: 219.5609893 | I195: 218.8965517 | J195: 0 | M195: 0 | N195: 0 | O195: 0 | Q195: =IF(C195="","",'Tabla_Puntual&Relacionamiento'!$E$16) -> 0.112 | S195: 7193.457541 | T195: 496904.6028 | U195: 1 | V195: 175 | X195: 7370.506345 | Y195: 1.301483229 | Z195: 0 | AA195: 18025 | AB195: 0 | AC195: 0
C196: 176 | D196: 496904.6028 | E196: 6755 | F196: 2117.223707 | G196: 4637.776293 | H196: 218.6380252 | I196: 218.8965517 | J196: 0 | M196: 0 | N196: 0 | O196: 0 | Q196: =IF(C196="","",'Tabla_Puntual&Relacionamiento'!$E$16) -> 0.112 | S196: 7192.534577 | T196: 494787.3791 | U196: 1 | V196: 176 | X196: 7369.583381 | Y196: 1.301483229 | Z196: 0 | AA196: 18025 | AB196: 0 | AC196: 0
C197: 177 | D197: 494787.3791 | E197: 6755 | F197: 2136.984461 | G197: 4618.015539 | H197: 217.7064468 | I197: 218.8965517 | J197: 0 | M197: 0 | N197: 0 | O197: 0 | Q197: =IF(C197="","",'Tabla_Puntual&Relacionamiento'!$E$16) -> 0.112 | S197: 7191.602999 | T197: 492650.3947 | U197: 1 | V197: 177 | X197: 7368.651803 | Y197: 1.301483229 | Z197: 0 | AA197: 18025 | AB197: 0 | AC197: 0
C198: 178 | D198: 492650.3947 | E198: 6755 | F198: 2156.92965 | G198: 4598.07035 | H198: 216.7661737 | I198: 218.8965517 | J198: 0 | M198: 0 | N198: 0 | O198: 0 | Q198: =IF(C198="","",'Tabla_Puntual&Relacionamiento'!$E$16) -> 0.112 | S198: 7190.662725 | T198: 490493.465 | U198: 1 | V198: 178 | X198: 7367.71153 | Y198: 1.301483229 | Z198: 0 | AA198: 18025 | AB198: 0 | AC198: 0
C199: 179 | D199: 490493.465 | E199: 6755 | F199: 2177.060993 | G199: 4577.939007 | H199: 215.8171246 | I199: 218.8965517 | J199: 0 | M199: 0 | N199: 0 | O199: 0 | Q199: =IF(C199="","",'Tabla_Puntual&Relacionamiento'!$E$16) -> 0.112 | S199: 7189.713676 | T199: 488316.404 | U199: 1 | V199: 179 | X199: 7366.762481 | Y199: 1.301483229 | Z199: 0 | AA199: 18025 | AB199: 0 | AC199: 0
C200: 180 | D200: 488316.404 | E200: 6755 | F200: 2197.380229 | G200: 4557.619771 | H200: 214.8592178 | I200: 218.8965517 | J200: 0 | M200: 0 | N200: 0 | O200: 0 | Q200: =IF(C200="","",'Tabla_Puntual&Relacionamiento'!$E$16) -> 0.112 | S200: 7188.755769 | T200: 486119.0238 | U200: 1 | V200: 180 | X200: 7365.804574 | Y200: 1.301483229 | Z200: 0 | AA200: 18025 | AB200: 0 | AC200: 0
C201: 181 | D201: 486119.0238 | E201: 6755 | F201: 2217.889111 | G201: 4537.110889 | H201: 213.8923705 | I201: 218.8965517 | J201: 0 | M201: 0 | N201: 0 | O201: 0 | Q201: =IF(C201="","",'Tabla_Puntual&Relacionamiento'!$E$17) -> 0.112 | R201: =IF(C201="","",IF($E$14="Pago_Bajo_Puntual",$M$17,"")) ->  | S201: 7187.788922 | T201: 483901.1347 | U201: 1 | V201: 181 | X201: 7364.837727 | Y201: =Y200*1.019 -> 1.32621141 | Z201: 0 | AA201: 18025 | AB201: 0 | AC201: =AC200+$M$17 -> 0
C202: 182 | D202: 483901.1347 | E202: 6755 | F202: 2238.58941 | G202: 4516.41059 | H202: 212.9164993 | I202: 218.8965517 | J202: 0 | M202: 0 | N202: 0 | O202: 0 | Q202: =IF(C202="","",'Tabla_Puntual&Relacionamiento'!$E$17) -> 0.112 | S202: 7186.813051 | T202: 481662.5453 | U202: 1 | V202: 182 | X202: 7363.861855 | Y202: =Y201 -> 1.32621141 | Z202: 0 | AA202: 18025 | AB202: 0 | AC202: 0
C203: 183 | D203: 481662.5453 | E203: 6755 | F203: 2259.482911 | G203: 4495.517089 | H203: 211.9315199 | I203: 218.8965517 | J203: 0 | M203: 0 | N203: 0 | O203: 0 | Q203: =IF(C203="","",'Tabla_Puntual&Relacionamiento'!$E$17) -> 0.112 | S203: 7185.828072 | T203: 479403.0624 | U203: 1 | V203: 183 | X203: 7362.876876 | Y203: 1.32621141 | Z203: 0 | AA203: 18025 | AB203: 0 | AC203: 0
C204: 184 | D204: 479403.0624 | E204: 6755 | F204: 2280.571418 | G204: 4474.428582 | H204: 210.9373474 | I204: 218.8965517 | J204: 0 | M204: 0 | N204: 0 | O204: 0 | Q204: =IF(C204="","",'Tabla_Puntual&Relacionamiento'!$E$17) -> 0.112 | S204: 7184.833899 | T204: 477122.4909 | U204: 1 | V204: 184 | X204: 7361.882704 | Y204: 1.32621141 | Z204: 0 | AA204: 18025 | AB204: 0 | AC204: 0
C205: 185 | D205: 477122.4909 | E205: 6755 | F205: 2301.856751 | G205: 4453.143249 | H205: 209.933896 | I205: 218.8965517 | J205: 0 | M205: 0 | N205: 0 | O205: 0 | Q205: =IF(C205="","",'Tabla_Puntual&Relacionamiento'!$E$17) -> 0.112 | S205: 7183.830448 | T205: 474820.6342 | U205: 1 | V205: 185 | X205: 7360.879252 | Y205: 1.32621141 | Z205: 0 | AA205: 18025 | AB205: 0 | AC205: 0
... 116 more rows

Sheet Tabla_Amortización_Redisponible (hidden)
I3: CREDITO HIPOTECARIO | P3: =Caratula!Q10 -> Versión M110 V3
C4: Tabla de amortización | V4: 522916.3406 | W4: 453950.8234 | X4: =V4-W4 -> 68965.51724
C7: Datos Generales | I7: Datos del crédito
C8: Producto | E8: Liquidez
C9: Perfil cliente | E9: =Caratula!F18 -> No_Premier | I9: Monto de Crédito | J9: =Caratula!O40 -> 0
C10: Tipo de financiamiento | E10: =IF(Caratula!F21="","",Caratula!F21) -> Mercado_Abierto | I10: Tasa de Interes | J10: =VLOOKUP(CONCATENATE(E8," ",E15),Catalogo_Financier_Redisponible!A:V,13,0) -> 
C11: Perfil de Cliente HSBC | E11: =Caratula!F24 -> 0.103
C12: =IF(Caratula!F22="","","Tipo de Cliente") -> Tipo de Cliente | E12: =IF(Caratula!F22="","",Caratula!F22) -> Normal | I12: =Caratula!N18 -> Sin Comisiones | J12: =VLOOKUP(CONCATENATE(E8," ",E15),Catalogo_Financier_Redisponible!A:V,19,0) ->  | K12: Factor de Vida | L12: =VLOOKUP(CONCATENATE(E8," ",E15),Catalogo_Financier_Redisponible!A:V,16,0) ->  | M12: Factor de Daños | N12: =VLOOKUP(CONCATENATE(E8," ",E15),Catalogo_Financier_Redisponible!A:V,17,0) -> 
C13: Opciones de pago | I13: Gastos de Preoriginación - Avalúo Hipotecario | J13: 0
C14: Esquema | E14: Pago_Fijo_Puntual
C15: Plazo | E15: =Caratula!N40 -> 0 | I15: Factor Pago | J15: =VLOOKUP(CONCATENATE(E8," ",E15),Catalogo_Financier_Redisponible!A:V,11,0) ->  | L15: C. Administración Renta | N15: =VLOOKUP(CONCATENATE(E8," ",E15),Catalogo_Financier_Redisponible!A:V,22,0) -> 
C16: Tipo prepago | E16: Plazo
C17: =IF(E14="Pago_Bajo_Puntual","","Skip Payment") -> Skip Payment | D17: NO | I17: CAT* | J17: =IF(ISERROR(((1+IRR(X20:X200))^(12))-1),"-",(((1+IRR(X20:X200))^(12))-1)) -> - | L17: Factor de Incremento | M17: =IF(E14="Pago_Bajo_Puntual",1.9%,0) -> 0
